Workbook

Sheet Table S1
A1: Table S1: Detailed information on included studies in pancreatic cancer GWAS
A2: Data source | B2: Included studies | C2: Cases | D2: Controls | E2: Population | F2: Case definition | G2: Method | H2: Source | I2: Adjustments | J2: QC detail | K2: PMID
A3: European pancreatic cancer biobank (PanGenEU) | B3: PanGenEU (Spain, Italy, Sweden, Germany, UK, and Ireland) Additional controls from Spanish Bladder Cancer (SBC)/EPICURO study | C3: 1,317 | D3: 1,616 | E3: EUR | F3: n/a | G3: Logistic regression | H3: https://www.ebi.ac.uk/gwas/studies/GCST90011857 | I3: Age, sex, area of residence, and 5 genetic principal components (PCs) | J3: For the PanGenEU GWAS, samples were genotyped using the Infinium OncoArray-500K, and sample-level QC excluded individuals with high missingness, abnormal heterozygosity, sex discordance, unexpected relatedness, non-European ancestry, duplicates, or incomplete age information. SNP-level QC excluded sex-chromosome variants and variants failing Hardy–Weinberg equilibrium, leaving 451,883 SNPs before imputation. Additional EPICURO controls were genotyped using the Illumina 1M Infinium array, with exclusion of sex-chromosome variants, variants with genotyping rate <95%, and variants failing Hardy–Weinberg equilibrium. | K3: 33517887
A4: FinnGen | B4: FinnGen R2 | C4: 3,139 | D4: 378,749 | E4: EUR | F4: ICD-9 code 157; ICD-10 code C25 | G4: SAIGE | H4: https://storage.googleapis.com/finngen-public-data-r12/summary_stats/release/finngen_R12_C3_PANCREAS_EXALLC.gz | I4: Age, sex, 10 genetic PCs, Finngen 1 or 2 chip or legacy genotyping batch | J4: In FinnGen, samples were genotyped using the custom Axiom FinnGen1 array and legacy Illumina/Affymetrix arrays. Legacy chip data were lifted over to GRCh38, and variants were matched by chromosome, position, reference allele, and alternative allele. Sample-level QC excluded individuals with sex mismatch, missingness >5%, or excess heterozygosity beyond ±4 SD. Variant-level QC excluded variants with missingness >2%, Hardy–Weinberg equilibrium P <1×10⁻⁶, or minor allele count <3. Genotypes were phased using Eagle v2.3.5 and Beagle 4.1 and imputed using the Finnish population-specific SISu v3 reference panel. Imputed variants with INFO <0.6 or MAF <0.0001 were excluded before association testing using SAIGE. | K4: n/a
A5: Million Veteran Program (MVP) | B5: MVP | C5: 1,880 | D5: 448,753 | E5: EUR | F5: ICD-9 code 157; ICD-10 code C25, Z85.07 | G5: SAIGE | H5: https://ftp.ncbi.nlm.nih.gov/dbgap/studies/phs002453 | I5: Age, sex, 10 genetic PCs | J5: In MVP, participants were genotyped and assigned to population groups based on genetic similarity to 1000 Genomes reference populations. After imputation and QC filtering, more than 44.3 million variants with minor allele count >40 were retained for association analyses. Variant allele frequency and imputation quality metrics were provided within the released GWAS summary statistics. GWAS analyses were performed separately across population groups using a GPU-optimized version of SAIGE to account for case-control imbalance and relatedness. | K5: 39024449
A6: Pancreatic Cancer Cohort Consortium (PanScan) I+PanScan II | B6: ACS Cancer Prevention Study-II (CPS II) Alpha-Tocopherol Beta-Carotene Cancer Prevention Study (ATBC) European Prospective Investigation into Cancer and Nutrition Study (EPIC) Give Us a Clue to Cancer and Heart Disease Study (CLUE II) Health Professional's Follow-up Study (HPFS) Mayo Clinic Molecular Epidemiology of Pancreatic Cancer Study New York University Women’s Health Study (NYUWHS) Nurses' Health Study (NHS) Physicians' Health Study (PHS) Prostate, Lung, Colorectal, and Ovarian (PLCO) Cancer Screening Trial Women's Health Initiative (WHI) Women's Health Study (WHS) University of Toronto University of California San Francisco Johns Hopkins University MD Anderson Cancer Center PACIFIC Study of Group Health and Northern California Kaiser Permanente Memorial Sloan-Kettering Cancer Center Yale University Mayo Clinic Molecular Epidemiology of Pancreatic Cancer Study | C6: 3,622 | D6: 3,384 | E6: EUR | F6: ICD-O-3 code C250-C259; excluding C25.4, histology type, 8150, 8151, 8153, 8155, 8240 | G6: SNPTEST | H6: dbGaP | I6: Age, sex, study and the first 10 genetic PCs | J6: In this study, PanScan and PanC4 samples were genotyped using Illumina HumanHap, OmniExpress/Omni-series, and HumanOmniExpressExome arrays, followed by imputation with the 1000 Genomes Phase 3 reference panel using IMPUTE2. PanScan I/II were imputed and analyzed jointly, whereas PanScan III and PanC4 were analyzed separately. Variant-level QC excluded variants with completion rate <90%, MAF <0.01, or IMPUTE2 INFO score <0.3. After QC, 11,381,182 genotyped or imputed variants were analyzed among 9,040 pancreatic cancer cases and 12,496 controls of European ancestry. Association analyses were performed using SNPTEST with adjustment for study, geographic region, age, sex, and principal components, followed by fixed-effect inverse-variance meta-analysis based on beta estimates and standard errors. | K6: 29422604
A7: PanScan III+Pancreatic Cancer Case-Control Consortium (PanC4) | B7: ATBC, CPS-II, EPIC, HPFS, NHS, PHS, PLCO, and WHI; Agricultural Health Study (AHS) Multiethnic Cohort Study (MEC) Melbourne Collaborative Cohort Study (MCCS) Vitamins and Lifestyle Study (VITAL) Selenium and Vitamin E Cancer Prevention Trial (SELECT) Gastrointestinal Cancer Clinic of Dana-Farber Cancer Institute Study (DFCI-GCC) University Hospital in Heidelberg, Germany (part of the PANcreatic Disease ReseArch (PANDoRA) consortium) Clinic-based cases from eastern Spain (PANKRAS-II) Johns Hopkins National Familial Pancreas Tumor Registry Mayo Clinic Biospecimen Resource for Pancreas Research Ontario Pancreas Cancer Study (OPCS) Yale University MD Anderson Case Control Study Queensland Pancreatic Cancer Study University of California San Francisco Molecular Epidemiology of Pancreatic Cancer Study International Agency of Cancer Research and Memorial Sloan Kettering Cancer Center | C7: 5,286 | D7: 3,496 | E7: EUR | F7: ICD-O-3 code C250-C259; excluding C25.4, histology type, 8150, 8151, 8153, 8155, 8240 | G7: SNPTEST | H7: dbGaP | I7: Age, sex, study and the first 10 genetic PCs | K7: 29422604
A8: SIMPLER-Swedish Infrastructure for Medical Population-based Life-course and Environmental Research | B8: SIMPLER full cohorts | C8: 159 | D8: 17,197 | E8: EUR | F8: ICD-9 code 157; ICD-10 code C25 | G8: Plink | H8: de novo | I8: Age, sex and the first 6 genetic PCs | J8: Participants were genotyped using Illumina Infinium Global Screening Array v3 in the discovery cohort and v1 in the replication cohort. Sample-level QC excluded individuals with sex discordance, non-European ancestry, heterozygosity outliers, or call rate <98%. Variant-level QC excluded markers with Hardy–Weinberg equilibrium P <1×10⁻⁷, minor allele count <20, absence from the 1000 Genomes/HRC reference panels with matching alleles, or allele-frequency difference >0.15 compared with 1000 Genomes/HRC. Genotypes were imputed using the Michigan Imputation Server with Eagle and minimac, using 1000 Genomes Phase 3 and HRC v1.1 as reference panels, leaving approximately 7.8 million markers for GWAS analysis. | K8: de novo GWAS
A9: UK Biobank | B9: UK Biobank | C9: 2,226 | D9: 484,519 | E9: EUR | F9: ICD-9 code 157; ICD-10 code C250-C259 | G9: fastGWAS | H9: de novo | I9: Age, sex and the first 10 genetic PCs | J9: In UK Biobank, individuals without genetic data and those not of White British descent were excluded. Participants were genotyped using the Applied Biosystems UK BiLEVE Axiom Array or UK Biobank Axiom Array. Phasing and imputation were performed by the UK Biobank analysis team using the HRC reference panel and UK10K haplotype resource. | K9: de novo GWAS
A10: China Kadoorie Biobank (CKB) | B10: CKB | C10: 172 | D10: 75,716 | E10: EAS | F10: ICD-10 code C250-C259 | G10: SAIGE | H10: https://pheweb.ckbiobank.org/ | I10: Array version, sex, age, age2, recruitment region and the first 11 national PCs | J10: In the China Kadoorie Biobank, participants were genotyped using a custom Affymetrix/Thermo Fisher Axiom array designed to improve coverage of common and low-frequency variants in Chinese populations. Genotyping was performed for just over 100,000 participants, and approximately 2.5% of samples failed quality control; sex mismatch was observed for about 0.1% of samples, and duplicate concordance was 99.9%. The final array included 803,030 variants, including more than 80,000 variants with predicted functional effects. Genotypes were imputed using the 1000 Genomes Phase 3 reference panel, yielding more than 21 million variants; later imputation using TOPMed and the Westlake BioBank for Chinese reference panels provided more than 50 million variants. | K10: 37601966
A11: Japan Pancreatic Cancer Research Consortium (JaPAN) | B11: Japan Pancreatic Cancer Research (JaPAN) consortium GWAS National Cancer Center (NCC) GWAS BioBank Japan (BBJ) GWAS | C11: 2,039 | D11: 32,592 | E11: EAS | F11: ICD-O-3 codes C250–C259 | G11: Logistic regression | H11: https://www.aichi-med-u.ac.jp/JaPAN/Japan_PC.tsv.gz | I11: The first 2 genetic PCs | J11: In the JaPAN pancreatic cancer GWAS, quality control for samples and SNPs was performed using study-specific criteria. Genotype data were imputed separately within each study using the 1000 Genomes Project Phase 3 reference panel; phasing was performed using SHAPEIT v2 or Eagle2, and imputation was performed using minimac3 or IMPUTE v2. After imputation, variants with imputation quality r² <0.5 or MAF <0.01 were excluded. Only SNPs passing QC in at least two cohorts were included in the fixed-effect inverse-variance meta-analysis using METAL, resulting in 7,914,378 variants analyzed across three Japanese GWASs. | K11: 32581250
A12: PanScan I+PanScan II | B12: Shanghai Men's and Women's Health Study (SMWHS) and other participants of Asian origin | C12: 109 | D12: 118 | E12: EAS | F12: ICD-O-3 code C250-C259; excluding C25.4, histology type, 8150, 8151, 8153, 8155, 8240 | G12: SNPTEST | H12: dbGaP | I12: Age, sex, study and the first 10 genetic PCs | J12: Same as previous PanScan I+PanScan II | K12: 29422604
A13: PanScan III+PanC4 | B13: Shanghai Men's and Women's Health Study (SMWHS) and other participants of Asian origin | C13: 171 | D13: 52 | E13: EAS | F13: ICD-O-3 code C250-C259; excluding C25.4, histology type, 8150, 8151, 8153, 8155, 8240 | G13: SNPTEST | H13: dbGaP | I13: Age, sex, study and the first 10 genetic PCs | J13: Same as previous PanScan III+PanC4 | K13: 29422604
A14: Sum_All | C14: =SUM(C3:C13) -> 20,120 | D14: =SUM(D3:D13) -> 1,446,192
A15: Sum_EUR | C15: =SUM(C3:C9) -> 17,629 | D15: =SUM(D3:D9) -> 1,337,714
A16: Sum_EAS | C16: =SUM(C10:C13) -> 2,491 | D16: =SUM(D10:D13) -> 108,478

Sheet Table S2
A1: Table S2: Data sources for exposures used in the Mendelian randomization analysis.
A2: Phenotype | B2: nSNPs | C2: F statistic | D2: Unit | E2: PubMed ID | F2: Sample size | G2: Ancestry | H2: Measurement
A3: Body mass index | B3: 308 | C3: 89 | D3: SD | E3: 30239722 | F3: 806,834 | G3: European | H3: Calculated as weight (kg) divided by height (m) squared. Weight and height data were measured (most studies) or self-reported.
A4: Waist-to-hip ratio | B4: 569 | C4: 56 | D4: SD | E4: 30239722 | F4: 697,734 | G4: European | H4: Measured (most studies) or self-reported.
A5: Visceral adiposity | B5: 292 | C5: 50 | D5: Kg | E5: 31501611 | F5: 396,220 | G5: European | H5: Measured by dual-energy x-ray absorptiometry
A6: Type 2 diabetes | B6: 492 | C6: 84 | D6: One-unit in log-transformed odds | E6: 32541925 | F6: 148,726 cases and 965,732 non-cases | G6: European | H6: Self-reported or clinical diagnosis
A7: Fasting glucose | B7: 68 | C7: 125 | D7: mmol/L | E7: 34059833 | F7: up to 196,991 | G7: European | H7: Measured by assays or analyser
A8: Fasting insulin | B8: 38 | C8: 52 | D8: log-transformed pmol/L | E8: 34059833 | F8: up to 196,991 | G8: European | H8: Measured by assays or analyser
A9: Smoking initiation | B9: 313 | C9: 46 | D9: SD in prevalence of smoking initiation | E9: 30643251 | F9: 1,232,091 | G9: European | H9: Smoking behaviors were measured by questionnaires. Smoking initiation is a binary phenotype representing whether an individual had ever smoked cigarettes regularly in their life.
A10: Cigarettes per day | B10: 19 | C10: 111 | D10: Cigarettes per day | E10: 30643251 | F10: 337,334 | G10: European | H10: Average number of cigarettes smoked per day by current and former smokers
A11: Lifetime smoking index | B11: 126 | C11: 48 | D11: SD | E11: 31689377 | F11: 462,690 | G11: European | H11: A composite measure that combines information about a person's smoking initiation age, smoking duration, smoking intensity (cigarettes per day), and cessation age,
A12: Alcohol consumption | B12: 84 | C12: 66 | D12: SD increase of log-transformed alcoholic drinks/wk | E12: 30643251 | F12: 941,280 | G12: European | H12: Self-reported by questionnaires.
A13: Coffee consumption | B13: 11 | C13: 185 | D13: 50% change | E13: 31046077 | F13: 375,833 | G13: European | H13: Assessed by a 24-h recall questionnaire.
A14: Moderate-to-vigorous physical activity | B14: 19 | C14: 63 | D14: SD in MET-minutes/week | E14: 29899525 | F14: 377,234 | G14: European | H14: The sum of total minutes/week of MPA multiplied by four and the total number of VPA minutes/week multiplied by eight, corresponding to their metabolic equivalents
A15: Circulating proteins (UKB-PPP) | B15: 1 for each protein | C15: >10 | D15: SD | E15: 37794186 | F15: 54,219 | G15: European | H15: Olink
A16: Circulating proteins (deCODE) | B16: 1 for each protein | C16: >10 | D16: SD | E16: 34857953 | F16: 35,559 | G16: European | H16: SomaScan
A17: Circulating proteins (Fenland) | B17: 1 for each protein | C17: >10 | D17: SD | E17: 34648354 | F17: 10,708 | G17: European | H17: SomaScan
A18: SD, standard deviation; SNPs, single nucleotide polymorphisms.

Sheet Table S3
A1: Table S3: Genetic instruments for metabolic and lifestyle factors
A2: Exposure | B2: SNP | C2: EA | D2: NEA | E2: EAF | F2: beta.exposure | G2: se.exposure | H2: pval.exposure | I2: F statistic | J2: beta.outcome | K2: se.outcome | L2: pval.outcome
A3: Smoking initiation | B3: rs10001365 | C3: A | D3: G | E3: 0.38 | F3: -0.015 | G3: 0.002 | H3: 4.32E-21 | I3: =F3^2/G3^2 -> 58 | J3: -0.020 | K3: 0.017 | L3: 2.35E-01
A4: Smoking initiation | B4: rs1004787 | C4: A | D4: G | E4: 0.54 | F4: 0.016 | G4: 0.002 | H4: 3.91E-24 | I4: =F4^2/G4^2 -> 65 | J4: 0.006 | K4: 0.017 | L4: 7.11E-01
A5: Smoking initiation | B5: rs10057121 | C5: T | D5: C | E5: 0.25 | F5: 0.012 | G5: 0.002 | H5: 2.95E-10 | I5: 35 | J5: 0.011 | K5: 0.021 | L5: 6.24E-01
A6: Smoking initiation | B6: rs10062607 | C6: A | D6: C | E6: 0.64 | F6: 0.010 | G6: 0.002 | H6: 2.28E-10 | I6: 27 | J6: 0.026 | K6: 0.018 | L6: 1.46E-01
A7: Smoking initiation | B7: rs10119117 | C7: T | D7: C | E7: 0.50 | F7: 0.009 | G7: 0.002 | H7: 1.80E-08 | I7: 20 | J7: 0.032 | K7: 0.017 | L7: 6.13E-02
A8: Smoking initiation | B8: rs10121930 | C8: A | D8: T | E8: 0.51 | F8: 0.010 | G8: 0.002 | H8: 8.01E-10 | I8: 23 | J8: 0.005 | K8: 0.017 | L8: 7.53E-01
A9: Smoking initiation | B9: rs10233018 | C9: G | D9: A | E9: 0.51 | F9: 0.014 | G9: 0.002 | H9: 1.49e-18 | I9: 48 | J9: 0.019 | K9: 0.017 | L9: 2.71E-01
A10: Smoking initiation | B10: rs1025910 | C10: C | D10: G | E10: 0.29 | F10: -0.012 | G10: 0.002 | H10: 4.83E-13 | I10: 38 | J10: 0.001 | K10: 0.019 | L10: 9.49E-01
A11: Smoking initiation | B11: rs10270358 | C11: G | D11: A | E11: 0.68 | F11: -0.011 | G11: 0.002 | H11: 1.20E-10 | I11: 30 | J11: 0.010 | K11: 0.018 | L11: 5.77E-01
A12: Smoking initiation | B12: rs10279261 | C12: A | D12: G | E12: 0.63 | F12: -0.012 | G12: 0.002 | H12: 6.87e-14 | I12: 37 | J12: 0.001 | K12: 0.018 | L12: 9.66E-01
A13: Smoking initiation | B13: rs10458563 | C13: G | D13: A | E13: 0.19 | F13: 0.017 | G13: 0.002 | H13: 2.17e-18 | I13: 73 | J13: -0.010 | K13: 0.021 | L13: 6.55E-01
A14: Smoking initiation | B14: rs1050847 | C14: T | D14: C | E14: 0.55 | F14: -0.011 | G14: 0.002 | H14: 3.71e-11 | I14: 28 | J14: 0.011 | K14: 0.016 | L14: 5.15E-01
A15: Smoking initiation | B15: rs10514370 | C15: T | D15: G | E15: 0.37 | F15: -0.009 | G15: 0.002 | H15: 9.54E-09 | I15: 22 | J15: 0.016 | K15: 0.017 | L15: 3.74E-01
A16: Smoking initiation | B16: rs10698713 | C16: A | D16: G | E16: 0.05 | F16: -0.020 | G16: 0.004 | H16: 1.84E-08 | I16: 25 | J16: -0.009 | K16: 0.044 | L16: 8.41E-01
A17: Smoking initiation | B17: rs10745324 | C17: G | D17: A | E17: 0.67 | F17: -0.010 | G17: 0.002 | H17: 1.97E-08 | I17: 23 | J17: 0.005 | K17: 0.016 | L17: 7.56E-01
A18: Smoking initiation | B18: rs10753630 | C18: T | D18: C | E18: 0.35 | F18: 0.011 | G18: 0.002 | H18: 9.96E-11 | I18: 30 | J18: 0.034 | K18: 0.018 | L18: 5.00E-02
A19: Smoking initiation | B19: rs10786721 | C19: A | D19: C | E19: 0.42 | F19: 0.018 | G19: 0.002 | H19: 7.91E-27 | I19: 80 | J19: 0.023 | K19: 0.017 | L19: 1.83E-01
A20: Smoking initiation | B20: rs10813669 | C20: C | D20: A | E20: 0.12 | F20: -0.014 | G20: 0.002 | H20: 7.07E-09 | I20: 51 | J20: -0.035 | K20: 0.027 | L20: 1.84E-01
A21: Smoking initiation | B21: rs10852456 | C21: T | D21: G | E21: 0.43 | F21: 0.012 | G21: 0.002 | H21: 2.78e-11 | I21: 37 | J21: 0.022 | K21: 0.017 | L21: 2.13E-01
A22: Smoking initiation | B22: rs10856901 | C22: A | D22: G | E22: 0.27 | F22: 0.011 | G22: 0.002 | H22: 1.06E-08 | I22: 29 | J22: -0.001 | K22: 0.019 | L22: 9.72E-01
A23: Smoking initiation | B23: rs10873871 | C23: G | D23: A | E23: 0.18 | F23: 0.011 | G23: 0.002 | H23: 4.34E-08 | I23: 28 | J23: 0.015 | K23: 0.021 | L23: 4.79E-01
A24: Smoking initiation | B24: rs10889739 | C24: T | D24: G | E24: 0.40 | F24: -0.009 | G24: 0.002 | H24: 3.07E-08 | I24: 21 | J24: 0.013 | K24: 0.018 | L24: 4.77E-01
A25: Smoking initiation | B25: rs10894518 | C25: G | D25: T | E25: 0.49 | F25: 0.009 | G25: 0.002 | H25: 2.09E-08 | I25: 21 | J25: -0.009 | K25: 0.017 | L25: 5.85E-01
A26: Smoking initiation | B26: rs10927039 | C26: C | D26: T | E26: 0.20 | F26: -0.013 | G26: 0.002 | H26: 2.39e-10 | I26: 40 | J26: 0.028 | K26: 0.021 | L26: 1.88E-01
A27: Smoking initiation | B27: rs10945143 | C27: C | D27: T | E27: 0.25 | F27: 0.010 | G27: 0.002 | H27: 1.13E-08 | I27: 27 | J27: 0.005 | K27: 0.020 | L27: 8.05E-01
A28: Smoking initiation | B28: rs10953957 | C28: A | D28: G | E28: 0.37 | F28: 0.009 | G28: 0.002 | H28: 9.66E-09 | I28: 22 | J28: 0.004 | K28: 0.020 | L28: 8.33E-01
A29: Smoking initiation | B29: rs10966092 | C29: C | D29: T | E29: 0.27 | F29: -0.010 | G29: 0.002 | H29: 4.91E-08 | I29: 23 | J29: -0.015 | K29: 0.019 | L29: 4.39E-01
A30: Smoking initiation | B30: rs11004838 | C30: T | D30: C | E30: 0.53 | F30: 0.010 | G30: 0.002 | H30: 1.39E-08 | I30: 23 | J30: 0.015 | K30: 0.017 | L30: 3.92E-01
A31: Smoking initiation | B31: rs11012726 | C31: C | D31: T | E31: 0.33 | F31: 0.014 | G31: 0.002 | H31: 4.25e-17 | I31: 51 | J31: 0.006 | K31: 0.018 | L31: 7.22E-01
A32: Smoking initiation | B32: rs11021354 | C32: G | D32: A | E32: 0.39 | F32: -0.009 | G32: 0.002 | H32: 4.72E-08 | I32: 20 | J32: -0.025 | K32: 0.018 | L32: 1.75E-01
A33: Smoking initiation | B33: rs1104862 | C33: C | D33: T | E33: 0.18 | F33: -0.012 | G33: 0.002 | H33: 5.28E-09 | I33: 38 | J33: 0.060 | K33: 0.022 | L33: 5.91E-03
A34: Smoking initiation | B34: rs11078713 | C34: G | D34: A | E34: 0.41 | F34: -0.013 | G34: 0.002 | H34: 2.77e-15 | I34: 40 | J34: 0.001 | K34: 0.017 | L34: 9.55E-01
A35: Smoking initiation | B35: rs11103667 | C35: T | D35: C | E35: 0.18 | F35: 0.013 | G35: 0.002 | H35: 1.47E-10 | I35: 42 | J35: -0.017 | K35: 0.022 | L35: 4.42E-01
A36: Smoking initiation | B36: rs11125335 | C36: C | D36: T | E36: 0.42 | F36: 0.010 | G36: 0.002 | H36: 1.03E-09 | I36: 24 | J36: 0.012 | K36: 0.017 | L36: 4.94E-01
A37: Smoking initiation | B37: rs11162015 | C37: C | D37: G | E37: 0.46 | F37: -0.010 | G37: 0.002 | H37: 2.03E-09 | I37: 23 | J37: -0.001 | K37: 0.018 | L37: 9.36E-01
A38: Smoking initiation | B38: rs111861749 | C38: A | D38: G | E38: 0.12 | F38: -0.018 | G38: 0.003 | H38: 3.16E-12 | I38: 36 | J38: 0.014 | K38: 0.026 | L38: 5.78E-01
A39: Smoking initiation | B39: rs11192160 | C39: C | D39: G | E39: 0.19 | F39: 0.014 | G39: 0.002 | H39: 8.66E-10 | I39: 48 | J39: 0.012 | K39: 0.023 | L39: 6.05E-01
A40: Smoking initiation | B40: rs11258417 | C40: T | D40: C | E40: 0.34 | F40: -0.010 | G40: 0.002 | H40: 3.83E-10 | I40: 26 | J40: 0.006 | K40: 0.018 | L40: 7.40E-01
A41: Smoking initiation | B41: rs1126757 | C41: T | D41: C | E41: 0.47 | F41: 0.010 | G41: 0.002 | H41: 4.15E-11 | I41: 27 | J41: 0.011 | K41: 0.017 | L41: 5.04E-01
A42: Smoking initiation | B42: rs113103684 | C42: C | D42: A | E42: 0.12 | F42: 0.015 | G42: 0.003 | H42: 8.98E-09 | I42: 26 | J42: -0.008 | K42: 0.036 | L42: 8.23E-01
A43: Smoking initiation | B43: rs114050142 | C43: A | D43: T | E43: 0.06 | F43: -0.023 | G43: 0.003 | H43: 2.56E-11 | I43: 57 | J43: -0.000 | K43: 0.037 | L43: 9.92E-01
A44: Smoking initiation | B44: rs114900182 | C44: G | D44: C | E44: 0.06 | F44: -0.021 | G44: 0.003 | H44: 1.45E-12 | I44: 49 | J44: -0.017 | K44: 0.032 | L44: 5.89E-01
A45: Smoking initiation | B45: rs1155641 | C45: A | D45: G | E45: 0.33 | F45: 0.010 | G45: 0.002 | H45: 7.72E-10 | I45: 26 | J45: 0.004 | K45: 0.018 | L45: 8.16E-01
A46: Smoking initiation | B46: rs11594623 | C46: C | D46: T | E46: 0.24 | F46: 0.014 | G46: 0.002 | H46: 3.91E-14 | I46: 49 | J46: -0.010 | K46: 0.020 | L46: 6.04E-01
A47: Smoking initiation | B47: rs11611651 | C47: A | D47: G | E47: 0.07 | F47: 0.017 | G47: 0.003 | H47: 1.48E-09 | I47: 33 | J47: -0.002 | K47: 0.034 | L47: 9.44E-01
A48: Smoking initiation | B48: rs11626595 | C48: T | D48: C | E48: 0.16 | F48: -0.015 | G48: 0.002 | H48: 2.73E-12 | I48: 57 | J48: -0.072 | K48: 0.025 | L48: 3.92E-03
A49: Smoking initiation | B49: rs1164598 | C49: T | D49: A | E49: 0.40 | F49: 0.010 | G49: 0.002 | H49: 1.15e-10 | I49: 27 | J49: 0.005 | K49: 0.017 | L49: 7.87E-01
A50: Smoking initiation | B50: rs11656151 | C50: G | D50: A | E50: 0.20 | F50: -0.013 | G50: 0.002 | H50: 5.61E-12 | I50: 41 | J50: 0.016 | K50: 0.020 | L50: 4.24E-01
A51: Smoking initiation | B51: rs11673452 | C51: C | D51: T | E51: 0.11 | F51: 0.015 | G51: 0.003 | H51: 3.40E-09 | I51: 25 | J51: 0.029 | K51: 0.025 | L51: 2.41E-01
A52: Smoking initiation | B52: rs11693702 | C52: A | D52: T | E52: 0.42 | F52: 0.014 | G52: 0.002 | H52: 9.33E-19 | I52: 49 | J52: 0.046 | K52: 0.017 | L52: 8.49E-03
A53: Smoking initiation | B53: rs11695197 | C53: A | D53: G | E53: 0.12 | F53: 0.014 | G53: 0.002 | H53: 6.28E-09 | I53: 48 | J53: -0.055 | K53: 0.025 | L53: 2.52E-02
A54: Smoking initiation | B54: rs11716705 | C54: G | D54: A | E54: 0.27 | F54: 0.012 | G54: 0.002 | H54: 1.40E-10 | I54: 34 | J54: 0.026 | K54: 0.020 | L54: 1.84E-01
A55: Smoking initiation | B55: rs11720703 | C55: T | D55: C | E55: 0.51 | F55: 0.011 | G55: 0.002 | H55: 5.58E-12 | I55: 30 | J55: 0.032 | K55: 0.017 | L55: 6.30E-02
A56: Smoking initiation | B56: rs11736811 | C56: T | D56: A | E56: 0.22 | F56: -0.010 | G56: 0.002 | H56: 1.43E-08 | I56: 26 | J56: -0.017 | K56: 0.020 | L56: 3.99E-01
A57: Smoking initiation | B57: rs11742625 | C57: C | D57: T | E57: 0.12 | F57: 0.016 | G57: 0.002 | H57: 2.19E-10 | I57: 62 | J57: -0.044 | K57: 0.027 | L57: 1.01E-01
A58: Smoking initiation | B58: rs11756490 | C58: A | D58: T | E58: 0.13 | F58: -0.014 | G58: 0.002 | H58: 6.20E-09 | I58: 47 | J58: -0.005 | K58: 0.026 | L58: 8.60E-01
A59: Smoking initiation | B59: rs11766036 | C59: G | D59: T | E59: 0.15 | F59: -0.014 | G59: 0.002 | H59: 3.39E-10 | I59: 48 | J59: 0.011 | K59: 0.025 | L59: 6.74E-01
A60: Smoking initiation | B60: rs11766326 | C60: C | D60: T | E60: 0.48 | F60: -0.011 | G60: 0.002 | H60: 1.16e-10 | I60: 28 | J60: -0.007 | K60: 0.017 | L60: 6.81E-01
A61: Smoking initiation | B61: rs117695734 | C61: G | D61: A | E61: 0.04 | F61: -0.029 | G61: 0.004 | H61: 7.06E-14 | I61: 53 | J61: -0.013 | K61: 0.039 | L61: 7.32E-01
A62: Smoking initiation | B62: rs11783331 | C62: T | D62: C | E62: 0.59 | F62: -0.013 | G62: 0.002 | H62: 1.63E-16 | I62: 43 | J62: -0.004 | K62: 0.017 | L62: 8.27E-01
A63: Smoking initiation | B63: rs11865123 | C63: A | D63: T | E63: 0.27 | F63: 0.011 | G63: 0.002 | H63: 4.10E-08 | I63: 28 | J63: 0.014 | K63: 0.020 | L63: 4.68E-01
A64: Smoking initiation | B64: rs11872397 | C64: A | D64: G | E64: 0.26 | F64: -0.011 | G64: 0.002 | H64: 6.33E-09 | I64: 28 | J64: 0.018 | K64: 0.020 | L64: 3.82E-01
A65: Smoking initiation | B65: rs11873164 | C65: T | D65: C | E65: 0.13 | F65: -0.016 | G65: 0.002 | H65: 1.63E-12 | I65: 60 | J65: 0.036 | K65: 0.024 | L65: 1.35E-01
A66: Smoking initiation | B66: rs11926232 | C66: G | D66: A | E66: 0.05 | F66: 0.021 | G66: 0.004 | H66: 1.16E-08 | I66: 27 | J66: -0.004 | K66: 0.043 | L66: 9.35E-01
A67: Smoking initiation | B67: rs11994014 | C67: G | D67: A | E67: 0.79 | F67: -0.012 | G67: 0.002 | H67: 2.89E-09 | I67: 36 | J67: 0.011 | K67: 0.022 | L67: 6.23E-01
A68: Smoking initiation | B68: rs12022895 | C68: T | D68: C | E68: 0.58 | F68: -0.015 | G68: 0.002 | H68: 2.04E-18 | I68: =F68^2/G68^2 -> 59 | J68: -0.056 | K68: 0.018 | L68: 1.93E-03
A69: Smoking initiation | B69: rs12027999 | C69: C | D69: T | E69: 0.15 | F69: -0.018 | G69: 0.002 | H69: 1.54e-13 | I69: 85 | J69: -0.006 | K69: 0.024 | L69: 7.96E-01
A70: Smoking initiation | B70: rs12030183 | C70: C | D70: T | E70: 0.31 | F70: -0.010 | G70: 0.002 | H70: 9.08E-10 | I70: 27 | J70: -0.012 | K70: 0.018 | L70: 4.94E-01
A71: Smoking initiation | B71: rs12079063 | C71: G | D71: A | E71: 0.45 | F71: -0.009 | G71: 0.002 | H71: 3.88E-08 | I71: 19 | J71: -0.014 | K71: 0.018 | L71: 4.24E-01
A72: Smoking initiation | B72: rs12133063 | C72: A | D72: C | E72: 0.37 | F72: 0.012 | G72: 0.002 | H72: 1.15E-12 | I72: 34 | J72: 0.020 | K72: 0.018 | L72: 2.65E-01
A73: Smoking initiation | B73: rs12186738 | C73: T | D73: G | E73: 0.16 | F73: -0.016 | G73: 0.002 | H73: 7.77E-13 | I73: 63 | J73: -0.010 | K73: 0.024 | L73: 6.87E-01
A74: Smoking initiation | B74: rs12209775 | C74: G | D74: C | E74: 0.53 | F74: -0.010 | G74: 0.002 | H74: 1.29E-10 | I74: 26 | J74: 0.021 | K74: 0.017 | L74: 2.21E-01
A75: Smoking initiation | B75: rs12354968 | C75: T | D75: C | E75: 0.43 | F75: -0.009 | G75: 0.002 | H75: 3.34E-08 | I75: 19 | J75: -0.039 | K75: 0.018 | L75: 2.73E-02
A76: Smoking initiation | B76: rs12408243 | C76: T | D76: G | E76: 0.46 | F76: 0.010 | G76: 0.002 | H76: 8.05E-11 | I76: 26 | J76: -0.017 | K76: 0.017 | L76: 3.10E-01
A77: Smoking initiation | B77: rs12441907 | C77: A | D77: C | E77: 0.17 | F77: -0.015 | G77: 0.002 | H77: 6.09E-14 | I77: 56 | J77: -0.027 | K77: 0.021 | L77: 2.07E-01
A78: Smoking initiation | B78: rs12451373 | C78: G | D78: A | E78: 0.15 | F78: -0.012 | G78: 0.002 | H78: 3.13E-08 | I78: 36 | J78: -0.023 | K78: 0.023 | L78: 3.16E-01
A79: Smoking initiation | B79: rs12456769 | C79: G | D79: T | E79: 0.29 | F79: 0.014 | G79: 0.002 | H79: 2.92E-10 | I79: 51 | J79: -0.003 | K79: 0.020 | L79: 8.71E-01
A80: Smoking initiation | B80: rs1246265 | C80: C | D80: T | E80: 0.70 | F80: 0.012 | G80: 0.002 | H80: 1.27e-11 | I80: 34 | J80: 0.003 | K80: 0.019 | L80: 8.79E-01
A81: Smoking initiation | B81: rs12465974 | C81: C | D81: T | E81: 0.37 | F81: -0.010 | G81: 0.002 | H81: 6.85E-10 | I81: 26 | J81: 0.018 | K81: 0.018 | L81: 3.19E-01
A82: Smoking initiation | B82: rs12485391 | C82: A | D82: C | E82: 0.12 | F82: 0.014 | G82: 0.002 | H82: 1.89E-08 | I82: 48 | J82: -0.027 | K82: 0.029 | L82: 3.46E-01
A83: Smoking initiation | B83: rs12600466 | C83: T | D83: A | E83: 0.30 | F83: 0.012 | G83: 0.002 | H83: 1.30E-11 | I83: 33 | J83: 0.016 | K83: 0.018 | L83: 3.84E-01
A84: Smoking initiation | B84: rs12617139 | C84: A | D84: T | E84: 0.50 | F84: -0.009 | G84: 0.002 | H84: 4.31E-08 | I84: 19 | J84: 0.001 | K84: 0.017 | L84: 9.79E-01
A85: Smoking initiation | B85: rs12632110 | C85: G | D85: A | E85: 0.66 | F85: -0.014 | G85: 0.002 | H85: 1.18E-16 | I85: 48 | J85: -0.024 | K85: 0.018 | L85: 1.67E-01
A86: Smoking initiation | B86: rs12642744 | C86: T | D86: G | E86: 0.76 | F86: -0.012 | G86: 0.002 | H86: 5.98E-11 | I86: 38 | J86: 0.010 | K86: 0.021 | L86: 6.26E-01
A87: Smoking initiation | B87: rs12662631 | C87: T | D87: C | E87: 0.30 | F87: 0.010 | G87: 0.002 | H87: 1.32E-09 | I87: 27 | J87: -0.002 | K87: 0.018 | L87: 9.16E-01
A88: Smoking initiation | B88: rs1267042 | C88: C | D88: T | E88: 0.31 | F88: -0.012 | G88: 0.002 | H88: 1.13E-11 | I88: 34 | J88: -0.032 | K88: 0.019 | L88: 8.50E-02
A89: Smoking initiation | B89: rs12714017 | C89: C | D89: T | E89: 0.53 | F89: 0.010 | G89: 0.002 | H89: 6.57E-10 | I89: 27 | J89: 0.024 | K89: 0.017 | L89: 1.56E-01
A90: Smoking initiation | B90: rs12742446 | C90: T | D90: G | E90: 0.63 | F90: 0.012 | G90: 0.002 | H90: 2.74E-10 | I90: 35 | J90: -0.003 | K90: 0.019 | L90: 8.75E-01
A91: Smoking initiation | B91: rs12760908 | C91: T | D91: C | E91: 0.30 | F91: 0.011 | G91: 0.002 | H91: 3.90E-08 | I91: 30 | J91: -0.045 | K91: 0.025 | L91: 7.86E-02
A92: Smoking initiation | B92: rs12886628 | C92: C | D92: G | E92: 0.63 | F92: 0.010 | G92: 0.002 | H92: 1.96E-09 | I92: 24 | J92: -0.012 | K92: 0.018 | L92: 5.01E-01
A93: Smoking initiation | B93: rs1291865 | C93: T | D93: G | E93: 0.53 | F93: 0.012 | G93: 0.002 | H93: 2.12E-13 | I93: 34 | J93: -0.004 | K93: 0.017 | L93: 7.98E-01
A94: Smoking initiation | B94: rs12945403 | C94: C | D94: T | E94: 0.62 | F94: -0.009 | G94: 0.002 | H94: 1.79E-08 | I94: 22 | J94: -0.045 | K94: 0.018 | L94: 1.45E-02
A95: Smoking initiation | B95: rs13009008 | C95: G | D95: A | E95: 0.65 | F95: -0.010 | G95: 0.002 | H95: 6.92E-09 | I95: 24 | J95: -0.009 | K95: 0.018 | L95: 6.27E-01
A96: Smoking initiation | B96: rs13016665 | C96: A | D96: C | E96: 0.45 | F96: 0.011 | G96: 0.002 | H96: 1.46e-12 | I96: 32 | J96: -0.008 | K96: 0.017 | L96: 6.49E-01
A97: Smoking initiation | B97: rs13030994 | C97: A | D97: G | E97: 0.51 | F97: 0.021 | G97: 0.002 | H97: 2.42e-39 | I97: 107 | J97: 0.015 | K97: 0.017 | L97: 3.76E-01
A98: Smoking initiation | B98: rs13162305 | C98: T | D98: A | E98: 0.33 | F98: 0.010 | G98: 0.002 | H98: 1.15E-08 | I98: 24 | J98: -0.002 | K98: 0.018 | L98: 8.96E-01
A99: Smoking initiation | B99: rs13166371 | C99: A | D99: T | E99: 0.68 | F99: 0.013 | G99: 0.002 | H99: 4.42E-12 | I99: 39 | J99: 0.001 | K99: 0.018 | L99: 9.45E-01
A100: Smoking initiation | B100: rs13197257 | C100: T | D100: G | E100: 0.28 | F100: -0.010 | G100: 0.002 | H100: 2.49E-08 | I100: 24 | J100: -0.004 | K100: 0.019 | L100: 8.27E-01
A101: Smoking initiation | B101: rs1322322 | C101: C | D101: G | E101: 0.57 | F101: -0.009 | G101: 0.002 | H101: 2.17E-08 | I101: 20 | J101: 0.004 | K101: 0.017 | L101: 8.34E-01
A102: Smoking initiation | B102: rs13246563 | C102: G | D102: C | E102: 0.55 | F102: -0.013 | G102: 0.002 | H102: 3.99E-14 | I102: 42 | J102: 0.085 | K102: 0.145 | L102: 5.57E-01
A103: Smoking initiation | B103: rs13255625 | C103: G | D103: A | E103: 0.70 | F103: 0.012 | G103: 0.002 | H103: 4.03E-12 | I103: 34 | J103: 0.023 | K103: 0.019 | L103: 2.17E-01
A104: Smoking initiation | B104: rs13301073 | C104: A | D104: G | E104: 0.35 | F104: 0.011 | G104: 0.002 | H104: 3.13E-11 | I104: 30 | J104: -0.003 | K104: 0.016 | L104: 8.54E-01
A105: Smoking initiation | B105: rs13319205 | C105: A | D105: T | E105: 0.30 | F105: 0.010 | G105: 0.002 | H105: 4.63E-09 | I105: 26 | J105: 0.013 | K105: 0.020 | L105: 4.97E-01
A106: Smoking initiation | B106: rs13355543 | C106: G | D106: A | E106: 0.37 | F106: 0.010 | G106: 0.002 | H106: 3.33E-09 | I106: 24 | J106: -0.015 | K106: 0.018 | L106: 3.93E-01
A107: Smoking initiation | B107: rs13377168 | C107: A | D107: T | E107: 0.49 | F107: -0.015 | G107: 0.002 | H107: 2.16E-20 | I107: 53 | J107: 0.002 | K107: 0.017 | L107: 9.28E-01
A108: Smoking initiation | B108: rs13398418 | C108: A | D108: T | E108: 0.26 | F108: 0.012 | G108: 0.002 | H108: 2.09e-11 | I108: 35 | J108: -0.011 | K108: 0.019 | L108: 5.51E-01
A109: Smoking initiation | B109: rs134529 | C109: C | D109: T | E109: 0.38 | F109: -0.012 | G109: 0.002 | H109: 8.86E-13 | I109: 34 | J109: -0.021 | K109: 0.018 | L109: 2.21E-01
A110: Smoking initiation | B110: rs1381287 | C110: T | D110: C | E110: 0.50 | F110: 0.012 | G110: 0.002 | H110: 7.51E-15 | I110: 38 | J110: 0.018 | K110: 0.016 | L110: 2.86E-01
A111: Smoking initiation | B111: rs1392446 | C111: T | D111: C | E111: 0.53 | F111: 0.010 | G111: 0.002 | H111: 5.60E-10 | I111: 24 | J111: -0.009 | K111: 0.017 | L111: 5.70E-01
A112: Smoking initiation | B112: rs1435679 | C112: A | D112: G | E112: 0.58 | F112: 0.010 | G112: 0.002 | H112: 2.86E-10 | I112: 25 | J112: 0.005 | K112: 0.017 | L112: 7.65E-01
A113: Smoking initiation | B113: rs146075534 | C113: A | D113: T | E113: 0.38 | F113: -0.011 | G113: 0.002 | H113: 1.67E-09 | I113: 28 | J113: 0.015 | K113: 0.018 | L113: 4.13E-01
A114: Smoking initiation | B114: rs146628116 | C114: A | D114: T | E114: 0.38 | F114: 0.014 | G114: 0.002 | H114: 1.43e-14 | I114: 52 | J114: -0.018 | K114: 0.020 | L114: 3.57E-01
A115: Smoking initiation | B115: rs147052174 | C115: T | D115: G | E115: 0.01 | F115: 0.034 | G115: 0.006 | H115: 1.31E-08 | I115: 33 | J115: -0.015 | K115: 0.074 | L115: 8.38E-01
A116: Smoking initiation | B116: rs1476810 | C116: T | D116: C | E116: 0.48 | F116: -0.009 | G116: 0.002 | H116: 3.41E-08 | I116: 19 | J116: -0.014 | K116: 0.017 | L116: 4.14E-01
A117: Smoking initiation | B117: rs1485272 | C117: C | D117: T | E117: 0.38 | F117: -0.009 | G117: 0.002 | H117: 4.07E-08 | I117: 21 | J117: -0.004 | K117: 0.018 | L117: 8.22E-01
A118: Smoking initiation | B118: rs1490683 | C118: C | D118: T | E118: 0.33 | F118: -0.010 | G118: 0.002 | H118: 2.84E-08 | I118: 24 | J118: 0.036 | K118: 0.024 | L118: 1.35E-01
A119: Smoking initiation | B119: rs1499982 | C119: T | D119: C | E119: 0.84 | F119: 0.022 | G119: 0.002 | H119: 3.01E-23 | I119: 117 | J119: 0.013 | K119: 0.023 | L119: 5.59E-01
A120: Smoking initiation | B120: rs1500307 | C120: G | D120: C | E120: 0.18 | F120: 0.014 | G120: 0.002 | H120: 6.46E-11 | I120: 46 | J120: 0.033 | K120: 0.023 | L120: 1.48E-01
A121: Smoking initiation | B121: rs1503211 | C121: A | D121: G | E121: 0.45 | F121: 0.010 | G121: 0.002 | H121: 3.43e-10 | I121: 25 | J121: 0.019 | K121: 0.017 | L121: 2.62E-01
A122: Smoking initiation | B122: rs1514177 | C122: G | D122: C | E122: 0.57 | F122: -0.013 | G122: 0.002 | H122: 1.75e-15 | I122: 42 | J122: -0.034 | K122: 0.017 | L122: 4.53E-02
A123: Smoking initiation | B123: rs1531895 | C123: A | D123: G | E123: 0.45 | F123: 0.009 | G123: 0.002 | H123: 9.91E-09 | I123: 20 | J123: -0.017 | K123: 0.017 | L123: 3.31E-01
A124: Smoking initiation | B124: rs1559278 | C124: C | D124: T | E124: 0.35 | F124: -0.011 | G124: 0.002 | H124: 9.97E-12 | I124: 31 | J124: 0.006 | K124: 0.018 | L124: 7.42E-01
A125: Smoking initiation | B125: rs1565735 | C125: A | D125: T | E125: 0.20 | F125: -0.023 | G125: 0.002 | H125: 7.49E-32 | I125: 135 | J125: 0.020 | K125: 0.023 | L125: 3.67E-01
A126: Smoking initiation | B126: rs160631 | C126: G | D126: T | E126: 0.73 | F126: -0.011 | G126: 0.002 | H126: 3.56E-09 | I126: 28 | J126: 0.040 | K126: 0.019 | L126: 3.41E-02
A127: Smoking initiation | B127: rs167978 | C127: A | D127: G | E127: 0.61 | F127: 0.009 | G127: 0.002 | H127: 2.68E-08 | I127: 21 | J127: 0.015 | K127: 0.018 | L127: 3.90E-01
A128: Smoking initiation | B128: rs16896199 | C128: T | D128: A | E128: 0.17 | F128: 0.012 | G128: 0.002 | H128: 5.61E-09 | I128: 35 | J128: -0.031 | K128: 0.022 | L128: 1.52E-01
A129: Smoking initiation | B129: rs16975171 | C129: A | D129: C | E129: 0.11 | F129: -0.017 | G129: 0.003 | H129: 5.29E-09 | I129: 33 | J129: 0.031 | K129: 0.033 | L129: 3.49E-01
A130: Smoking initiation | B130: rs1714521 | C130: C | D130: A | E130: 0.38 | F130: -0.010 | G130: 0.002 | H130: 1.22E-10 | I130: 27 | J130: -0.015 | K130: 0.017 | L130: 3.77E-01
A131: Smoking initiation | B131: rs17187183 | C131: G | D131: A | E131: 0.48 | F131: -0.010 | G131: 0.002 | H131: 5.49E-10 | I131: 24 | J131: -0.026 | K131: 0.017 | L131: 1.31E-01
A132: Smoking initiation | B132: rs172032 | C132: C | D132: T | E132: 0.43 | F132: 0.009 | G132: 0.002 | H132: 1.56E-08 | I132: =F132^2/G132^2 -> 20 | J132: -0.037 | K132: 0.017 | L132: 3.54E-02
A133: Smoking initiation | B133: rs17270051 | C133: T | D133: C | E133: 0.31 | F133: -0.012 | G133: 0.002 | H133: 1.17E-11 | I133: 34 | J133: -0.009 | K133: 0.019 | L133: 6.47E-01
A134: Smoking initiation | B134: rs1733756 | C134: G | D134: A | E134: 0.50 | F134: 0.010 | G134: 0.002 | H134: 1.23E-10 | I134: 26 | J134: -0.024 | K134: 0.017 | L134: 1.60E-01
A135: Smoking initiation | B135: rs17432775 | C135: T | D135: C | E135: 0.22 | F135: -0.011 | G135: 0.002 | H135: 2.55E-08 | I135: 28 | J135: 0.035 | K135: 0.021 | L135: 1.04E-01
A136: Smoking initiation | B136: rs17491427 | C136: A | D136: G | E136: 0.49 | F136: 0.010 | G136: 0.002 | H136: 3.40E-10 | I136: 25 | J136: -0.026 | K136: 0.017 | L136: 1.29E-01
A137: Smoking initiation | B137: rs17539385 | C137: A | D137: C | E137: 0.03 | F137: -0.030 | G137: 0.005 | H137: 4.60E-11 | I137: 36 | J137: -0.000 | K137: 0.046 | L137: 9.92E-01
A138: Smoking initiation | B138: rs17594561 | C138: G | D138: A | E138: 0.42 | F138: 0.010 | G138: 0.002 | H138: 1.27E-09 | I138: 23 | J138: 0.032 | K138: 0.018 | L138: 7.02E-02
A139: Smoking initiation | B139: rs17618144 | C139: A | D139: G | E139: 0.23 | F139: -0.012 | G139: 0.002 | H139: 2.20E-09 | I139: 34 | J139: 0.001 | K139: 0.021 | L139: 9.53E-01
A140: Smoking initiation | B140: rs1776631 | C140: C | D140: T | E140: 0.77 | F140: -0.011 | G140: 0.002 | H140: 3.92E-08 | I140: 28 | J140: 0.028 | K140: 0.022 | L140: 2.10E-01
A141: Smoking initiation | B141: rs185628064 | C141: A | D141: G | E141: 0.03 | F141: 0.026 | G141: 0.005 | H141: 2.52E-08 | I141: 26 | J141: -0.014 | K141: 0.049 | L141: 7.75E-01
A142: Smoking initiation | B142: rs192477591 | C142: T | D142: C | E142: 0.50 | F142: 0.012 | G142: 0.002 | H142: 1.73E-08 | I142: 34 | J142: 0.029 | K142: 0.018 | L142: 1.03E-01
A143: Smoking initiation | B143: rs1925750 | C143: G | D143: A | E143: 0.71 | F143: 0.010 | G143: 0.002 | H143: 2.30E-08 | I143: 23 | J143: -0.036 | K143: 0.019 | L143: 5.81E-02
A144: Smoking initiation | B144: rs1937443 | C144: G | D144: C | E144: 0.57 | F144: 0.014 | G144: 0.002 | H144: 1.27e-18 | I144: 49 | J144: 0.022 | K144: 0.017 | L144: 2.04E-01
A145: Smoking initiation | B145: rs1945737 | C145: C | D145: T | E145: 0.51 | F145: -0.010 | G145: 0.002 | H145: 8.19E-10 | I145: 23 | J145: -0.052 | K145: 0.017 | L145: 2.61E-03
A146: Smoking initiation | B146: rs1966323 | C146: C | D146: T | E146: 0.70 | F146: -0.011 | G146: 0.002 | H146: 9.91E-09 | I146: 28 | J146: 0.004 | K146: 0.026 | L146: 8.86E-01
A147: Smoking initiation | B147: rs1971318 | C147: T | D147: C | E147: 0.13 | F147: 0.016 | G147: 0.002 | H147: 7.80E-13 | I147: 61 | J147: 0.021 | K147: 0.025 | L147: 4.10E-01
A148: Smoking initiation | B148: rs1994247 | C148: T | D148: G | E148: 0.51 | F148: 0.012 | G148: 0.002 | H148: 1.25e-14 | I148: 37 | J148: -0.008 | K148: 0.016 | L148: 6.07E-01
A149: Smoking initiation | B149: rs2022815 | C149: A | D149: G | E149: 0.34 | F149: 0.010 | G149: 0.002 | H149: 1.12E-09 | I149: 27 | J149: -0.046 | K149: 0.019 | L149: 1.76E-02
A150: Smoking initiation | B150: rs2072155 | C150: C | D150: T | E150: 0.70 | F150: 0.013 | G150: 0.002 | H150: 1.16E-13 | I150: 41 | J150: 0.008 | K150: 0.019 | L150: 6.85E-01
A151: Smoking initiation | B151: rs2107300 | C151: G | D151: C | E151: 0.85 | F151: -0.014 | G151: 0.002 | H151: 1.06e-10 | I151: 50 | J151: -0.018 | K151: 0.024 | L151: 4.67E-01
A152: Smoking initiation | B152: rs2133176 | C152: T | D152: G | E152: 0.40 | F152: 0.009 | G152: 0.002 | H152: 3.19E-08 | I152: 19 | J152: 0.008 | K152: 0.017 | L152: 6.27E-01
A153: Smoking initiation | B153: rs2135160 | C153: C | D153: T | E153: 0.09 | F153: 0.016 | G153: 0.003 | H153: 8.23E-09 | I153: 27 | J153: -0.047 | K153: 0.031 | L153: 1.24E-01
A154: Smoking initiation | B154: rs2137522 | C154: C | D154: T | E154: 0.35 | F154: -0.009 | G154: 0.002 | H154: 2.56E-08 | I154: 21 | J154: -0.004 | K154: 0.019 | L154: 8.23E-01
A155: Smoking initiation | B155: rs2163413 | C155: G | D155: A | E155: 0.18 | F155: -0.014 | G155: 0.002 | H155: 3.06E-11 | I155: 48 | J155: -0.025 | K155: 0.023 | L155: 2.72E-01
A156: Smoking initiation | B156: rs2165820 | C156: T | D156: A | E156: 0.64 | F156: 0.010 | G156: 0.002 | H156: 4.23E-08 | I156: 24 | J156: 0.046 | K156: 0.018 | L156: 1.21E-02
A157: Smoking initiation | B157: rs2173019 | C157: A | D157: T | E157: 0.17 | F157: 0.013 | G157: 0.002 | H157: 3.47E-10 | I157: 43 | J157: 0.007 | K157: 0.023 | L157: 7.59E-01
A158: Smoking initiation | B158: rs2175265 | C158: C | D158: T | E158: 0.82 | F158: -0.012 | G158: 0.002 | H158: 8.76E-09 | I158: 34 | J158: 0.010 | K158: 0.022 | L158: 6.39E-01
A159: Smoking initiation | B159: rs2182517 | C159: T | D159: C | E159: 0.26 | F159: 0.014 | G159: 0.002 | H159: 2.53E-13 | I159: 46 | J159: 0.010 | K159: 0.021 | L159: 6.50E-01
A160: Smoking initiation | B160: rs2237303 | C160: A | D160: G | E160: 0.66 | F160: -0.010 | G160: 0.002 | H160: 6.37E-10 | I160: 26 | J160: -0.012 | K160: 0.017 | L160: 4.78E-01
A161: Smoking initiation | B161: rs2244524 | C161: T | D161: C | E161: 0.43 | F161: -0.009 | G161: 0.002 | H161: 2.11E-09 | I161: 22 | J161: 0.001 | K161: 0.017 | L161: 9.45E-01
A162: Smoking initiation | B162: rs2276825 | C162: C | D162: T | E162: 0.28 | F162: 0.011 | G162: 0.002 | H162: 5.31E-10 | I162: 32 | J162: 0.019 | K162: 0.019 | L162: 3.26E-01
A163: Smoking initiation | B163: rs2278480 | C163: C | D163: T | E163: 0.29 | F163: -0.010 | G163: 0.002 | H163: 2.69E-08 | I163: 23 | J163: -0.015 | K163: 0.019 | L163: 4.28E-01
A164: Smoking initiation | B164: rs2289791 | C164: T | D164: G | E164: 0.24 | F164: -0.013 | G164: 0.002 | H164: 2.87E-12 | I164: 41 | J164: -0.012 | K164: 0.020 | L164: 5.46E-01
A165: Smoking initiation | B165: rs2292239 | C165: G | D165: T | E165: 0.67 | F165: 0.011 | G165: 0.002 | H165: 1.03E-10 | I165: 29 | J165: 0.020 | K165: 0.018 | L165: 2.71E-01
A166: Smoking initiation | B166: rs2313500 | C166: T | D166: C | E166: 0.24 | F166: 0.013 | G166: 0.002 | H166: 1.99E-12 | I166: 41 | J166: -0.018 | K166: 0.020 | L166: 3.67E-01
A167: Smoking initiation | B167: rs2358443 | C167: T | D167: C | E167: 0.45 | F167: -0.009 | G167: 0.002 | H167: 9.45E-09 | I167: 21 | J167: -0.009 | K167: 0.018 | L167: 6.18E-01
A168: Smoking initiation | B168: rs2613496 | C168: C | D168: T | E168: 0.83 | F168: 0.014 | G168: 0.002 | H168: 2.36e-12 | I168: 50 | J168: 0.035 | K168: 0.023 | L168: 1.22E-01
A169: Smoking initiation | B169: rs262728 | C169: T | D169: C | E169: 0.55 | F169: 0.009 | G169: 0.002 | H169: 7.80E-09 | I169: 21 | J169: 0.001 | K169: 0.017 | L169: 9.45E-01
A170: Smoking initiation | B170: rs2637869 | C170: A | D170: G | E170: 0.28 | F170: 0.010 | G170: 0.002 | H170: 2.27E-09 | I170: 26 | J170: 0.016 | K170: 0.025 | L170: 5.29E-01
A171: Smoking initiation | B171: rs2644735 | C171: C | D171: A | E171: 0.79 | F171: 0.010 | G171: 0.002 | H171: 3.69E-08 | I171: 26 | J171: -0.003 | K171: 0.020 | L171: 8.64E-01
A172: Smoking initiation | B172: rs2668732 | C172: C | D172: A | E172: 0.61 | F172: 0.013 | G172: 0.002 | H172: 2.75E-13 | I172: 41 | J172: 0.014 | K172: 0.018 | L172: 4.24E-01
A173: Smoking initiation | B173: rs27003 | C173: C | D173: T | E173: 0.70 | F173: 0.014 | G173: 0.002 | H173: 1.86E-16 | I173: 48 | J173: 0.007 | K173: 0.017 | L173: 6.99E-01
A174: Smoking initiation | B174: rs2708630 | C174: T | D174: C | E174: 0.69 | F174: -0.010 | G174: 0.002 | H174: 9.99E-10 | I174: 26 | J174: -0.013 | K174: 0.018 | L174: 4.83E-01
A175: Smoking initiation | B175: rs2711607 | C175: T | D175: G | E175: 0.16 | F175: 0.011 | G175: 0.002 | H175: 4.09E-08 | I175: 32 | J175: -0.004 | K175: 0.022 | L175: 8.66E-01
A176: Smoking initiation | B176: rs275356 | C176: A | D176: C | E176: 0.92 | F176: 0.016 | G176: 0.003 | H176: 1.48E-08 | I176: 28 | J176: -0.013 | K176: 0.028 | L176: 6.34E-01
A177: Smoking initiation | B177: rs2783130 | C177: G | D177: A | E177: 0.50 | F177: -0.009 | G177: 0.002 | H177: 2.71E-08 | I177: 19 | J177: -0.010 | K177: 0.017 | L177: 5.61E-01
A178: Smoking initiation | B178: rs2852859 | C178: G | D178: A | E178: 0.47 | F178: 0.009 | G178: 0.002 | H178: 2.92E-08 | I178: 20 | J178: -0.004 | K178: 0.017 | L178: 8.11E-01
A179: Smoking initiation | B179: rs28552810 | C179: A | D179: T | E179: 0.23 | F179: -0.011 | G179: 0.002 | H179: 3.53E-08 | I179: 28 | J179: 0.001 | K179: 0.021 | L179: 9.46E-01
A180: Smoking initiation | B180: rs2876586 | C180: A | D180: G | E180: 0.41 | F180: 0.009 | G180: 0.002 | H180: 1.88E-08 | I180: 20 | J180: 0.015 | K180: 0.017 | L180: 3.99E-01
A181: Smoking initiation | B181: rs2876921 | C181: A | D181: T | E181: 0.65 | F181: -0.009 | G181: 0.002 | H181: 3.48E-08 | I181: 20 | J181: -0.031 | K181: 0.018 | L181: 8.31E-02
A182: Smoking initiation | B182: rs288181 | C182: T | D182: C | E182: 0.32 | F182: -0.009 | G182: 0.002 | H182: 4.11E-08 | I182: 21 | J182: 0.029 | K182: 0.018 | L182: 1.12E-01
A183: Smoking initiation | B183: rs2939756 | C183: A | D183: G | E183: 0.49 | F183: -0.010 | G183: 0.002 | H183: 6.87E-11 | I183: 27 | J183: -0.002 | K183: 0.017 | L183: 9.24E-01
A184: Smoking initiation | B184: rs2985636 | C184: A | D184: T | E184: 0.50 | F184: 0.012 | G184: 0.002 | H184: 2.05E-12 | I184: 35 | J184: 0.032 | K184: 0.017 | L184: 6.46E-02
A185: Smoking initiation | B185: rs303948 | C185: G | D185: A | E185: 0.10 | F185: 0.015 | G185: 0.003 | H185: 3.57E-08 | I185: 24 | J185: 0.005 | K185: 0.029 | L185: 8.61E-01
A186: Smoking initiation | B186: rs3110590 | C186: A | D186: C | E186: 0.25 | F186: 0.011 | G186: 0.002 | H186: 1.22E-09 | I186: 31 | J186: 0.013 | K186: 0.020 | L186: 4.99E-01
A187: Smoking initiation | B187: rs3213876 | C187: C | D187: T | E187: 0.32 | F187: 0.012 | G187: 0.002 | H187: 5.08E-12 | I187: 33 | J187: -0.017 | K187: 0.018 | L187: 3.62E-01
A188: Smoking initiation | B188: rs326341 | C188: A | D188: G | E188: 0.46 | F188: -0.010 | G188: 0.002 | H188: 6.16E-10 | I188: 26 | J188: 0.037 | K188: 0.017 | L188: 3.01E-02
A189: Smoking initiation | B189: rs34367058 | C189: T | D189: C | E189: 0.17 | F189: 0.014 | G189: 0.002 | H189: 1.36e-13 | I189: 48 | J189: -0.032 | K189: 0.021 | L189: 1.18E-01
A190: Smoking initiation | B190: rs34371841 | C190: T | D190: C | E190: 0.21 | F190: 0.011 | G190: 0.002 | H190: 3.37E-08 | I190: 29 | J190: -0.022 | K190: 0.021 | L190: 2.92E-01
A191: Smoking initiation | B191: rs34425977 | C191: C | D191: T | E191: 0.50 | F191: 0.009 | G191: 0.002 | H191: 2.23E-09 | I191: 22 | J191: -0.000 | K191: 0.017 | L191: 9.96E-01
A192: Smoking initiation | B192: rs34479345 | C192: A | D192: G | E192: 0.11 | F192: -0.015 | G192: 0.002 | H192: 1.36E-09 | I192: 56 | J192: 0.015 | K192: 0.027 | L192: 5.70E-01
A193: Smoking initiation | B193: rs34488670 | C193: C | D193: T | E193: 0.21 | F193: 0.018 | G193: 0.002 | H193: 8.73E-20 | I193: 77 | J193: 0.002 | K193: 0.021 | L193: 9.24E-01
A194: Smoking initiation | B194: rs34553878 | C194: G | D194: A | E194: 0.12 | F194: 0.016 | G194: 0.003 | H194: 5.17E-10 | I194: 28 | J194: 0.015 | K194: 0.028 | L194: 6.00E-01
A195: Smoking initiation | B195: rs34638471 | C195: A | D195: G | E195: 0.36 | F195: -0.010 | G195: 0.002 | H195: 2.49E-08 | I195: 24 | J195: -0.002 | K195: 0.018 | L195: 8.95E-01
A196: Smoking initiation | B196: rs35277976 | C196: C | D196: T | E196: 0.48 | F196: -0.010 | G196: 0.002 | H196: 8.05E-10 | I196: =F196^2/G196^2 -> 24 | J196: 0.020 | K196: 0.017 | L196: 2.36E-01
A197: Smoking initiation | B197: rs35348484 | C197: G | D197: A | E197: 0.22 | F197: 0.012 | G197: 0.002 | H197: 1.27E-08 | I197: 35 | J197: 0.024 | K197: 0.021 | L197: 2.37E-01
A198: Smoking initiation | B198: rs35417692 | C198: A | D198: C | E198: 0.43 | F198: -0.009 | G198: 0.002 | H198: 2.44E-09 | I198: 22 | J198: -0.012 | K198: 0.017 | L198: 4.86E-01
A199: Smoking initiation | B199: rs357304 | C199: C | D199: T | E199: 0.72 | F199: 0.010 | G199: 0.002 | H199: 3.57E-08 | I199: 24 | J199: -0.019 | K199: 0.019 | L199: 3.12E-01
A200: Smoking initiation | B200: rs35891966 | C200: A | D200: G | E200: 0.07 | F200: -0.019 | G200: 0.003 | H200: 6.52E-10 | I200: 40 | J200: -0.064 | K200: 0.034 | L200: 5.67E-02
... 2244 more rows

Sheet Table S4
A1: Table S4: Gene prioritization result summary
A2: locus_marker | B2: neargene | C2: PoPS | D2: eQTLGen_coloc | E2: GTEx_coloc | F2: ABF | G2: CARMA | H2: Prioritized gene
A3: 1:112521149 | B3: WNT2B | C3: RHOC | D3: ST7L | F3: WNT2B | G3: RHOC,WNT2B,CAPZA1,MOV10,ST7L | H3: WNT2B
A4: 1:198262661 | B4: NEK7 | C4: NEK7 | H4: NEK7
A5: 1:200038304 | B5: NR5A2 | C5: NR5A2 | F5: NR5A2 | G5: NR5A2 | H5: NR5A2
A6: 1:966179 | B6: PLEKHN1 | C6: TNFRSF18 | D6: KLHL17 | E6: KLHL17 | F6: PLEKHN1 | G6: NOC2L,PLEKHN1 | H6: PLEKHN1
A7: 11:27357580 | B7: CCDC34 | C7: CCDC34 | D7: CCDC34 | F7: CCDC34 | G7: CCDC34 | H7: CCDC34
A8: 12:132565825 | B8: FBRSL1 | C8: GOLGA3 | E8: FBRSL1, LINC02361 | F8: LRCOL1 | G8: FBRSL1,LRCOL1 | H8: FBRSL1
A9: 12:52884728 | B9: KRT8 | C9: IGFBP6 | D9: KRT8 | F9: KRT78 | G9: KRT78 | H9: KRT8
A10: 13:26800841 | B10: GPR12 | C10: WASF3 | H10: GPR12
A11: 13:27983752 | B11: URAD | C11: GSX1 | E11: CDX2 | F11: CDX2 | G11: CDX2,PDX1,URAD | H11: CDX2
A12: 13:72240491 | G12: DACH1,MZT1 | H12: DACH1
A13: 13:73342491 | F13: KLF5 | G13: KLF5 | H13: KLF5
A14: 16:75200974 | B14: CTRB2 | C14: CFDP1 | F14: CTRB2 | G14: BCAR1,CTRB1,CTRB2 | H14: CTRB2
A15: 17:72404025 | C15: SLC39A11 | F15: SOX9 | G15: SOX9 | H15: SOX9
A16: 5:1337791 | B16: CLPTM1L | C16: SLC6A3 | F16: CLPTM1L | G16: TERT,CLPTM1L | H16: CLPTM1L
A17: 7:130995762 | C17: MKLN1 | F17: MKLN1 | G17: MKLN1 | H17: MKLN1
A18: 7:40801973 | B18: SUGCT | C18: SUGCT | D18: Y_RNA | E18: INHBA | F18: SUGCT | G18: SUGCT | H18: SUGCT
A19: 8:127707639 | B19: MYC | C19: MYC | F19: MYC | G19: MYC | H19: MYC
A20: 9:133257521 | B20: ABO | C20: RPL7A | F20: ABO | H20: ABO

Sheet Table S5
A1: Table S5: Genomic loci associated with pancreatic cancer in European and East asian populations
A2: Population | B2: rsid | C2: chromosome | D2: position | E2: marker_name | F2: EA | G2: NEA | H2: EAF | I2: MAF | J2: Beta | K2: SE | L2: P | M2: I2 | N2: ncase | O2: ncontrol | P2: Nearby gene
A3: European | B3: rs13303327 | C3: 1 | D3: 960326 | E3: 1:960326:A:G | F3: a | G3: g | H3: 0.91 | I3: 0.09 | J3: -0.254 | K3: 0.039 | L3: 5.20E-11 | M3: 0 | N3: 3863 | O3: 905875 | P3: KLHL17
A4: European | B4: rs745547194 | C4: 1 | D4: 198262661 | E4: 1:198262661:T:C | F4: t | G4: c | H4: 0.21 | I4: 0.21 | J4: -0.224 | K4: 0.030 | L4: 5.76E-14 | M4: 8.2 | N4: 8908 | O4: 6880 | P4: NEK7
A5: European | B5: rs3790844 | C5: 1 | D5: 200038304 | E5: 1:200038304:G:A | F5: a | G5: g | H5: 0.70 | I5: 0.30 | J5: 0.161 | K5: 0.019 | L5: 5.17E-18 | M5: 0 | N5: 8478 | O5: 1303440 | P5: NR5A2
A6: European | B6: rs31484 | C6: 5 | D6: 1337791 | E6: 5:1337791:T:A | F6: a | G6: t | H6: 0.54 | I6: 0.46 | J6: -0.178 | K6: 0.016 | L6: 7.66E-28 | M6: 0.3 | N6: 13764 | O6: 1306930 | P6: CLPTM1L
A7: European | B7: rs10279715 | C7: 7 | D7: 40831336 | E7: 7:40831336:G:A | F7: a | G7: g | H7: 0.53 | I7: 0.47 | J7: 0.105 | K7: 0.017 | L7: 7.80E-10 | M7: 0 | N7: 7161 | O7: 1301820 | P7: SUGCT
A8: European | B8: rs6971499 | C8: 7 | D8: 130995762 | E8: 7:130995762:C:T | F8: t | G8: c | H8: 0.87 | I8: 0.13 | J8: 0.153 | K8: 0.025 | L8: 1.81E-09 | M8: 46 | N8: 8319 | O8: 1286240 | P8: NA
A9: European | B9: rs10094872 | C9: 8 | D9: 127707639 | E9: 8:127707639:T:A | F9: a | G9: t | H9: 0.61 | I9: 0.39 | J9: -0.098 | K9: 0.017 | L9: 1.19E-08 | M9: 6.1 | N9: 8478 | O9: 1303440 | P9: MYC
A10: European | B10: rs77641731 | C10: 9 | D10: 133257521 | E10: 9:133257521:TC:T | F10: t | G10: tc | H10: 0.60 | I10: 0.40 | J10: -0.160 | K10: 0.017 | L10: 2.42E-21 | M10: 0 | N10: 8319 | O10: 1286240 | P10: ABO
A11: European | B11: rs9668670 | C11: 12 | D11: 52884728 | E11: 12:52884728:A:T | F11: a | G11: t | H11: 0.64 | I11: 0.36 | J11: -0.094 | K11: 0.017 | L11: 3.54E-08 | M11: 0 | N11: 12100 | O11: 1306820 | P11: KRT8
A12: European | B12: rs6560884 | C12: 12 | D12: 132565825 | E12: 12:132565825:C:T | F12: t | G12: c | H12: 0.17 | I12: 0.17 | J12: -0.132 | K12: 0.023 | L12: 8.39E-09 | M12: 42.1 | N12: 8478 | O12: 1303440 | P12: FBRSL1
A13: European | B13: NA | C13: 13 | D13: 26800841 | E13: 13:26800841:A:G | F13: a | G13: g | H13: 0.43 | I13: 0.43 | J13: 0.146 | K13: 0.024 | L13: 1.18E-09 | M13: 57.3 | N13: 8908 | O13: 6880 | P13: GPR12
A14: European | B14: rs9581957 | C14: 13 | D14: 27983752 | E14: 13:27983752:T:C | F14: t | G14: c | H14: 0.32 | I14: 0.32 | J14: -0.100 | K14: 0.018 | L14: 4.23E-08 | M14: 13.6 | N14: 7161 | O14: 1301820 | P14: URAD
A15: European | B15: rs537329268 | C15: 13 | D15: 72240491 | E15: 13:72240491:G:A | F15: a | G15: g | H15: 0.60 | I15: 0.40 | J15: -0.223 | K15: 0.025 | L15: 1.55E-19 | M15: 0 | N15: 8908 | O15: 6880 | P15: NA
A16: European | B16: rs9573166 | C16: 13 | D16: 73351949 | E16: 13:73351949:A:G | F16: a | G16: g | H16: 0.62 | I16: 0.38 | J16: -0.146 | K16: 0.017 | L16: 2.66E-17 | M16: 0 | N16: 12447 | O16: 1305320 | P16: NA
A17: European | B17: rs72802342 | C17: 16 | D17: 75200974 | E17: 16:75200974:A:C | F17: a | G17: c | H17: 0.08 | I17: 0.08 | J17: 0.299 | K17: 0.030 | L17: 7.10E-23 | M17: 87.1 | N17: 7002 | O17: 1284620 | P17: CTRB2
A18: European | B18: rs11655237 | C18: 17 | D18: 72404025 | E18: 17:72404025:T:C | F18: t | G18: c | H18: 0.12 | I18: 0.12 | J18: 0.180 | K18: 0.025 | L18: 9.66E-13 | M18: 33.5 | N18: 8319 | O18: 1286240 | P18: NA
A19: East Asian | B19: rs9530185 | C19: 13 | D19: 73342900 | E19: 13:73342900:G:C | F19: c | G19: g | H19: 0.49 | I19: 0.49 | J19: 0.214 | K19: 0.036 | L19: 2.86E-09 | M19: 0 | N19: 2211 | O19: 108308 | P19: NA

Sheet Table S6
A1: Table S6: Summary of leave-one-out analyses
A2: MARKER | B2: CHR | C2: POSITION | D2: Status | E2: Meta_P | F2: Meta_OR | G2: min_p_loo | H2: max_p_loo | I2: min_OR_loo | J2: max_OR_loo | K2: most_influential_source | L2: worst_loo_p | M2: worst_loo_OR | N2: sources_causing_loss | O2: sources
A3: 1_198262661 | B3: 1 | C3: 198262661 | D3: LOO-sensitive | E3: 6.74E-15 | F3: 0.79 | G3: 5.76E-14 | H3: 6.64E-07 | I3: 0.77 | J3: 0.81 | K3: QC_PanScan12_eur | L3: 6.64E-07 | M3: 0.81 | N3: QC_PanScan12_eur | O3: QC_PanScan12_eas; QC_PanScan12_eur; QC_PanScan34_eur
A4: 1_112521149 | B4: 1 | C4: 112521149 | D4: LOO-sensitive | E4: 2.83E-08 | F4: 1.10 | G4: 9.57E-09 | H4: 2.40E-04 | I4: 1.08 | J4: 1.14 | K4: QC_japan_eas | L4: 2.40E-04 | M4: 1.08 | N4: QC_ukb_eur; QC_mvp_eur; QC_japan_eas | O4: QC_ckb_eas; QC_finngen_eur; QC_japan_eas; QC_mvp_eur; QC_simpler_eur; QC_ukb_eur
A5: 1_966179 | B5: 1 | C5: 966179 | D5: Robust | E5: 3.75E-13 | F5: 0.84 | G5: 1.25E-13 | H5: 6.15E-09 | I5: 0.80 | J5: 0.85 | K5: QC_mvp_eur | L5: 6.15E-09 | M5: 0.85 | O5: QC_ckb_eas; QC_finngen_eur; QC_japan_eas; QC_mvp_eur; QC_ukb_eur
A6: 1_200038304 | B6: 1 | C6: 200038304 | D6: Robust | E6: 1.51E-20 | F6: 1.17 | G6: 2.16E-20 | H6: 4.04E-12 | I6: 1.16 | J6: 1.18 | K6: QC_finngen_eur | L6: 4.04E-12 | M6: 1.16 | O6: QC_ckb_eas; QC_finngen_eur; QC_japan_eas; QC_mvp_eur; QC_PanGenEU_eur; QC_simpler_eur; QC_ukb_eur
A7: 5_1337791 | B7: 5 | C7: 1337791 | D7: Robust | E7: 2.61E-29 | F7: 0.84 | G7: 2.02E-29 | H7: 7.27E-16 | I7: 0.83 | J7: 0.86 | K7: QC_finngen_eur | L7: 7.27E-16 | M7: 0.86 | O7: QC_ckb_eas; QC_finngen_eur; QC_japan_eas; QC_mvp_eur; QC_PanGenEU_eur; QC_PanScan34_eur; QC_simpler_eur; QC_ukb_eur
A8: 7_130995762 | B8: 7 | C8: 130995762 | D8: LOO-sensitive | E8: 2.24E-09 | F8: 1.16 | G8: 1.81E-09 | H8: 1.57E-04 | I8: 1.12 | J8: 1.19 | K8: QC_ukb_eur | L8: 1.57E-04 | M8: 1.12 | N8: QC_finngen_eur; QC_ukb_eur | O8: QC_finngen_eur; QC_japan_eas; QC_mvp_eur; QC_PanGenEU_eur; QC_ukb_eur
A9: 7_40801973 | B9: 7 | C9: 40801973 | D9: Robust | E9: 1.37E-11 | F9: 1.11 | G9: 4.66E-11 | H9: 2.02E-08 | I9: 1.11 | J9: 1.12 | K9: QC_finngen_eur | L9: 2.02E-08 | M9: 1.12 | O9: QC_ckb_eas; QC_finngen_eur; QC_japan_eas; QC_mvp_eur; QC_simpler_eur; QC_ukb_eur
A10: 8_127707639 | B10: 8 | C10: 127707639 | D10: LOO-sensitive | E10: 1.53E-10 | F10: 0.90 | G10: 8.80E-11 | H10: 3.36E-06 | I10: 0.89 | J10: 0.91 | K10: QC_finngen_eur | L10: 3.36E-06 | M10: 0.91 | N10: QC_ukb_eur; QC_finngen_eur | O10: QC_ckb_eas; QC_finngen_eur; QC_japan_eas; QC_mvp_eur; QC_PanGenEU_eur; QC_simpler_eur; QC_ukb_eur
A11: 9_133257521 | B11: 9 | C11: 133257521 | D11: Robust | E11: 2.61E-25 | F11: 0.85 | G11: 4.50E-26 | H11: 7.47E-15 | I11: 0.85 | J11: 0.86 | K11: QC_finngen_eur | L11: 7.47E-15 | M11: 0.86 | O11: QC_ckb_eas; QC_finngen_eur; QC_japan_eas; QC_mvp_eur; QC_PanGenEU_eur; QC_ukb_eur
A12: 11_27357580 | B12: 11 | C12: 27357580 | D12: LOO-sensitive | E12: 6.66E-09 | F12: 0.91 | G12: 4.12E-09 | H12: 1.64E-05 | I12: 0.90 | J12: 0.92 | K12: QC_mvp_eur | L12: 1.64E-05 | M12: 0.92 | N12: QC_japan_eas; QC_ukb_eur; QC_finngen_eur; QC_mvp_eur | O12: QC_ckb_eas; QC_finngen_eur; QC_japan_eas; QC_mvp_eur; QC_PanScan12_eur; QC_simpler_eur; QC_ukb_eur
A13: 12_132565825 | B13: 12 | C13: 132565825 | D13: LOO-sensitive | E13: 8.39E-09 | F13: 0.88 | G13: 3.00E-09 | H13: 3.50E-06 | I13: 0.87 | J13: 0.89 | K13: QC_mvp_eur | L13: 3.50E-06 | M13: 0.89 | N13: QC_ukb_eur; QC_PanGenEU_eur; QC_finngen_eur; QC_mvp_eur | O13: QC_finngen_eur; QC_mvp_eur; QC_PanGenEU_eur; QC_simpler_eur; QC_ukb_eur
A14: 12_52884728 | B14: 12 | C14: 52884728 | D14: Robust | E14: 7.80E-12 | F14: 0.90 | G14: 5.56E-12 | H14: 1.55E-08 | I14: 0.88 | J14: 0.91 | K14: QC_japan_eas | L14: 1.55E-08 | M14: 0.91 | O14: QC_ckb_eas; QC_finngen_eur; QC_japan_eas; QC_mvp_eur; QC_PanGenEU_eur; QC_PanScan12_eur; QC_simpler_eur; QC_ukb_eur
A15: 13_27983752 | B15: 13 | C15: 27983752 | D15: LOO-sensitive | E15: 1.05E-10 | F15: 0.90 | G15: 5.55E-11 | H15: 1.22E-05 | I15: 0.89 | J15: 0.91 | K15: QC_finngen_eur | L15: 1.22E-05 | M15: 0.91 | N15: QC_finngen_eur | O15: QC_ckb_eas; QC_finngen_eur; QC_japan_eas; QC_mvp_eur; QC_simpler_eur; QC_ukb_eur
A16: 13_26800841 | B16: 13 | C16: 26800841 | D16: LOO-sensitive | E16: 2.92E-09 | F16: 1.15 | G16: 1.18E-09 | H16: 2.98E-03 | I16: 1.11 | J16: 1.19 | K16: QC_PanScan34_eur | L16: 2.98E-03 | M16: 1.11 | N16: QC_PanScan12_eur; QC_PanScan34_eur | O16: QC_PanScan12_eas; QC_PanScan12_eur; QC_PanScan34_eur
A17: 13_72240491 | B17: 13 | C17: 72240491 | D17: Robust | E17: 9.78E-19 | F17: 0.81 | G17: 1.55E-19 | H17: 2.35E-09 | I17: 0.80 | J17: 0.82 | K17: QC_PanScan12_eur | L17: 2.35E-09 | M17: 0.82 | O17: QC_PanScan12_eas; QC_PanScan12_eur; QC_PanScan34_eur
A18: 13_73342491 | B18: 13 | C18: 73342491 | D18: Robust | E18: 2.66E-24 | F18: 0.86 | G18: 2.24E-24 | H18: 1.73E-17 | I18: 0.84 | J18: 0.87 | K18: QC_ukb_eur | L18: 1.73E-17 | M18: 0.87 | O18: QC_ckb_eas; QC_finngen_eur; QC_japan_eas; QC_mvp_eur; QC_PanGenEU_eur; QC_PanScan34_eur; QC_simpler_eur; QC_ukb_eur
A19: 16_75200974 | B19: 16 | C19: 75200974 | D19: Robust | E19: 7.10E-23 | F19: 1.35 | G19: 1.35E-22 | H19: 7.11E-13 | I19: 1.29 | J19: 1.52 | K19: QC_mvp_eur | L19: 7.11E-13 | M19: 1.29 | O19: QC_finngen_eur; QC_mvp_eur; QC_ukb_eur
A20: 17_72404025 | B20: 17 | C20: 72404025 | D20: Robust | E20: 1.45E-16 | F20: 1.21 | G20: 6.00E-16 | H20: 4.82E-12 | I20: 1.19 | J20: 1.22 | K20: QC_finngen_eur | L20: 4.82E-12 | M20: 1.22 | O20: QC_ckb_eas; QC_finngen_eur; QC_japan_eas; QC_mvp_eur; QC_PanGenEU_eur; QC_ukb_eur

Sheet Table S7
A1: Table S7: Summary of population-stratified analyses
A2: MARKER | B2: CHR | C2: POSITION | D2: beta_meta_EUR | E2: se_meta_EUR | F2: p_meta_EUR | G2: total_cases_EUR | H2: beta_meta_EAS | I2: se_meta_EAS | J2: p_meta_EAS | K2: total_cases_EAS | L2: Cochran's Q | M2: P_Q | N2: FDR | O2: ancestry_pattern
A3: 1_112521149 | B3: 1 | C3: 112521149 | D3: 0.076 | E3: 0.020 | F3: 1.50E-04 | G3: 7161 | H3: 0.177 | I3: 0.038 | J3: 2.68E-06 | K3: 2211 | L3: 6 | M3: 0.02 | N3: 0.22 | O3: Directionally consistent
A4: 1_198262661 | B4: 1 | C4: 198262661 | D4: -0.224 | E4: 0.030 | F4: 5.76E-14 | G4: 8908 | H4: -0.582 | I4: 0.224 | J4: 9.48E-03 | K4: 109 | L4: 3 | M4: 0.11 | N4: 0.30 | O4: Directionally consistent
A5: 1_200038304 | B5: 1 | C5: 200038304 | D5: 0.161 | E5: 0.019 | F5: 5.17E-18 | G5: 8478 | H5: 0.131 | I5: 0.038 | J5: 5.21E-04 | K5: 2211 | L5: 1 | M5: 0.47 | N5: 0.64 | O5: Directionally consistent
A6: 1_966179 | B6: 1 | C6: 966179 | D6: -0.179 | E6: 0.029 | F6: 6.17E-10 | G6: 7002 | H6: -0.175 | I6: 0.046 | J6: 1.39E-04 | K6: 2211 | L6: 0 | M6: 0.94 | N6: 0.94 | O6: Directionally consistent
A7: 5_1337791 | B7: 5 | C7: 1337791 | D7: -0.178 | E7: 0.016 | F7: 7.66E-28 | G7: 13764 | H7: -0.134 | I7: 0.049 | J7: 6.39E-03 | K7: 2211 | L7: 1 | M7: 0.39 | N7: 0.64 | O7: Directionally consistent
A8: 7_130995762 | B8: 7 | C8: 130995762 | D8: 0.152 | E8: 0.025 | F8: 1.81E-09 | G8: 8319 | H8: 0.045 | I8: 0.150 | J8: 7.64E-01 | K8: 2039 | L8: 1 | M8: 0.48 | N8: 0.64 | O8: Directionally consistent
A9: 7_40801973 | B9: 7 | C9: 40801973 | D9: 0.105 | E9: 0.017 | F9: 1.16E-09 | G9: 7161 | H9: 0.112 | I9: 0.038 | J9: 3.18E-03 | K9: 2211 | L9: 0 | M9: 0.87 | N9: 0.94 | O9: Directionally consistent
A10: 8_127707639 | B10: 8 | C10: 127707639 | D10: -0.098 | E10: 0.017 | F10: 1.19E-08 | G10: 8478 | H10: -0.172 | I10: 0.054 | J10: 1.40E-03 | K10: 2211 | L10: 2 | M10: 0.19 | N10: 0.38 | O10: Directionally consistent
A11: 9_133257521 | B11: 9 | C11: 133257521 | D11: -0.160 | E11: 0.017 | F11: 2.42E-21 | G11: 8319 | H11: -0.152 | I11: 0.036 | J11: 2.07E-05 | K11: 2211 | L11: 0 | M11: 0.84 | N11: 0.94 | O11: Directionally consistent
A12: 11_27357580 | B12: 11 | C12: 27357580 | D12: -0.097 | E12: 0.018 | F12: 6.09E-08 | G12: 10783 | H12: -0.103 | I12: 0.049 | J12: 3.79E-02 | K12: 2211 | L12: 0 | M12: 0.91 | N12: 0.94 | O12: Directionally consistent
A13: 12_52884728 | B13: 12 | C13: 52884728 | D13: -0.094 | E13: 0.017 | F13: 3.54E-08 | G13: 12100 | H13: -0.160 | I13: 0.037 | J13: 1.23E-05 | K13: 2211 | L13: 3 | M13: 0.10 | N13: 0.30 | O13: Directionally consistent
A14: 12_132565825 | B14: 12 | C14: 132565825 | D14: -0.132 | E14: 0.023 | F14: 8.39E-09 | G14: 8478
A15: 13_72240491 | B15: 13 | C15: 72240491 | D15: -0.223 | E15: 0.025 | F15: 1.55E-19 | G15: 8908 | H15: 0.222 | I15: 0.200 | J15: 2.68E-01 | K15: 109 | L15: 5 | M15: 0.03 | N15: 0.22 | O15: Opposite directions without significant heterogeneity
A16: 13_73342491 | B16: 13 | C16: 73342491 | D16: -0.139 | E16: 0.016 | F16: 2.70E-17 | G16: 13764 | H16: -0.210 | I16: 0.035 | J16: 3.02E-09 | K16: 2211 | L16: 3 | M16: 0.07 | N16: 0.30 | O16: Shared genome-wide significant association
A17: 13_26800841 | B17: 13 | C17: 26800841 | D17: 0.146 | E17: 0.024 | F17: 1.18E-09 | G17: 8908 | H17: -0.224 | I17: 0.220 | J17: 3.09E-01 | K17: 109 | L17: 3 | M17: 0.09 | N17: 0.30 | O17: Opposite directions without significant heterogeneity
A18: 13_27983752 | B18: 13 | C18: 27983752 | D18: -0.100 | E18: 0.018 | F18: 4.23E-08 | G18: 7161 | H18: -0.177 | I18: 0.047 | J18: 1.86E-04 | K18: 2211 | L18: 2 | M18: 0.13 | N18: 0.30 | O18: Directionally consistent
A19: 16_75200974 | B19: 16 | C19: 75200974 | D19: 0.299 | E19: 0.030 | F19: 7.10E-23 | G19: 7002
A20: 17_72404025 | B20: 17 | C20: 72404025 | D20: 0.180 | E20: 0.025 | F20: 9.66E-13 | G20: 8319 | H20: 0.221 | I20: 0.052 | J20: 2.43E-05 | K20: 2211 | L20: 0 | M20: 0.48 | N20: 0.64 | O20: Directionally consistent

Sheet Table S8
A1: Table S8: Phenotypes associated with pancreatic cancer lead variants
A2: rsid | B2: ID | C2: Trait | D2: EAF | E2: NEA | F2: EAF | G2: Beta | H2: SE | I2: P | J2: N | K2: Source
A3: rs13303160 | B3: eqtl-a-ENSG00000187961 | C3: ENSG00000187961 | D3: A | E3: G | F3: 0.89 | G3: 0.210 | H3: 0.019 | I3: 2.19E-28 | J3: 12283 | K3: OpenGWAS
A4: rs13303160 | B4: ebi-a-GCST90029004 | C4: Heel bone mineral density | D4: A | E4: G | F4: 0.91 | G4: -0.023 | H4: 0.003 | I4: 9.50E-16 | J4: 583314 | K4: OpenGWAS
A5: rs13303160 | B5: ebi-a-GCST90014022 | C5: Bone mineral density | D5: A | E5: G | G5: -0.029 | H5: 0.004 | I5: 2.89E-15 | J5: 365403 | K5: OpenGWAS
A6: rs13303160 | B6: eqtl-a-ENSG00000187583 | C6: ENSG00000187583 | D6: A | E6: G | F6: 0.89 | G6: 0.136 | H6: 0.019 | I6: 9.73E-13 | J6: 12283 | K6: OpenGWAS
A7: rs13303160 | B7: ebi-a-GCST006979 | C7: Heel bone mineral density | D7: A | E7: G | F7: 0.91 | G7: -0.022 | H7: 0.003 | I7: 2.30E-11 | J7: 426824 | K7: OpenGWAS
A8: rs13303160 | B8: eqtl-a-ENSG00000188976 | C8: ENSG00000188976 | D8: A | E8: G | F8: 0.89 | G8: -0.116 | H8: 0.019 | I8: 9.91E-10 | J8: 9040 | K8: OpenGWAS
A9: rs13303160 | B9: eqtl-a-ENSG00000187642 | C9: ENSG00000187642 | D9: A | E9: G | F9: 0.89 | G9: 0.113 | H9: 0.019 | I9: 2.73E-09 | J9: 6700 | K9: OpenGWAS
A10: rs13303160 | B10: ukb-b-1096 | C10: Heel bone mineral density (BMD) (left) | D10: A | E10: G | F10: 0.91 | G10: -0.035 | H10: 0.006 | I10: 9.80E-09 | J10: 146139 | K10: OpenGWAS
A11: rs13303160 | B11: ukb-b-15730 | C11: Heel bone mineral density (BMD) T-score, automated (left) | D11: A | E11: G | F11: 0.91 | G11: -0.035 | H11: 0.006 | I11: 1.30E-08 | J11: 146226 | K11: OpenGWAS
A12: rs13303160 | B12: ukb-b-845 | C12: Heel quantitative ultrasound index (QUI), direct entry (left) | D12: A | E12: G | F12: 0.91 | G12: -0.035 | H12: 0.006 | I12: 1.30E-08 | J12: 146226 | K12: OpenGWAS
A13: rs13303160 | B13: ukb-b-5447 | C13: Heel broadband ultrasound attenuation (left) | D13: A | E13: G | F13: 0.91 | G13: -0.034 | H13: 0.006 | I13: 1.90E-08 | J13: 146218 | K13: OpenGWAS
A14: rs13303160 | B14: ukb-b-4657 | C14: Heel bone mineral density (BMD) (right) | D14: A | E14: G | F14: 0.91 | G14: -0.033 | H14: 0.006 | I14: 5.70E-08 | J14: 146093 | K14: OpenGWAS
A15: rs13303160 | B15: ukb-b-20032 | C15: Heel bone mineral density (BMD) T-score, automated (right) | D15: A | E15: G | F15: 0.91 | G15: -0.032 | H15: 0.006 | I15: 1.40E-07 | J15: 146181 | K15: OpenGWAS
A16: rs13303160 | B16: ukb-b-5463 | C16: Heel quantitative ultrasound index (QUI), direct entry (right) | D16: A | E16: G | F16: 0.91 | G16: -0.032 | H16: 0.006 | I16: 1.50E-07 | J16: 146181 | K16: OpenGWAS
A17: rs13303160 | B17: ukb-b-6027 | C17: Heel broadband ultrasound attenuation (right) | D17: A | E17: G | F17: 0.91 | G17: -0.030 | H17: 0.006 | I17: 4.30E-07 | J17: 146171 | K17: OpenGWAS
A18: rs13303160 | B18: ukb-a-361 | C18: Heel bone mineral density (BMD) T-score automated (left) | D18: A | E18: G | F18: 0.91 | G18: -0.038 | H18: 0.007 | I18: 4.50E-07 | J18: 106254 | K18: OpenGWAS
A19: rs13303160 | B19: ukb-b-15851 | C19: Heel Broadband ultrasound attenuation, direct entry | D19: A | E19: G | F19: 0.91 | G19: -0.022 | H19: 0.004 | I19: 8.30E-07 | J19: 265737 | K19: OpenGWAS
A20: rs13303160 | B20: ukb-a-362 | C20: Heel bone mineral density (BMD) T-score automated (right) | D20: A | E20: G | F20: 0.91 | G20: -0.036 | H20: 0.007 | I20: 1.55E-06 | J20: 106251 | K20: OpenGWAS
A21: rs13303160 | B21: ukb-a-500 | C21: Heel bone mineral density (BMD) T-score automated | D21: A | E21: G | F21: 0.91 | G21: -0.026 | H21: 0.006 | I21: 1.93E-06 | J21: 194398 | K21: OpenGWAS
A22: rs13303160 | B22: ukb-b-19234 | C22: Heel quantitative ultrasound index (QUI), direct entry | D22: A | E22: G | F22: 0.91 | G22: -0.021 | H22: 0.004 | I22: 2.80E-06 | J22: 265753 | K22: OpenGWAS
A23: rs13303160 | B23: ukb-b-20124 | C23: Heel bone mineral density (BMD) T-score, automated | D23: A | E23: G | F23: 0.91 | G23: -0.021 | H23: 0.004 | I23: 2.80E-06 | J23: 265753 | K23: OpenGWAS
A24: rs13303160 | B24: ubm-b-1 | C24: IDP_T1_SIENAX_peripheral_grey_normalised_volume | D24: A | E24: G | F24: 0.91 | G24: -0.064 | H24: 0.014 | I24: 3.60E-06 | K24: OpenGWAS
A25: rs13303160 | B25: ukb-b-8875 | C25: Heel bone mineral density (BMD) | D25: A | E25: G | F25: 0.91 | G25: -0.020 | H25: 0.004 | I25: 5.10E-06 | J25: 265627 | K25: OpenGWAS
A26: rs13303160 | B26: ubm-b-2 | C26: IDP_T1_SIENAX_peripheral_grey_unnormalised_volume | D26: A | E26: G | F26: 0.91 | G26: -0.062 | H26: 0.014 | I26: 5.22E-06 | K26: OpenGWAS
A27: rs2273368 | B27: eqtl-a-ENSG00000007341 | C27: ENSG00000007341 | D27: T | E27: C | F27: 0.20 | G27: 0.615 | H27: 0.014 | I27: 0.00E+00 | J27: 31684 | K27: OpenGWAS
A28: rs2273368 | B28: eqtl-a-ENSG00000155363 | C28: ENSG00000155363 | D28: T | E28: C | F28: 0.20 | G28: 0.334 | H28: 0.015 | I28: 8.89E-117 | J28: 31684 | K28: OpenGWAS
A29: rs2273368 | B29: ebi-a-GCST90029000 | C29: Platelet distribution width | D29: T | E29: C | F29: 0.20 | G29: -0.034 | H29: 0.002 | I29: 3.30E-51 | J29: 572201 | K29: OpenGWAS
A30: rs2273368 | B30: ebi-a-GCST90029004 | C30: Heel bone mineral density | D30: T | E30: C | F30: 0.20 | G30: 0.034 | H30: 0.002 | I30: 2.50E-49 | J30: 583314 | K30: OpenGWAS
A31: rs2273368 | B31: ebi-a-GCST006979 | C31: Heel bone mineral density | D31: T | E31: C | F31: 0.20 | G31: 0.033 | H31: 0.002 | I31: 7.30E-44 | J31: 426824 | K31: OpenGWAS
A32: rs2273368 | B32: ieu-b-39 | C32: diastolic blood pressure | D32: T | E32: C | F32: 0.20 | G32: 0.288 | H32: 0.022 | I32: 4.16E-40 | J32: 746073 | K32: OpenGWAS
A33: rs2273368 | B33: ebi-a-GCST90002401 | C33: Platelet distribution width | D33: T | E33: C | F33: 0.20 | G33: -0.033 | H33: 0.003 | I33: 6.70E-34 | J33: 408112 | K33: OpenGWAS
A34: rs2273368 | B34: ebi-a-GCST90029010 | C34: Diastolic blood pressure | D34: T | E34: C | F34: 0.20 | G34: 0.030 | H34: 0.003 | I34: 7.60E-33 | J34: 490469 | K34: OpenGWAS
A35: rs2273368 | B35: ukb-d-30110_irnt | C35: Platelet distribution width | D35: T | E35: C | F35: 0.20 | G35: -0.034 | H35: 0.003 | I35: 7.50E-31 | J35: 350470 | K35: OpenGWAS
A36: rs2273368 | B36: ebi-a-GCST90014022 | C36: Bone mineral density | D36: T | E36: C | G36: 0.030 | H36: 0.003 | I36: 5.67E-30 | J36: 365403 | K36: OpenGWAS
A37: rs2273368 | B37: ebi-a-GCST90029008 | C37: Height | D37: T | E37: C | F37: 0.20 | G37: -0.022 | H37: 0.002 | I37: 1.10E-27 | J37: 673878 | K37: OpenGWAS
A38: rs2273368 | B38: ieu-b-38 | C38: systolic blood pressure | D38: T | E38: C | F38: 0.20 | G38: 0.410 | H38: 0.038 | I38: 2.19E-27 | J38: 726709 | K38: OpenGWAS
A39: rs2273368 | B39: ebi-a-GCST90028999 | C39: Platelet count | D39: T | E39: C | F39: 0.20 | G39: 0.024 | H39: 0.002 | I39: 6.00E-26 | J39: 600968 | K39: OpenGWAS
A40: rs2273368 | B40: ebi-a-GCST90028996 | C40: Mean platelet volume | D40: T | E40: C | F40: 0.20 | G40: -0.021 | H40: 0.002 | I40: 2.30E-25 | J40: 694866 | K40: OpenGWAS
A41: rs2273368 | B41: ukb-b-10787 | C41: Standing height | D41: T | E41: C | F41: 0.20 | G41: -0.016 | H41: 0.002 | I41: 9.60E-24 | J41: 461950 | K41: OpenGWAS
A42: rs2273368 | B42: ebi-a-GCST90013981 | C42: Mean platelet thrombocyte volume (UKB data field 30100) | D42: T | E42: C | G42: -0.024 | H42: 0.002 | I42: 9.80E-23 | J42: 396616 | K42: OpenGWAS
A43: rs2273368 | B43: ebi-a-GCST90013980 | C43: Platelet count (UKB data field 30080) | D43: T | E43: C | G43: 0.024 | H43: 0.003 | I43: 5.61E-22 | J43: 396621 | K43: OpenGWAS
A44: rs2273368 | B44: ebi-a-GCST90002357 | C44: Platelet count | D44: T | E44: C | F44: 0.20 | G44: 0.022 | H44: 0.002 | I44: 4.02E-21 | J44: 542827 | K44: OpenGWAS
A45: rs2273368 | B45: ebi-a-GCST90018959 | C45: Height | D45: T | E45: C | F45: 0.29 | G45: -0.013 | H45: 0.001 | I45: 2.86E-20 | J45: 360388 | K45: OpenGWAS
A46: rs2273368 | B46: ebi-a-GCST90018963 | C46: Mean arterial pressure | D46: T | E46: C | F46: 0.28 | G46: 0.020 | H46: 0.002 | I46: 7.48E-20 | J46: 360863 | K46: OpenGWAS
A47: rs2273368 | B47: ukb-b-7376 | C47: Impedance of leg (right) | D47: T | E47: C | F47: 0.20 | G47: -0.021 | H47: 0.002 | I47: 1.10E-19 | J47: 454863 | K47: OpenGWAS
A48: rs2273368 | B48: ebi-a-GCST90018952 | C48: Diastolic blood pressure | D48: T | E48: C | F48: 0.28 | G48: 0.020 | H48: 0.002 | I48: 2.01E-19 | J48: 340162 | K48: OpenGWAS
A49: rs2273368 | B49: ebi-a-GCST90018987 | C49: Medication use (calcium channel blockers) | D49: T | E49: C | F49: 0.33 | G49: 0.057 | H49: 0.006 | I49: 3.12E-19 | J49: 204378 | K49: OpenGWAS
A50: rs2273368 | B50: ukb-b-14068 | C50: Impedance of leg (left) | D50: T | E50: C | F50: 0.20 | G50: -0.020 | H50: 0.002 | I50: 1.30E-18 | J50: 454857 | K50: OpenGWAS
A51: rs2273368 | B51: ukb-b-1096 | C51: Heel bone mineral density (BMD) (left) | D51: T | E51: C | F51: 0.20 | G51: 0.038 | H51: 0.004 | I51: 3.10E-18 | J51: 146139 | K51: OpenGWAS
A52: rs2273368 | B52: ukb-b-15730 | C52: Heel bone mineral density (BMD) T-score, automated (left) | D52: T | E52: C | F52: 0.20 | G52: 0.038 | H52: 0.004 | I52: 3.20E-18 | J52: 146226 | K52: OpenGWAS
A53: rs2273368 | B53: ukb-b-845 | C53: Heel quantitative ultrasound index (QUI), direct entry (left) | D53: T | E53: C | F53: 0.20 | G53: 0.038 | H53: 0.004 | I53: 3.20E-18 | J53: 146226 | K53: OpenGWAS
A54: rs2273368 | B54: ebi-a-GCST90029011 | C54: Systolic blood pressure | D54: T | E54: C | F54: 0.20 | G54: 0.022 | H54: 0.003 | I54: 8.60E-18 | J54: 469767 | K54: OpenGWAS
A55: rs2273368 | B55: ukb-b-16407 | C55: Trunk fat percentage | D55: T | E55: C | F55: 0.20 | G55: -0.020 | H55: 0.002 | I55: 3.30E-17 | J55: 454613 | K55: OpenGWAS
A56: rs2273368 | B56: ukb-b-20044 | C56: Trunk fat mass | D56: T | E56: C | F56: 0.20 | G56: -0.021 | H56: 0.003 | I56: 5.80E-17 | J56: 454588 | K56: OpenGWAS
A57: rs2273368 | B57: ukb-d-30080_irnt | C57: Platelet count | D57: T | E57: C | F57: 0.20 | G57: 0.024 | H57: 0.003 | I57: 5.92E-17 | J57: 350474 | K57: OpenGWAS
A58: rs2273368 | B58: ukb-b-7992 | C58: Diastolic blood pressure, automated reading | D58: T | E58: C | F58: 0.20 | G58: 0.022 | H58: 0.003 | I58: 7.70E-17 | J58: 436424 | K58: OpenGWAS
A59: rs2273368 | B59: ebi-a-GCST90018972 | C59: Systolic blood pressure | D59: T | E59: C | F59: 0.28 | G59: 0.018 | H59: 0.002 | I59: 1.23E-16 | J59: 340159 | K59: OpenGWAS
A60: rs2273368 | B60: ukb-b-8875 | C60: Heel bone mineral density (BMD) | D60: T | E60: C | F60: 0.20 | G60: 0.026 | H60: 0.003 | I60: 2.10E-16 | J60: 265627 | K60: OpenGWAS
A61: rs2273368 | B61: ebi-a-GCST90002346 | C61: Mean platelet volume | D61: T | E61: C | F61: 0.20 | G61: -0.020 | H61: 0.002 | I61: 2.41E-16 | J61: 460935 | K61: OpenGWAS
A62: rs2273368 | B62: ukb-b-20032 | C62: Heel bone mineral density (BMD) T-score, automated (right) | D62: T | E62: C | F62: 0.20 | G62: 0.035 | H62: 0.004 | I62: 2.70E-16 | J62: 146181 | K62: OpenGWAS
A63: rs2273368 | B63: ukb-b-5463 | C63: Heel quantitative ultrasound index (QUI), direct entry (right) | D63: T | E63: C | F63: 0.20 | G63: 0.035 | H63: 0.004 | I63: 2.70E-16 | J63: 146181 | K63: OpenGWAS
A64: rs2273368 | B64: ieu-b-5139 | C64: Diastolic Blood Pressure (DBP) | D64: T | E64: C | F64: 0.20 | G64: 0.213 | H64: 0.026 | I64: 4.80E-16 | K64: OpenGWAS
A65: rs2273368 | B65: ukb-b-4657 | C65: Heel bone mineral density (BMD) (right) | D65: T | E65: C | F65: 0.20 | G65: 0.035 | H65: 0.004 | I65: 5.90E-16 | J65: 146093 | K65: OpenGWAS
A66: rs2273368 | B66: ukb-b-19234 | C66: Heel quantitative ultrasound index (QUI), direct entry | D66: T | E66: C | F66: 0.20 | G66: 0.026 | H66: 0.003 | I66: 6.30E-16 | J66: 265753 | K66: OpenGWAS
A67: rs2273368 | B67: ukb-b-20124 | C67: Heel bone mineral density (BMD) T-score, automated | D67: T | E67: C | F67: 0.20 | G67: 0.026 | H67: 0.003 | I67: 6.30E-16 | J67: 265753 | K67: OpenGWAS
A68: rs2273368 | B68: ebi-a-GCST006288 | C68: Heel bone mineral density | D68: T | E68: C | F68: 0.20 | G68: 0.033 | H68: 0.004 | I68: 8.60E-16 | J68: 142487 | K68: OpenGWAS
A69: rs2273368 | B69: ukb-b-19921 | C69: Impedance of whole body | D69: T | E69: C | F69: 0.20 | G69: -0.015 | H69: 0.002 | I69: 1.30E-15 | J69: 454840 | K69: OpenGWAS
A70: rs2273368 | B70: ebi-a-GCST90002402 | C70: Platelet count | D70: T | E70: C | F70: 0.20 | G70: 0.021 | H70: 0.003 | I70: 2.60E-15 | J70: 408112 | K70: OpenGWAS
A71: rs2273368 | B71: ebi-a-GCST90014017 | C71: Diastolic blood pressure automated reading (UKB data field 4079) | D71: T | E71: C | G71: 0.022 | H71: 0.003 | I71: 2.66E-15 | J71: 385801 | K71: OpenGWAS
A72: rs2273368 | B72: ebi-a-GCST90002395 | C72: Mean platelet volume | D72: T | E72: C | F72: 0.20 | G72: -0.020 | H72: 0.003 | I72: 1.10E-14 | J72: 408112 | K72: OpenGWAS
A73: rs2273368 | B73: ukb-b-8909 | C73: Body fat percentage | D73: T | E73: C | F73: 0.20 | G73: -0.015 | H73: 0.002 | I73: 1.80E-14 | J73: 454633 | K73: OpenGWAS
A74: rs2273368 | B74: ukb-a-362 | C74: Heel bone mineral density (BMD) T-score automated (right) | D74: T | E74: C | F74: 0.20 | G74: 0.040 | H74: 0.005 | I74: 2.01E-14 | J74: 106251 | K74: OpenGWAS
A75: rs2273368 | B75: ukb-a-389 | C75: Standing height | D75: T | E75: C | F75: 0.20 | G75: -0.016 | H75: 0.002 | I75: 3.57E-14 | J75: 336474 | K75: OpenGWAS
A76: rs2273368 | B76: ukb-d-30100_irnt | C76: Mean platelet (thrombocyte) volume | D76: T | E76: C | F76: 0.20 | G76: -0.023 | H76: 0.003 | I76: 3.68E-14 | J76: 350470 | K76: OpenGWAS
A77: rs2273368 | B77: ukb-a-361 | C77: Heel bone mineral density (BMD) T-score automated (left) | D77: T | E77: C | F77: 0.20 | G77: 0.039 | H77: 0.005 | I77: 4.29E-14 | J77: 106254 | K77: OpenGWAS
A78: rs2273368 | B78: ebi-a-GCST90013975 | C78: Body fat percentage (UKB data field 23099) | D78: T | E78: C | G78: -0.015 | H78: 0.002 | I78: 8.18E-14 | J78: 401772 | K78: OpenGWAS
A79: rs2273368 | B79: ebi-a-GCST90018767 | C79: Medication use (calcium channel blockers) | D79: T | E79: C | F79: 0.48 | G79: 0.060 | H79: 0.008 | I79: 1.94E-13 | J79: 178726 | K79: OpenGWAS
A80: rs2273368 | B80: ubm-b-792 | C80: BA-exvivo_lh_area_V2 | D80: T | E80: C | F80: 0.20 | G80: -0.072 | H80: 0.010 | I80: 4.76E-13 | K80: OpenGWAS
A81: rs2273368 | B81: ebi-a-GCST90018969 | C81: Platelet count | D81: T | E81: C | F81: 0.28 | G81: 0.016 | H81: 0.002 | I81: 5.66E-13 | J81: 350474 | K81: OpenGWAS
A82: rs2273368 | B82: ukb-b-19393 | C82: Whole body fat mass | D82: T | E82: C | F82: 0.20 | G82: -0.018 | H82: 0.002 | I82: 5.70E-13 | J82: 454137 | K82: OpenGWAS
A83: rs2273368 | B83: ubm-b-820 | C83: aparc-DKTatlas_lh_area_lingual | D83: T | E83: C | F83: 0.20 | G83: -0.071 | H83: 0.010 | I83: 8.89E-13 | K83: OpenGWAS
A84: rs2273368 | B84: ukb-b-5447 | C84: Heel broadband ultrasound attenuation (left) | D84: T | E84: C | F84: 0.20 | G84: 0.030 | H84: 0.004 | I84: 1.10E-12 | J84: 146218 | K84: OpenGWAS
A85: rs2273368 | B85: finn-b-I9_HYPTENS_EXNONE | C85: Hypertension (no controls excluded) | D85: T | E85: C | F85: 0.28 | G85: 0.071 | H85: 0.010 | I85: 2.69E-12 | K85: OpenGWAS
A86: rs2273368 | B86: ubm-b-660 | C86: aparc-Desikan_lh_area_lingual | D86: T | E86: C | F86: 0.20 | G86: -0.070 | H86: 0.010 | I86: 2.72E-12 | K86: OpenGWAS
A87: rs2273368 | B87: finn-b-I9_HYPTENS | C87: Hypertension | D87: T | E87: C | F87: 0.28 | G87: 0.071 | H87: 0.010 | I87: 2.94E-12 | K87: OpenGWAS
A88: rs2273368 | B88: finn-b-FG_HYPERTENSION | C88: Hypertensive diseases (excluding secondary) | D88: T | E88: C | F88: 0.28 | G88: 0.071 | H88: 0.010 | I88: 3.51E-12 | K88: OpenGWAS
A89: rs2273368 | B89: finn-b-I9_HYPERTENSION | C89: Hypertensive diseases | D89: T | E89: C | F89: 0.28 | G89: 0.071 | H89: 0.010 | I89: 3.51E-12 | K89: OpenGWAS
A90: rs2273368 | B90: ubm-b-806 | C90: BA-exvivo_rh_area_V2 | D90: T | E90: C | F90: 0.20 | G90: -0.069 | H90: 0.010 | I90: 6.07E-12 | K90: OpenGWAS
A91: rs2273368 | B91: ukb-a-359 | C91: Diastolic blood pressure automated reading | D91: T | E91: C | F91: 0.20 | G91: 0.021 | H91: 0.003 | I91: 8.53E-12 | J91: 317756 | K91: OpenGWAS
A92: rs2273368 | B92: ukb-b-7859 | C92: Impedance of arm (right) | D92: T | E92: C | F92: 0.20 | G92: -0.012 | H92: 0.002 | I92: 1.30E-11 | J92: 454826 | K92: OpenGWAS
A93: rs2273368 | B93: ukb-a-290 | C93: Trunk fat percentage | D93: T | E93: C | F93: 0.20 | G93: -0.019 | H93: 0.003 | I93: 1.42E-11 | J93: 331113 | K93: OpenGWAS
A94: rs2273368 | B94: ukb-b-19379 | C94: Impedance of arm (left) | D94: T | E94: C | F94: 0.20 | G94: -0.012 | H94: 0.002 | I94: 1.70E-11 | J94: 454850 | K94: OpenGWAS
A95: rs2273368 | B95: ukb-a-291 | C95: Trunk fat mass | D95: T | E95: C | F95: 0.20 | G95: -0.021 | H95: 0.003 | I95: 1.82E-11 | J95: 331093 | K95: OpenGWAS
A96: rs2273368 | B96: finn-b-I9_HYPTENSESS | C96: Hypertension, essential | D96: T | E96: C | F96: 0.28 | G96: 0.073 | H96: 0.011 | I96: 1.92E-11 | K96: OpenGWAS
A97: rs2273368 | B97: ukb-b-4080 | C97: Ankle spacing width | D97: T | E97: C | F97: 0.20 | G97: -0.019 | H97: 0.003 | I97: 2.60E-11 | J97: 265753 | K97: OpenGWAS
A98: rs2273368 | B98: ubm-b-791 | C98: BA-exvivo_lh_area_V1 | D98: T | E98: C | F98: 0.20 | G98: -0.066 | H98: 0.010 | I98: 2.82E-11 | K98: OpenGWAS
A99: rs2273368 | B99: ukb-b-19071 | C99: Intra-ocular pressure, corneal-compensated (left) | D99: T | E99: C | F99: 0.20 | G99: 0.037 | H99: 0.006 | I99: 3.30E-11 | J99: 97465 | K99: OpenGWAS
A100: rs2273368 | B100: ukb-b-20531 | C100: Leg fat percentage (right) | D100: T | E100: C | F100: 0.20 | G100: -0.011 | H100: 0.002 | I100: 3.90E-11 | J100: 454854 | K100: OpenGWAS
A101: rs2273368 | B101: ebi-a-GCST90095038 | C101: Height | D101: T | E101: C | F101: 0.22 | G101: -0.019 | H101: 0.003 | I101: 4.03E-11 | J101: 350741 | K101: OpenGWAS
A102: rs2273368 | B102: ubm-b-716 | C102: aparc-pial_lh_area_TotalSurface | D102: T | E102: C | F102: 0.20 | G102: -0.065 | H102: 0.010 | I102: 5.97E-11 | K102: OpenGWAS
A103: rs2273368 | B103: bbj-a-70 | C103: Height | D103: T | E103: C | F103: 0.48 | G103: -0.019 | H103: 0.003 | I103: 8.10E-11 | K103: OpenGWAS
A104: rs2273368 | B104: ebi-a-GCST90013996 | C104: Aspartate aminotransferase levels (UKB data field 30650) | D104: T | E104: C | G104: -0.017 | H104: 0.003 | I104: 9.22E-11 | J104: 388490 | K104: OpenGWAS
A105: rs2273368 | B105: ebi-a-GCST90018752 | C105: Systolic blood pressure | D105: T | E105: C | F105: 0.48 | G105: 0.021 | H105: 0.003 | I105: 1.00E-10 | J105: 145505 | K105: OpenGWAS
A106: rs2273368 | B106: ieu-b-5075 | C106: Systolic blood pressure | D106: T | E106: C | F106: 0.48 | G106: 0.021 | H106: 0.003 | I106: 1.00E-10 | K106: OpenGWAS
A107: rs2273368 | B107: ukb-a-500 | C107: Heel bone mineral density (BMD) T-score automated | D107: T | E107: C | F107: 0.20 | G107: 0.025 | H107: 0.004 | I107: 1.00E-10 | J107: 194398 | K107: OpenGWAS
A108: rs2273368 | B108: ubm-b-915 | C108: aparc-a2009s_lh_area_S-calcarine | D108: T | E108: C | F108: 0.20 | G108: -0.064 | H108: 0.010 | I108: 1.08E-10 | K108: OpenGWAS
A109: rs2273368 | B109: ebi-a-GCST90018988 | C109: Medication use (agents acting on the renin-angiotensin system) | D109: T | E109: C | F109: 0.32 | G109: 0.036 | H109: 0.006 | I109: 1.42E-10 | J109: 237530 | K109: OpenGWAS
A110: rs2273368 | B110: ukb-b-18009 | C110: Medication for cholesterol, blood pressure, diabetes, or take exogenous hormones: Blood pressure medication | D110: T | E110: C | F110: 0.20 | G110: 0.009 | H110: 0.001 | I110: 1.50E-10 | J110: 249710 | K110: OpenGWAS
A111: rs2273368 | B111: ieu-a-89 | C111: Height | D111: T | E111: C | F111: 0.20 | G111: -0.023 | H111: 0.004 | I111: 1.60E-10 | J111: 253193 | K111: OpenGWAS
A112: rs2273368 | B112: ukb-b-18096 | C112: Leg fat mass (right) | D112: T | E112: C | F112: 0.20 | G112: -0.013 | H112: 0.002 | I112: 1.60E-10 | J112: 454846 | K112: OpenGWAS
A113: rs2273368 | B113: ubm-b-104 | C113: IDP_T1_FAST_ROIs_L_occ_fusif_gyrus | D113: T | E113: C | F113: 0.20 | G113: -0.062 | H113: 0.010 | I113: 1.66E-10 | K113: OpenGWAS
A114: rs2273368 | B114: ubm-b-749 | C114: aparc-pial_rh_area_TotalSurface | D114: T | E114: C | F114: 0.20 | G114: -0.064 | H114: 0.010 | I114: 1.86E-10 | K114: OpenGWAS
A115: rs2273368 | B115: ukb-a-35 | C115: Comparative height size at age 10 | D115: T | E115: C | F115: 0.20 | G115: -0.013 | H115: 0.002 | I115: 1.96E-10 | J115: 332021 | K115: OpenGWAS
A116: rs2273368 | B116: finn-b-I9_HYPTENSESS_EXNONE | C116: "Hypertension, essential" (no controls excluded) | D116: T | E116: C | F116: 0.28 | G116: 0.066 | H116: 0.011 | I116: 2.46E-10 | K116: OpenGWAS
A117: rs2273368 | B117: ebi-a-GCST90018743 | C117: Mean arterial pressure | D117: T | E117: C | F117: 0.48 | G117: 0.021 | H117: 0.003 | I117: 4.30E-10 | J117: 145502 | K117: OpenGWAS
A118: rs2273368 | B118: bbj-a-52 | C118: Systolic blood pressure | D118: T | E118: C | F118: 0.48 | G118: 0.024 | H118: 0.004 | I118: 4.32E-10 | K118: OpenGWAS
A119: rs2273368 | B119: finn-b-RX_ANTIHYP | C119: Antihypertensive medication - note that there are other indications | D119: T | E119: C | F119: 0.28 | G119: 0.058 | H119: 0.009 | I119: 5.04E-10 | K119: OpenGWAS
A120: rs2273368 | B120: ukb-b-7212 | C120: Leg fat mass (left) | D120: T | E120: C | F120: 0.20 | G120: -0.012 | H120: 0.002 | I120: 5.30E-10 | J120: 454823 | K120: OpenGWAS
A121: rs2273368 | B121: ukb-a-271 | C121: Impedance of leg (left) | D121: T | E121: C | F121: 0.20 | G121: -0.017 | H121: 0.003 | I121: 6.13E-10 | J121: 331296 | K121: OpenGWAS
A122: rs2273368 | B122: ukb-b-15926 | C122: Cereal intake | D122: T | E122: C | F122: 0.20 | G122: 0.014 | H122: 0.002 | I122: 6.70E-10 | J122: 441640 | K122: OpenGWAS
A123: rs2273368 | B123: ukb-b-18377 | C123: Leg fat percentage (left) | D123: T | E123: C | F123: 0.20 | G123: -0.010 | H123: 0.002 | I123: 7.30E-10 | J123: 454826 | K123: OpenGWAS
A124: rs2273368 | B124: ukb-b-6027 | C124: Heel broadband ultrasound attenuation (right) | D124: T | E124: C | F124: 0.20 | G124: 0.026 | H124: 0.004 | I124: 7.50E-10 | J124: 146171 | K124: OpenGWAS
A125: rs2273368 | B125: ukb-b-20175 | C125: Systolic blood pressure, automated reading | D125: T | E125: C | F125: 0.20 | G125: 0.016 | H125: 0.003 | I125: 7.60E-10 | J125: 436419 | K125: OpenGWAS
A126: rs2273368 | B126: ubm-b-648 | C126: aparc-Desikan_lh_area_TotalSurface | D126: T | E126: C | F126: 0.20 | G126: -0.061 | H126: 0.010 | I126: 8.41E-10 | K126: OpenGWAS
A127: rs2273368 | B127: ubm-b-668 | C127: aparc-Desikan_lh_area_pericalcarine | D127: T | E127: C | F127: 0.20 | G127: -0.061 | H127: 0.010 | I127: 9.20E-10 | K127: OpenGWAS
A128: rs2273368 | B128: ubm-b-543 | C128: aparc-a2009s_lh_volume_S-calcarine | D128: T | E128: C | F128: 0.20 | G128: -0.061 | H128: 0.010 | I128: 9.87E-10 | K128: OpenGWAS
A129: rs2273368 | B129: ubm-b-828 | C129: aparc-DKTatlas_lh_area_pericalcarine | D129: T | E129: C | F129: 0.20 | G129: -0.061 | H129: 0.010 | I129: 1.16E-09 | K129: OpenGWAS
A130: rs2273368 | B130: ubm-b-694 | C130: aparc-Desikan_rh_area_lingual | D130: T | E130: C | F130: 0.20 | G130: -0.061 | H130: 0.010 | I130: 1.22E-09 | K130: OpenGWAS
A131: rs2273368 | B131: ebi-a-GCST90012109 | C131: Sex hormone-binding globulin levels | D131: T | E131: C | F131: 0.20 | G131: 0.010 | H131: 0.002 | I131: 1.40E-09 | J131: 180726 | K131: OpenGWAS
A132: rs2273368 | B132: ukb-b-12440 | C132: Intra-ocular pressure, Goldmann-correlated (left) | D132: T | E132: C | F132: 0.20 | G132: 0.034 | H132: 0.006 | I132: 1.50E-09 | J132: 97465 | K132: OpenGWAS
A133: rs2273368 | B133: ubm-b-893 | C133: aparc-a2009s_lh_area_G-oc-temp-med-Lingual | D133: T | E133: C | F133: 0.20 | G133: -0.060 | H133: 0.010 | I133: 1.61E-09 | K133: OpenGWAS
A134: rs2273368 | B134: bbj-a-37 | C134: Mean arterial pressure | D134: T | E134: C | F134: 0.48 | G134: 0.023 | H134: 0.004 | I134: 1.63E-09 | K134: OpenGWAS
A135: rs2273368 | B135: ebi-a-GCST90002340 | C135: Monocyte count | D135: T | E135: C | F135: 0.20 | G135: 0.014 | H135: 0.002 | I135: 1.65E-09 | J135: 521594 | K135: OpenGWAS
A136: rs2273368 | B136: ieu-b-31 | C136: monocyte cell count | D136: T | E136: C | F136: 0.20 | G136: 0.014 | H136: 0.002 | I136: 1.65E-09 | J136: 520181 | K136: OpenGWAS
A137: rs2273368 | B137: ubm-b-851 | C137: aparc-DKTatlas_rh_area_lingual | D137: T | E137: C | F137: 0.20 | G137: -0.060 | H137: 0.010 | I137: 1.82E-09 | K137: OpenGWAS
A138: rs2273368 | B138: ukb-a-270 | C138: Impedance of leg (right) | D138: T | E138: C | F138: 0.20 | G138: -0.017 | H138: 0.003 | I138: 1.83E-09 | J138: 331301 | K138: OpenGWAS
A139: rs2273368 | B139: ebi-a-GCST90014011 | C139: Sex hormone binding globulin levels (UKB data field 30830) | D139: T | E139: C | G139: 0.015 | H139: 0.002 | I139: 1.86E-09 | J139: 354620 | K139: OpenGWAS
A140: rs2273368 | B140: ubm-b-728 | C140: aparc-pial_lh_area_lingual | D140: T | E140: C | F140: 0.20 | G140: -0.060 | H140: 0.010 | I140: 2.08E-09 | K140: OpenGWAS
A141: rs2273368 | B141: ebi-a-GCST90038604 | C141: Hypertension | D141: T | E141: C | F141: 0.20 | G141: 0.006 | H141: 0.001 | I141: 2.10E-09 | J141: 484598 | K141: OpenGWAS
A142: rs2273368 | B142: ukb-a-264 | C142: Body fat percentage | D142: T | E142: C | F142: 0.20 | G142: -0.014 | H142: 0.002 | I142: 2.16E-09 | J142: 331117 | K142: OpenGWAS
A143: rs2273368 | B143: ubm-b-682 | C143: aparc-Desikan_rh_area_TotalSurface | D143: T | E143: C | F143: 0.20 | G143: -0.060 | H143: 0.010 | I143: 2.49E-09 | K143: OpenGWAS
A144: rs2273368 | B144: ubm-b-710 | C144: aparc-Desikan_rh_area_superiorparietal | D144: T | E144: C | F144: 0.20 | G144: -0.059 | H144: 0.010 | I144: 2.60E-09 | K144: OpenGWAS
A145: rs2273368 | B145: ebi-a-GCST90012111 | C145: Sex hormone-binding globulin levels | D145: T | E145: C | F145: 0.20 | G145: 0.007 | H145: 0.001 | I145: 2.70E-09 | J145: 370125 | K145: OpenGWAS
A146: rs2273368 | B146: ukb-b-15851 | C146: Heel Broadband ultrasound attenuation, direct entry | D146: T | E146: C | F146: 0.20 | G146: 0.019 | H146: 0.003 | I146: 3.30E-09 | J146: 265737 | K146: OpenGWAS
A147: rs2273368 | B147: ukb-a-269 | C147: Impedance of whole body | D147: T | E147: C | F147: 0.20 | G147: -0.014 | H147: 0.002 | I147: 4.36E-09 | J147: 331284 | K147: OpenGWAS
A148: rs2273368 | B148: ebi-a-GCST90012110 | C148: Sex hormone-binding globulin levels adjusted for BMI | D148: T | E148: C | F148: 0.20 | G148: 0.005 | H148: 0.001 | I148: 8.10E-09 | J148: 368929 | K148: OpenGWAS
A149: rs2273368 | B149: ukb-b-12039 | C149: Weight | D149: T | E149: C | F149: 0.20 | G149: -0.013 | H149: 0.002 | I149: 9.10E-09 | J149: 454893 | K149: OpenGWAS
A150: rs2273368 | B150: ubm-b-759 | C150: aparc-pial_rh_area_lateraloccipital | D150: T | E150: C | F150: 0.20 | G150: -0.057 | H150: 0.010 | I150: 9.22E-09 | K150: OpenGWAS
A151: rs2273368 | B151: ebi-a-GCST90018739 | C151: Height | D151: T | E151: C | F151: 0.48 | G151: -0.011 | H151: 0.002 | I151: 9.30E-09 | J151: 165056 | K151: OpenGWAS
A152: rs2273368 | B152: ebi-a-GCST009722 | C152: Glaucoma (multi-trait analysis) | D152: T | E152: C | G152: 0.075 | H152: 0.013 | I152: 1.06E-08 | J152: 224431 | K152: OpenGWAS
A153: rs2273368 | B153: ubm-b-736 | C153: aparc-pial_lh_area_pericalcarine | D153: T | E153: C | F153: 0.20 | G153: -0.057 | H153: 0.010 | I153: 1.09E-08 | K153: OpenGWAS
A154: rs2273368 | B154: ubm-b-97 | C154: IDP_T1_FAST_ROIs_R_lingual_gyrus | D154: T | E154: C | F154: 0.20 | G154: -0.056 | H154: 0.010 | I154: 1.09E-08 | K154: OpenGWAS
A155: rs2273368 | B155: ukb-a-265 | C155: Whole body fat mass | D155: T | E155: C | F155: 0.20 | G155: -0.017 | H155: 0.003 | I155: 1.13E-08 | J155: 330762 | K155: OpenGWAS
A156: rs2273368 | B156: ubm-b-849 | C156: aparc-DKTatlas_rh_area_lateraloccipital | D156: T | E156: C | F156: 0.20 | G156: -0.057 | H156: 0.010 | I156: 1.45E-08 | K156: OpenGWAS
A157: rs2273368 | B157: ukb-a-450 | C157: Medication for cholesterol blood pressure diabetes or take exogenous hormones: Blood pressure medication | D157: T | E157: C | F157: 0.20 | G157: 0.009 | H157: 0.002 | I157: 1.53E-08 | J157: 180203 | K157: OpenGWAS
A158: rs2273368 | B158: ieu-b-5138 | C158: Systolic Blood Pressure (SBP) | D158: T | E158: C | F158: 0.20 | G158: 0.258 | H158: 0.046 | I158: 1.60E-08 | K158: OpenGWAS
A159: rs2273368 | B159: ubm-b-658 | C159: aparc-Desikan_lh_area_lateraloccipital | D159: T | E159: C | F159: 0.20 | G159: -0.056 | H159: 0.010 | I159: 1.63E-08 | K159: OpenGWAS
A160: rs2273368 | B160: ebi-a-GCST90012108 | C160: Sex hormone-binding globulin levels adjusted for BMI | D160: T | E160: C | F160: 0.20 | G160: 0.008 | H160: 0.001 | I160: 1.90E-08 | J160: 180094 | K160: OpenGWAS
A161: rs2273368 | B161: ubm-b-420 | C161: BA-exvivo_lh_volume_V2 | D161: T | E161: C | F161: 0.20 | G161: -0.056 | H161: 0.010 | I161: 2.01E-08 | K161: OpenGWAS
A162: rs2273368 | B162: ubm-b-882 | C162: aparc-a2009s_lh_area_G-cuneus | D162: T | E162: C | F162: 0.20 | G162: -0.056 | H162: 0.010 | I162: 2.08E-08 | K162: OpenGWAS
A163: rs2273368 | B163: ubm-b-818 | C163: aparc-DKTatlas_lh_area_lateraloccipital | D163: T | E163: C | F163: 0.20 | G163: -0.056 | H163: 0.010 | I163: 2.14E-08 | K163: OpenGWAS
A164: rs2273368 | B164: ubm-b-867 | C164: aparc-DKTatlas_rh_area_superiorparietal | D164: T | E164: C | F164: 0.20 | G164: -0.056 | H164: 0.010 | I164: 2.16E-08 | K164: OpenGWAS
A165: rs2273368 | B165: bbj-a-140 | C165: Pancreatic cancer | D165: T | E165: C | F165: 0.48 | G165: 0.376 | H165: 0.067 | I165: 2.30E-08 | K165: OpenGWAS
A166: rs2273368 | B166: ukb-b-14146 | C166: Intra-ocular pressure, Goldmann-correlated (right) | D166: T | E166: C | F166: 0.20 | G166: 0.031 | H166: 0.006 | I166: 2.60E-08 | J166: 97653 | K166: OpenGWAS
A167: rs2273368 | B167: ubm-b-987 | C167: aparc-a2009s_rh_area_Pole-occipital | D167: T | E167: C | F167: 0.20 | G167: -0.056 | H167: 0.010 | I167: 2.71E-08 | K167: OpenGWAS
A168: rs2273368 | B168: ubm-b-761 | C168: aparc-pial_rh_area_lingual | D168: T | E168: C | F168: 0.20 | G168: -0.055 | H168: 0.010 | I168: 2.74E-08 | K168: OpenGWAS
A169: rs2273368 | B169: ukb-b-11842 | C169: Weight | D169: T | E169: C | F169: 0.20 | G169: -0.012 | H169: 0.002 | I169: 2.90E-08 | J169: 461632 | K169: OpenGWAS
A170: rs2273368 | B170: ukb-d-30650_irnt | C170: Aspartate aminotransferase | D170: T | E170: C | F170: 0.20 | G170: -0.016 | H170: 0.003 | I170: 2.97E-08 | J170: 342990 | K170: OpenGWAS
A171: rs2273368 | B171: ukb-b-17612 | C171: Heel bone ultrasound T-score, manual entry | D171: T | E171: C | F171: 0.20 | G171: 0.048 | H171: 0.009 | I171: 3.10E-08 | J171: 40613 | K171: OpenGWAS
A172: rs2273368 | B172: ukb-b-11364 | C172: Heel bone mineral density (BMD), manual entry | D172: T | E172: C | F172: 0.20 | G172: 0.047 | H172: 0.009 | I172: 3.30E-08 | J172: 40613 | K172: OpenGWAS
A173: rs2273368 | B173: ieu-b-4871 | C173: Sex hormone binding globulin (SHBG) | D173: T | E173: C | F173: 0.20 | G173: 0.022 | H173: 0.004 | I173: 4.00E-08 | K173: OpenGWAS
A174: rs2273368 | B174: ubm-b-652 | C174: aparc-Desikan_lh_area_cuneus | D174: T | E174: C | F174: 0.20 | G174: -0.054 | H174: 0.010 | I174: 4.84E-08 | K174: OpenGWAS
A175: rs2273368 | B175: ukb-d-30090_irnt | C175: Platelet crit | D175: T | E175: C | F175: 0.20 | G175: 0.016 | H175: 0.003 | I175: 4.86E-08 | J175: 350471 | K175: OpenGWAS
A176: rs2273368 | B176: ubm-b-777 | C176: aparc-pial_rh_area_superiorparietal | D176: T | E176: C | F176: 0.20 | G176: -0.054 | H176: 0.010 | I176: 5.33E-08 | K176: OpenGWAS
A177: rs2273368 | B177: ubm-b-726 | C177: aparc-pial_lh_area_lateraloccipital | D177: T | E177: C | F177: 0.20 | G177: -0.054 | H177: 0.010 | I177: 5.71E-08 | K177: OpenGWAS
A178: rs2273368 | B178: ukb-b-14177 | C178: Vascular/heart problems diagnosed by doctor: High blood pressure | D178: T | E178: C | F178: 0.20 | G178: 0.006 | H178: 0.001 | I178: 6.00E-08 | J178: 461880 | K178: OpenGWAS
A179: rs2273368 | B179: ubm-b-692 | C179: aparc-Desikan_rh_area_lateraloccipital | D179: T | E179: C | F179: 0.20 | G179: -0.054 | H179: 0.010 | I179: 6.57E-08 | K179: OpenGWAS
A180: rs2273368 | B180: ubm-b-989 | C180: aparc-a2009s_rh_area_S-calcarine | D180: T | E180: C | F180: 0.20 | G180: -0.054 | H180: 0.010 | I180: 6.72E-08 | K180: OpenGWAS
A181: rs2273368 | B181: ieu-b-5107 | C181: Comparative body size at age 10, Males and Females | D181: T | E181: C | F181: 0.20 | G181: 0.009 | H181: 0.002 | I181: 7.10E-08 | K181: OpenGWAS
A182: rs2273368 | B182: ukb-d-30830_irnt | C182: SHBG | D182: T | E182: C | F182: 0.20 | G182: 0.015 | H182: 0.003 | I182: 8.87E-08 | J182: 312215 | K182: OpenGWAS
A183: rs2273368 | B183: ukb-b-17848 | C183: Heel quantitative ultrasound index (QUI), manual entry | D183: T | E183: C | F183: 0.20 | G183: 0.045 | H183: 0.009 | I183: 9.50E-08 | J183: 40613 | K183: OpenGWAS
A184: rs2273368 | B184: ebi-a-GCST90014018 | C184: Systolic blood pressure automated reading (UKB data field 4080) | D184: T | E184: C | G184: 0.014 | H184: 0.003 | I184: 1.17E-07 | J184: 385798 | K184: OpenGWAS
A185: rs2273368 | B185: ubm-b-965 | C185: aparc-a2009s_rh_area_G-occipital-sup | D185: T | E185: C | F185: 0.20 | G185: -0.053 | H185: 0.010 | I185: 1.22E-07 | K185: OpenGWAS
A186: rs2273368 | B186: ebi-a-GCST90002400 | C186: Plateletcrit | D186: T | E186: C | F186: 0.20 | G186: 0.014 | H186: 0.003 | I186: 1.30E-07 | J186: 408112 | K186: OpenGWAS
A187: rs2273368 | B187: ebi-a-GCST90018985 | C187: Medication use (diuretics) | D187: T | E187: C | F187: 0.32 | G187: 0.038 | H187: 0.007 | I187: 1.36E-07 | J187: 229086 | K187: OpenGWAS
A188: rs2273368 | B188: ubm-b-509 | C188: aparc-a2009s_lh_volume_G-cingul-Post-ventral | D188: T | E188: C | F188: 0.20 | G188: -0.053 | H188: 0.010 | I188: 1.39E-07 | K188: OpenGWAS
A189: rs2273368 | B189: ukb-b-4650 | C189: Comparative body size at age 10 | D189: T | E189: C | F189: 0.20 | G189: 0.009 | H189: 0.002 | I189: 1.50E-07 | J189: 454718 | K189: OpenGWAS
A190: rs2273368 | B190: ubm-b-189 | C190: aseg_lh_volume_Cortex | D190: T | E190: C | F190: 0.20 | G190: -0.052 | H190: 0.010 | I190: 1.72E-07 | K190: OpenGWAS
A191: rs2273368 | B191: ubm-b-805 | C191: BA-exvivo_rh_area_V1 | D191: T | E191: C | F191: 0.20 | G191: -0.052 | H191: 0.010 | I191: 1.74E-07 | K191: OpenGWAS
A192: rs2273368 | B192: ukb-a-360 | C192: Systolic blood pressure automated reading | D192: T | E192: C | F192: 0.20 | G192: 0.016 | H192: 0.003 | I192: 1.78E-07 | J192: 317754 | K192: OpenGWAS
A193: rs2273368 | B193: ukb-b-14057 | C193: Non-cancer illness code, self-reported: hypertension | D193: T | E193: C | F193: 0.20 | G193: 0.006 | H193: 0.001 | I193: 1.80E-07 | J193: 462933 | K193: OpenGWAS
A194: rs2273368 | B194: ubm-b-419 | C194: BA-exvivo_lh_volume_V1 | D194: T | E194: C | F194: 0.20 | G194: -0.052 | H194: 0.010 | I194: 1.83E-07 | K194: OpenGWAS
A195: rs2273368 | B195: ubm-b-972 | C195: aparc-a2009s_rh_area_G-parietal-sup | D195: T | E195: C | F195: 0.20 | G195: -0.052 | H195: 0.010 | I195: 1.83E-07 | K195: OpenGWAS
A196: rs2273368 | B196: ubm-b-812 | C196: aparc-DKTatlas_lh_area_cuneus | D196: T | E196: C | F196: 0.20 | G196: -0.052 | H196: 0.010 | I196: 1.98E-07 | K196: OpenGWAS
A197: rs2273368 | B197: ukb-b-20379 | C197: Medication for cholesterol, blood pressure, diabetes, or take exogenous hormones: None of the above | D197: T | E197: C | F197: 0.20 | G197: -0.009 | H197: 0.002 | I197: 2.00E-07 | J197: 249710 | K197: OpenGWAS
A198: rs2273368 | B198: ubm-b-720 | C198: aparc-pial_lh_area_cuneus | D198: T | E198: C | F198: 0.20 | G198: -0.052 | H198: 0.010 | I198: 2.22E-07 | K198: OpenGWAS
A199: rs2273368 | B199: ukb-a-272 | C199: Impedance of arm (right) | D199: T | E199: C | F199: 0.20 | G199: -0.011 | H199: 0.002 | I199: 2.26E-07 | J199: 331279 | K199: OpenGWAS
A200: rs2273368 | B200: ubm-b-434 | C200: BA-exvivo_rh_volume_V2 | D200: T | E200: C | F200: 0.20 | G200: -0.052 | H200: 0.010 | I200: 2.48E-07 | K200: OpenGWAS
... 1263 more rows

Sheet Table S9
A1: Table S9: TWAS results in whole blood tissue
A2: ID | B2: Gene_symbol | C2: CHR | D2: P0 | E2: BEST.GWAS.ID | F2: NSNP | G2: NWGT | H2: MODEL | I2: TWAS.Z | J2: TWAS.P | K2: padj
A3: ENSG00000187961 | B3: KLHL17 | C3: 1 | D3: 960586 | E3: rs3748595 | F3: 158 | G3: 158 | H3: susie | I3: -7.073 | J3: 1.52e-12 | K3: 1.26E-08
A4: ENSG00000153774 | B4: CFDP1 | C4: 16 | D4: 75433484 | E4: rs8056814 | F4: 344 | G4: 3 | H4: lasso | I4: 6.910 | J4: 4.84E-12 | K4: 2.00E-08
A5: ENSG00000050820 | B5: BCAR1 | C5: 16 | D5: 75268052 | E5: rs8056814 | F5: 376 | G5: 1 | H5: top1 | I5: 6.299 | J5: 3.00E-10 | K5: 8.28E-07
A6: ENSG00000187642 | B6: PERM1 | C6: 1 | D6: 982092 | E6: rs3748595 | F6: 158 | G6: 1 | H6: top1 | I6: -5.905 | J6: 3.53E-09 | K6: 7.31E-06
A7: ENSG00000166965 | B7: RCCD1 | C7: 15 | D7: 90955795 | E7: rs2290202 | F7: 475 | G7: 1 | H7: top1 | I7: -5.013 | J7: 5.36E-07 | K7: 8.88E-04
A8: ENSG00000196547 | B8: MAN2A2 | C8: 15 | D8: 90902217 | E8: rs2290202 | F8: 483 | G8: 483 | H8: susie | I8: -4.804 | J8: 1.55E-06 | K8: 2.14E-03
A9: ENSG00000145214 | B9: DGKQ | C9: 4 | D9: 986894 | E9: rs11724804 | F9: 400 | G9: 55 | H9: enet | I9: 4.768 | J9: 1.86E-06 | K9: 2.20E-03
A10: ENSG00000100311 | B10: PDGFB | C10: 22 | D10: 39244750 | E10: rs2247128 | F10: 405 | G10: 21 | H10: enet | I10: -4.435 | J10: 9.21E-06 | K10: 8.78E-03
A11: ENSG00000175164 | B11: ABO | C11: 9 | D11: 133275213 | E11: rs495828 | F11: 565 | G11: 60 | H11: enet | I11: -4.405 | J11: 1.06E-05 | K11: 8.78E-03
A12: ENSG00000187583 | B12: PLEKHN1 | C12: 1 | D12: 966496 | E12: rs3748595 | F12: 158 | G12: 19 | H12: enet | I12: -4.405 | J12: 1.06E-05 | K12: 8.78E-03
A13: ENSG00000185640 | B13: KRT79 | C13: 12 | D13: 52834294 | E13: rs4919741 | F13: 692 | G13: 18 | H13: enet | I13: 4.333 | J13: 1.47E-05 | K13: 1.11E-02
A14: ENSG00000141854 | B14: MISP3 | C14: 19 | D14: 14072535 | E14: rs10421422 | F14: 283 | G14: 5 | H14: lasso | I14: 4.220 | J14: 2.44E-05 | K14: 1.68E-02
A15: ENSG00000179750 | B15: APOBEC3B | C15: 22 | D15: 38982346 | E15: rs2247128 | F15: 391 | G15: 21 | H15: enet | I15: 4.183 | J15: 2.88E-05 | K15: 1.84E-02
A16: ENSG00000184110 | B16: EIF3C | C16: 16 | D16: 28688557 | E16: rs151181 | F16: 199 | G16: 19 | H16: enet | I16: 4.120 | J16: 3.78E-05 | K16: 2.24E-02
A17: ENSG00000273619 | B17: RPS21-DT | C17: 20 | D17: 62386969 | E17: rs1570027 | F17: 497 | G17: 1 | H17: top1 | I17: 4.045 | J17: 5.23E-05 | K17: 2.89E-02
A18: ENSG00000127415 | B18: IDUA | C18: 4 | D18: 986996 | E18: rs11724804 | F18: 400 | G18: 8 | H18: lasso | I18: 4.029 | J18: 5.59E-05 | K18: 2.89E-02
A19: ENSG00000197165 | B19: SULT1A2 | C19: 16 | D19: 28597108 | E19: rs151181 | F19: 184 | G19: 15 | H19: enet | I19: 3.972 | J19: 7.14E-05 | K19: 3.48E-02
A20: ENSG00000156603 | B20: MED19 | C20: 11 | D20: 57712322 | E20: rs96894 | F20: 385 | G20: 385 | H20: susie | I20: -3.947 | J20: 7.90E-05 | K20: 3.64E-02
A21: ENSG00000263874 | B21: LASP1NB | C21: 17 | D21: 38925167 | E21: rs923370 | F21: 351 | G21: 36 | H21: enet | I21: -3.906 | J21: 9.39E-05 | K21: 4.09E-02
A22: ENSG00000166016 | B22: ABTB2 | C22: 11 | D22: 34358007 | E22: rs11032700 | F22: 592 | G22: 16 | H22: enet | I22: 3.853 | J22: 1.17E-04 | K22: 4.85E-02
A23: ENSG00000197818 | B23: SLC9A8 | C23: 20 | D23: 49812712 | E23: rs6063500 | F23: 453 | G23: 453 | H23: susie | I23: -3.795 | J23: 1.48E-04 | K23: 5.72E-02
A24: ENSG00000233232 | B24: NPIPB7 | C24: 16 | D24: 28471174 | E24: rs151181 | F24: 212 | G24: 18 | H24: enet | I24: -3.788 | J24: 1.52E-04 | K24: 5.72E-02
A25: ENSG00000103653 | B25: CSK | C25: 15 | D25: 74782056 | E25: rs3812945 | F25: 313 | G25: 313 | H25: susie | I25: -3.736 | J25: 1.87E-04 | K25: 6.34E-02
A26: ENSG00000119408 | B26: NEK6 | C26: 9 | D26: 124257605 | E26: rs4838131 | F26: 393 | G26: 6 | H26: lasso | I26: 3.727 | J26: 1.94E-04 | K26: 6.34E-02
A27: ENSG00000145217 | B27: SLC26A1 | C27: 4 | D27: 993439 | E27: rs11724804 | F27: 401 | G27: 4 | H27: lasso | I27: -3.730 | J27: 1.92E-04 | K27: 6.34E-02
A28: ENSG00000178802 | B28: MPI | C28: 15 | D28: 74890004 | E28: rs3812945 | F28: 266 | G28: 13 | H28: enet | I28: 3.720 | J28: 1.99E-04 | K28: 6.34E-02
A29: ENSG00000104450 | B29: SPAG1 | C29: 8 | D29: 100157905 | E29: rs1788173 | F29: 367 | G29: 16 | H29: enet | I29: 3.666 | J29: 2.46E-04 | K29: 6.93E-02
A30: ENSG00000111328 | B30: CDK2AP1 | C30: 12 | D30: 123272333 | E30: rs28475177 | F30: 341 | G30: 341 | H30: susie | I30: 3.661 | J30: 2.51E-04 | K30: 6.93E-02
A31: ENSG00000198156 | B31: NPIPB6 | C31: 16 | D31: 28363507 | E31: rs151181 | F31: 252 | G31: 252 | H31: susie | I31: 3.686 | J31: 2.28E-04 | K31: 6.93E-02
A32: ENSG00000224596 | B32: ZMIZ1-AS1 | C32: 10 | D32: 79067894 | E32: rs10762854 | F32: 565 | G32: 18 | H32: enet | I32: -3.677 | J32: 2.36E-04 | K32: 6.93E-02
A33: ENSG00000196296 | B33: ATP2A1 | C33: 16 | D33: 28878404 | E33: rs151181 | F33: 179 | G33: 179 | H33: susie | I33: 3.645 | J33: 2.67E-04 | K33: 7.13E-02
A34: ENSG00000080854 | B34: IGSF9B | C34: 11 | D34: 133956984 | E34: rs4937860 | F34: 527 | G34: 1 | H34: top1 | I34: 3.596 | J34: 3.23E-04 | K34: 8.36E-02
A35: ENSG00000254789 | C35: 11 | D35: 15622402 | E35: rs2351046 | F35: 474 | G35: 21 | H35: enet | I35: -3.542 | J35: 3.97E-04 | K35: 9.96E-02
A36: ENSG00000178188 | B36: SH2B1 | C36: 16 | D36: 28846599 | E36: rs151181 | F36: 179 | G36: 179 | H36: susie | I36: -3.531 | J36: 4.13E-04 | K36: 1.01E-01
A37: ENSG00000180437 | B37: OR6K4P | C37: 1 | D37: 158725066 | E37: rs381510 | F37: 460 | G37: 6 | H37: lasso | I37: -3.496 | J37: 4.73E-04 | K37: 1.12E-01
A38: ENSG00000168488 | B38: ATXN2L | C38: 16 | D38: 28824137 | E38: rs151181 | F38: 178 | G38: 178 | H38: susie | I38: -3.445 | J38: 5.70E-04 | K38: 1.31E-01
A39: ENSG00000180263 | B39: FGD6 | C39: 12 | D39: 95217481 | E39: rs12370040 | F39: 609 | G39: 609 | H39: susie | I39: -3.430 | J39: 6.03E-04 | K39: 1.35E-01
A40: ENSG00000121691 | B40: CAT | C40: 11 | D40: 34438924 | E40: rs11032700 | F40: 606 | G40: 606 | H40: susie | I40: 3.393 | J40: 6.91E-04 | K40: 1.40E-01
A41: ENSG00000140391 | B41: TSPAN3 | C41: 15 | D41: 77083983 | E41: rs4078354 | F41: 255 | G41: 32 | H41: enet | I41: -3.396 | J41: 6.84E-04 | K41: 1.40E-01
A42: ENSG00000188603 | B42: CLN3 | C42: 16 | D42: 28495097 | E42: rs151181 | F42: 212 | G42: 1 | H42: top1 | I42: -3.395 | J42: 6.86E-04 | K42: 1.40E-01
A43: ENSG00000233077 | B43: LINC01271 | C43: 20 | D43: 50321341 | E43: rs6063500 | F43: 420 | G43: 1 | H43: top1 | I43: 3.394 | J43: 6.89E-04 | K43: 1.40E-01
A44: ENSG00000130921 | B44: MTRFR | C44: 12 | D44: 123232915 | E44: rs28475177 | F44: 340 | G44: 1 | H44: top1 | I44: 3.362 | J44: 7.74E-04 | K44: 1.42E-01
A45: ENSG00000203999 | B45: LINC01270 | C45: 20 | D45: 50292719 | E45: rs6063500 | F45: 429 | G45: 20 | H45: enet | I45: 3.363 | J45: 7.71E-04 | K45: 1.42E-01
A46: ENSG00000226232 | B46: NPIPB14P | C46: 16 | D46: 69996187 | E46: rs1983016 | F46: 196 | G46: 1 | H46: top1 | I46: -3.365 | J46: 7.65E-04 | K46: 1.42E-01
A47: ENSG00000235423 | B47: NA | C47: 12 | D47: 123260969 | E47: rs28475177 | F47: 342 | G47: 1 | H47: top1 | I47: 3.371 | J47: 7.49E-04 | K47: 1.42E-01
A48: ENSG00000178222 | B48: RNF212 | C48: 4 | D48: 1113561 | E48: rs11724804 | F48: 385 | G48: 31 | H48: enet | I48: 3.351 | J48: 8.05E-04 | K48: 1.45E-01
A49: ENSG00000237172 | B49: B3GNT9 | C49: 16 | D49: 67151213 | E49: rs7200919 | F49: 192 | G49: 1 | H49: top1 | I49: -3.342 | J49: 8.32E-04 | K49: 1.47E-01
A50: ENSG00000169371 | B50: SNUPN | C50: 15 | D50: 75626468 | E50: rs8027749 | F50: 223 | G50: 5 | H50: lasso | I50: -3.328 | J50: 8.75E-04 | K50: 1.51E-01
A51: ENSG00000137075 | B51: RNF38 | C51: 9 | D51: 36487547 | E51: rs7029221 | F51: 449 | G51: 449 | H51: susie | I51: -3.307 | J51: 9.45E-04 | K51: 1.60E-01
A52: ENSG00000250771 | C52: 4 | D52: 153640167 | E52: rs7688486 | F52: 428 | G52: 26 | H52: enet | I52: -3.295 | J52: 9.86E-04 | K52: 1.63E-01
A53: ENSG00000232093 | B53: DCST1-AS1 | C53: 1 | D53: 155046117 | E53: rs2306125 | F53: 372 | G53: 4 | H53: lasso | I53: 3.235 | J53: 1.21E-03 | K53: 1.97E-01
A54: ENSG00000104866 | B54: PPP1R37 | C54: 19 | D54: 45091791 | E54: rs10409903 | F54: 370 | G54: 370 | H54: susie | I54: 3.225 | J54: 1.26E-03 | K54: 1.97E-01
A55: ENSG00000184056 | B55: VPS33B | C55: 15 | D55: 91022602 | E55: rs2290202 | F55: 483 | G55: 8 | H55: lasso | I55: 3.230 | J55: 1.24E-03 | K55: 1.97E-01
A56: ENSG00000061936 | B56: SFSWAP | C56: 12 | D56: 131711088 | E56: rs10902428 | F56: 487 | G56: 5 | H56: lasso | I56: -3.217 | J56: 1.29E-03 | K56: 1.98E-01
A57: ENSG00000160323 | B57: ADAMTS13 | C57: 9 | D57: 133414357 | E57: rs495828 | F57: 575 | G57: 21 | H57: enet | I57: 3.210 | J57: 1.33E-03 | K57: 2.00E-01
A58: ENSG00000108091 | B58: CCDC6 | C58: 10 | D58: 59906655 | E58: rs7099156 | F58: 577 | G58: 577 | H58: susie | I58: -3.198 | J58: 1.38E-03 | K58: 2.05E-01
A59: ENSG00000184887 | B59: BTBD6 | C59: 14 | D59: 105248911 | E59: rs3825762 | F59: 207 | G59: 18 | H59: enet | I59: -3.184 | J59: 1.45E-03 | K59: 2.11E-01
A60: ENSG00000203757 | B60: OR6K3 | C60: 1 | D60: 158718162 | E60: rs381510 | F60: 458 | G60: 10 | H60: enet | I60: -3.124 | J60: 1.78E-03 | K60: 2.54E-01
A61: ENSG00000136824 | B61: SMC2 | C61: 9 | D61: 104094259 | E61: rs16923898 | F61: 502 | G61: 502 | H61: susie | I61: -3.112 | J61: 1.86E-03 | K61: 2.61E-01
A62: ENSG00000143297 | B62: FCRL5 | C62: 1 | D62: 157552519 | E62: rs10494316 | F62: 507 | G62: 507 | H62: susie | I62: 3.105 | J62: 1.90E-03 | K62: 2.62E-01
A63: ENSG00000115073 | B63: ACTR1B | C63: 2 | D63: 97664106 | E63: rs11692435 | F63: 144 | G63: 1 | H63: top1 | I63: -3.091 | J63: 1.99E-03 | K63: 2.70E-01
A64: ENSG00000148296 | B64: SURF6 | C64: 9 | D64: 133336397 | E64: rs495828 | F64: 580 | G64: 36 | H64: enet | I64: -3.087 | J64: 2.02E-03 | K64: 2.70E-01
A65: ENSG00000162704 | B65: ARPC5 | C65: 1 | D65: 183635756 | E65: rs11755 | F65: 520 | G65: 27 | H65: enet | I65: -3.083 | J65: 2.05E-03 | K65: 2.70E-01
A66: ENSG00000227533 | B66: SLC2A1-DT | C66: 1 | D66: 42959294 | E66: rs12718444 | F66: 427 | G66: 1 | H66: top1 | I66: 3.072 | J66: 2.13E-03 | K66: 2.76E-01
A67: ENSG00000034677 | B67: RNF19A | C67: 8 | D67: 100336217 | E67: rs1788173 | F67: 389 | G67: 1 | H67: top1 | I67: -3.037 | J67: 2.39E-03 | K67: 2.91E-01
A68: ENSG00000067208 | B68: EVI5 | C68: 1 | D68: 92792403 | E68: rs6671268 | F68: 273 | G68: 25 | H68: enet | I68: -3.045 | J68: 2.33E-03 | K68: 2.91E-01
A69: ENSG00000102886 | B69: GDPD3 | C69: 16 | D69: 30113855 | E69: rs10445105 | F69: 223 | G69: 26 | H69: enet | I69: -3.039 | J69: 2.37E-03 | K69: 2.91E-01
A70: ENSG00000281106 | B70: TMEM272 | C70: 13 | D70: 51845174 | E70: rs10676 | F70: 352 | G70: 25 | H70: enet | I70: -3.043 | J70: 2.34E-03 | K70: 2.91E-01
A71: ENSG00000141956 | B71: PRDM15 | C71: 21 | D71: 41879481 | E71: rs225406 | F71: 806 | G71: 14 | H71: enet | I71: -3.031 | J71: 2.44E-03 | K71: 2.93E-01
A72: ENSG00000184517 | B72: ZFP1 | C72: 16 | D72: 75148491 | E72: rs8056814 | F72: 418 | G72: 1 | H72: top1 | I72: 3.019 | J72: 2.54E-03 | K72: 2.96E-01
A73: ENSG00000278970 | B73: HEIH | C73: 5 | D73: 180831363 | E73: rs17080196 | F73: 356 | G73: 59 | H73: enet | I73: -3.019 | J73: 2.53E-03 | K73: 2.96E-01
A74: ENSG00000133069 | B74: TMCC2 | C74: 1 | D74: 205228175 | E74: rs16855560 | F74: 569 | G74: 1 | H74: top1 | I74: 2.996 | J74: 2.74E-03 | K74: 3.04E-01
A75: ENSG00000162769 | B75: FLVCR1 | C75: 1 | D75: 212858254 | E75: rs6680409 | F75: 408 | G75: 1 | H75: top1 | I75: -2.994 | J75: 2.75E-03 | K75: 3.04E-01
A76: ENSG00000178952 | B76: TUFM | C76: 16 | D76: 28846407 | E76: rs151181 | F76: 179 | G76: 6 | H76: lasso | I76: 2.995 | J76: 2.75E-03 | K76: 3.04E-01
A77: ENSG00000234284 | B77: ZNF879 | C77: 5 | D77: 179023751 | E77: rs262055 | F77: 557 | G77: 1 | H77: top1 | I77: 2.998 | J77: 2.72E-03 | K77: 3.04E-01
A78: ENSG00000271109 | B78: NA | C78: 19 | D78: 34860575 | E78: rs7259297 | F78: 448 | G78: 1 | H78: top1 | I78: 2.986 | J78: 2.83E-03 | K78: 3.08E-01
A79: ENSG00000111728 | B79: ST8SIA1 | C79: 12 | D79: 22437040 | E79: rs3809205 | F79: 403 | G79: 1 | H79: top1 | I79: -2.974 | J79: 2.94E-03 | K79: 3.16E-01
A80: ENSG00000176476 | B80: SGF29 | C80: 16 | D80: 28581054 | E80: rs151181 | F80: 185 | G80: 32 | H80: enet | I80: -2.958 | J80: 3.10E-03 | K80: 3.21E-01
A81: ENSG00000255240 | B81: GLYATL1-AS1 | C81: 11 | D81: 59058658 | E81: rs10896875 | F81: 339 | G81: 27 | H81: enet | I81: 2.962 | J81: 3.06E-03 | K81: 3.21E-01
A82: ENSG00000271892 | C82: 5 | D82: 17107788 | E82: rs167214 | F82: 429 | G82: 21 | H82: enet | I82: -2.959 | J82: 3.09E-03 | K82: 3.21E-01
A83: ENSG00000070081 | B83: NUCB2 | C83: 11 | D83: 17208152 | E83: rs217765 | F83: 538 | G83: 9 | H83: enet | I83: -2.949 | J83: 3.18E-03 | K83: 3.23E-01
A84: ENSG00000232871 | B84: SEC1P | C84: 19 | D84: 48638144 | E84: rs2617805 | F84: 460 | G84: 460 | H84: susie | I84: 2.947 | J84: 3.20E-03 | K84: 3.23E-01
A85: ENSG00000269951 | C85: 15 | D85: 77068324 | E85: rs4078354 | F85: 251 | G85: 16 | H85: enet | I85: -2.938 | J85: 3.30E-03 | K85: 3.29E-01
A86: ENSG00000137441 | B86: FGFBP2 | C86: 4 | D86: 15963235 | E86: rs10939643 | F86: 573 | G86: 1 | H86: top1 | I86: 2.931 | J86: 3.38E-03 | K86: 3.33E-01
A87: ENSG00000100346 | B87: CACNA1I | C87: 22 | D87: 39570752 | E87: rs2247128 | F87: 390 | G87: 21 | H87: enet | I87: -2.918 | J87: 3.52E-03 | K87: 3.43E-01
A88: ENSG00000225234 | B88: TRAPPC12-AS1 | C88: 2 | D88: 3482408 | E88: rs4641971 | F88: 569 | G88: 47 | H88: enet | I88: -2.908 | J88: 3.64E-03 | K88: 3.51E-01
A89: ENSG00000259062 | B89: ACTN1-DT | C89: 14 | D89: 68979681 | E89: rs8006663 | F89: 605 | G89: 10 | H89: lasso | I89: -2.888 | J89: 3.87E-03 | K89: 3.68E-01
A90: ENSG00000155393 | B90: HEATR3 | C90: 16 | D90: 50065940 | E90: rs2356736 | F90: 374 | G90: 34 | H90: enet | I90: -2.884 | J90: 3.92E-03 | K90: 3.69E-01
A91: ENSG00000143252 | B91: SDHC | C91: 1 | D91: 161314256 | E91: rs3813630 | F91: 420 | G91: 22 | H91: enet | I91: -2.881 | J91: 3.97E-03 | K91: 3.69E-01
A92: ENSG00000171132 | B92: PRKCE | C92: 2 | D92: 45651344 | E92: rs11890554 | F92: 677 | G92: 25 | H92: enet | I92: -2.877 | J92: 4.01E-03 | K92: 3.69E-01
A93: ENSG00000108439 | B93: PNPO | C93: 17 | D93: 47941505 | E93: rs7207225 | F93: 376 | G93: 376 | H93: susie | I93: 2.850 | J93: 4.38E-03 | K93: 3.90E-01
A94: ENSG00000158470 | B94: B4GALT5 | C94: 20 | D94: 49713877 | E94: rs2769980 | F94: 432 | G94: 15 | H94: enet | I94: -2.849 | J94: 4.39E-03 | K94: 3.90E-01
A95: ENSG00000251417 | C95: 16 | D95: 28802742 | E95: rs151181 | F95: 180 | G95: 180 | H95: susie | I95: -2.848 | J95: 4.40E-03 | K95: 3.90E-01
A96: ENSG00000259539 | C96: 15 | D96: 45153216 | E96: rs11070458 | F96: 289 | G96: 1 | H96: top1 | I96: -2.846 | J96: 4.43E-03 | K96: 3.90E-01
A97: ENSG00000253616 | B97: CHILL1 | C97: 8 | D97: 23074487 | E97: rs2017650 | F97: 614 | G97: 614 | H97: susie | I97: 2.835 | J97: 4.58E-03 | K97: 3.99E-01
A98: ENSG00000158987 | B98: RAPGEF6 | C98: 5 | D98: 131635235 | E98: rs2549018 | F98: 278 | G98: 1 | H98: top1 | I98: 2.831 | J98: 4.64E-03 | K98: 4.00E-01
A99: ENSG00000272195 | B99: EFCAB2-AS1 | C99: 1 | D99: 244971087 | E99: rs704652 | F99: 454 | G99: 454 | H99: susie | I99: 2.825 | J99: 4.72E-03 | K99: 4.03E-01
A100: ENSG00000140320 | B100: BAHD1 | C100: 15 | D100: 40439720 | E100: rs4923872 | F100: 382 | G100: 1 | H100: top1 | I100: -2.804 | J100: 5.05E-03 | K100: 4.21E-01
A101: ENSG00000165672 | B101: PRDX3 | C101: 10 | D101: 119178832 | E101: rs4751680 | F101: 488 | G101: 12 | H101: enet | I101: 2.801 | J101: 5.09E-03 | K101: 4.21E-01
A102: ENSG00000181830 | B102: SLC35C1 | C102: 11 | D102: 45804071 | E102: rs3808976 | F102: 389 | G102: 7 | H102: enet | I102: 2.802 | J102: 5.08E-03 | K102: 4.21E-01
A103: ENSG00000041988 | B103: THAP3 | C103: 1 | D103: 6624865 | E103: rs200444 | F103: 432 | G103: 5 | H103: lasso | I103: 2.788 | J103: 5.30E-03 | K103: 4.22E-01
A104: ENSG00000140545 | B104: MFGE8 | C104: 15 | D104: 88913410 | E104: rs7175900 | F104: 450 | G104: 18 | H104: enet | I104: -2.790 | J104: 5.26E-03 | K104: 4.22E-01
A105: ENSG00000159023 | B105: EPB41 | C105: 1 | D105: 28887090 | E105: rs551807 | F105: 311 | G105: 311 | H105: susie | I105: -2.794 | J105: 5.20E-03 | K105: 4.22E-01
A106: ENSG00000189114 | B106: BLOC1S3 | C106: 19 | D106: 45178744 | E106: rs10409903 | F106: 369 | G106: 1 | H106: top1 | I106: -2.796 | J106: 5.17E-03 | K106: 4.22E-01
A107: ENSG00000168092 | B107: PAFAH1B2 | C107: 11 | D107: 117144266 | E107: rs2306473 | F107: 541 | G107: 541 | H107: susie | I107: -2.780 | J107: 5.44E-03 | K107: 4.25E-01
A108: ENSG00000182858 | B108: ALG12 | C108: 22 | D108: 49918457 | E108: rs134474 | F108: 437 | G108: 1 | H108: top1 | I108: -2.783 | J108: 5.39E-03 | K108: 4.25E-01
A109: ENSG00000106701 | B109: FSD1L | C109: 9 | D109: 105447795 | E109: rs1327354 | F109: 457 | G109: 457 | H109: susie | I109: 2.767 | J109: 5.67E-03 | K109: 4.31E-01
A110: ENSG00000129515 | B110: SNX6 | C110: 14 | D110: 34630182 | E110: rs8022575 | F110: 427 | G110: 13 | H110: enet | I110: 2.767 | J110: 5.65E-03 | K110: 4.31E-01
A111: ENSG00000150977 | B111: RILPL2 | C111: 12 | D111: 123436716 | E111: rs28475177 | F111: 364 | G111: 11 | H111: enet | I111: -2.772 | J111: 5.58E-03 | K111: 4.31E-01
A112: ENSG00000140497 | B112: SCAMP2 | C112: 15 | D112: 74873364 | E112: rs3812945 | F112: 274 | G112: 274 | H112: susie | I112: 2.762 | J112: 5.74E-03 | K112: 4.32E-01
A113: ENSG00000102796 | B113: DHRS12 | C113: 13 | D113: 51803722 | E113: rs10676 | F113: 372 | G113: 50 | H113: enet | I113: -2.755 | J113: 5.86E-03 | K113: 4.37E-01
A114: ENSG00000070614 | B114: NDST1 | C114: 5 | D114: 150485817 | E114: rs1560661 | F114: 479 | G114: 8 | H114: enet | I114: -2.733 | J114: 6.28E-03 | K114: 4.41E-01
A115: ENSG00000133818 | B115: RRAS2 | C115: 11 | D115: 14364505 | E115: rs17557844 | F115: 377 | G115: 1 | H115: top1 | I115: 2.733 | J115: 6.28E-03 | K115: 4.41E-01
A116: ENSG00000140474 | B116: ULK3 | C116: 15 | D116: 74843196 | E116: rs3812945 | F116: 280 | G116: 280 | H116: susie | I116: -2.740 | J116: 6.15E-03 | K116: 4.41E-01
A117: ENSG00000163935 | B117: SFMBT1 | C117: 3 | D117: 53046067 | E117: rs11915851 | F117: 357 | G117: 357 | H117: susie | I117: 2.749 | J117: 5.98E-03 | K117: 4.41E-01
A118: ENSG00000273628 | C118: 13 | D118: 24933005 | E118: rs3818938 | F118: 526 | G118: 526 | H118: susie | I118: -2.733 | J118: 6.28E-03 | K118: 4.41E-01
A119: ENSG00000278341 | C119: 16 | D119: 88710436 | E119: rs17700789 | F119: 389 | G119: 1 | H119: top1 | I119: -2.739 | J119: 6.16E-03 | K119: 4.41E-01
A120: ENSG00000278740 | C120: 17 | D120: 68188546 | E120: rs7208386 | F120: 336 | G120: 1 | H120: top1 | I120: -2.734 | J120: 6.26E-03 | K120: 4.41E-01
A121: ENSG00000128891 | B121: CCDC32 | C121: 15 | D121: 40565056 | E121: rs4923872 | F121: 333 | G121: 333 | H121: susie | I121: 2.730 | J121: 6.34E-03 | K121: 4.41E-01
A122: ENSG00000166147 | B122: FBN1 | C122: 15 | D122: 48645848 | E122: rs1678978 | F122: 339 | G122: 339 | H122: susie | I122: -2.722 | J122: 6.48E-03 | K122: 4.41E-01
A123: ENSG00000204147 | B123: ASAH2B | C123: 10 | D123: 50739317 | E123: rs4497350 | F123: 462 | G123: 1 | H123: top1 | I123: -2.719 | J123: 6.55E-03 | K123: 4.41E-01
A124: ENSG00000206530 | B124: CFAP44 | C124: 3 | D124: 113441609 | E124: rs972554 | F124: 437 | G124: 50 | H124: enet | I124: 2.721 | J124: 6.51E-03 | K124: 4.41E-01
A125: ENSG00000214189 | B125: ZNF788P | C125: 19 | D125: 12092262 | E125: rs8113106 | F125: 287 | G125: 18 | H125: enet | I125: -2.721 | J125: 6.50E-03 | K125: 4.41E-01
A126: ENSG00000140400 | B126: MAN2C1 | C126: 15 | D126: 75368153 | E126: rs3812945 | F126: 226 | G126: 27 | H126: enet | I126: -2.712 | J126: 6.68E-03 | K126: 4.46E-01
A127: ENSG00000126215 | B127: XRCC3 | C127: 14 | D127: 103715503 | E127: rs1557012 | F127: 343 | G127: 20 | H127: enet | I127: 2.686 | J127: 7.24E-03 | K127: 4.52E-01
A128: ENSG00000159788 | B128: RGS12 | C128: 4 | D128: 3314146 | E128: rs4964 | F128: 412 | G128: 45 | H128: enet | I128: -2.687 | J128: 7.20E-03 | K128: 4.52E-01
A129: ENSG00000164715 | B129: LMTK2 | C129: 7 | D129: 98106884 | E129: rs4729408 | F129: 338 | G129: 1 | H129: top1 | I129: 2.685 | J129: 7.25E-03 | K129: 4.52E-01
A130: ENSG00000173540 | B130: GMPPB | C130: 3 | D130: 49723950 | E130: rs1491983 | F130: 317 | G130: 14 | H130: enet | I130: 2.703 | J130: 6.87E-03 | K130: 4.52E-01
A131: ENSG00000196683 | B131: TOMM7 | C131: 7 | D131: 22822851 | E131: rs2893079 | F131: 500 | G131: 500 | H131: susie | I131: -2.695 | J131: 7.04E-03 | K131: 4.52E-01
A132: ENSG00000219481 | B132: NBPF1 | C132: 1 | D132: 16613561 | E132: rs7537985 | F132: 271 | G132: 17 | H132: enet | I132: -2.695 | J132: 7.05E-03 | K132: 4.52E-01
A133: ENSG00000232586 | B133: KIAA1614-AS1 | C133: 1 | D133: 180954886 | E133: rs10910867 | F133: 457 | G133: 1 | H133: top1 | I133: -2.685 | J133: 7.25E-03 | K133: 4.52E-01
A134: ENSG00000238018 | B134: SPTBN1-AS2 | C134: 2 | D134: 54680044 | E134: rs1727504 | F134: 577 | G134: 2 | H134: lasso | I134: -2.689 | J134: 7.18E-03 | K134: 4.52E-01
A135: ENSG00000275437 | C135: 20 | D135: 62405934 | E135: rs1570027 | F135: 513 | G135: 513 | H135: susie | I135: -2.694 | J135: 7.06E-03 | K135: 4.52E-01
A136: ENSG00000117595 | B136: IRF6 | C136: 1 | D136: 209806174 | E136: rs11119354 | F136: 510 | G136: 16 | H136: enet | I136: 2.682 | J136: 7.32E-03 | K136: 4.52E-01
A137: ENSG00000137675 | B137: MMP27 | C137: 11 | D137: 102705805 | E137: rs7125062 | F137: 520 | G137: 26 | H137: enet | I137: -2.676 | J137: 7.46E-03 | K137: 4.57E-01
A138: ENSG00000159110 | B138: IFNAR2 | C138: 21 | D138: 33229900 | E138: rs2834033 | F138: 452 | G138: 452 | H138: susie | I138: -2.674 | J138: 7.50E-03 | K138: 4.57E-01
A139: ENSG00000113073 | B139: SLC4A9 | C139: 5 | D139: 140360201 | E139: rs10077671 | F139: 312 | G139: 312 | H139: susie | I139: 2.657 | J139: 7.88E-03 | K139: 4.63E-01
A140: ENSG00000145730 | B140: PAM | C140: 5 | D140: 102753980 | E140: rs1913504 | F140: 306 | G140: 1 | H140: top1 | I140: -2.660 | J140: 7.81E-03 | K140: 4.63E-01
A141: ENSG00000226874 | B141: TRPC6P10 | C141: 7 | D141: 30544052 | E141: rs12701035 | F141: 429 | G141: 44 | H141: enet | I141: -2.663 | J141: 7.74E-03 | K141: 4.63E-01
A142: ENSG00000235478 | B142: LINC01664 | C142: 22 | D142: 17121585 | E142: rs5994170 | F142: 513 | G142: 5 | H142: lasso | I142: -2.658 | J142: 7.87E-03 | K142: 4.63E-01
A143: ENSG00000272391 | B143: POM121C | C143: 7 | D143: 75486270 | E143: rs10954732 | F143: 196 | G143: 196 | H143: susie | I143: 2.664 | J143: 7.72E-03 | K143: 4.63E-01
A144: ENSG00000262488 | C144: 16 | D144: 10841543 | E144: rs12596540 | F144: 508 | G144: 508 | H144: susie | I144: 2.654 | J144: 7.96E-03 | K144: 4.64E-01
A145: ENSG00000099326 | B145: MZF1 | C145: 19 | D145: 58572576 | E145: rs3794966 | F145: 232 | G145: 3 | H145: lasso | I145: 2.637 | J145: 8.36E-03 | K145: 4.65E-01
A146: ENSG00000102710 | B146: SUPT20H | C146: 13 | D146: 37059712 | E146: rs1199984 | F146: 528 | G146: 528 | H146: susie | I146: -2.639 | J146: 8.31E-03 | K146: 4.65E-01
A147: ENSG00000105971 | B147: CAV2 | C147: 7 | D147: 116287379 | E147: rs17526983 | F147: 359 | G147: 1 | H147: top1 | I147: 2.641 | J147: 8.27E-03 | K147: 4.65E-01
A148: ENSG00000166140 | B148: ZFYVE19 | C148: 15 | D148: 40807085 | E148: rs4923872 | F148: 288 | G148: 2 | H148: lasso | I148: -2.647 | J148: 8.12E-03 | K148: 4.65E-01
A149: ENSG00000226329 | C149: 7 | D149: 22881349 | E149: rs2893079 | F149: 476 | G149: 30 | H149: enet | I149: 2.638 | J149: 8.33E-03 | K149: 4.65E-01
A150: ENSG00000258082 | B150: LINC03108 | C150: 1 | D150: 234980803 | E150: rs487738 | F150: 436 | G150: 1 | H150: top1 | I150: 2.648 | J150: 8.10E-03 | K150: 4.65E-01
A151: ENSG00000279144 | C151: 3 | D151: 52848552 | E151: rs11915851 | F151: 379 | G151: 1 | H151: top1 | I151: 2.637 | J151: 8.36E-03 | K151: 4.65E-01
A152: ENSG00000064201 | B152: TSPAN32 | C152: 11 | D152: 2302060 | E152: rs1029409 | F152: 422 | G152: 5 | H152: lasso | I152: 2.623 | J152: 8.72E-03 | K152: 4.76E-01
A153: ENSG00000161395 | B153: PGAP3 | C153: 17 | D153: 39696796 | E153: rs11078919 | F153: 317 | G153: 1 | H153: top1 | I153: 2.622 | J153: 8.74E-03 | K153: 4.76E-01
A154: ENSG00000280099 | C154: 1 | D154: 85154202 | E154: rs12057637 | F154: 582 | G154: 1 | H154: top1 | I154: -2.626 | J154: 8.64E-03 | K154: 4.76E-01
A155: ENSG00000176658 | B155: MYO1D | C155: 17 | D155: 32877176 | E155: rs2430984 | F155: 484 | G155: 18 | H155: enet | I155: 2.620 | J155: 8.81E-03 | K155: 4.77E-01
A156: ENSG00000006042 | B156: TMEM98 | C156: 17 | D156: 32927909 | E156: rs2430984 | F156: 529 | G156: 32 | H156: enet | I156: 2.603 | J156: 9.23E-03 | K156: 4.87E-01
A157: ENSG00000063438 | B157: AHRR | C157: 5 | D157: 304175 | E157: rs772654 | F157: 277 | G157: 1 | H157: top1 | I157: 2.600 | J157: 9.32E-03 | K157: 4.87E-01
A158: ENSG00000072609 | B158: CHFR | C158: 12 | D158: 132909185 | E158: rs12423664 | F158: 231 | G158: 231 | H158: susie | I158: -2.605 | J158: 9.18E-03 | K158: 4.87E-01
A159: ENSG00000162267 | B159: ITIH3 | C159: 3 | D159: 52794767 | E159: rs11915851 | F159: 389 | G159: 20 | H159: enet | I159: 2.606 | J159: 9.17E-03 | K159: 4.87E-01
A160: ENSG00000164366 | B160: CCDC127 | C160: 5 | D160: 218214 | E160: rs772654 | F160: 275 | G160: 275 | H160: susie | I160: -2.607 | J160: 9.12E-03 | K160: 4.87E-01
A161: ENSG00000171853 | B161: TRAPPC12 | C161: 2 | D161: 3379674 | E161: rs4641971 | F161: 591 | G161: 5 | H161: lasso | I161: 2.599 | J161: 9.34E-03 | K161: 4.87E-01
A162: ENSG00000259248 | B162: USP3-AS1 | C162: 15 | D162: 63601294 | E162: rs1444407 | F162: 385 | G162: 385 | H162: susie | I162: 2.594 | J162: 9.49E-03 | K162: 4.91E-01
A163: ENSG00000085978 | B163: ATG16L1 | C163: 2 | D163: 233210050 | E163: rs6738678 | F163: 515 | G163: 1 | H163: top1 | I163: -2.577 | J163: 9.97E-03 | K163: 4.92E-01
A164: ENSG00000103769 | B164: RAB11A | C164: 15 | D164: 65726053 | E164: rs17816071 | F164: 383 | G164: 1 | H164: top1 | I164: -2.591 | J164: 9.57E-03 | K164: 4.92E-01
A165: ENSG00000115828 | B165: QPCT | C165: 2 | D165: 37344573 | E165: rs3770748 | F165: 481 | G165: 20 | H165: enet | I165: -2.588 | J165: 9.66E-03 | K165: 4.92E-01
A166: ENSG00000131873 | B166: CHSY1 | C166: 15 | D166: 101251931 | E166: rs12593811 | F166: 615 | G166: 615 | H166: susie | I166: -2.580 | J166: 9.89E-03 | K166: 4.92E-01
A167: ENSG00000146830 | B167: GIGYF1 | C167: 7 | D167: 100689447 | E167: rs4729598 | F167: 320 | G167: 39 | H167: enet | I167: 2.574 | J167: 1.00E-02 | K167: 4.92E-01
A168: ENSG00000163755 | B168: HPS3 | C168: 3 | D168: 149129583 | E168: rs16861015 | F168: 547 | G168: 42 | H168: enet | I168: 2.577 | J168: 9.98E-03 | K168: 4.92E-01
A169: ENSG00000196776 | B169: CD47 | C169: 3 | D169: 108091024 | E169: rs17231503 | F169: 426 | G169: 426 | H169: susie | I169: 2.576 | J169: 1.00E-02 | K169: 4.92E-01
A170: ENSG00000236263 | B170: NA | C170: 1 | D170: 155211390 | E170: rs2306125 | F170: 332 | G170: 332 | H170: susie | I170: -2.586 | J170: 9.72E-03 | K170: 4.92E-01
A171: ENSG00000250312 | B171: ZNF718 | C171: 4 | D171: 124479 | E171: rs11724335 | F171: 149 | G171: 4 | H171: lasso | I171: -2.581 | J171: 9.85E-03 | K171: 4.92E-01
A172: ENSG00000137806 | B172: NDUFAF1 | C172: 15 | D172: 41402518 | E172: rs316604 | F172: 300 | G172: 300 | H172: susie | I172: 2.572 | J172: 1.01E-02 | K172: 4.92E-01
A173: ENSG00000153214 | B173: TMEM87B | C173: 2 | D173: 112055222 | E173: rs6761599 | F173: 327 | G173: 327 | H173: susie | I173: -2.564 | J173: 1.03E-02 | K173: 5.01E-01
A174: ENSG00000250878 | B174: METTL21EP | C174: 13 | D174: 102880098 | E174: rs4772498 | F174: 706 | G174: 706 | H174: susie | I174: -2.560 | J174: 1.05E-02 | K174: 5.03E-01
A175: ENSG00000087365 | B175: SF3B2 | C175: 11 | D175: 66050728 | E175: rs10791840 | F175: 355 | G175: 355 | H175: susie | I175: -2.557 | J175: 1.05E-02 | K175: 5.05E-01
A176: ENSG00000272491 | C176: 1 | D176: 48229560 | E176: rs1722710 | F176: 481 | G176: 481 | H176: susie | I176: -2.556 | J176: 1.06E-02 | K176: 5.05E-01
A177: ENSG00000067167 | B177: TRAM1 | C177: 8 | D177: 70608386 | E177: rs10087358 | F177: 278 | G177: 1 | H177: top1 | I177: 2.540 | J177: 1.11E-02 | K177: 5.05E-01
A178: ENSG00000078403 | B178: MLLT10 | C178: 10 | D178: 21524674 | E178: rs7076249 | F178: 269 | G178: 269 | H178: susie | I178: -2.531 | J178: 1.14E-02 | K178: 5.05E-01
A179: ENSG00000096433 | B179: ITPR3 | C179: 6 | D179: 33620364 | E179: rs6919321 | F179: 516 | G179: 43 | H179: enet | I179: -2.533 | J179: 1.13E-02 | K179: 5.05E-01
A180: ENSG00000116299 | B180: ELAPOR1 | C180: 1 | D180: 109113857 | E180: rs676385 | F180: 416 | G180: 26 | H180: enet | I180: -2.534 | J180: 1.13E-02 | K180: 5.05E-01
A181: ENSG00000134324 | B181: LPIN1 | C181: 2 | D181: 11677594 | E181: rs11891288 | F181: 502 | G181: 502 | H181: susie | I181: 2.538 | J181: 1.11E-02 | K181: 5.05E-01
A182: ENSG00000165006 | B182: UBAP1 | C182: 9 | D182: 34179004 | E182: rs4879801 | F182: 321 | G182: 15 | H182: enet | I182: -2.541 | J182: 1.11E-02 | K182: 5.05E-01
A183: ENSG00000166170 | B183: BAG5 | C183: 14 | D183: 103562830 | E183: rs4900594 | F183: 349 | G183: 1 | H183: top1 | I183: 2.540 | J183: 1.11E-02 | K183: 5.05E-01
A184: ENSG00000173930 | B184: SLCO4C1 | C184: 5 | D184: 102296548 | E184: rs1913504 | F184: 334 | G184: 16 | H184: enet | I184: -2.537 | J184: 1.12E-02 | K184: 5.05E-01
A185: ENSG00000197249 | B185: SERPINA1 | C185: 14 | D185: 94390692 | E185: rs2069987 | F185: 799 | G185: 799 | H185: susie | I185: -2.550 | J185: 1.08E-02 | K185: 5.05E-01
A186: ENSG00000213753 | B186: CENPBD2P | C186: 19 | D186: 58575444 | E186: rs3794966 | F186: 232 | G186: 18 | H186: enet | I186: 2.540 | J186: 1.11E-02 | K186: 5.05E-01
A187: ENSG00000229515 | B187: FLT1P1 | C187: 3 | D187: 46143676 | E187: rs7652331 | F187: 455 | G187: 455 | H187: susie | I187: -2.530 | J187: 1.14E-02 | K187: 5.05E-01
A188: ENSG00000237803 | B188: PIRAT1 | C188: 2 | D188: 37876273 | E188: rs10865127 | F188: 594 | G188: 594 | H188: susie | I188: 2.551 | J188: 1.08E-02 | K188: 5.05E-01
A189: ENSG00000264920 | B189: NA | C189: 17 | D189: 47895811 | E189: rs7207225 | F189: 380 | G189: 19 | H189: enet | I189: -2.533 | J189: 1.13E-02 | K189: 5.05E-01
A190: ENSG00000143595 | B190: AQP10 | C190: 1 | D190: 154321089 | E190: rs6672010 | F190: 373 | G190: 4 | H190: lasso | I190: -2.526 | J190: 1.15E-02 | K190: 5.07E-01
A191: ENSG00000116786 | B191: PLEKHM2 | C191: 1 | D191: 15684331 | E191: rs7526385 | F191: 479 | G191: 9 | H191: enet | I191: 2.511 | J191: 1.21E-02 | K191: 5.09E-01
A192: ENSG00000122515 | B192: ZMIZ2 | C192: 7 | D192: 44748580 | E192: rs9691173 | F192: 401 | G192: 1 | H192: top1 | I192: -2.505 | J192: 1.23E-02 | K192: 5.09E-01
A193: ENSG00000137819 | B193: PAQR5 | C193: 15 | D193: 69298946 | E193: rs1392635 | F193: 355 | G193: 24 | H193: enet | I193: 2.504 | J193: 1.23E-02 | K193: 5.09E-01
A194: ENSG00000145743 | B194: FBXL17 | C194: 5 | D194: 108382097 | E194: rs7448891 | F194: 380 | G194: 1 | H194: top1 | I194: -2.507 | J194: 1.22E-02 | K194: 5.09E-01
A195: ENSG00000160766 | B195: GBA1LP | C195: 1 | D195: 155227421 | E195: rs2306125 | F195: 322 | G195: 10 | H195: enet | I195: 2.511 | J195: 1.20E-02 | K195: 5.09E-01
A196: ENSG00000169682 | B196: SPNS1 | C196: 16 | D196: 28975088 | E196: rs151181 | F196: 180 | G196: 19 | H196: enet | I196: 2.519 | J196: 1.18E-02 | K196: 5.09E-01
A197: ENSG00000176340 | B197: COX8A | C197: 11 | D197: 63974606 | E197: rs12800000 | F197: 314 | G197: 314 | H197: susie | I197: -2.504 | J197: 1.23E-02 | K197: 5.09E-01
A198: ENSG00000179526 | B198: SHARPIN | C198: 8 | D198: 144108057 | E198: rs35978234 | F198: 246 | G198: 3 | H198: lasso | I198: -2.507 | J198: 1.22E-02 | K198: 5.09E-01
A199: ENSG00000217128 | B199: FNIP1 | C199: 5 | D199: 131797062 | E199: rs2077380 | F199: 282 | G199: 282 | H199: susie | I199: 2.506 | J199: 1.22E-02 | K199: 5.09E-01
A200: ENSG00000221946 | B200: FXYD7 | C200: 19 | D200: 35143249 | E200: rs12981130 | F200: 482 | G200: 1 | H200: top1 | I200: 2.515 | J200: 1.19E-02 | K200: 5.09E-01
... 8249 more rows

Sheet Table S10
A1: Table S10: TWAS results in pancreas tissue
A2: ID | B2: Gene_symbol | C2: CHR | D2: P0 | E2: BEST.GWAS.ID | F2: NSNP | G2: NWGT | H2: MODEL | I2: TWAS.Z | J2: TWAS.P | K2: padj
A3: ENSG00000240338 | C3: 16 | D3: 75226073 | E3: rs8056814 | F3: 391 | G3: 1 | H3: top1 | I3: -7.35 | J3: 2.06E-13 | K3: 1.34E-09
A4: ENSG00000187961 | B4: KLHL17 | C4: 1 | D4: 960586 | E4: rs13303010 | F4: 176 | G4: 6 | H4: lasso | I4: -6.65 | J4: 2.90E-11 | K4: 9.43E-08
A5: ENSG00000188976 | B5: NOC2L | C5: 1 | D5: 959308 | E5: rs13303010 | F5: 176 | G5: 11 | H5: enet | I5: 6.24 | J5: 4.50E-10 | K5: 9.76E-07
A6: ENSG00000166965 | B6: RCCD1 | C6: 15 | D6: 90955795 | E6: rs2290202 | F6: 484 | G6: 24 | H6: enet | I6: -5.63 | J6: 1.83E-08 | K6: 2.98E-05
A7: ENSG00000112787 | B7: FBRSL1 | C7: 12 | D7: 132489550 | E7: rs12423664 | F7: 321 | G7: 321 | H7: susie | I7: -5.43 | J7: 5.77E-08 | K7: 5.15E-05
A8: ENSG00000170421 | B8: KRT8 | C8: 12 | D8: 52949919 | E8: rs4919741 | F8: 613 | G8: 1 | H8: top1 | I8: 5.42 | J8: 5.86E-08 | K8: 5.15E-05
A9: ENSG00000279700 | C9: 12 | D9: 132565070 | E9: rs12423664 | F9: 292 | G9: 1 | H9: top1 | I9: -5.41 | J9: 6.34E-08 | K9: 5.15E-05
A10: ENSG00000280287 | C10: 12 | D10: 132550728 | E10: rs12423664 | F10: 296 | G10: 1 | H10: top1 | I10: -5.41 | J10: 6.34E-08 | K10: 5.15E-05
A11: ENSG00000139515 | B11: PDX1 | C11: 13 | D11: 27920019 | E11: rs4457856 | F11: 515 | G11: 1 | H11: top1 | I11: -4.99 | J11: 5.98E-07 | K11: 4.32E-04
A12: ENSG00000113742 | B12: CPEB4 | C12: 5 | D12: 173888279 | E12: rs875741 | F12: 633 | G12: 1 | H12: top1 | I12: -4.95 | J12: 7.35E-07 | K12: 4.78E-04
A13: ENSG00000184508 | B13: HDDC3 | C13: 15 | D13: 90932568 | E13: rs2290202 | F13: 490 | G13: 4 | H13: lasso | I13: 4.90 | J13: 9.61E-07 | K13: 5.68E-04
A14: ENSG00000171914 | B14: TLN2 | C14: 15 | D14: 62390525 | E14: rs650716 | F14: 510 | G14: 510 | H14: susie | I14: -4.68 | J14: 2.82E-06 | K14: 1.53E-03
A15: ENSG00000259370 | C15: 15 | D15: 62884033 | E15: rs650716 | F15: 547 | G15: 18 | H15: lasso | I15: -4.58 | J15: 4.72E-06 | K15: 2.36E-03
A16: ENSG00000140416 | B16: TPM1 | C16: 15 | D16: 63042631 | E16: rs650716 | F16: 521 | G16: 15 | H16: enet | I16: -4.53 | J16: 5.96E-06 | K16: 2.72E-03
A17: ENSG00000165238 | B17: WNK2 | C17: 9 | D17: 93184915 | E17: rs7048527 | F17: 436 | G17: 1 | H17: top1 | I17: -4.51 | J17: 6.42E-06 | K17: 2.72E-03
A18: ENSG00000259727 | C18: 15 | D18: 62895811 | E18: rs650716 | F18: 547 | G18: 10 | H18: lasso | I18: -4.50 | J18: 6.70E-06 | K18: 2.72E-03
A19: ENSG00000259498 | B19: TPM1-AS | C19: 15 | D19: 63049386 | E19: rs650716 | F19: 518 | G19: 9 | H19: lasso | I19: -4.43 | J19: 9.23E-06 | K19: 3.53E-03
A20: ENSG00000099260 | B20: PALMD | C20: 1 | D20: 99645942 | E20: rs11166265 | F20: 493 | G20: 1 | H20: top1 | I20: -4.29 | J20: 1.79E-05 | K20: 6.47E-03
A21: ENSG00000153774 | B21: CFDP1 | C21: 16 | D21: 75433484 | E21: rs8056814 | F21: 345 | G21: 13 | H21: enet | I21: 4.15 | J21: 3.33E-05 | K21: 1.14E-02
A22: ENSG00000109861 | B22: CTSC | C22: 11 | D22: 88337786 | E22: rs190057 | F22: 571 | G22: 571 | H22: susie | I22: -4.10 | J22: 4.05E-05 | K22: 1.32E-02
A23: ENSG00000175164 | B23: ABO | C23: 9 | D23: 133275213 | E23: rs495828 | F23: 568 | G23: 9 | H23: lasso | I23: 4.07 | J23: 4.79E-05 | K23: 1.42E-02
A24: ENSG00000266074 | B24: BAHCC1 | C24: 17 | D24: 81395474 | E24: rs7209156 | F24: 355 | G24: 24 | H24: enet | I24: 4.07 | J24: 4.72E-05 | K24: 1.42E-02
A25: ENSG00000100219 | B25: XBP1 | C25: 22 | D25: 28800596 | E25: rs6005915 | F25: 326 | G25: 1 | H25: top1 | I25: -3.95 | J25: 7.85E-05 | K25: 2.22E-02
A26: ENSG00000119408 | B26: NEK6 | C26: 9 | D26: 124257605 | E26: rs4838131 | F26: 406 | G26: 406 | H26: susie | I26: 3.93 | J26: 8.33E-05 | K26: 2.26E-02
A27: ENSG00000034677 | B27: RNF19A | C27: 8 | D27: 100336217 | E27: rs1788173 | F27: 393 | G27: 15 | H27: enet | I27: -3.92 | J27: 8.91E-05 | K27: 2.32E-02
A28: ENSG00000157884 | B28: CIB4 | C28: 2 | D28: 26641367 | E28: rs1275985 | F28: 368 | G28: 14 | H28: enet | I28: -3.89 | J28: 9.90E-05 | K28: 2.41E-02
A29: ENSG00000178718 | B29: RPP25 | C29: 15 | D29: 74957217 | E29: rs3812945 | F29: 266 | G29: 18 | H29: enet | I29: -3.89 | J29: 9.99E-05 | K29: 2.41E-02
A30: ENSG00000145214 | B30: DGKQ | C30: 4 | D30: 986894 | E30: rs11724804 | F30: 401 | G30: 401 | H30: susie | I30: 3.83 | J30: 1.30E-04 | K30: 2.94E-02
A31: ENSG00000273619 | B31: RPS21-DT | C31: 20 | D31: 62386969 | E31: rs1570027 | F31: 503 | G31: 503 | H31: susie | I31: 3.83 | J31: 1.31E-04 | K31: 2.94E-02
A32: ENSG00000225378 | C32: 2 | D32: 26674463 | E32: rs1275985 | F32: 367 | G32: 367 | H32: susie | I32: -3.79 | J32: 1.53E-04 | K32: 3.31E-02
A33: ENSG00000270025 | B33: BMS1P7 | C33: 10 | D33: 48060015 | E33: rs769008 | F33: 197 | G33: 197 | H33: susie | I33: 3.78 | J33: 1.58E-04 | K33: 3.31E-02
A34: ENSG00000100209 | B34: HSCB | C34: 22 | D34: 28742678 | E34: rs6005915 | F34: 307 | G34: 1 | H34: top1 | I34: -3.76 | J34: 1.72E-04 | K34: 3.39E-02
A35: ENSG00000278561 | B35: PTPN20CP | C35: 10 | D35: 48119454 | E35: rs769008 | F35: 243 | G35: 9 | H35: enet | I35: 3.76 | J35: 1.70E-04 | K35: 3.39E-02
A36: ENSG00000127415 | B36: IDUA | C36: 4 | D36: 986996 | E36: rs11724804 | F36: 401 | G36: 401 | H36: susie | I36: 3.73 | J36: 1.88E-04 | K36: 3.60E-02
A37: ENSG00000266200 | B37: PNLIPRP2 | C37: 10 | D37: 116620952 | E37: rs7910135 | F37: 454 | G37: 43 | H37: enet | I37: 3.66 | J37: 2.57E-04 | K37: 4.78E-02
A38: ENSG00000164330 | B38: EBF1 | C38: 5 | D38: 159099760 | E38: rs10068495 | F38: 399 | G38: 1 | H38: top1 | I38: 3.63 | J38: 2.83E-04 | K38: 5.11E-02
A39: ENSG00000145217 | B39: SLC26A1 | C39: 4 | D39: 993439 | E39: rs11724804 | F39: 402 | G39: 1 | H39: top1 | I39: -3.60 | J39: 3.16E-04 | K39: 5.55E-02
A40: ENSG00000156603 | B40: MED19 | C40: 11 | D40: 57712322 | E40: rs96894 | F40: 386 | G40: 33 | H40: enet | I40: -3.57 | J40: 3.59E-04 | K40: 6.14E-02
A41: ENSG00000188322 | B41: SBK1 | C41: 16 | D41: 28292518 | E41: rs151181 | F41: 289 | G41: 289 | H41: susie | I41: -3.54 | J41: 4.06E-04 | K41: 6.77E-02
A42: ENSG00000172766 | B42: NAA16 | C42: 13 | D42: 41311204 | E42: rs7322614 | F42: 329 | G42: 8 | H42: lasso | I42: 3.51 | J42: 4.44E-04 | K42: 7.22E-02
A43: ENSG00000225057 | C43: 2 | D43: 238231683 | E43: rs6722019 | F43: 491 | G43: 11 | H43: enet | I43: 3.43 | J43: 6.04E-04 | K43: 9.58E-02
A44: ENSG00000104450 | B44: SPAG1 | C44: 8 | D44: 100157905 | E44: rs1788173 | F44: 368 | G44: 368 | H44: susie | I44: 3.42 | J44: 6.37E-04 | K44: 9.63E-02
A45: ENSG00000205084 | B45: TMEM231 | C45: 16 | D45: 75556285 | E45: rs8056814 | F45: 380 | G45: 31 | H45: enet | I45: 3.42 | J45: 6.31E-04 | K45: 9.63E-02
A46: ENSG00000144485 | B46: HES6 | C46: 2 | D46: 238240661 | E46: rs6722019 | F46: 494 | G46: 11 | H46: lasso | I46: 3.39 | J46: 6.98E-04 | K46: 1.03E-01
A47: ENSG00000047188 | B47: YTHDC2 | C47: 5 | D47: 113513682 | E47: rs11747724 | F47: 560 | G47: 21 | H47: enet | I47: 3.35 | J47: 8.03E-04 | K47: 1.07E-01
A48: ENSG00000063176 | B48: SPHK2 | C48: 19 | D48: 48624132 | E48: rs2617805 | F48: 463 | G48: 1 | H48: top1 | I48: -3.35 | J48: 8.20E-04 | K48: 1.07E-01
A49: ENSG00000144354 | B49: CDCA7 | C49: 2 | D49: 173354819 | E49: rs6712331 | F49: 480 | G49: 1 | H49: top1 | I49: 3.35 | J49: 8.11E-04 | K49: 1.07E-01
A50: ENSG00000176476 | B50: SGF29 | C50: 16 | D50: 28581054 | E50: rs151181 | F50: 187 | G50: 3 | H50: lasso | I50: -3.36 | J50: 7.87E-04 | K50: 1.07E-01
A51: ENSG00000178188 | B51: SH2B1 | C51: 16 | D51: 28846599 | E51: rs151181 | F51: 182 | G51: 182 | H51: susie | I51: -3.35 | J51: 8.07E-04 | K51: 1.07E-01
A52: ENSG00000188603 | B52: CLN3 | C52: 16 | D52: 28495097 | E52: rs151181 | F52: 214 | G52: 214 | H52: susie | I52: -3.37 | J52: 7.48E-04 | K52: 1.07E-01
A53: ENSG00000178568 | B53: ERBB4 | C53: 2 | D53: 212538840 | E53: rs17346615 | F53: 494 | G53: 1 | H53: top1 | I53: -3.32 | J53: 8.94E-04 | K53: 1.14E-01
A54: ENSG00000216425 | B54: PIMREGP2 | C54: 4 | D54: 105527396 | E54: rs4699172 | F54: 405 | G54: 1 | H54: top1 | I54: -3.29 | J54: 9.91E-04 | K54: 1.24E-01
A55: ENSG00000184517 | B55: ZFP1 | C55: 16 | D55: 75148491 | E55: rs8056814 | F55: 419 | G55: 419 | H55: susie | I55: 3.28 | J55: 1.04E-03 | K55: 1.25E-01
A56: ENSG00000265018 | B56: AGAP12P | C56: 10 | D56: 48031639 | E56: rs769008 | F56: 165 | G56: 14 | H56: enet | I56: 3.28 | J56: 1.03E-03 | K56: 1.25E-01
A57: ENSG00000121691 | B57: CAT | C57: 11 | D57: 34438924 | E57: rs11032700 | F57: 610 | G57: 1 | H57: top1 | I57: 3.26 | J57: 1.11E-03 | K57: 1.29E-01
A58: ENSG00000165832 | B58: TRUB1 | C58: 10 | D58: 114938192 | E58: rs951585 | F58: 325 | G58: 15 | H58: enet | I58: 3.25 | J58: 1.14E-03 | K58: 1.29E-01
A59: ENSG00000197165 | B59: SULT1A2 | C59: 16 | D59: 28597108 | E59: rs151181 | F59: 186 | G59: 33 | H59: enet | I59: 3.25 | J59: 1.15E-03 | K59: 1.29E-01
A60: ENSG00000273055 | C60: 7 | D60: 107942115 | E60: rs17154615 | F60: 516 | G60: 1 | H60: top1 | I60: 3.26 | J60: 1.12E-03 | K60: 1.29E-01
A61: ENSG00000104447 | B61: TRPS1 | C61: 8 | D61: 115809672 | E61: rs2223059 | F61: 285 | G61: 285 | H61: susie | I61: -3.24 | J61: 1.21E-03 | K61: 1.32E-01
A62: ENSG00000116353 | B62: MECR | C62: 1 | D62: 29230941 | E62: rs4654349 | F62: 444 | G62: 19 | H62: enet | I62: 3.23 | J62: 1.22E-03 | K62: 1.32E-01
A63: ENSG00000162704 | B63: ARPC5 | C63: 1 | D63: 183635756 | E63: rs11755 | F63: 521 | G63: 1 | H63: top1 | I63: -3.23 | J63: 1.25E-03 | K63: 1.33E-01
A64: ENSG00000196611 | B64: MMP1 | C64: 11 | D64: 102798159 | E64: rs7125062 | F64: 527 | G64: 1 | H64: top1 | I64: -3.22 | J64: 1.27E-03 | K64: 1.33E-01
A65: ENSG00000178802 | B65: MPI | C65: 15 | D65: 74890004 | E65: rs3812945 | F65: 276 | G65: 1 | H65: top1 | I65: -3.21 | J65: 1.34E-03 | K65: 1.38E-01
A66: ENSG00000099326 | B66: MZF1 | C66: 19 | D66: 58572576 | E66: rs3794966 | F66: 230 | G66: 8 | H66: lasso | I66: -3.20 | J66: 1.37E-03 | K66: 1.39E-01
A67: ENSG00000171303 | B67: KCNK3 | C67: 2 | D67: 26692689 | E67: rs1275985 | F67: 364 | G67: 1 | H67: top1 | I67: 3.20 | J67: 1.39E-03 | K67: 1.39E-01
A68: ENSG00000186532 | B68: SMYD4 | C68: 17 | D68: 1830633 | E68: rs12939051 | F68: 435 | G68: 33 | H68: enet | I68: -3.18 | J68: 1.46E-03 | K68: 1.42E-01
A69: ENSG00000226823 | B69: SUGT1P1 | C69: 9 | D69: 33510710 | E69: rs12005759 | F69: 385 | G69: 1 | H69: top1 | I69: 3.18 | J69: 1.46E-03 | K69: 1.42E-01
A70: ENSG00000227533 | B70: SLC2A1-DT | C70: 1 | D70: 42959294 | E70: rs12718444 | F70: 431 | G70: 431 | H70: susie | I70: 3.15 | J70: 1.61E-03 | K70: 1.54E-01
A71: ENSG00000251639 | C71: 4 | D71: 1101557 | E71: rs11724804 | F71: 385 | G71: 1 | H71: top1 | I71: 3.14 | J71: 1.71E-03 | K71: 1.61E-01
A72: ENSG00000124159 | B72: MATN4 | C72: 20 | D72: 45308528 | E72: rs2072793 | F72: 480 | G72: 34 | H72: enet | I72: -3.10 | J72: 1.96E-03 | K72: 1.82E-01
A73: ENSG00000070081 | B73: NUCB2 | C73: 11 | D73: 17208152 | E73: rs217765 | F73: 539 | G73: 1 | H73: top1 | I73: -3.09 | J73: 2.02E-03 | K73: 1.82E-01
A74: ENSG00000115073 | B74: ACTR1B | C74: 2 | D74: 97664106 | E74: rs11692435 | F74: 145 | G74: 1 | H74: top1 | I74: -3.09 | J74: 2.00E-03 | K74: 1.82E-01
A75: ENSG00000115825 | B75: PRKD3 | C75: 2 | D75: 37324807 | E75: rs3770748 | F75: 471 | G75: 1 | H75: top1 | I75: 3.07 | J75: 2.14E-03 | K75: 1.86E-01
A76: ENSG00000117394 | B76: SLC2A1 | C76: 1 | D76: 42959047 | E76: rs12718444 | F76: 431 | G76: 1 | H76: top1 | I76: 3.07 | J76: 2.13E-03 | K76: 1.86E-01
A77: ENSG00000154511 | B77: DIPK1A | C77: 1 | D77: 92961521 | E77: rs6671268 | F77: 269 | G77: 1 | H77: top1 | I77: -3.07 | J77: 2.11E-03 | K77: 1.86E-01
A78: ENSG00000140553 | B78: UNC45A | C78: 15 | D78: 90933976 | E78: rs2290202 | F78: 489 | G78: 1 | H78: top1 | I78: 3.06 | J78: 2.20E-03 | K78: 1.87E-01
A79: ENSG00000143252 | B79: SDHC | C79: 1 | D79: 161314256 | E79: rs3813630 | F79: 418 | G79: 1 | H79: top1 | I79: -3.05 | J79: 2.30E-03 | K79: 1.87E-01
A80: ENSG00000256625 | C80: 12 | D80: 27121909 | E80: rs10842952 | F80: 533 | G80: 42 | H80: enet | I80: 3.05 | J80: 2.30E-03 | K80: 1.87E-01
A81: ENSG00000259982 | B81: CDC37P1 | C81: 16 | D81: 28701539 | E81: rs151181 | F81: 199 | G81: 199 | H81: susie | I81: 3.05 | J81: 2.28E-03 | K81: 1.87E-01
A82: ENSG00000273151 | B82: GET4-AS1 | C82: 7 | D82: 886546 | E82: rs6960062 | F82: 329 | G82: 20 | H82: enet | I82: 3.06 | J82: 2.24E-03 | K82: 1.87E-01
A83: ENSG00000080947 | B83: CROCCP3 | C83: 1 | D83: 16499256 | E83: rs7537985 | F83: 239 | G83: 1 | H83: top1 | I83: 3.03 | J83: 2.45E-03 | K83: 1.87E-01
A84: ENSG00000140400 | B84: MAN2C1 | C84: 15 | D84: 75368153 | E84: rs3812945 | F84: 232 | G84: 32 | H84: enet | I84: -3.03 | J84: 2.46E-03 | K84: 1.87E-01
A85: ENSG00000146828 | B85: SLC12A9 | C85: 7 | D85: 100826819 | E85: rs4729598 | F85: 354 | G85: 14 | H85: enet | I85: 3.03 | J85: 2.41E-03 | K85: 1.87E-01
A86: ENSG00000268869 | B86: ESPNP | C86: 1 | D86: 16720156 | E86: rs7537985 | F86: 259 | G86: 1 | H86: top1 | I86: 3.03 | J86: 2.45E-03 | K86: 1.87E-01
A87: ENSG00000280083 | C87: 2 | D87: 191156069 | E87: rs7574570 | F87: 367 | G87: 1 | H87: top1 | I87: 3.03 | J87: 2.48E-03 | K87: 1.87E-01
A88: ENSG00000280114 | C88: 1 | D88: 16688748 | E88: rs7537985 | F88: 244 | G88: 1 | H88: top1 | I88: 3.03 | J88: 2.45E-03 | K88: 1.87E-01
A89: ENSG00000111328 | B89: CDK2AP1 | C89: 12 | D89: 123272333 | E89: rs28475177 | F89: 336 | G89: 3 | H89: lasso | I89: 3.00 | J89: 2.70E-03 | K89: 1.95E-01
A90: ENSG00000119673 | B90: ACOT2 | C90: 14 | D90: 73567619 | E90: rs740506 | F90: 359 | G90: 44 | H90: enet | I90: 3.01 | J90: 2.65E-03 | K90: 1.95E-01
A91: ENSG00000188611 | B91: ASAH2 | C91: 10 | D91: 50248609 | E91: rs4497350 | F91: 310 | G91: 10 | H91: lasso | I91: 3.00 | J91: 2.70E-03 | K91: 1.95E-01
A92: ENSG00000198373 | B92: WWP2 | C92: 16 | D92: 69762305 | E92: rs1983016 | F92: 252 | G92: 9 | H92: enet | I92: 3.01 | J92: 2.66E-03 | K92: 1.95E-01
A93: ENSG00000108439 | B93: PNPO | C93: 17 | D93: 47941505 | E93: rs7207225 | F93: 376 | G93: 3 | H93: lasso | I93: 2.99 | J93: 2.78E-03 | K93: 1.99E-01
A94: ENSG00000049089 | B94: COL9A2 | C94: 1 | D94: 40317293 | E94: rs7516571 | F94: 419 | G94: 1 | H94: top1 | I94: -2.98 | J94: 2.88E-03 | K94: 2.04E-01
A95: ENSG00000099810 | B95: MTAP | C95: 9 | D95: 21802542 | E95: rs4977756 | F95: 443 | G95: 443 | H95: susie | I95: -2.97 | J95: 2.98E-03 | K95: 2.06E-01
A96: ENSG00000120662 | B96: MTRF1 | C96: 13 | D96: 41263576 | E96: rs7322614 | F96: 340 | G96: 340 | H96: susie | I96: 2.97 | J96: 2.98E-03 | K96: 2.06E-01
A97: ENSG00000152944 | B97: MED21 | C97: 12 | D97: 27022545 | E97: rs7312147 | F97: 523 | G97: 523 | H97: susie | I97: 2.96 | J97: 3.03E-03 | K97: 2.07E-01
A98: ENSG00000177239 | B98: MAN1B1 | C98: 9 | D98: 137086926 | E98: rs4880213 | F98: 368 | G98: 18 | H98: enet | I98: 2.96 | J98: 3.07E-03 | K98: 2.08E-01
A99: ENSG00000140474 | B99: ULK3 | C99: 15 | D99: 74843196 | E99: rs3812945 | F99: 290 | G99: 290 | H99: susie | I99: -2.95 | J99: 3.16E-03 | K99: 2.12E-01
A100: ENSG00000159322 | B100: ADPGK | C100: 15 | D100: 72785845 | E100: rs17755397 | F100: 251 | G100: 1 | H100: top1 | I100: 2.95 | J100: 3.22E-03 | K100: 2.13E-01
A101: ENSG00000259211 | C101: 15 | D101: 40465333 | E101: rs4923872 | F101: 374 | G101: 6 | H101: lasso | I101: -2.94 | J101: 3.24E-03 | K101: 2.13E-01
A102: ENSG00000114790 | B102: ARHGEF26 | C102: 3 | D102: 154121002 | E102: rs1727895 | F102: 392 | G102: 392 | H102: susie | I102: -2.93 | J102: 3.39E-03 | K102: 2.20E-01
A103: ENSG00000204147 | B103: ASAH2B | C103: 10 | D103: 50739317 | E103: rs4497350 | F103: 464 | G103: 1 | H103: top1 | I103: -2.91 | J103: 3.58E-03 | K103: 2.28E-01
A104: ENSG00000269951 | C104: 15 | D104: 77068324 | E104: rs4078354 | F104: 251 | G104: 2 | H104: lasso | I104: -2.91 | J104: 3.56E-03 | K104: 2.28E-01
A105: ENSG00000166140 | B105: ZFYVE19 | C105: 15 | D105: 40807085 | E105: rs4923872 | F105: 288 | G105: 17 | H105: enet | I105: -2.89 | J105: 3.82E-03 | K105: 2.37E-01
A106: ENSG00000187867 | B106: PALM3 | C106: 19 | D106: 14059158 | E106: rs10421422 | F106: 282 | G106: 282 | H106: susie | I106: -2.89 | J106: 3.81E-03 | K106: 2.37E-01
A107: ENSG00000243697 | B107: RPL7AP63 | C107: 16 | D107: 86525456 | E107: rs9923313 | F107: 930 | G107: 1 | H107: top1 | I107: 2.90 | J107: 3.76E-03 | K107: 2.37E-01
A108: ENSG00000231770 | B108: TMEM44-AS1 | C108: 3 | D108: 194584010 | E108: rs7621704 | F108: 531 | G108: 34 | H108: enet | I108: 2.88 | J108: 3.96E-03 | K108: 2.43E-01
A109: ENSG00000164327 | B109: RICTOR | C109: 5 | D109: 39074407 | E109: rs357292 | F109: 471 | G109: 1 | H109: top1 | I109: 2.87 | J109: 4.13E-03 | K109: 2.51E-01
A110: ENSG00000232871 | B110: SEC1P | C110: 19 | D110: 48638144 | E110: rs2617805 | F110: 462 | G110: 1 | H110: top1 | I110: 2.87 | J110: 4.17E-03 | K110: 2.51E-01
A111: ENSG00000254419 | C111: 20 | D111: 58710794 | E111: rs6100163 | F111: 555 | G111: 1 | H111: top1 | I111: 2.86 | J111: 4.24E-03 | K111: 2.53E-01
A112: ENSG00000174106 | B112: LEMD3 | C112: 12 | D112: 65169570 | E112: rs10878255 | F112: 308 | G112: 1 | H112: top1 | I112: 2.83 | J112: 4.65E-03 | K112: 2.75E-01
A113: ENSG00000138378 | B113: STAT4 | C113: 2 | D113: 191151595 | E113: rs7574570 | F113: 367 | G113: 367 | H113: susie | I113: 2.81 | J113: 4.94E-03 | K113: 2.75E-01
A114: ENSG00000169231 | B114: THBS3 | C114: 1 | D114: 155207980 | E114: rs2306125 | F114: 335 | G114: 335 | H114: susie | I114: -2.81 | J114: 4.95E-03 | K114: 2.75E-01
A115: ENSG00000184110 | B115: EIF3C | C115: 16 | D115: 28688557 | E115: rs151181 | F115: 201 | G115: 1 | H115: top1 | I115: 2.82 | J115: 4.83E-03 | K115: 2.75E-01
A116: ENSG00000186715 | B116: MST1L | C116: 1 | D116: 16770236 | E116: rs7537985 | F116: 290 | G116: 290 | H116: susie | I116: 2.82 | J116: 4.87E-03 | K116: 2.75E-01
A117: ENSG00000196502 | B117: SULT1A1 | C117: 16 | D117: 28623624 | E117: rs151181 | F117: 182 | G117: 21 | H117: enet | I117: -2.81 | J117: 4.92E-03 | K117: 2.75E-01
A118: ENSG00000251417 | C118: 16 | D118: 28802742 | E118: rs151181 | F118: 182 | G118: 1 | H118: top1 | I118: -2.82 | J118: 4.83E-03 | K118: 2.75E-01
A119: ENSG00000272195 | B119: EFCAB2-AS1 | C119: 1 | D119: 244971087 | E119: rs704652 | F119: 464 | G119: 1 | H119: top1 | I119: 2.82 | J119: 4.76E-03 | K119: 2.75E-01
A120: ENSG00000140320 | B120: BAHD1 | C120: 15 | D120: 40439720 | E120: rs4923872 | F120: 386 | G120: 1 | H120: top1 | I120: -2.80 | J120: 5.05E-03 | K120: 2.77E-01
A121: ENSG00000146830 | B121: GIGYF1 | C121: 7 | D121: 100689447 | E121: rs4729598 | F121: 320 | G121: 320 | H121: susie | I121: 2.80 | J121: 5.14E-03 | K121: 2.77E-01
A122: ENSG00000157837 | B122: SPPL3 | C122: 12 | D122: 120904370 | E122: rs6489785 | F122: 450 | G122: 4 | H122: lasso | I122: -2.80 | J122: 5.10E-03 | K122: 2.77E-01
A123: ENSG00000162769 | B123: FLVCR1 | C123: 1 | D123: 212858254 | E123: rs6680409 | F123: 412 | G123: 30 | H123: enet | I123: -2.79 | J123: 5.19E-03 | K123: 2.77E-01
A124: ENSG00000186188 | B124: FFAR4 | C124: 10 | D124: 93566664 | E124: rs7081686 | F124: 565 | G124: 11 | H124: enet | I124: -2.79 | J124: 5.19E-03 | K124: 2.77E-01
A125: ENSG00000148296 | B125: SURF6 | C125: 9 | D125: 133336397 | E125: rs495828 | F125: 583 | G125: 31 | H125: enet | I125: -2.79 | J125: 5.28E-03 | K125: 2.79E-01
A126: ENSG00000128891 | B126: CCDC32 | C126: 15 | D126: 40565056 | E126: rs4923872 | F126: 333 | G126: 21 | H126: enet | I126: 2.78 | J126: 5.37E-03 | K126: 2.82E-01
A127: ENSG00000233017 | C127: 20 | D127: 62427826 | E127: rs1570027 | F127: 513 | G127: 513 | H127: susie | I127: 2.77 | J127: 5.54E-03 | K127: 2.88E-01
A128: ENSG00000228649 | B128: SNHG26 | C128: 7 | D128: 22854177 | E128: rs2893079 | F128: 490 | G128: 33 | H128: enet | I128: 2.77 | J128: 5.60E-03 | K128: 2.89E-01
A129: ENSG00000168234 | B129: TTC39C | C129: 18 | D129: 23992772 | E129: rs2337186 | F129: 414 | G129: 414 | H129: susie | I129: 2.77 | J129: 5.65E-03 | K129: 2.89E-01
A130: ENSG00000198682 | B130: PAPSS2 | C130: 10 | D130: 87659612 | E130: rs3815417 | F130: 323 | G130: 323 | H130: susie | I130: 2.76 | J130: 5.84E-03 | K130: 2.97E-01
A131: ENSG00000164828 | B131: SUN1 | C131: 7 | D131: 816614 | E131: rs6960062 | F131: 314 | G131: 314 | H131: susie | I131: -2.75 | J131: 5.90E-03 | K131: 2.97E-01
A132: ENSG00000173540 | B132: GMPPB | C132: 3 | D132: 49723950 | E132: rs1491983 | F132: 319 | G132: 1 | H132: top1 | I132: 2.74 | J132: 6.11E-03 | K132: 3.06E-01
A133: ENSG00000104957 | B133: YJU2B | C133: 19 | D133: 13731759 | E133: rs10421422 | F133: 340 | G133: 4 | H133: lasso | I133: 2.73 | J133: 6.31E-03 | K133: 3.09E-01
A134: ENSG00000173706 | B134: HEG1 | C134: 3 | D134: 125055957 | E134: rs2270778 | F134: 574 | G134: 574 | H134: susie | I134: -2.73 | J134: 6.32E-03 | K134: 3.09E-01
A135: ENSG00000260257 | C135: 20 | D135: 32856620 | E135: rs2424908 | F135: 434 | G135: 434 | H135: susie | I135: -2.73 | J135: 6.30E-03 | K135: 3.09E-01
A136: ENSG00000132819 | B136: RBM38 | C136: 20 | D136: 57391406 | E136: rs328505 | F136: 671 | G136: 671 | H136: susie | I136: 2.71 | J136: 6.67E-03 | K136: 3.15E-01
A137: ENSG00000135374 | B137: ELF5 | C137: 11 | D137: 34513804 | E137: rs11032700 | F137: 607 | G137: 6 | H137: lasso | I137: -2.72 | J137: 6.53E-03 | K137: 3.15E-01
A138: ENSG00000151292 | B138: CSNK1G3 | C138: 5 | D138: 123512098 | E138: rs17164879 | F138: 478 | G138: 1 | H138: top1 | I138: -2.72 | J138: 6.59E-03 | K138: 3.15E-01
A139: ENSG00000155393 | B139: HEATR3 | C139: 16 | D139: 50065940 | E139: rs2356736 | F139: 375 | G139: 13 | H139: lasso | I139: -2.72 | J139: 6.52E-03 | K139: 3.15E-01
A140: ENSG00000185499 | B140: MUC1 | C140: 1 | D140: 155192915 | E140: rs2306125 | F140: 338 | G140: 1 | H140: top1 | I140: -2.71 | J140: 6.65E-03 | K140: 3.15E-01
A141: ENSG00000102796 | B141: DHRS12 | C141: 13 | D141: 51803722 | E141: rs10676 | F141: 371 | G141: 45 | H141: enet | I141: -2.70 | J141: 6.94E-03 | K141: 3.25E-01
A142: ENSG00000162998 | B142: FRZB | C142: 2 | D142: 182867161 | E142: rs16823787 | F142: 400 | G142: 14 | H142: enet | I142: -2.69 | J142: 7.07E-03 | K142: 3.28E-01
A143: ENSG00000100280 | B143: AP1B1 | C143: 22 | D143: 29388582 | E143: rs5762879 | F143: 419 | G143: 21 | H143: enet | I143: 2.69 | J143: 7.17E-03 | K143: 3.29E-01
A144: ENSG00000138071 | B144: ACTR2 | C144: 2 | D144: 65227752 | E144: rs11548393 | F144: 472 | G144: 472 | H144: susie | I144: -2.69 | J144: 7.23E-03 | K144: 3.29E-01
A145: ENSG00000260886 | B145: TAT-AS1 | C145: 16 | D145: 71572019 | E145: rs904763 | F145: 374 | G145: 12 | H145: enet | I145: -2.69 | J145: 7.22E-03 | K145: 3.29E-01
A146: ENSG00000142252 | B146: GEMIN7 | C146: 19 | D146: 45079194 | E146: rs10409903 | F146: 366 | G146: 23 | H146: enet | I146: -2.68 | J146: 7.32E-03 | K146: 3.31E-01
A147: ENSG00000176658 | B147: MYO1D | C147: 17 | D147: 32877176 | E147: rs2430984 | F147: 484 | G147: 484 | H147: susie | I147: 2.68 | J147: 7.45E-03 | K147: 3.32E-01
A148: ENSG00000178952 | B148: TUFM | C148: 16 | D148: 28846407 | E148: rs151181 | F148: 182 | G148: 182 | H148: susie | I148: 2.67 | J148: 7.59E-03 | K148: 3.32E-01
A149: ENSG00000184887 | B149: BTBD6 | C149: 14 | D149: 105248911 | E149: rs3825762 | F149: 217 | G149: 217 | H149: susie | I149: 2.67 | J149: 7.58E-03 | K149: 3.32E-01
A150: ENSG00000185024 | B150: BRF1 | C150: 14 | D150: 105315588 | E150: rs3825762 | F150: 191 | G150: 191 | H150: susie | I150: 2.67 | J150: 7.57E-03 | K150: 3.32E-01
A151: ENSG00000221947 | B151: XKR9 | C151: 8 | D151: 70669364 | E151: rs1905039 | F151: 309 | G151: 309 | H151: susie | I151: 2.67 | J151: 7.60E-03 | K151: 3.32E-01
A152: ENSG00000058804 | B152: NDC1 | C152: 1 | D152: 53838859 | E152: rs1766642 | F152: 506 | G152: 506 | H152: susie | I152: 2.66 | J152: 7.74E-03 | K152: 3.36E-01
A153: ENSG00000137819 | B153: PAQR5 | C153: 15 | D153: 69298946 | E153: rs1392635 | F153: 381 | G153: 381 | H153: susie | I153: 2.65 | J153: 7.95E-03 | K153: 3.42E-01
A154: ENSG00000178927 | B154: CYBC1 | C154: 17 | D154: 82450828 | E154: rs8008 | F154: 402 | G154: 1 | H154: top1 | I154: -2.65 | J154: 8.07E-03 | K154: 3.42E-01
A155: ENSG00000205978 | B155: NYNRIN | C155: 14 | D155: 24398785 | E155: rs13841 | F155: 537 | G155: 537 | H155: susie | I155: 2.65 | J155: 8.05E-03 | K155: 3.42E-01
A156: ENSG00000238005 | B156: LNCATV | C156: 1 | D156: 234970061 | E156: rs487738 | F156: 445 | G156: 1 | H156: top1 | I156: -2.65 | J156: 8.10E-03 | K156: 3.42E-01
A157: ENSG00000267009 | C157: 17 | D157: 68413622 | E157: rs9896422 | F157: 417 | G157: 8 | H157: enet | I157: -2.64 | J157: 8.22E-03 | K157: 3.45E-01
A158: ENSG00000136048 | B158: DRAM1 | C158: 12 | D158: 101877350 | E158: rs4764853 | F158: 448 | G158: 1 | H158: top1 | I158: -2.64 | J158: 8.32E-03 | K158: 3.46E-01
A159: ENSG00000264920 | B159: NA | C159: 17 | D159: 47895811 | E159: rs7207225 | F159: 380 | G159: 18 | H159: enet | I159: -2.64 | J159: 8.35E-03 | K159: 3.46E-01
A160: ENSG00000016864 | B160: GLT8D1 | C160: 3 | D160: 52705634 | E160: rs11915851 | F160: 382 | G160: 1 | H160: top1 | I160: 2.63 | J160: 8.54E-03 | K160: 3.46E-01
A161: ENSG00000122696 | B161: SLC25A51 | C161: 9 | D161: 37904352 | E161: rs4878737 | F161: 527 | G161: 527 | H161: susie | I161: 2.63 | J161: 8.57E-03 | K161: 3.46E-01
A162: ENSG00000165309 | B162: ARMC3 | C162: 10 | D162: 22928023 | E162: rs17543414 | F162: 363 | G162: 1 | H162: top1 | I162: -2.63 | J162: 8.54E-03 | K162: 3.46E-01
A163: ENSG00000165626 | B163: BEND7 | C163: 10 | D163: 13528973 | E163: rs2995648 | F163: 672 | G163: 672 | H163: susie | I163: 2.63 | J163: 8.49E-03 | K163: 3.46E-01
A164: ENSG00000124177 | B164: CHD6 | C164: 20 | D164: 41618493 | E164: rs4810347 | F164: 456 | G164: 54 | H164: enet | I164: 2.62 | J164: 8.69E-03 | K164: 3.49E-01
A165: ENSG00000033050 | B165: ABCF2 | C165: 7 | D165: 151227229 | E165: rs219231 | F165: 553 | G165: 553 | H165: susie | I165: -2.62 | J165: 8.86E-03 | K165: 3.53E-01
A166: ENSG00000147592 | B166: LACTB2 | C166: 8 | D166: 70669173 | E166: rs1905039 | F166: 309 | G166: 309 | H166: susie | I166: 2.61 | J166: 8.95E-03 | K166: 3.53E-01
A167: ENSG00000173930 | B167: SLCO4C1 | C167: 5 | D167: 102296548 | E167: rs1913504 | F167: 334 | G167: 334 | H167: susie | I167: 2.62 | J167: 8.90E-03 | K167: 3.53E-01
A168: ENSG00000105700 | B168: KXD1 | C168: 19 | D168: 18557761 | E168: rs4808820 | F168: 375 | G168: 12 | H168: enet | I168: -2.61 | J168: 9.06E-03 | K168: 3.55E-01
A169: ENSG00000110435 | B169: PDHX | C169: 11 | D169: 34915828 | E169: rs11032700 | F169: 686 | G169: 686 | H169: susie | I169: -2.60 | J169: 9.19E-03 | K169: 3.58E-01
A170: ENSG00000159110 | B170: IFNAR2 | C170: 21 | D170: 33229900 | E170: rs2834033 | F170: 453 | G170: 1 | H170: top1 | I170: -2.59 | J170: 9.51E-03 | K170: 3.62E-01
A171: ENSG00000178852 | B171: EFCAB13 | C171: 17 | D171: 47323289 | E171: rs12601027 | F171: 346 | G171: 32 | H171: enet | I171: 2.59 | J171: 9.47E-03 | K171: 3.62E-01
A172: ENSG00000244480 | C172: 7 | D172: 30524534 | E172: rs12701035 | F172: 457 | G172: 21 | H172: enet | I172: -2.60 | J172: 9.36E-03 | K172: 3.62E-01
A173: ENSG00000256862 | B173: PARP11-AS1 | C173: 12 | D173: 3871733 | E173: rs10848989 | F173: 622 | G173: 1 | H173: top1 | I173: 2.60 | J173: 9.43E-03 | K173: 3.62E-01
A174: ENSG00000137968 | B174: SLC44A5 | C174: 1 | D174: 75611115 | E174: rs3925749 | F174: 420 | G174: 51 | H174: enet | I174: 2.58 | J174: 9.85E-03 | K174: 3.69E-01
A175: ENSG00000155542 | B175: SETD9 | C175: 5 | D175: 56909259 | E175: rs1573998 | F175: 494 | G175: 12 | H175: lasso | I175: 2.58 | J175: 9.88E-03 | K175: 3.69E-01
A176: ENSG00000161904 | B176: LEMD2 | C176: 6 | D176: 33789135 | E176: rs6919321 | F176: 536 | G176: 1 | H176: top1 | I176: -2.58 | J176: 9.82E-03 | K176: 3.69E-01
A177: ENSG00000141316 | B177: SPACA3 | C177: 17 | D177: 32970375 | E177: rs2430984 | F177: 550 | G177: 550 | H177: susie | I177: -2.57 | J177: 1.02E-02 | K177: 3.79E-01
A178: ENSG00000275426 | C178: 4 | D178: 149737 | E178: rs11724335 | F178: 158 | G178: 16 | H178: enet | I178: -2.56 | J178: 1.04E-02 | K178: 3.83E-01
A179: ENSG00000050327 | B179: ARHGEF5 | C179: 7 | D179: 144355287 | E179: rs1208180 | F179: 332 | G179: 332 | H179: susie | I179: -2.56 | J179: 1.06E-02 | K179: 3.85E-01
A180: ENSG00000066923 | B180: STAG3 | C180: 7 | D180: 100177562 | E180: rs6944766 | F180: 255 | G180: 6 | H180: lasso | I180: 2.56 | J180: 1.06E-02 | K180: 3.85E-01
A181: ENSG00000234284 | B181: ZNF879 | C181: 5 | D181: 179023751 | E181: rs262055 | F181: 561 | G181: 561 | H181: susie | I181: 2.56 | J181: 1.05E-02 | K181: 3.85E-01
A182: ENSG00000225450 | C182: 22 | D182: 38739002 | E182: rs2247128 | F182: 383 | G182: 383 | H182: susie | I182: 2.55 | J182: 1.07E-02 | K182: 3.87E-01
A183: ENSG00000065457 | B183: ADAT1 | C183: 16 | D183: 75623299 | E183: rs8056814 | F183: 389 | G183: 1 | H183: top1 | I183: -2.54 | J183: 1.11E-02 | K183: 3.97E-01
A184: ENSG00000240036 | C184: 11 | D184: 27581679 | E184: rs11029979 | F184: 370 | G184: 370 | H184: susie | I184: -2.54 | J184: 1.11E-02 | K184: 3.97E-01
A185: ENSG00000110080 | B185: ST3GAL4 | C185: 11 | D185: 126355639 | E185: rs12420382 | F185: 701 | G185: 8 | H185: lasso | I185: -2.54 | J185: 1.12E-02 | K185: 3.98E-01
A186: ENSG00000128311 | B186: TST | C186: 22 | D186: 37020182 | E186: rs2413448 | F186: 700 | G186: 700 | H186: susie | I186: -2.53 | J186: 1.13E-02 | K186: 3.99E-01
A187: ENSG00000197253 | B187: TPSB2 | C187: 16 | D187: 1230183 | E187: rs213657 | F187: 443 | G187: 1 | H187: top1 | I187: -2.53 | J187: 1.16E-02 | K187: 4.08E-01
A188: ENSG00000090530 | B188: P3H2 | C188: 3 | D188: 190122436 | E188: rs1515496 | F188: 564 | G188: 564 | H188: susie | I188: 2.50 | J188: 1.23E-02 | K188: 4.08E-01
A189: ENSG00000097096 | B189: SYDE2 | C189: 1 | D189: 85201045 | E189: rs12057637 | F189: 577 | G189: 577 | H189: susie | I189: -2.51 | J189: 1.21E-02 | K189: 4.08E-01
A190: ENSG00000168036 | B190: CTNNB1 | C190: 3 | D190: 41194836 | E190: rs9828880 | F190: 380 | G190: 1 | H190: top1 | I190: 2.52 | J190: 1.17E-02 | K190: 4.08E-01
A191: ENSG00000170464 | B191: DNAJC18 | C191: 5 | D191: 139444490 | E191: rs4835651 | F191: 270 | G191: 11 | H191: enet | I191: 2.51 | J191: 1.22E-02 | K191: 4.08E-01
A192: ENSG00000179104 | B192: TMTC2 | C192: 12 | D192: 82686879 | E192: rs2717453 | F192: 369 | G192: 369 | H192: susie | I192: -2.50 | J192: 1.23E-02 | K192: 4.08E-01
A193: ENSG00000196262 | B193: PPIA | C193: 7 | D193: 44796679 | E193: rs9691173 | F193: 418 | G193: 1 | H193: top1 | I193: -2.51 | J193: 1.23E-02 | K193: 4.08E-01
A194: ENSG00000198723 | B194: SAXO5 | C194: 19 | D194: 7492975 | E194: rs661821 | F194: 425 | G194: 22 | H194: enet | I194: -2.51 | J194: 1.20E-02 | K194: 4.08E-01
A195: ENSG00000231064 | B195: THBS3-AS1 | C195: 1 | D195: 155195003 | E195: rs2306125 | F195: 338 | G195: 338 | H195: susie | I195: -2.51 | J195: 1.21E-02 | K195: 4.08E-01
A196: ENSG00000259531 | C196: 15 | D196: 49366684 | E196: rs11638981 | F196: 334 | G196: 334 | H196: susie | I196: 2.52 | J196: 1.19E-02 | K196: 4.08E-01
A197: ENSG00000269086 | B197: LINC02965 | C197: 19 | D197: 34837888 | E197: rs7259297 | F197: 444 | G197: 1 | H197: top1 | I197: 2.51 | J197: 1.20E-02 | K197: 4.08E-01
A198: ENSG00000280007 | C198: 22 | D198: 18130841 | E198: rs389496 | F198: 312 | G198: 49 | H198: enet | I198: 2.52 | J198: 1.18E-02 | K198: 4.08E-01
A199: ENSG00000089091 | B199: DZANK1 | C199: 20 | D199: 18467125 | E199: rs6045514 | F199: 460 | G199: 1 | H199: top1 | I199: 2.50 | J199: 1.24E-02 | K199: 4.09E-01
A200: ENSG00000063438 | B200: AHRR | C200: 5 | D200: 304175 | E200: rs772654 | F200: 281 | G200: 281 | H200: susie | I200: 2.49 | J200: 1.30E-02 | K200: 4.10E-01
... 6430 more rows

Sheet Table S11
A1: Table S11: TWAS results in pancreatic cancer tissue
A2: ID | B2: Gene_symbol | C2: CHR | D2: P0 | E2: BEST.GWAS.ID | F2: NSNP | G2: NWGT | H2: MODEL | I2: TWAS.Z | J2: TWAS.P | K2: padj
A3: ENSG00000127415 | B3: IDUA | C3: 4 | D3: 980785 | E3: rs11724804 | F3: 50 | G3: 1 | H3: top1 | I3: 4.71 | J3: 2.44E-06 | K3: 2.09E-03
A4: ENSG00000100219 | B4: XBP1 | C4: 22 | D4: 29190549 | E4: rs6005915 | F4: 35 | G4: 35 | H4: blup | I4: -4.79 | J4: 1.70E-06 | K4: 2.09E-03
A5: ENSG00000184517 | B5: ZFP1 | C5: 16 | D5: 75182421 | E5: rs8056814 | F5: 63 | G5: 63 | H5: blup | I5: 4.09 | J5: 4.22E-05 | K5: 2.41E-02
A6: ENSG00000145214 | B6: DGKQ | C6: 4 | D6: 952676 | E6: rs11724804 | F6: 49 | G6: 1 | H6: top1 | I6: 3.95 | J6: 7.91E-05 | K6: 3.39E-02
A7: ENSG00000121691 | B7: CAT | C7: 11 | D7: 34460478 | E7: rs11032700 | F7: 125 | G7: 23 | H7: enet | I7: 3.76 | J7: 1.72E-04 | K7: 5.90E-02
A8: ENSG00000205609 | B8: EIF3CL | C8: 16 | D8: 28699879 | E8: rs11074907 | F8: 18 | G8: 1 | H8: top1 | I8: 3.49 | J8: 4.83E-04 | K8: 1.04E-01
A9: ENSG00000141101 | B9: NOB1 | C9: 16 | D9: 69775775 | E9: rs2917682 | F9: 35 | G9: 35 | H9: blup | I9: 3.55 | J9: 3.85E-04 | K9: 1.04E-01
A10: ENSG00000178952 | B10: TUFM | C10: 16 | D10: 28853732 | E10: rs4451951 | F10: 28 | G10: 1 | H10: top1 | I10: 3.49 | J10: 4.83E-04 | K10: 1.04E-01
A11: ENSG00000104979 | B11: C19orf53 | C11: 19 | D11: 13885257 | E11: rs7359868 | F11: 37 | G11: 1 | H11: top1 | I11: -3.29 | J11: 1.00E-03 | K11: 1.72E-01
A12: ENSG00000160856 | B12: FCRL3 | C12: 1 | D12: 157646278 | E12: rs2778012 | F12: 56 | G12: 1 | H12: top1 | I12: 3.30 | J12: 9.60E-04 | K12: 1.72E-01
A13: ENSG00000162704 | B13: ARPC5 | C13: 1 | D13: 183595333 | E13: rs11755 | F13: 74 | G13: 1 | H13: top1 | I13: -3.23 | J13: 1.23E-03 | K13: 1.75E-01
A14: NA | B14: LYRM5 | C14: 12 | D14: 25348150 | E14: rs10842501 | F14: 56 | G14: 1 | H14: top1 | I14: -3.19 | J14: 1.43E-03 | K14: 1.75E-01
A15: ENSG00000291895 | B15: PNLIPRP2 | C15: 10 | D15: 118380465 | E15: rs7910135 | F15: 13 | G15: 1 | H15: top1 | I15: 3.17 | J15: 1.53E-03 | K15: 1.75E-01
A16: ENSG00000266200 | B16: PNLIPRP2 | C16: 10 | D16: 118380465 | E16: rs7910135 | F16: 13 | G16: 1 | H16: top1 | I16: 3.17 | J16: 1.53E-03 | K16: 1.75E-01
A17: ENSG00000157429 | B17: ZNF19 | C17: 16 | D17: 71507976 | E17: rs16973112 | F17: 48 | G17: 48 | H17: blup | I17: -3.17 | J17: 1.53E-03 | K17: 1.75E-01
A18: ENSG00000156603 | B18: MED19 | C18: 11 | D18: 57471182 | E18: rs1424752 | F18: 26 | G18: 26 | H18: blup | I18: -3.15 | J18: 1.65E-03 | K18: 1.77E-01
A19: NA | B19: FLJ33360 | C19: 5 | D19: 6310554 | E19: rs11134155 | F19: 77 | G19: 77 | H19: blup | I19: 3.12 | J19: 1.81E-03 | K19: 1.83E-01
A20: ENSG00000174502 | B20: SLC26A9 | C20: 1 | D20: 205882179 | E20: rs7512462 | F20: 62 | G20: 1 | H20: top1 | I20: -3.09 | J20: 1.99E-03 | K20: 1.90E-01
A21: ENSG00000145757 | B21: SPATA9 | C21: 5 | D21: 94987885 | E21: rs461873 | F21: 54 | G21: 54 | H21: blup | I21: 3.06 | J21: 2.18E-03 | K21: 1.97E-01
A22: ENSG00000065457 | B22: ADAT1 | C22: 16 | D22: 75632998 | E22: rs11149843 | F22: 42 | G22: 20 | H22: enet | I22: -2.95 | J22: 3.23E-03 | K22: 2.77E-01
A23: NA | B23: GTPBP5 | C23: 20 | D23: 60758081 | E23: rs6061457 | F23: 67 | G23: 1 | H23: top1 | I23: 2.92 | J23: 3.52E-03 | K23: 2.84E-01
A24: ENSG00000146701 | B24: MDH2 | C24: 7 | D24: 75677393 | E24: rs1044484 | F24: 14 | G24: 11 | H24: enet | I24: 2.89 | J24: 3.80E-03 | K24: 2.84E-01
A25: ENSG00000103248 | B25: MTHFSD | C25: 16 | D25: 86563783 | E25: rs9923313 | F25: 101 | G25: 1 | H25: top1 | I25: -2.90 | J25: 3.76E-03 | K25: 2.84E-01
A26: ENSG00000111328 | B26: CDK2AP1 | C26: 12 | D26: 123745542 | E26: rs10083067 | F26: 34 | G26: 34 | H26: blup | I26: 2.86 | J26: 4.18E-03 | K26: 2.97E-01
A27: NA | B27: MCART1 | C27: 9 | D27: 37877572 | E27: rs776018 | F27: 42 | G27: 42 | H27: blup | I27: 2.85 | J27: 4.32E-03 | K27: 2.97E-01
A28: ENSG00000204147 | B28: ASAH2B | C28: 10 | D28: 52499696 | E28: rs4497350 | F28: 17 | G28: 1 | H28: top1 | I28: -2.77 | J28: 5.64E-03 | K28: 3.25E-01
A29: NA | B29: C15orf57 | C29: 15 | D29: 40823540 | E29: rs4923872 | F29: 46 | G29: 46 | H29: blup | I29: 2.81 | J29: 4.99E-03 | K29: 3.25E-01
A30: NA | B30: C5orf35 | C30: 5 | D30: 56205103 | E30: rs2662021 | F30: 58 | G30: 22 | H30: enet | I30: 2.76 | J30: 5.72E-03 | K30: 3.25E-01
A31: ENSG00000115816 | B31: CEBPZ | C31: 2 | D31: 37428778 | E31: rs2110963 | F31: 48 | G31: 48 | H31: blup | I31: 2.75 | J31: 5.90E-03 | K31: 3.25E-01
A32: ENSG00000154813 | B32: DPH3 | C32: 3 | D32: 16298569 | E32: rs842261 | F32: 58 | G32: 58 | H32: blup | I32: -2.73 | J32: 6.40E-03 | K32: 3.25E-01
A33: ENSG00000069696 | B33: DRD4 | C33: 11 | D33: 637305 | E33: rs7935419 | F33: 48 | G33: 6 | H33: enet | I33: -2.72 | J33: 6.44E-03 | K33: 3.25E-01
A34: ENSG00000276825 | B34: DRD4 | C34: 11 | D34: 637305 | E34: rs7935419 | F34: 48 | G34: 6 | H34: enet | I34: -2.72 | J34: 6.44E-03 | K34: 3.25E-01
A35: NA | B35: EFCAB2 | C35: 1 | D35: 245133171 | E35: rs10927369 | F35: 104 | G35: 5 | H35: lasso | I35: -2.75 | J35: 5.98E-03 | K35: 3.25E-01
A36: ENSG00000173540 | B36: GMPPB | C36: 3 | D36: 49758932 | E36: rs9870755 | F36: 40 | G36: 1 | H36: top1 | I36: 2.74 | J36: 6.11E-03 | K36: 3.25E-01
A37: ENSG00000100209 | B37: HSCB | C37: 22 | D37: 29138043 | E37: rs5762795 | F37: 43 | G37: 43 | H37: blup | I37: -2.71 | J37: 6.80E-03 | K37: 3.33E-01
A38: ENSG00000140400 | B38: MAN2C1 | C38: 15 | D38: 75648135 | E38: rs9673084 | F38: 14 | G38: 14 | H38: blup | I38: -2.69 | J38: 7.22E-03 | K38: 3.44E-01
A39: ENSG00000149089 | B39: APIP | C39: 11 | D39: 34896714 | E39: rs483769 | F39: 105 | G39: 18 | H39: lasso | I39: 2.61 | J39: 9.13E-03 | K39: 3.92E-01
A40: ENSG00000099326 | B40: MZF1 | C40: 19 | D40: 59073285 | E40: rs3794966 | F40: 29 | G40: 29 | H40: blup | I40: -2.61 | J40: 9.02E-03 | K40: 3.92E-01
A41: ENSG00000143252 | B41: SDHC | C41: 1 | D41: 161284166 | E41: rs3813630 | F41: 61 | G41: 7 | H41: enet | I41: -2.62 | J41: 8.79E-03 | K41: 3.92E-01
A42: ENSG00000137968 | B42: SLC44A5 | C42: 1 | D42: 75667816 | E42: rs1249849 | F42: 212 | G42: 1 | H42: top1 | I42: 2.61 | J42: 9.00E-03 | K42: 3.92E-01
A43: ENSG00000160194 | B43: NDUFV3 | C43: 21 | D43: 44313378 | E43: rs2839603 | F43: 51 | G43: 4 | H43: lasso | I43: 2.57 | J43: 1.03E-02 | K43: 4.31E-01
A44: ENSG00000136750 | B44: GAD2 | C44: 10 | D44: 26505236 | E44: rs8190612 | F44: 86 | G44: 1 | H44: top1 | I44: -2.52 | J44: 1.16E-02 | K44: 4.44E-01
A45: NA | B45: NCRNA00189 | C45: 21 | D45: 30565801 | E45: rs2832216 | F45: 68 | G45: 1 | H45: top1 | I45: 2.54 | J45: 1.12E-02 | K45: 4.44E-01
A46: ENSG00000161395 | B46: PGAP3 | C46: 17 | D46: 37827376 | E46: rs11078919 | F46: 42 | G46: 1 | H46: top1 | I46: 2.52 | J46: 1.19E-02 | K46: 4.44E-01
A47: ENSG00000113593 | B47: PPWD1 | C47: 5 | D47: 64859131 | E47: rs6870248 | F47: 47 | G47: 47 | H47: blup | I47: -2.51 | J47: 1.19E-02 | K47: 4.44E-01
A48: ENSG00000103549 | B48: RNF40 | C48: 16 | D48: 30773630 | E48: rs8058961 | F48: 13 | G48: 1 | H48: top1 | I48: 2.54 | J48: 1.10E-02 | K48: 4.44E-01
A49: ENSG00000067208 | B49: EVI5 | C49: 1 | D49: 92974255 | E49: rs3790451 | F49: 94 | G49: 94 | H49: blup | I49: -2.50 | J49: 1.25E-02 | K49: 4.45E-01
A50: ENSG00000160310 | B50: PRMT2 | C50: 21 | D50: 48055527 | E50: rs4464358 | F50: 40 | G50: 40 | H50: blup | I50: 2.49 | J50: 1.27E-02 | K50: 4.45E-01
A51: ENSG00000095917 | B51: TPSD1 | C51: 16 | D51: 1306273 | E51: rs3897150 | F51: 33 | G51: 23 | H51: enet | I51: -2.50 | J51: 1.23E-02 | K51: 4.45E-01
A52: ENSG00000156689 | B52: GLYATL2 | C52: 11 | D52: 58601542 | E52: rs10896825 | F52: 36 | G52: 2 | H52: lasso | I52: -2.48 | J52: 1.33E-02 | K52: 4.48E-01
A53: ENSG00000211456 | B53: SACM1L | C53: 3 | D53: 45730754 | E53: rs9876474 | F53: 87 | G53: 1 | H53: top1 | I53: 2.48 | J53: 1.31E-02 | K53: 4.48E-01
A54: ENSG00000221838 | B54: AP4M1 | C54: 7 | D54: 99699130 | E54: rs12705070 | F54: 37 | G54: 37 | H54: blup | I54: -2.34 | J54: 1.95E-02 | K54: 4.98E-01
A55: NA | B55: C10orf4 | C55: 10 | D55: 95428329 | E55: rs7902822 | F55: 87 | G55: 16 | H55: enet | I55: 2.27 | J55: 2.33E-02 | K55: 4.98E-01
A56: NA | B56: C14orf149 | C56: 14 | D56: 59939406 | E56: rs1253177 | F56: 55 | G56: 3 | H56: lasso | I56: -2.30 | J56: 2.15E-02 | K56: 4.98E-01
A57: NA | B57: C14orf153 | C57: 14 | D57: 104029299 | E57: rs12884809 | F57: 37 | G57: 37 | H57: blup | I57: -2.42 | J57: 1.56E-02 | K57: 4.98E-01
A58: NA | B58: C14orf167 | C58: 14 | D58: 24407940 | E58: rs8011236 | F58: 32 | G58: 12 | H58: lasso | I58: -2.35 | J58: 1.87E-02 | K58: 4.98E-01
A59: NA | B59: C22orf32 | C59: 22 | D59: 42475699 | E59: rs5751204 | F59: 13 | G59: 1 | H59: top1 | I59: -2.30 | J59: 2.15E-02 | K59: 4.98E-01
A60: ENSG00000157322 | B60: CLEC18A | C60: 16 | D60: 69984626 | E60: rs1983016 | F60: 23 | G60: 23 | H60: blup | I60: -2.27 | J60: 2.31E-02 | K60: 4.98E-01
A61: ENSG00000119326 | B61: CTNNAL1 | C61: 9 | D61: 111704851 | E61: rs10979605 | F61: 83 | G61: 3 | H61: lasso | I61: 2.31 | J61: 2.09E-02 | K61: 4.98E-01
A62: ENSG00000170464 | B62: DNAJC18 | C62: 5 | D62: 138747381 | E62: rs11242465 | F62: 24 | G62: 1 | H62: top1 | I62: 2.33 | J62: 2.00E-02 | K62: 4.98E-01
A63: ENSG00000223496 | B63: EXOSC6 | C63: 16 | D63: 70284134 | E63: rs4081753 | F63: 7 | G63: 1 | H63: top1 | I63: -2.25 | J63: 2.43E-02 | K63: 4.98E-01
A64: ENSG00000066926 | B64: FECH | C64: 18 | D64: 55212074 | E64: rs7231187 | F64: 86 | G64: 12 | H64: enet | I64: 2.35 | J64: 1.89E-02 | K64: 4.98E-01
A65: ENSG00000170266 | B65: GLB1 | C65: 3 | D65: 33038100 | E65: rs6766207 | F65: 83 | G65: 9 | H65: enet | I65: 2.31 | J65: 2.08E-02 | K65: 4.98E-01
A66: NA | B66: KIAA1875 | C66: 8 | D66: 145162629 | E66: rs11541805 | F66: 13 | G66: 13 | H66: blup | I66: 2.31 | J66: 2.09E-02 | K66: 4.98E-01
A67: ENSG00000005156 | B67: LIG3 | C67: 17 | D67: 33307538 | E67: rs3744358 | F67: 29 | G67: 1 | H67: top1 | I67: 2.33 | J67: 1.96E-02 | K67: 4.98E-01
A68: NA | B68: LOC121952 | C68: 13 | D68: 103532449 | E68: rs4150279 | F68: 83 | G68: 83 | H68: blup | I68: -2.33 | J68: 1.99E-02 | K68: 4.98E-01
A69: ENSG00000067141 | B69: NEO1 | C69: 15 | D69: 73344875 | E69: rs7176908 | F69: 107 | G69: 107 | H69: blup | I69: 2.26 | J69: 2.39E-02 | K69: 4.98E-01
A70: ENSG00000112992 | B70: NNT | C70: 5 | D70: 43602791 | E70: rs10069341 | F70: 48 | G70: 11 | H70: enet | I70: -2.30 | J70: 2.13E-02 | K70: 4.98E-01
A71: ENSG00000100417 | B71: PMM1 | C71: 22 | D71: 41972890 | E71: rs4822037 | F71: 23 | G71: 23 | H71: blup | I71: -2.35 | J71: 1.87E-02 | K71: 4.98E-01
A72: ENSG00000115718 | B72: PROC | C72: 2 | D72: 128176017 | E72: rs5936 | F72: 39 | G72: 39 | H72: blup | I72: 2.42 | J72: 1.54E-02 | K72: 4.98E-01
A73: ENSG00000152061 | B73: RABGAP1L | C73: 1 | D73: 174128634 | E73: rs6681627 | F73: 306 | G73: 306 | H73: blup | I73: -2.28 | J73: 2.26E-02 | K73: 4.98E-01
A74: ENSG00000137040 | B74: RANBP6 | C74: 9 | D74: 6011020 | E74: rs12378118 | F74: 38 | G74: 1 | H74: top1 | I74: 2.37 | J74: 1.76E-02 | K74: 4.98E-01
A75: ENSG00000116171 | B75: SCP2 | C75: 1 | D75: 53392948 | E75: rs4926946 | F75: 92 | G75: 92 | H75: blup | I75: 2.25 | J75: 2.42E-02 | K75: 4.98E-01
A76: ENSG00000157837 | B76: SPPL3 | C76: 12 | D76: 121201036 | E76: rs6489785 | F76: 98 | G76: 11 | H76: enet | I76: -2.27 | J76: 2.35E-02 | K76: 4.98E-01
A77: ENSG00000169474 | B77: SPRR1A | C77: 1 | D77: 152956557 | E77: rs4363385 | F77: 64 | G77: 4 | H77: enet | I77: 2.35 | J77: 1.88E-02 | K77: 4.98E-01
A78: ENSG00000007341 | B78: ST7L | C78: 1 | D78: 113066142 | E78: rs2273368 | F78: 55 | G78: 1 | H78: top1 | I78: 2.27 | J78: 2.30E-02 | K78: 4.98E-01
A79: NA | B79: TMEM194B | C79: 2 | D79: 191371620 | E79: rs4258824 | F79: 41 | G79: 41 | H79: blup | I79: 2.25 | J79: 2.44E-02 | K79: 4.98E-01
A80: ENSG00000136816 | B80: TOR1B | C80: 9 | D80: 132565432 | E80: rs11793686 | F80: 53 | G80: 5 | H80: lasso | I80: -2.28 | J80: 2.27E-02 | K80: 4.98E-01
A81: ENSG00000166436 | B81: TRIM66 | C81: 11 | D81: 8633586 | E81: rs7928370 | F81: 61 | G81: 61 | H81: blup | I81: 2.27 | J81: 2.32E-02 | K81: 4.98E-01
A82: ENSG00000113621 | B82: TXNDC15 | C82: 5 | D82: 134209460 | E82: rs9285933 | F82: 31 | G82: 1 | H82: top1 | I82: -2.39 | J82: 1.67E-02 | K82: 4.98E-01
A83: ENSG00000221947 | B83: XKR9 | C83: 8 | D83: 71581600 | E83: rs7845516 | F83: 44 | G83: 7 | H83: lasso | I83: 2.33 | J83: 1.98E-02 | K83: 4.98E-01
A84: ENSG00000186908 | B84: ZDHHC17 | C84: 12 | D84: 77157854 | E84: rs1587110 | F84: 82 | G84: 82 | H84: blup | I84: -2.34 | J84: 1.92E-02 | K84: 4.98E-01
A85: ENSG00000125945 | B85: ZNF436 | C85: 1 | D85: 23685942 | E85: rs2103911 | F85: 40 | G85: 40 | H85: blup | I85: -2.27 | J85: 2.33E-02 | K85: 4.98E-01
A86: ENSG00000283009 | B86: ZNF436 | C86: 1 | D86: 23685942 | E86: rs2103911 | F86: 40 | G86: 40 | H86: blup | I86: -2.27 | J86: 2.33E-02 | K86: 4.98E-01
A87: ENSG00000204070 | B87: SYS1 | C87: 20 | D87: 43991701 | E87: rs2235227 | F87: 63 | G87: 63 | H87: blup | I87: 2.24 | J87: 2.50E-02 | K87: 4.99E-01
A88: ENSG00000136827 | B88: TOR1A | C88: 9 | D88: 132575222 | E88: rs11793686 | F88: 63 | G88: 8 | H88: enet | I88: -2.24 | J88: 2.50E-02 | K88: 4.99E-01
A89: ENSG00000268869 | B89: ESPNP | C89: 1 | D89: 17017713 | E89: rs7537985 | F89: 32 | G89: 32 | H89: blup | I89: 2.22 | J89: 2.65E-02 | K89: 5.16E-01
A90: NA | B90: LOC401431 | C90: 7 | D90: 149564785 | E90: rs12540296 | F90: 34 | G90: 1 | H90: top1 | I90: -2.22 | J90: 2.64E-02 | K90: 5.16E-01
A91: NA | B91: C17orf89 | C91: 17 | D91: 79213105 | E91: rs11872038 | F91: 52 | G91: 52 | H91: blup | I91: 2.21 | J91: 2.74E-02 | K91: 5.17E-01
A92: ENSG00000174953 | B92: DHX36 | C92: 3 | D92: 153993458 | E92: rs357503 | F92: 50 | G92: 50 | H92: blup | I92: 2.21 | J92: 2.74E-02 | K92: 5.17E-01
A93: ENSG00000281763 | B93: DHX36 | C93: 3 | D93: 153993458 | E93: rs357503 | F93: 50 | G93: 50 | H93: blup | I93: 2.21 | J93: 2.74E-02 | K93: 5.17E-01
A94: ENSG00000180398 | B94: MCFD2 | C94: 2 | D94: 47129017 | E94: rs11887744 | F94: 75 | G94: 1 | H94: top1 | I94: -2.20 | J94: 2.78E-02 | K94: 5.19E-01
A95: ENSG00000127337 | B95: YEATS4 | C95: 12 | D95: 69753532 | E95: rs315137 | F95: 73 | G95: 15 | H95: enet | I95: 2.19 | J95: 2.83E-02 | K95: 5.21E-01
A96: ENSG00000136819 | B96: C9orf78 | C96: 9 | D96: 132589565 | E96: rs11793686 | F96: 62 | G96: 62 | H96: blup | I96: -2.17 | J96: 3.00E-02 | K96: 5.38E-01
A97: ENSG00000187726 | B97: DNAJB13 | C97: 11 | D97: 73661364 | E97: rs10793068 | F97: 48 | G97: 1 | H97: top1 | I97: -2.17 | J97: 2.98E-02 | K97: 5.38E-01
A98: ENSG00000101363 | B98: MANBAL | C98: 20 | D98: 35918051 | E98: rs6104528 | F98: 39 | G98: 39 | H98: blup | I98: 2.16 | J98: 3.07E-02 | K98: 5.38E-01
A99: ENSG00000291969 | B99: MANBAL | C99: 20 | D99: 35918051 | E99: rs6104528 | F99: 39 | G99: 39 | H99: blup | I99: 2.16 | J99: 3.07E-02 | K99: 5.38E-01
A100: ENSG00000047188 | B100: YTHDC2 | C100: 5 | D100: 112849410 | E100: rs6863445 | F100: 86 | G100: 86 | H100: blup | I100: 2.16 | J100: 3.08E-02 | K100: 5.38E-01
A101: ENSG00000168993 | B101: CPLX1 | C101: 4 | D101: 778746 | E101: rs17165032 | F101: 74 | G101: 74 | H101: blup | I101: -2.15 | J101: 3.15E-02 | K101: 5.43E-01
A102: ENSG00000172456 | B102: FGGY | C102: 1 | D102: 59762625 | E102: rs12133535 | F102: 176 | G102: 176 | H102: blup | I102: -2.15 | J102: 3.16E-02 | K102: 5.43E-01
A103: NA | B103: C17orf57 | C103: 17 | D103: 45401142 | E103: rs2317676 | F103: 73 | G103: 1 | H103: top1 | I103: 2.13 | J103: 3.29E-02 | K103: 5.55E-01
A104: ENSG00000109163 | B104: GNRHR | C104: 4 | D104: 68603106 | E104: rs974483 | F104: 46 | G104: 46 | H104: blup | I104: -2.12 | J104: 3.42E-02 | K104: 5.55E-01
A105: ENSG00000145882 | B105: PCYOX1L | C105: 5 | D105: 148737570 | E105: rs353265 | F105: 57 | G105: 1 | H105: top1 | I105: 2.13 | J105: 3.30E-02 | K105: 5.55E-01
A106: ENSG00000171314 | B106: PGAM1 | C106: 10 | D106: 99186027 | E106: rs7081796 | F106: 36 | G106: 36 | H106: blup | I106: 2.13 | J106: 3.35E-02 | K106: 5.55E-01
A107: ENSG00000014164 | B107: ZC3H3 | C107: 8 | D107: 144519825 | E107: rs4874113 | F107: 80 | G107: 80 | H107: blup | I107: 2.12 | J107: 3.43E-02 | K107: 5.55E-01
A108: ENSG00000282684 | B108: ZC3H3 | C108: 8 | D108: 144519825 | E108: rs4874113 | F108: 80 | G108: 80 | H108: blup | I108: 2.12 | J108: 3.43E-02 | K108: 5.55E-01
A109: ENSG00000114547 | B109: ROPN1B | C109: 3 | D109: 125688028 | E109: rs9862310 | F109: 30 | G109: 30 | H109: blup | I109: -2.11 | J109: 3.49E-02 | K109: 5.60E-01
A110: NA | B110: FUT10 | C110: 8 | D110: 33228346 | E110: rs2304748 | F110: 72 | G110: 1 | H110: top1 | I110: -2.11 | J110: 3.53E-02 | K110: 5.61E-01
A111: ENSG00000101290 | B111: CDS2 | C111: 20 | D111: 5107482 | E111: rs6038088 | F111: 59 | G111: 1 | H111: top1 | I111: -2.06 | J111: 3.99E-02 | K111: 5.96E-01
A112: ENSG00000224786 | B112: CETN4P | C112: 4 | D112: 123651344 | E112: rs370617 | F112: 39 | G112: 1 | H112: top1 | I112: -2.05 | J112: 4.03E-02 | K112: 5.96E-01
A113: ENSG00000187630 | B113: DHRS4L2 | C113: 14 | D113: 24422965 | E113: rs8011236 | F113: 38 | G113: 38 | H113: blup | I113: -2.06 | J113: 3.92E-02 | K113: 5.96E-01
A114: ENSG00000137563 | B114: GGH | C114: 8 | D114: 63927643 | E114: rs1031551 | F114: 58 | G114: 4 | H114: lasso | I114: 2.08 | J114: 3.79E-02 | K114: 5.96E-01
A115: ENSG00000179546 | B115: HTR1D | C115: 1 | D115: 23518389 | E115: rs11587694 | F115: 43 | G115: 4 | H115: lasso | I115: -2.07 | J115: 3.87E-02 | K115: 5.96E-01
A116: ENSG00000013561 | B116: RNF14 | C116: 5 | D116: 141346437 | E116: rs108593 | F116: 81 | G116: 81 | H116: blup | I116: 2.05 | J116: 4.03E-02 | K116: 5.96E-01
A117: ENSG00000182179 | B117: UBA7 | C117: 3 | D117: 49842639 | E117: rs9870755 | F117: 30 | G117: 1 | H117: top1 | I117: -2.06 | J117: 3.95E-02 | K117: 5.96E-01
A118: ENSG00000116874 | B118: WARS2 | C118: 1 | D118: 119573841 | E118: rs12086 | F118: 73 | G118: 3 | H118: lasso | I118: 2.06 | J118: 3.97E-02 | K118: 5.96E-01
A119: ENSG00000181195 | B119: PENK | C119: 8 | D119: 57353513 | E119: rs13262975 | F119: 40 | G119: 5 | H119: lasso | I119: -2.04 | J119: 4.11E-02 | K119: 6.03E-01
A120: ENSG00000281244 | B120: ADAMTS13 | C120: 9 | D120: 136279459 | E120: rs2073935 | F120: 42 | G120: 1 | H120: top1 | I120: 2.04 | J120: 4.19E-02 | K120: 6.03E-01
A121: ENSG00000160323 | B121: ADAMTS13 | C121: 9 | D121: 136279459 | E121: rs2073935 | F121: 42 | G121: 1 | H121: top1 | I121: 2.04 | J121: 4.19E-02 | K121: 6.03E-01
A122: ENSG00000151552 | B122: QDPR | C122: 4 | D122: 17488020 | E122: rs7661303 | F122: 78 | G122: 1 | H122: top1 | I122: 2.03 | J122: 4.29E-02 | K122: 6.08E-01
A123: ENSG00000177042 | B123: TMEM80 | C123: 11 | D123: 695616 | E123: rs7935419 | F123: 49 | G123: 17 | H123: enet | I123: 2.03 | J123: 4.27E-02 | K123: 6.08E-01
A124: ENSG00000277462 | B124: ZNF670 | C124: 1 | D124: 247200087 | E124: rs4971307 | F124: 54 | G124: 54 | H124: blup | I124: 2.02 | J124: 4.34E-02 | K124: 6.10E-01
A125: ENSG00000129083 | B125: COPB1 | C125: 11 | D125: 14479049 | E125: rs2597193 | F125: 37 | G125: 37 | H125: blup | I125: -2.01 | J125: 4.44E-02 | K125: 6.11E-01
A126: ENSG00000159167 | B126: STC1 | C126: 8 | D126: 23699434 | E126: rs12678365 | F126: 62 | G126: 62 | H126: blup | I126: -2.01 | J126: 4.39E-02 | K126: 6.11E-01
A127: ENSG00000049247 | B127: UTS2 | C127: 1 | D127: 7903144 | E127: rs1891598 | F127: 76 | G127: 1 | H127: top1 | I127: 2.01 | J127: 4.45E-02 | K127: 6.11E-01
A128: NA | B128: LOC100216545 | C128: 7 | D128: 104650989 | E128: rs9655780 | F128: 22 | G128: 3 | H128: enet | I128: -2.00 | J128: 4.53E-02 | K128: 6.17E-01
A129: ENSG00000275074 | B129: NUDT18 | C129: 8 | D129: 21964383 | E129: rs12681529 | F129: 45 | G129: 45 | H129: blup | I129: 1.99 | J129: 4.66E-02 | K129: 6.25E-01
A130: ENSG00000198874 | B130: TYW1 | C130: 7 | D130: 66461817 | E130: rs11764143 | F130: 77 | G130: 1 | H130: top1 | I130: -1.99 | J130: 4.66E-02 | K130: 6.25E-01
A131: ENSG00000254521 | B131: SIGLEC12 | C131: 19 | D131: 51994613 | E131: rs6509541 | F131: 90 | G131: 7 | H131: lasso | I131: 1.99 | J131: 4.71E-02 | K131: 6.26E-01
A132: ENSG00000215595 | B132: C20orf202 | C132: 20 | D132: 1184098 | E132: rs8122259 | F132: 49 | G132: 1 | H132: top1 | I132: -1.96 | J132: 5.00E-02 | K132: 6.28E-01
A133: ENSG00000163749 | B133: CCDC158 | C133: 4 | D133: 77234193 | E133: rs10006043 | F133: 80 | G133: 1 | H133: top1 | I133: 1.97 | J133: 4.87E-02 | K133: 6.28E-01
A134: ENSG00000109794 | B134: FAM149A | C134: 4 | D134: 187065215 | E134: rs12504044 | F134: 71 | G134: 1 | H134: top1 | I134: -1.96 | J134: 4.98E-02 | K134: 6.28E-01
A135: ENSG00000122025 | B135: FLT3 | C135: 13 | D135: 28577412 | E135: rs9579135 | F135: 96 | G135: 1 | H135: top1 | I135: 1.96 | J135: 5.01E-02 | K135: 6.28E-01
A136: ENSG00000172780 | B136: RAB43 | C136: 3 | D136: 128806418 | E136: rs900318 | F136: 36 | G136: 4 | H136: lasso | I136: -1.97 | J136: 4.85E-02 | K136: 6.28E-01
A137: NA | B137: TTC18 | C137: 10 | D137: 75013517 | E137: rs7095447 | F137: 54 | G137: 15 | H137: enet | I137: -1.98 | J137: 4.81E-02 | K137: 6.28E-01
A138: NA | B138: ZNF252 | C138: 8 | D138: 146198976 | E138: rs2272714 | F138: 53 | G138: 1 | H138: top1 | I138: -1.96 | J138: 4.99E-02 | K138: 6.28E-01
A139: ENSG00000171574 | B139: ZNF584 | C139: 19 | D139: 58920063 | E139: rs4801595 | F139: 46 | G139: 1 | H139: top1 | I139: -1.96 | J139: 5.00E-02 | K139: 6.28E-01
A140: ENSG00000174130 | B140: TLR6 | C140: 4 | D140: 38828408 | E140: rs6851463 | F140: 65 | G140: 1 | H140: top1 | I140: -1.95 | J140: 5.14E-02 | K140: 6.39E-01
A141: NA | B141: C2orf27A | C141: 2 | D141: 132480064 | E141: rs12052294 | F141: 17 | G141: 7 | H141: enet | I141: 1.93 | J141: 5.35E-02 | K141: 6.49E-01
A142: ENSG00000141294 | B142: LRRC46 | C142: 17 | D142: 45909100 | E142: rs12451413 | F142: 55 | G142: 55 | H142: blup | I142: -1.93 | J142: 5.37E-02 | K142: 6.49E-01
A143: ENSG00000258429 | B143: PDF | C143: 16 | D143: 69362524 | E143: rs8058523 | F143: 37 | G143: 1 | H143: top1 | I143: -1.93 | J143: 5.31E-02 | K143: 6.49E-01
A144: ENSG00000110435 | B144: PDHX | C144: 11 | D144: 34937677 | E144: rs7941930 | F144: 112 | G144: 1 | H144: top1 | I144: -1.94 | J144: 5.30E-02 | K144: 6.49E-01
A145: ENSG00000129993 | B145: CBFA2T3 | C145: 16 | D145: 88941267 | E145: rs3809591 | F145: 61 | G145: 61 | H145: blup | I145: -1.92 | J145: 5.44E-02 | K145: 6.49E-01
A146: ENSG00000165502 | B146: RPL36AL | C146: 14 | D146: 50085407 | E146: rs9635220 | F146: 41 | G146: 1 | H146: top1 | I146: -1.92 | J146: 5.45E-02 | K146: 6.49E-01
A147: ENSG00000159884 | B147: CCDC107 | C147: 9 | D147: 35658311 | E147: rs1934158 | F147: 54 | G147: 54 | H147: blup | I147: -1.91 | J147: 5.59E-02 | K147: 6.62E-01
A148: NA | B148: ABP1 | C148: 7 | D148: 150526069 | E148: rs741063 | F148: 102 | G148: 102 | H148: blup | I148: -1.87 | J148: 6.09E-02 | K148: 6.63E-01
A149: ENSG00000162836 | B149: ACP6 | C149: 1 | D149: 147119168 | E149: rs688325 | F149: 31 | G149: 8 | H149: enet | I149: -1.88 | J149: 6.00E-02 | K149: 6.63E-01
A150: ENSG00000180999 | B150: C1orf105 | C150: 1 | D150: 172389830 | E150: rs9425606 | F150: 100 | G150: 100 | H150: blup | I150: -1.88 | J150: 5.97E-02 | K150: 6.63E-01
A151: NA | B151: DGCR10 | C151: 22 | D151: 19010137 | E151: rs2238740 | F151: 56 | G151: 56 | H151: blup | I151: -1.89 | J151: 5.89E-02 | K151: 6.63E-01
A152: ENSG00000187741 | B152: FANCA | C152: 16 | D152: 89803959 | E152: rs9928396 | F152: 80 | G152: 2 | H152: lasso | I152: 1.88 | J152: 5.99E-02 | K152: 6.63E-01
A153: NA | B153: KIAA0895 | C153: 7 | D153: 36363759 | E153: rs741299 | F153: 90 | G153: 90 | H153: blup | I153: -1.90 | J153: 5.78E-02 | K153: 6.63E-01
A154: ENSG00000161904 | B154: LEMD2 | C154: 6 | D154: 33738991 | E154: rs6919321 | F154: 115 | G154: 115 | H154: blup | I154: -1.88 | J154: 6.01E-02 | K154: 6.63E-01
A155: NA | B155: LOC151174 | C155: 2 | D155: 239133754 | E155: rs6722019 | F155: 48 | G155: 48 | H155: blup | I155: 1.88 | J155: 6.06E-02 | K155: 6.63E-01
A156: NA | B156: LQK1 | C156: 1 | D156: 213029947 | E156: rs2497959 | F156: 41 | G156: 14 | H156: enet | I156: 1.87 | J156: 6.09E-02 | K156: 6.63E-01
A157: ENSG00000012223 | B157: LTF | C157: 3 | D157: 46477497 | E157: rs3828477 | F157: 63 | G157: 63 | H157: blup | I157: -1.89 | J157: 5.93E-02 | K157: 6.63E-01
A158: ENSG00000174652 | B158: ZNF266 | C158: 19 | D158: 9523272 | E158: rs8108483 | F158: 45 | G158: 1 | H158: top1 | I158: -1.90 | J158: 5.72E-02 | K158: 6.63E-01
A159: ENSG00000196653 | B159: ZNF502 | C159: 3 | D159: 44754135 | E159: rs4682993 | F159: 26 | G159: 12 | H159: enet | I159: 1.87 | J159: 6.11E-02 | K159: 6.63E-01
A160: ENSG00000281448 | B160: ZNF502 | C160: 3 | D160: 44754135 | E160: rs4682993 | F160: 26 | G160: 12 | H160: enet | I160: 1.87 | J160: 6.11E-02 | K160: 6.63E-01
A161: ENSG00000167136 | B161: ENDOG | C161: 9 | D161: 131580779 | E161: rs2977996 | F161: 33 | G161: 1 | H161: top1 | I161: 1.87 | J161: 6.15E-02 | K161: 6.64E-01
A162: NA | B162: TMEM110 | C162: 3 | D162: 52867139 | E162: rs2257216 | F162: 59 | G162: 59 | H162: blup | I162: 1.87 | J162: 6.21E-02 | K162: 6.65E-01
A163: ENSG00000120784 | B163: ZFP30 | C163: 19 | D163: 38123389 | E163: rs2972448 | F163: 34 | G163: 34 | H163: blup | I163: -1.86 | J163: 6.24E-02 | K163: 6.65E-01
A164: ENSG00000099999 | B164: RNF215 | C164: 22 | D164: 30774805 | E164: rs5997619 | F164: 58 | G164: 3 | H164: lasso | I164: 1.86 | J164: 6.34E-02 | K164: 6.72E-01
A165: ENSG00000169925 | B165: BRD3 | C165: 9 | D165: 136895454 | E165: rs460154 | F165: 60 | G165: 60 | H165: blup | I165: -1.83 | J165: 6.66E-02 | K165: 6.86E-01
A166: NA | B166: CCDC23 | C166: 1 | D166: 43272723 | E166: rs4660668 | F166: 45 | G166: 3 | H166: lasso | I166: 1.84 | J166: 6.59E-02 | K166: 6.86E-01
A167: ENSG00000177294 | B167: FBXO39 | C167: 17 | D167: 6679552 | E167: rs4796555 | F167: 62 | G167: 1 | H167: top1 | I167: 1.83 | J167: 6.75E-02 | K167: 6.86E-01
A168: ENSG00000140632 | B168: GLYR1 | C168: 16 | D168: 4853205 | E168: rs17137318 | F168: 69 | G168: 1 | H168: top1 | I168: -1.83 | J168: 6.80E-02 | K168: 6.86E-01
A169: ENSG00000134489 | B169: HRH4 | C169: 18 | D169: 22040593 | E169: rs2111661 | F169: 85 | G169: 1 | H169: top1 | I169: 1.84 | J169: 6.61E-02 | K169: 6.86E-01
A170: NA | B170: LOC399744 | C170: 10 | D170: 38717074 | E170: rs11598237 | F170: 4 | G170: 1 | H170: top1 | I170: -1.84 | J170: 6.53E-02 | K170: 6.86E-01
A171: ENSG00000137054 | B171: POLR1E | C171: 9 | D171: 37485945 | E171: rs4878691 | F171: 70 | G171: 70 | H171: blup | I171: 1.82 | J171: 6.86E-02 | K171: 6.86E-01
A172: ENSG00000163682 | B172: RPL9 | C172: 4 | D172: 39455747 | E172: rs10517522 | F172: 55 | G172: 1 | H172: top1 | I172: -1.82 | J172: 6.85E-02 | K172: 6.86E-01
A173: ENSG00000284194 | B173: SCO2 | C173: 22 | D173: 50961999 | E173: rs128941 | F173: 50 | G173: 12 | H173: enet | I173: -1.83 | J173: 6.74E-02 | K173: 6.86E-01
A174: ENSG00000166435 | B174: XRRA1 | C174: 11 | D174: 74518784 | E174: rs529488 | F174: 72 | G174: 15 | H174: enet | I174: -1.82 | J174: 6.88E-02 | K174: 6.86E-01
A175: NA | B175: BRP44 | C175: 1 | D175: 167887311 | E175: rs11578006 | F175: 40 | G175: 40 | H175: blup | I175: -1.78 | J175: 7.51E-02 | K175: 6.89E-01
A176: NA | B176: C14orf166 | C176: 14 | D176: 52456228 | E176: rs2101919 | F176: 81 | G176: 81 | H176: blup | I176: -1.80 | J176: 7.23E-02 | K176: 6.89E-01
A177: NA | B177: C15orf42 | C177: 15 | D177: 90118818 | E177: rs10775247 | F177: 54 | G177: 1 | H177: top1 | I177: -1.81 | J177: 6.98E-02 | K177: 6.89E-01
A178: NA | B178: C18orf2 | C178: 18 | D178: 1254390 | E178: rs1435489 | F178: 75 | G178: 3 | H178: lasso | I178: -1.80 | J178: 7.25E-02 | K178: 6.89E-01
A179: NA | B179: C3orf21 | C179: 3 | D179: 194789015 | E179: rs9826142 | F179: 137 | G179: 137 | H179: blup | I179: -1.78 | J179: 7.56E-02 | K179: 6.89E-01
A180: ENSG00000151470 | B180: C4orf33 | C180: 4 | D180: 130014829 | E180: rs1757923 | F180: 44 | G180: 1 | H180: top1 | I180: -1.76 | J180: 7.82E-02 | K180: 6.89E-01
A181: ENSG00000237438 | B181: CECR7 | C181: 22 | D181: 17517460 | E181: rs9606615 | F181: 60 | G181: 60 | H181: blup | I181: -1.75 | J181: 7.94E-02 | K181: 6.89E-01
A182: ENSG00000079150 | B182: FKBP7 | C182: 2 | D182: 179328393 | E182: rs2288323 | F182: 35 | G182: 1 | H182: top1 | I182: 1.76 | J182: 7.81E-02 | K182: 6.89E-01
A183: ENSG00000198130 | B183: HIBCH | C183: 2 | D183: 191069361 | E183: rs3791810 | F183: 92 | G183: 1 | H183: top1 | I183: -1.79 | J183: 7.33E-02 | K183: 6.89E-01
A184: ENSG00000172273 | B184: HINFP | C184: 11 | D184: 118992288 | E184: rs617948 | F184: 46 | G184: 46 | H184: blup | I184: 1.78 | J184: 7.58E-02 | K184: 6.89E-01
A185: ENSG00000140575 | B185: IQGAP1 | C185: 15 | D185: 90931473 | E185: rs12708583 | F185: 94 | G185: 13 | H185: enet | I185: -1.77 | J185: 7.72E-02 | K185: 6.89E-01
A186: NA | B186: LOC100133893 | C186: 12 | D186: 27915599 | E186: rs4930941 | F186: 33 | G186: 1 | H186: top1 | I186: 1.77 | J186: 7.72E-02 | K186: 6.89E-01
A187: NA | B187: LOC134466 | C187: 5 | D187: 150310000 | E187: rs17800771 | F187: 46 | G187: 1 | H187: top1 | I187: 1.79 | J187: 7.43E-02 | K187: 6.89E-01
A188: NA | B188: METT10D | C188: 17 | D188: 2319350 | E188: rs2447094 | F188: 86 | G188: 86 | H188: blup | I188: -1.80 | J188: 7.18E-02 | K188: 6.89E-01
A189: ENSG00000167965 | B189: MLST8 | C189: 16 | D189: 2255450 | E189: rs27384 | F189: 38 | G189: 1 | H189: top1 | I189: -1.75 | J189: 7.99E-02 | K189: 6.89E-01
A190: NA | B190: MYST1 | C190: 16 | D190: 31128985 | E190: rs4527034 | F190: 36 | G190: 36 | H190: blup | I190: 1.77 | J190: 7.70E-02 | K190: 6.89E-01
A191: ENSG00000164978 | B191: NUDT2 | C191: 9 | D191: 34329504 | E191: rs13298510 | F191: 36 | G191: 16 | H191: enet | I191: -1.75 | J191: 8.00E-02 | K191: 6.89E-01
A192: ENSG00000081154 | B192: PCNP | C192: 3 | D192: 101293042 | E192: rs10049146 | F192: 35 | G192: 1 | H192: top1 | I192: 1.77 | J192: 7.72E-02 | K192: 6.89E-01
A193: ENSG00000108439 | B193: PNPO | C193: 17 | D193: 46018889 | E193: rs7207225 | F193: 57 | G193: 57 | H193: blup | I193: 1.79 | J193: 7.39E-02 | K193: 6.89E-01
A194: ENSG00000171700 | B194: RGS19 | C194: 20 | D194: 62704537 | E194: rs2275292 | F194: 48 | G194: 48 | H194: blup | I194: 1.81 | J194: 7.01E-02 | K194: 6.89E-01
A195: ENSG00000138326 | B195: RPS24 | C195: 10 | D195: 79793518 | E195: rs2559825 | F195: 24 | G195: 6 | H195: enet | I195: 1.78 | J195: 7.45E-02 | K195: 6.89E-01
A196: ENSG00000143036 | B196: SLC44A3 | C196: 1 | D196: 95285901 | E196: rs6678909 | F196: 108 | G196: 3 | H196: lasso | I196: -1.78 | J196: 7.47E-02 | K196: 6.89E-01
A197: ENSG00000150433 | B197: TMEM218 | C197: 11 | D197: 124966401 | E197: rs649457 | F197: 76 | G197: 76 | H197: blup | I197: 1.76 | J197: 7.91E-02 | K197: 6.89E-01
A198: ENSG00000166340 | B198: TPP1 | C198: 11 | D198: 6633997 | E198: rs11606458 | F198: 51 | G198: 51 | H198: blup | I198: -1.76 | J198: 7.88E-02 | K198: 6.89E-01
A199: ENSG00000182612 | B199: TSPAN10 | C199: 17 | D199: 79609349 | E199: rs8477 | F199: 43 | G199: 43 | H199: blup | I199: -1.76 | J199: 7.84E-02 | K199: 6.89E-01
A200: ENSG00000138592 | B200: USP8 | C200: 15 | D200: 50716579 | E200: rs17509944 | F200: 59 | G200: 1 | H200: top1 | I200: -1.78 | J200: 7.51E-02 | K200: 6.89E-01
... 1571 more rows

Sheet Table S12
A1: Table S12: Single cell TWAS results
A2: Cell Type | B2: TargetID | C2: CHROM | D2: GeneStart | E2: n_snps.lassosum | F2: FUSION_Z.lassosum | G2: FUSION_PVAL.lassosum | H2: n_snps.P0.001 | I2: FUSION_Z.P0.001 | J2: FUSION_PVAL.P0.001 | K2: n_snps.P0.05 | L2: FUSION_Z.P0.05 | M2: FUSION_PVAL.P0.05 | N2: n_snps.PRScs | O2: FUSION_Z.PRScs | P2: FUSION_PVAL.PRScs | Q2: n_snps.SDPR | R2: FUSION_Z.SDPR | S2: FUSION_PVAL.SDPR | T2: ACAT_p | U2: FDR
A3: B cell | B3: ENSG00000109762 | C3: 4 | D3: 186125391 | E3: 2 | F3: -9.658 | G3: 4.55E-22 | N3: 2.000 | O3: 1.036 | P3: 3.00E-01 | Q3: 2.000 | R3: 0.607 | S3: 5.44E-01 | T3: 1.37E-21 | U3: 1.77E-17
A4: CD4+ T cell | B4: ENSG00000204256 | C4: 6 | D4: 32936437 | E4: 2 | F4: 0.439 | G4: 6.61E-01 | N4: 2.000 | O4: -0.029 | P4: 9.77E-01 | Q4: 2.000 | R4: -7.318 | S4: 2.52E-13 | T4: 7.55E-13 | U4: 4.88E-09
A5: DC cell | B5: ENSG00000223865 | C5: 6 | D5: 33043703 | E5: 2 | F5: -6.795 | G5: 1.08E-11 | N5: 2.000 | O5: 0.170 | P5: 8.65E-01 | Q5: 2.000 | R5: -0.728 | S5: 4.67E-01 | T5: 3.24E-11 | U5: 1.40E-07
A6: CD8+ T cell | B6: ENSG00000164366 | C6: 5 | D6: 196986 | E6: 2 | F6: 0.633 | G6: 5.27E-01 | N6: 2.000 | O6: 2.482 | P6: 1.31E-02 | Q6: 2.000 | R6: 4.958 | S6: 7.12E-07 | T6: 2.13E-06 | U6: 5.52E-03
A7: DC cell | B7: ENSG00000073578 | C7: 5 | D7: 218356 | E7: 2 | F7: 0.620 | G7: 5.36E-01 | N7: 2.000 | O7: 4.973 | P7: 6.59E-07 | Q7: 2.000 | R7: 4.436 | S7: 9.18E-06 | T7: 1.84E-06 | U7: 5.52E-03
A8: CD4+ T cell | B8: ENSG00000073578 | C8: 5 | D8: 218356 | E8: 2 | N8: 2.000 | O8: -4.582 | P8: 4.60E-06 | Q8: 2.000 | R8: -4.352 | S8: 1.35E-05 | T8: 6.87E-06 | U8: 1.48E-02
A9: Monocyte | B9: ENSG00000248925 | C9: 5 | D9: 269973 | E9: 2 | F9: -0.536 | G9: 5.92E-01 | N9: 2.000 | O9: 1.501 | P9: 1.33E-01 | Q9: 2.000 | R9: -4.477 | S9: 7.57E-06 | T9: 2.27E-05 | U9: 4.19E-02
A10: B cell | B10: ENSG00000124570 | C10: 6 | D10: 2948393 | E10: 1 | F10: 3.297 | G10: 9.77E-04 | N10: 1.000 | O10: 3.297 | P10: 9.77E-04 | Q10: 1.000 | R10: 3.297 | S10: 9.77E-04 | T10: 9.77E-04 | U10: 8.16E-02
A11: B cell | B11: ENSG00000244041 | C11: 6 | D11: 2988201 | E11: 1 | F11: 3.297 | G11: 9.77E-04 | N11: 1.000 | O11: 3.297 | P11: 9.77E-04 | Q11: 1.000 | R11: -3.297 | S11: 9.77E-04 | T11: 9.77E-04 | U11: 8.16E-02
A12: B cell | B12: ENSG00000147955 | C12: 9 | D12: 34634719 | E12: 1 | F12: -3.285 | G12: 1.02E-03 | N12: 1.000 | O12: 3.285 | P12: 1.02E-03 | Q12: 1.000 | R12: 3.285 | S12: 1.02E-03 | T12: 1.02E-03 | U12: 8.16E-02
A13: B cell | B13: ENSG00000213930 | C13: 9 | D13: 34638130 | E13: 1 | F13: -3.285 | G13: 1.02E-03 | N13: 1.000 | O13: -3.285 | P13: 1.02E-03 | Q13: 1.000 | R13: 3.285 | S13: 1.02E-03 | T13: 1.02E-03 | U13: 8.16E-02
A14: B cell | B14: ENSG00000137070 | C14: 9 | D14: 34650699 | E14: 1 | F14: 3.285 | G14: 1.02E-03 | K14: 1.000 | L14: 3.285 | M14: 1.02E-03 | N14: 1.000 | O14: 3.285 | P14: 1.02E-03 | Q14: 1.000 | R14: 3.285 | S14: 1.02E-03 | T14: 1.02E-03 | U14: 8.16E-02
A15: B cell | B15: ENSG00000187186 | C15: 9 | D15: 34664160 | E15: 1 | F15: -3.285 | G15: 1.02E-03 | N15: 1.000 | O15: -3.285 | P15: 1.02E-03 | Q15: 1.000 | R15: -3.285 | S15: 1.02E-03 | T15: 1.02E-03 | U15: 8.16E-02
A16: B cell | B16: ENSG00000172724 | C16: 9 | D16: 34689564 | E16: 1 | F16: -3.285 | G16: 1.02E-03 | N16: 1.000 | O16: 3.285 | P16: 1.02E-03 | Q16: 1.000 | R16: 3.285 | S16: 1.02E-03 | T16: 1.02E-03 | U16: 8.16E-02
A17: B cell | B17: ENSG00000254397 | C17: 11 | D17: 9451903 | E17: 1 | F17: -3.258 | G17: 1.12E-03 | N17: 1.000 | O17: -3.258 | P17: 1.12E-03 | Q17: 1.000 | R17: 3.258 | S17: 1.12E-03 | T17: 1.12E-03 | U17: 8.16E-02
A18: B cell | B18: ENSG00000268403 | C18: 11 | D18: 9481747 | E18: 1 | F18: 3.258 | G18: 1.12E-03 | N18: 1.000 | O18: -3.258 | P18: 1.12E-03 | Q18: 1.000 | R18: -3.258 | S18: 1.12E-03 | T18: 1.12E-03 | U18: 8.16E-02
A19: B cell | B19: ENSG00000166478 | C19: 11 | D19: 9481866 | E19: 1 | F19: -3.258 | G19: 1.12E-03 | N19: 1.000 | O19: -3.258 | P19: 1.12E-03 | Q19: 1.000 | R19: -3.258 | S19: 1.12E-03 | T19: 1.12E-03 | U19: 8.16E-02
A20: B cell | B20: ENSG00000111775 | C20: 12 | D20: 120875893 | E20: 1 | F20: 3.220 | G20: 1.28E-03 | N20: 1.000 | O20: 3.220 | P20: 1.28E-03 | Q20: 1.000 | R20: 3.220 | S20: 1.28E-03 | T20: 1.28E-03 | U20: 8.16E-02
A21: B cell | B21: ENSG00000170855 | C21: 12 | D21: 120881764 | E21: 1 | F21: -3.220 | G21: 1.28E-03 | N21: 1.000 | O21: 3.220 | P21: 1.28E-03 | Q21: 1.000 | R21: -3.220 | S21: 1.28E-03 | T21: 1.28E-03 | U21: 8.16E-02
A22: B cell | B22: ENSG00000257218 | C22: 12 | D22: 120884241 | E22: 1 | F22: -3.220 | G22: 1.28E-03 | N22: 1.000 | O22: 3.220 | P22: 1.28E-03 | Q22: 1.000 | R22: 3.220 | S22: 1.28E-03 | T22: 1.28E-03 | U22: 8.16E-02
A23: B cell | B23: ENSG00000111786 | C23: 12 | D23: 120899471 | E23: 1 | F23: -3.220 | G23: 1.28E-03 | N23: 1.000 | O23: -3.220 | P23: 1.28E-03 | Q23: 1.000 | R23: -3.220 | S23: 1.28E-03 | T23: 1.28E-03 | U23: 8.16E-02
A24: B cell | B24: ENSG00000088986 | C24: 12 | D24: 120907653 | E24: 1 | F24: -3.220 | G24: 1.28E-03 | N24: 1.000 | O24: 3.220 | P24: 1.28E-03 | Q24: 1.000 | R24: -3.220 | S24: 1.28E-03 | T24: 1.28E-03 | U24: 8.16E-02
A25: B cell | B25: ENSG00000248008 | C25: 12 | D25: 120928131 | E25: 1 | F25: -3.220 | G25: 1.28E-03 | N25: 1.000 | O25: 3.220 | P25: 1.28E-03 | Q25: 1.000 | R25: 3.220 | S25: 1.28E-03 | T25: 1.28E-03 | U25: 8.16E-02
A26: B cell | B26: ENSG00000110871 | C26: 12 | D26: 120941077 | E26: 1 | F26: 3.220 | G26: 1.28E-03 | N26: 1.000 | O26: -3.220 | P26: 1.28E-03 | Q26: 1.000 | R26: -3.220 | S26: 1.28E-03 | T26: 1.28E-03 | U26: 8.16E-02
A27: B cell | B27: ENSG00000186187 | C27: 16 | D27: 75032928 | E27: 1 | F27: -3.242 | G27: 1.19E-03 | N27: 1.000 | O27: -3.242 | P27: 1.19E-03 | Q27: 1.000 | R27: -3.242 | S27: 1.19E-03 | T27: 1.19E-03 | U27: 8.16E-02
A28: B cell | B28: ENSG00000184517 | C28: 16 | D28: 75182390 | E28: 1 | F28: 3.242 | G28: 1.19E-03 | N28: 1.000 | O28: 3.242 | P28: 1.19E-03 | Q28: 1.000 | R28: 3.242 | S28: 1.19E-03 | T28: 1.19E-03 | U28: 8.16E-02
A29: B cell | B29: ENSG00000177025 | C29: 19 | D29: 58469805 | E29: 1 | F29: 3.264 | G29: 1.10E-03 | K29: 1.000 | L29: 3.264 | M29: 1.10E-03 | N29: 1.000 | O29: 3.264 | P29: 1.10E-03 | Q29: 1.000 | R29: 3.264 | S29: 1.10E-03 | T29: 1.10E-03 | U29: 8.16E-02
A30: B cell | B30: ENSG00000166704 | C30: 19 | D30: 58488421 | E30: 1 | F30: 3.264 | G30: 1.10E-03 | N30: 1.000 | O30: 3.264 | P30: 1.10E-03 | Q30: 1.000 | R30: -3.264 | S30: 1.10E-03 | T30: 1.10E-03 | U30: 8.16E-02
A31: B cell | B31: ENSG00000176593 | C31: 19 | D31: 58513429 | E31: 1 | F31: 3.264 | G31: 1.10E-03 | N31: 1.000 | O31: 3.264 | P31: 1.10E-03 | Q31: 1.000 | R31: 3.264 | S31: 1.10E-03 | T31: 1.10E-03 | U31: 8.16E-02
A32: B cell | B32: ENSG00000176293 | C32: 19 | D32: 58570607 | E32: 1 | F32: 3.264 | G32: 1.10E-03 | N32: 1.000 | O32: -3.264 | P32: 1.10E-03 | Q32: 1.000 | R32: -3.264 | S32: 1.10E-03 | T32: 1.10E-03 | U32: 8.16E-02
A33: B cell | B33: ENSG00000121413 | C33: 19 | D33: 58595205 | E33: 1 | F33: -3.264 | G33: 1.10E-03 | N33: 1.000 | O33: -3.264 | P33: 1.10E-03 | Q33: 1.000 | R33: -3.264 | S33: 1.10E-03 | T33: 1.10E-03 | U33: 8.16E-02
A34: B cell | B34: ENSG00000181894 | C34: 19 | D34: 58637619 | E34: 1 | F34: 3.264 | G34: 1.10E-03 | N34: 1.000 | O34: -3.264 | P34: 1.10E-03 | Q34: 1.000 | R34: -3.264 | S34: 1.10E-03 | T34: 1.10E-03 | U34: 8.16E-02
A35: B cell | B35: ENSG00000101132 | C35: 20 | D35: 52824386 | E35: 1 | F35: -3.354 | G35: 7.97E-04 | N35: 1.000 | O35: -3.354 | P35: 7.97E-04 | Q35: 1.000 | R35: 3.354 | S35: 7.97E-04 | T35: 7.97E-04 | U35: 8.16E-02
A36: CD4+ T cell | B36: ENSG00000236790 | C36: 2 | D36: 8147901 | E36: 1 | F36: 3.225 | G36: 1.26E-03 | N36: 1.000 | O36: -3.225 | P36: 1.26E-03 | Q36: 1.000 | R36: -3.225 | S36: 1.26E-03 | T36: 1.26E-03 | U36: 8.16E-02
A37: CD4+ T cell | B37: ENSG00000163132 | C37: 4 | D37: 4861393 | E37: 2 | F37: -0.570 | G37: 5.69E-01 | N37: 2.000 | O37: 4.063 | P37: 4.84E-05 | Q37: 2.000 | R37: -0.148 | S37: 8.82E-01 | T37: 1.45E-04 | U37: 8.16E-02
A38: CD4+ T cell | B38: ENSG00000153404 | C38: 5 | D38: 140373 | E38: 2 | F38: 1.373 | G38: 1.70E-01 | N38: 2.000 | O38: 4.160 | P38: 3.18E-05 | Q38: 2.000 | R38: 1.171 | S38: 2.41E-01 | T38: 9.52E-05 | U38: 8.16E-02
A39: CD4+ T cell | B39: ENSG00000124570 | C39: 6 | D39: 2948393 | E39: 1 | N39: 1.000 | O39: 3.297 | P39: 9.77E-04 | Q39: 1.000 | R39: 3.297 | S39: 9.77E-04 | T39: 9.77E-04 | U39: 8.16E-02
A40: CD4+ T cell | B40: ENSG00000244041 | C40: 6 | D40: 2988201 | E40: 1 | F40: 3.297 | G40: 9.77E-04 | N40: 1.000 | O40: 3.297 | P40: 9.77E-04 | Q40: 1.000 | R40: 3.297 | S40: 9.77E-04 | T40: 9.77E-04 | U40: 8.16E-02
A41: CD4+ T cell | B41: ENSG00000224846 | C41: 6 | D41: 2989960 | E41: 1 | F41: -3.297 | G41: 9.77E-04 | N41: 1.000 | O41: 3.297 | P41: 9.77E-04 | Q41: 1.000 | R41: -3.297 | S41: 9.77E-04 | T41: 9.77E-04 | U41: 8.16E-02
A42: CD4+ T cell | B42: ENSG00000270346 | C42: 6 | D42: 3020388 | E42: 1 | F42: -3.297 | G42: 9.77E-04 | N42: 1.000 | O42: 3.297 | P42: 9.77E-04 | Q42: 1.000 | R42: -3.297 | S42: 9.77E-04 | T42: 9.77E-04 | U42: 8.16E-02
A43: CD4+ T cell | B43: ENSG00000235326 | C43: 9 | D43: 3674546 | E43: 224 | F43: 3.671 | G43: 2.41E-04 | N43: 224.000 | O43: 0.259 | P43: 7.96E-01 | Q43: 224.000 | R43: 1.395 | S43: 1.63E-01 | T43: 7.24E-04 | U43: 8.16E-02
A44: CD4+ T cell | B44: ENSG00000147955 | C44: 9 | D44: 34634719 | E44: 1 | F44: -3.285 | G44: 1.02E-03 | N44: 1.000 | O44: 3.285 | P44: 1.02E-03 | Q44: 1.000 | R44: 3.285 | S44: 1.02E-03 | T44: 1.02E-03 | U44: 8.16E-02
A45: CD4+ T cell | B45: ENSG00000213930 | C45: 9 | D45: 34638130 | E45: 1 | F45: 3.285 | G45: 1.02E-03 | N45: 1.000 | O45: 3.285 | P45: 1.02E-03 | Q45: 1.000 | R45: 3.285 | S45: 1.02E-03 | T45: 1.02E-03 | U45: 8.16E-02
A46: CD4+ T cell | B46: ENSG00000137070 | C46: 9 | D46: 34650699 | E46: 1 | F46: -3.285 | G46: 1.02E-03 | N46: 1.000 | O46: -3.285 | P46: 1.02E-03 | Q46: 1.000 | R46: 3.285 | S46: 1.02E-03 | T46: 1.02E-03 | U46: 8.16E-02
A47: CD4+ T cell | B47: ENSG00000213927 | C47: 9 | D47: 34661877 | E47: 1 | F47: 3.285 | G47: 1.02E-03 | N47: 1.000 | O47: 3.285 | P47: 1.02E-03 | Q47: 1.000 | R47: -3.285 | S47: 1.02E-03 | T47: 1.02E-03 | U47: 8.16E-02
A48: CD4+ T cell | B48: ENSG00000187186 | C48: 9 | D48: 34664160 | E48: 1 | F48: 3.285 | G48: 1.02E-03 | N48: 1.000 | O48: 3.285 | P48: 1.02E-03 | Q48: 1.000 | R48: 3.285 | S48: 1.02E-03 | T48: 1.02E-03 | U48: 8.16E-02
A49: CD4+ T cell | B49: ENSG00000230074 | C49: 9 | D49: 34665662 | E49: 1 | F49: -3.285 | G49: 1.02E-03 | N49: 1.000 | O49: 3.285 | P49: 1.02E-03 | Q49: 1.000 | R49: 3.285 | S49: 1.02E-03 | T49: 1.02E-03 | U49: 8.16E-02
A50: CD4+ T cell | B50: ENSG00000172724 | C50: 9 | D50: 34689564 | E50: 1 | F50: 3.285 | G50: 1.02E-03 | N50: 1.000 | O50: -3.285 | P50: 1.02E-03 | Q50: 1.000 | R50: 3.285 | S50: 1.02E-03 | T50: 1.02E-03 | U50: 8.16E-02
A51: CD4+ T cell | B51: ENSG00000255089 | C51: 11 | D51: 321991 | E51: 324 | F51: -4.042 | G51: 5.31E-05 | K51: 3.000 | L51: -1.838 | M51: 6.60E-02 | N51: 324.000 | O51: -1.401 | P51: 1.61E-01 | Q51: 324.000 | R51: -2.231 | S51: 2.57E-02 | T51: 2.12E-04 | U51: 8.16E-02
A52: CD4+ T cell | B52: ENSG00000254397 | C52: 11 | D52: 9451903 | E52: 1 | F52: 3.258 | G52: 1.12E-03 | H52: 1.000 | I52: -3.258 | J52: 1.12E-03 | K52: 1.000 | L52: -3.258 | M52: 1.12E-03 | N52: 1.000 | O52: 3.258 | P52: 1.12E-03 | Q52: 1.000 | R52: -3.258 | S52: 1.12E-03 | T52: 1.12E-03 | U52: 8.16E-02
A53: CD4+ T cell | B53: ENSG00000111775 | C53: 12 | D53: 120875893 | E53: 1 | F53: 3.220 | G53: 1.28E-03 | N53: 1.000 | O53: -3.220 | P53: 1.28E-03 | Q53: 1.000 | R53: -3.220 | S53: 1.28E-03 | T53: 1.28E-03 | U53: 8.16E-02
A54: CD4+ T cell | B54: ENSG00000170855 | C54: 12 | D54: 120881764 | E54: 1 | F54: -3.220 | G54: 1.28E-03 | N54: 1.000 | O54: -3.220 | P54: 1.28E-03 | Q54: 1.000 | R54: -3.220 | S54: 1.28E-03 | T54: 1.28E-03 | U54: 8.16E-02
A55: CD4+ T cell | B55: ENSG00000257218 | C55: 12 | D55: 120884241 | E55: 1 | F55: -3.220 | G55: 1.28E-03 | N55: 1.000 | O55: -3.220 | P55: 1.28E-03 | Q55: 1.000 | R55: 3.220 | S55: 1.28E-03 | T55: 1.28E-03 | U55: 8.16E-02
A56: CD4+ T cell | B56: ENSG00000111786 | C56: 12 | D56: 120899471 | E56: 1 | F56: -3.220 | G56: 1.28E-03 | N56: 1.000 | O56: 3.220 | P56: 1.28E-03 | Q56: 1.000 | R56: -3.220 | S56: 1.28E-03 | T56: 1.28E-03 | U56: 8.16E-02
A57: CD4+ T cell | B57: ENSG00000088986 | C57: 12 | D57: 120907653 | E57: 1 | F57: 3.220 | G57: 1.28E-03 | N57: 1.000 | O57: 3.220 | P57: 1.28E-03 | Q57: 1.000 | R57: -3.220 | S57: 1.28E-03 | T57: 1.28E-03 | U57: 8.16E-02
A58: CD4+ T cell | B58: ENSG00000248008 | C58: 12 | D58: 120928131 | E58: 1 | F58: -3.220 | G58: 1.28E-03 | K58: 1.000 | L58: -3.220 | M58: 1.28E-03 | N58: 1.000 | O58: -3.220 | P58: 1.28E-03 | Q58: 1.000 | R58: -3.220 | S58: 1.28E-03 | T58: 1.28E-03 | U58: 8.16E-02
A59: CD4+ T cell | B59: ENSG00000110871 | C59: 12 | D59: 120941077 | E59: 1 | F59: -3.220 | G59: 1.28E-03 | N59: 1.000 | O59: 3.220 | P59: 1.28E-03 | Q59: 1.000 | R59: 3.220 | S59: 1.28E-03 | T59: 1.28E-03 | U59: 8.16E-02
A60: CD4+ T cell | B60: ENSG00000022840 | C60: 12 | D60: 120971283 | E60: 1 | N60: 1.000 | O60: -3.220 | P60: 1.28E-03 | Q60: 1.000 | R60: -3.220 | S60: 1.28E-03 | T60: 1.28E-03 | U60: 8.16E-02
A61: CD4+ T cell | B61: ENSG00000186187 | C61: 16 | D61: 75032928 | E61: 1 | F61: 3.242 | G61: 1.19E-03 | N61: 1.000 | O61: 3.242 | P61: 1.19E-03 | Q61: 1.000 | R61: 3.242 | S61: 1.19E-03 | T61: 1.19E-03 | U61: 8.16E-02
A62: CD4+ T cell | B62: ENSG00000247033 | C62: 16 | D62: 75142499 | E62: 1 | F62: -3.242 | G62: 1.19E-03 | N62: 1.000 | O62: 3.242 | P62: 1.19E-03 | Q62: 1.000 | R62: -3.242 | S62: 1.19E-03 | T62: 1.19E-03 | U62: 8.16E-02
A63: CD4+ T cell | B63: ENSG00000166816 | C63: 16 | D63: 75145758 | E63: 1 | F63: 3.242 | G63: 1.19E-03 | N63: 1.000 | O63: -3.242 | P63: 1.19E-03 | Q63: 1.000 | R63: 3.242 | S63: 1.19E-03 | T63: 1.19E-03 | U63: 8.16E-02
A64: CD4+ T cell | B64: ENSG00000184517 | C64: 16 | D64: 75182390 | E64: 1 | F64: -3.242 | G64: 1.19E-03 | N64: 1.000 | O64: 3.242 | P64: 1.19E-03 | Q64: 1.000 | R64: 3.242 | S64: 1.19E-03 | T64: 1.19E-03 | U64: 8.16E-02
A65: CD4+ T cell | B65: ENSG00000177025 | C65: 19 | D65: 58469805 | E65: 1 | F65: 3.264 | G65: 1.10E-03 | N65: 1.000 | O65: 3.264 | P65: 1.10E-03 | Q65: 1.000 | R65: 3.264 | S65: 1.10E-03 | T65: 1.10E-03 | U65: 8.16E-02
A66: CD4+ T cell | B66: ENSG00000166704 | C66: 19 | D66: 58488421 | E66: 1 | F66: 3.264 | G66: 1.10E-03 | N66: 1.000 | O66: -3.264 | P66: 1.10E-03 | Q66: 1.000 | R66: 3.264 | S66: 1.10E-03 | T66: 1.10E-03 | U66: 8.16E-02
A67: CD4+ T cell | B67: ENSG00000176593 | C67: 19 | D67: 58513429 | E67: 1 | F67: 3.264 | G67: 1.10E-03 | N67: 1.000 | O67: -3.264 | P67: 1.10E-03 | Q67: 1.000 | R67: -3.264 | S67: 1.10E-03 | T67: 1.10E-03 | U67: 8.16E-02
A68: CD4+ T cell | B68: ENSG00000176293 | C68: 19 | D68: 58570607 | E68: 1 | F68: 3.264 | G68: 1.10E-03 | N68: 1.000 | O68: -3.264 | P68: 1.10E-03 | Q68: 1.000 | R68: 3.264 | S68: 1.10E-03 | T68: 1.10E-03 | U68: 8.16E-02
A69: CD4+ T cell | B69: ENSG00000121413 | C69: 19 | D69: 58595205 | E69: 1 | F69: 3.264 | G69: 1.10E-03 | K69: 1.000 | L69: 3.264 | M69: 1.10E-03 | N69: 1.000 | O69: 3.264 | P69: 1.10E-03 | Q69: 1.000 | R69: 3.264 | S69: 1.10E-03 | T69: 1.10E-03 | U69: 8.16E-02
A70: CD4+ T cell | B70: ENSG00000181894 | C70: 19 | D70: 58637619 | E70: 1 | F70: 3.264 | G70: 1.10E-03 | N70: 1.000 | O70: 3.264 | P70: 1.10E-03 | Q70: 1.000 | R70: 3.264 | S70: 1.10E-03 | T70: 1.10E-03 | U70: 8.16E-02
A71: CD4+ T cell | B71: ENSG00000101132 | C71: 20 | D71: 52824386 | E71: 1 | F71: -3.354 | G71: 7.97E-04 | N71: 1.000 | O71: 3.354 | P71: 7.97E-04 | Q71: 1.000 | R71: 3.354 | S71: 7.97E-04 | T71: 7.97E-04 | U71: 8.16E-02
A72: CD8+ T cell | B72: ENSG00000236790 | C72: 2 | D72: 8147901 | E72: 1 | F72: -3.225 | G72: 1.26E-03 | N72: 1.000 | O72: 3.225 | P72: 1.26E-03 | Q72: 1.000 | R72: -3.225 | S72: 1.26E-03 | T72: 1.26E-03 | U72: 8.16E-02
A73: CD8+ T cell | B73: ENSG00000124588 | C73: 6 | D73: 2988221 | E73: 1 | F73: -3.297 | G73: 9.77E-04 | H73: 1.000 | I73: 3.297 | J73: 9.77E-04 | K73: 1.000 | L73: 3.297 | M73: 9.77E-04 | N73: 1.000 | O73: 3.297 | P73: 9.77E-04 | Q73: 1.000 | R73: 3.297 | S73: 9.77E-04 | T73: 9.77E-04 | U73: 8.16E-02
A74: CD8+ T cell | B74: ENSG00000270346 | C74: 6 | D74: 3020388 | E74: 1 | F74: 3.297 | G74: 9.77E-04 | N74: 1.000 | O74: -3.297 | P74: 9.77E-04 | Q74: 1.000 | R74: -3.297 | S74: 9.77E-04 | T74: 9.77E-04 | U74: 8.16E-02
A75: CD8+ T cell | B75: ENSG00000137275 | C75: 6 | D75: 3064225 | E75: 1 | F75: -3.297 | G75: 9.77E-04 | N75: 1.000 | O75: -3.297 | P75: 9.77E-04 | Q75: 1.000 | R75: -3.297 | S75: 9.77E-04 | T75: 9.77E-04 | U75: 8.16E-02
A76: CD8+ T cell | B76: ENSG00000272277 | C76: 6 | D76: 3068279 | E76: 1 | F76: -3.297 | G76: 9.77E-04 | N76: 1.000 | O76: -3.297 | P76: 9.77E-04 | Q76: 1.000 | R76: -3.297 | S76: 9.77E-04 | T76: 9.77E-04 | U76: 8.16E-02
A77: CD8+ T cell | B77: ENSG00000147955 | C77: 9 | D77: 34634719 | E77: 1 | F77: -3.285 | G77: 1.02E-03 | N77: 1.000 | O77: -3.285 | P77: 1.02E-03 | Q77: 1.000 | R77: -3.285 | S77: 1.02E-03 | T77: 1.02E-03 | U77: 8.16E-02
A78: CD8+ T cell | B78: ENSG00000213930 | C78: 9 | D78: 34638130 | E78: 1 | F78: 3.285 | G78: 1.02E-03 | N78: 1.000 | O78: 3.285 | P78: 1.02E-03 | Q78: 1.000 | R78: 3.285 | S78: 1.02E-03 | T78: 1.02E-03 | U78: 8.16E-02
A79: CD8+ T cell | B79: ENSG00000137070 | C79: 9 | D79: 34650699 | E79: 1 | F79: 3.285 | G79: 1.02E-03 | N79: 1.000 | O79: -3.285 | P79: 1.02E-03 | Q79: 1.000 | R79: 3.285 | S79: 1.02E-03 | T79: 1.02E-03 | U79: 8.16E-02
A80: CD8+ T cell | B80: ENSG00000213927 | C80: 9 | D80: 34661877 | E80: 1 | F80: -3.285 | G80: 1.02E-03 | N80: 1.000 | O80: -3.285 | P80: 1.02E-03 | Q80: 1.000 | R80: -3.285 | S80: 1.02E-03 | T80: 1.02E-03 | U80: 8.16E-02
A81: CD8+ T cell | B81: ENSG00000187186 | C81: 9 | D81: 34664160 | E81: 1 | F81: -3.285 | G81: 1.02E-03 | N81: 1.000 | O81: 3.285 | P81: 1.02E-03 | Q81: 1.000 | R81: -3.285 | S81: 1.02E-03 | T81: 1.02E-03 | U81: 8.16E-02
A82: CD8+ T cell | B82: ENSG00000230074 | C82: 9 | D82: 34665662 | E82: 1 | F82: -3.285 | G82: 1.02E-03 | N82: 1.000 | O82: -3.285 | P82: 1.02E-03 | Q82: 1.000 | R82: -3.285 | S82: 1.02E-03 | T82: 1.02E-03 | U82: 8.16E-02
A83: CD8+ T cell | B83: ENSG00000172724 | C83: 9 | D83: 34689564 | E83: 1 | F83: -3.285 | G83: 1.02E-03 | N83: 1.000 | O83: 3.285 | P83: 1.02E-03 | Q83: 1.000 | R83: 3.285 | S83: 1.02E-03 | T83: 1.02E-03 | U83: 8.16E-02
A84: CD8+ T cell | B84: ENSG00000177156 | C84: 11 | D84: 747329 | E84: 184 | F84: 2.649 | G84: 8.08E-03 | K84: 2.000 | L84: 2.936 | M84: 3.33E-03 | N84: 184.000 | O84: 3.403 | P84: 6.67E-04 | Q84: 184.000 | R84: 3.689 | S84: 2.25E-04 | T84: 6.29E-04 | U84: 8.16E-02
A85: CD8+ T cell | B85: ENSG00000205339 | C85: 11 | D85: 9406169 | E85: 1 | F85: -3.258 | G85: 1.12E-03 | N85: 1.000 | O85: 3.258 | P85: 1.12E-03 | Q85: 1.000 | R85: -3.258 | S85: 1.12E-03 | T85: 1.12E-03 | U85: 8.16E-02
A86: CD8+ T cell | B86: ENSG00000254397 | C86: 11 | D86: 9451903 | E86: 1 | F86: 3.258 | G86: 1.12E-03 | H86: 1.000 | I86: -3.258 | J86: 1.12E-03 | K86: 1.000 | L86: -3.258 | M86: 1.12E-03 | N86: 1.000 | O86: -3.258 | P86: 1.12E-03 | Q86: 1.000 | R86: 3.258 | S86: 1.12E-03 | T86: 1.12E-03 | U86: 8.16E-02
A87: CD8+ T cell | B87: ENSG00000268403 | C87: 11 | D87: 9481747 | E87: 1 | F87: 3.258 | G87: 1.12E-03 | K87: 1.000 | L87: 3.258 | M87: 1.12E-03 | N87: 1.000 | O87: 3.258 | P87: 1.12E-03 | Q87: 1.000 | R87: 3.258 | S87: 1.12E-03 | T87: 1.12E-03 | U87: 8.16E-02
A88: CD8+ T cell | B88: ENSG00000166478 | C88: 11 | D88: 9481866 | E88: 1 | N88: 1.000 | O88: -3.258 | P88: 1.12E-03 | Q88: 1.000 | R88: -3.258 | S88: 1.12E-03 | T88: 1.12E-03 | U88: 8.16E-02
A89: CD8+ T cell | B89: ENSG00000166483 | C89: 11 | D89: 9595228 | E89: 1 | F89: -3.258 | G89: 1.12E-03 | N89: 1.000 | O89: 3.258 | P89: 1.12E-03 | Q89: 1.000 | R89: -3.258 | S89: 1.12E-03 | T89: 1.12E-03 | U89: 8.16E-02
A90: CD8+ T cell | B90: ENSG00000111775 | C90: 12 | D90: 120875893 | E90: 1 | F90: 3.220 | G90: 1.28E-03 | N90: 1.000 | O90: -3.220 | P90: 1.28E-03 | Q90: 1.000 | R90: 3.220 | S90: 1.28E-03 | T90: 1.28E-03 | U90: 8.16E-02
A91: CD8+ T cell | B91: ENSG00000170855 | C91: 12 | D91: 120881764 | E91: 1 | F91: -3.220 | G91: 1.28E-03 | N91: 1.000 | O91: -3.220 | P91: 1.28E-03 | Q91: 1.000 | R91: -3.220 | S91: 1.28E-03 | T91: 1.28E-03 | U91: 8.16E-02
A92: CD8+ T cell | B92: ENSG00000257218 | C92: 12 | D92: 120884241 | E92: 1 | F92: 3.220 | G92: 1.28E-03 | H92: 1.000 | I92: 3.220 | J92: 1.28E-03 | K92: 1.000 | L92: 3.220 | M92: 1.28E-03 | N92: 1.000 | O92: -3.220 | P92: 1.28E-03 | Q92: 1.000 | R92: 3.220 | S92: 1.28E-03 | T92: 1.28E-03 | U92: 8.16E-02
A93: CD8+ T cell | B93: ENSG00000111786 | C93: 12 | D93: 120899471 | E93: 1 | F93: -3.220 | G93: 1.28E-03 | N93: 1.000 | O93: -3.220 | P93: 1.28E-03 | Q93: 1.000 | R93: -3.220 | S93: 1.28E-03 | T93: 1.28E-03 | U93: 8.16E-02
A94: CD8+ T cell | B94: ENSG00000088986 | C94: 12 | D94: 120907653 | E94: 1 | N94: 1.000 | O94: -3.220 | P94: 1.28E-03 | Q94: 1.000 | R94: -3.220 | S94: 1.28E-03 | T94: 1.28E-03 | U94: 8.16E-02
A95: CD8+ T cell | B95: ENSG00000248008 | C95: 12 | D95: 120928131 | E95: 1 | F95: -3.220 | G95: 1.28E-03 | N95: 1.000 | O95: -3.220 | P95: 1.28E-03 | Q95: 1.000 | R95: -3.220 | S95: 1.28E-03 | T95: 1.28E-03 | U95: 8.16E-02
A96: CD8+ T cell | B96: ENSG00000110871 | C96: 12 | D96: 120941077 | E96: 1 | F96: 3.220 | G96: 1.28E-03 | N96: 1.000 | O96: 3.220 | P96: 1.28E-03 | Q96: 1.000 | R96: 3.220 | S96: 1.28E-03 | T96: 1.28E-03 | U96: 8.16E-02
A97: CD8+ T cell | B97: ENSG00000186187 | C97: 16 | D97: 75032928 | E97: 1 | F97: 3.242 | G97: 1.19E-03 | N97: 1.000 | O97: -3.242 | P97: 1.19E-03 | Q97: 1.000 | R97: -3.242 | S97: 1.19E-03 | T97: 1.19E-03 | U97: 8.16E-02
A98: CD8+ T cell | B98: ENSG00000166816 | C98: 16 | D98: 75145758 | E98: 1 | F98: 3.242 | G98: 1.19E-03 | N98: 1.000 | O98: -3.242 | P98: 1.19E-03 | Q98: 1.000 | R98: -3.242 | S98: 1.19E-03 | T98: 1.19E-03 | U98: 8.16E-02
A99: CD8+ T cell | B99: ENSG00000184517 | C99: 16 | D99: 75182390 | E99: 1 | F99: -3.242 | G99: 1.19E-03 | K99: 1.000 | L99: -3.242 | M99: 1.19E-03 | N99: 1.000 | O99: -3.242 | P99: 1.19E-03 | Q99: 1.000 | R99: -3.242 | S99: 1.19E-03 | T99: 1.19E-03 | U99: 8.16E-02
A100: CD8+ T cell | B100: ENSG00000177025 | C100: 19 | D100: 58469805 | E100: 1 | F100: -3.264 | G100: 1.10E-03 | N100: 1.000 | O100: -3.264 | P100: 1.10E-03 | Q100: 1.000 | R100: -3.264 | S100: 1.10E-03 | T100: 1.10E-03 | U100: 8.16E-02
A101: CD8+ T cell | B101: ENSG00000166704 | C101: 19 | D101: 58488421 | E101: 1 | F101: 3.264 | G101: 1.10E-03 | N101: 1.000 | O101: -3.264 | P101: 1.10E-03 | Q101: 1.000 | R101: -3.264 | S101: 1.10E-03 | T101: 1.10E-03 | U101: 8.16E-02
A102: CD8+ T cell | B102: ENSG00000176593 | C102: 19 | D102: 58513429 | E102: 1 | F102: -3.264 | G102: 1.10E-03 | N102: 1.000 | O102: 3.264 | P102: 1.10E-03 | Q102: 1.000 | R102: 3.264 | S102: 1.10E-03 | T102: 1.10E-03 | U102: 8.16E-02
A103: CD8+ T cell | B103: ENSG00000176293 | C103: 19 | D103: 58570607 | E103: 1 | F103: -3.264 | G103: 1.10E-03 | N103: 1.000 | O103: -3.264 | P103: 1.10E-03 | Q103: 1.000 | R103: -3.264 | S103: 1.10E-03 | T103: 1.10E-03 | U103: 8.16E-02
A104: CD8+ T cell | B104: ENSG00000121413 | C104: 19 | D104: 58595205 | E104: 1 | F104: 3.264 | G104: 1.10E-03 | N104: 1.000 | O104: 3.264 | P104: 1.10E-03 | Q104: 1.000 | R104: 3.264 | S104: 1.10E-03 | T104: 1.10E-03 | U104: 8.16E-02
A105: CD8+ T cell | B105: ENSG00000181894 | C105: 19 | D105: 58637619 | E105: 1 | N105: 1.000 | O105: -3.264 | P105: 1.10E-03 | Q105: 1.000 | R105: -3.264 | S105: 1.10E-03 | T105: 1.10E-03 | U105: 8.16E-02
A106: CD8+ T cell | B106: ENSG00000101132 | C106: 20 | D106: 52824386 | E106: 1 | F106: -3.354 | G106: 7.97E-04 | N106: 1.000 | O106: 3.354 | P106: 7.97E-04 | Q106: 1.000 | R106: -3.354 | S106: 7.97E-04 | T106: 7.97E-04 | U106: 8.16E-02
A107: DC cell | B107: ENSG00000164366 | C107: 5 | D107: 196986 | E107: 2 | F107: -0.160 | G107: 8.73E-01 | N107: 2.000 | O107: -4.060 | P107: 4.90E-05 | Q107: 2.000 | R107: -2.586 | S107: 9.70E-03 | T107: 1.46E-04 | U107: 8.16E-02
A108: DC cell | B108: ENSG00000224846 | C108: 6 | D108: 2989960 | E108: 1 | F108: -3.297 | G108: 9.77E-04 | N108: 1.000 | O108: -3.297 | P108: 9.77E-04 | Q108: 1.000 | R108: -3.297 | S108: 9.77E-04 | T108: 9.77E-04 | U108: 8.16E-02
A109: DC cell | B109: ENSG00000270346 | C109: 6 | D109: 3020388 | E109: 1 | F109: -3.297 | G109: 9.77E-04 | N109: 1.000 | O109: -3.297 | P109: 9.77E-04 | Q109: 1.000 | R109: 3.297 | S109: 9.77E-04 | T109: 9.77E-04 | U109: 8.16E-02
A110: DC cell | B110: ENSG00000177706 | C110: 7 | D110: 192969 | E110: 143 | F110: -1.897 | G110: 5.78E-02 | K110: 1.000 | L110: -2.956 | M110: 3.11E-03 | N110: 143.000 | O110: -3.719 | P110: 2.00E-04 | Q110: 143.000 | R110: -3.265 | S110: 1.10E-03 | T110: 6.39E-04 | U110: 8.16E-02
A111: DC cell | B111: ENSG00000044459 | C111: 9 | D111: 17134980 | E111: 2 | F111: 3.661 | G111: 2.51E-04 | N111: 2.000 | O111: 2.265 | P111: 2.35E-02 | Q111: 2.000 | R111: -4.268 | S111: 1.98E-05 | T111: 5.49E-05 | U111: 8.16E-02
A112: DC cell | B112: ENSG00000147955 | C112: 9 | D112: 34634719 | E112: 1 | N112: 1.000 | O112: 3.285 | P112: 1.02E-03 | Q112: 1.000 | R112: -3.285 | S112: 1.02E-03 | T112: 1.02E-03 | U112: 8.16E-02
A113: DC cell | B113: ENSG00000213930 | C113: 9 | D113: 34638130 | E113: 1 | F113: 3.285 | G113: 1.02E-03 | N113: 1.000 | O113: -3.285 | P113: 1.02E-03 | Q113: 1.000 | R113: -3.285 | S113: 1.02E-03 | T113: 1.02E-03 | U113: 8.16E-02
A114: DC cell | B114: ENSG00000137070 | C114: 9 | D114: 34650699 | E114: 1 | F114: 3.285 | G114: 1.02E-03 | N114: 1.000 | O114: -3.285 | P114: 1.02E-03 | Q114: 1.000 | R114: -3.285 | S114: 1.02E-03 | T114: 1.02E-03 | U114: 8.16E-02
A115: DC cell | B115: ENSG00000187186 | C115: 9 | D115: 34664160 | E115: 1 | F115: -3.285 | G115: 1.02E-03 | N115: 1.000 | O115: 3.285 | P115: 1.02E-03 | Q115: 1.000 | R115: -3.285 | S115: 1.02E-03 | T115: 1.02E-03 | U115: 8.16E-02
A116: DC cell | B116: ENSG00000230074 | C116: 9 | D116: 34665662 | E116: 1 | F116: -3.285 | G116: 1.02E-03 | N116: 1.000 | O116: -3.285 | P116: 1.02E-03 | Q116: 1.000 | R116: -3.285 | S116: 1.02E-03 | T116: 1.02E-03 | U116: 8.16E-02
A117: DC cell | B117: ENSG00000172724 | C117: 9 | D117: 34689564 | E117: 1 | F117: -3.285 | G117: 1.02E-03 | N117: 1.000 | O117: -3.285 | P117: 1.02E-03 | Q117: 1.000 | R117: -3.285 | S117: 1.02E-03 | T117: 1.02E-03 | U117: 8.16E-02
A118: DC cell | B118: ENSG00000177042 | C118: 11 | D118: 695428 | E118: 169 | F118: 3.800 | G118: 1.45E-04 | H118: 8.000 | I118: 1.574 | J118: 1.15E-01 | K118: 44.000 | L118: 1.043 | M118: 2.97E-01 | N118: 169.000 | O118: 2.139 | P118: 3.24E-02 | Q118: 169.000 | R118: 2.849 | S118: 4.39E-03 | T118: 6.96E-04 | U118: 8.16E-02
A119: DC cell | B119: ENSG00000205339 | C119: 11 | D119: 9406169 | E119: 1 | F119: -3.258 | G119: 1.12E-03 | N119: 1.000 | O119: 3.258 | P119: 1.12E-03 | Q119: 1.000 | R119: -3.258 | S119: 1.12E-03 | T119: 1.12E-03 | U119: 8.16E-02
A120: DC cell | B120: ENSG00000254397 | C120: 11 | D120: 9451903 | E120: 1 | F120: -3.258 | G120: 1.12E-03 | K120: 1.000 | L120: -3.258 | M120: 1.12E-03 | N120: 1.000 | O120: -3.258 | P120: 1.12E-03 | Q120: 1.000 | R120: -3.258 | S120: 1.12E-03 | T120: 1.12E-03 | U120: 8.16E-02
A121: DC cell | B121: ENSG00000268403 | C121: 11 | D121: 9481747 | E121: 1 | F121: -3.258 | G121: 1.12E-03 | N121: 1.000 | O121: -3.258 | P121: 1.12E-03 | Q121: 1.000 | R121: -3.258 | S121: 1.12E-03 | T121: 1.12E-03 | U121: 8.16E-02
A122: DC cell | B122: ENSG00000166478 | C122: 11 | D122: 9481866 | E122: 1 | F122: -3.258 | G122: 1.12E-03 | N122: 1.000 | O122: 3.258 | P122: 1.12E-03 | Q122: 1.000 | R122: -3.258 | S122: 1.12E-03 | T122: 1.12E-03 | U122: 8.16E-02
A123: DC cell | B123: ENSG00000111775 | C123: 12 | D123: 120875893 | E123: 1 | F123: -3.220 | G123: 1.28E-03 | N123: 1.000 | O123: 3.220 | P123: 1.28E-03 | Q123: 1.000 | R123: -3.220 | S123: 1.28E-03 | T123: 1.28E-03 | U123: 8.16E-02
A124: DC cell | B124: ENSG00000170855 | C124: 12 | D124: 120881764 | E124: 1 | F124: 3.220 | G124: 1.28E-03 | N124: 1.000 | O124: 3.220 | P124: 1.28E-03 | Q124: 1.000 | R124: 3.220 | S124: 1.28E-03 | T124: 1.28E-03 | U124: 8.16E-02
A125: DC cell | B125: ENSG00000257218 | C125: 12 | D125: 120884241 | E125: 1 | F125: -3.220 | G125: 1.28E-03 | K125: 1.000 | L125: 3.220 | M125: 1.28E-03 | N125: 1.000 | O125: -3.220 | P125: 1.28E-03 | Q125: 1.000 | R125: 3.220 | S125: 1.28E-03 | T125: 1.28E-03 | U125: 8.16E-02
A126: DC cell | B126: ENSG00000111786 | C126: 12 | D126: 120899471 | E126: 1 | N126: 1.000 | O126: 3.220 | P126: 1.28E-03 | Q126: 1.000 | R126: -3.220 | S126: 1.28E-03 | T126: 1.28E-03 | U126: 8.16E-02
A127: DC cell | B127: ENSG00000088986 | C127: 12 | D127: 120907653 | E127: 1 | N127: 1.000 | O127: -3.220 | P127: 1.28E-03 | Q127: 1.000 | R127: -3.220 | S127: 1.28E-03 | T127: 1.28E-03 | U127: 8.16E-02
A128: DC cell | B128: ENSG00000248008 | C128: 12 | D128: 120928131 | E128: 1 | F128: 3.220 | G128: 1.28E-03 | N128: 1.000 | O128: 3.220 | P128: 1.28E-03 | Q128: 1.000 | R128: -3.220 | S128: 1.28E-03 | T128: 1.28E-03 | U128: 8.16E-02
A129: DC cell | B129: ENSG00000110871 | C129: 12 | D129: 120941077 | E129: 1 | F129: -3.220 | G129: 1.28E-03 | N129: 1.000 | O129: 3.220 | P129: 1.28E-03 | Q129: 1.000 | R129: 3.220 | S129: 1.28E-03 | T129: 1.28E-03 | U129: 8.16E-02
A130: DC cell | B130: ENSG00000167272 | C130: 12 | D130: 121016567 | E130: 1 | N130: 1.000 | O130: -3.220 | P130: 1.28E-03 | Q130: 1.000 | R130: -3.220 | S130: 1.28E-03 | T130: 1.28E-03 | U130: 8.16E-02
A131: DC cell | B131: ENSG00000186187 | C131: 16 | D131: 75032928 | E131: 1 | F131: 3.242 | G131: 1.19E-03 | N131: 1.000 | O131: 3.242 | P131: 1.19E-03 | Q131: 1.000 | R131: 3.242 | S131: 1.19E-03 | T131: 1.19E-03 | U131: 8.16E-02
A132: DC cell | B132: ENSG00000166816 | C132: 16 | D132: 75145758 | E132: 1 | F132: 3.242 | G132: 1.19E-03 | N132: 1.000 | O132: -3.242 | P132: 1.19E-03 | Q132: 1.000 | R132: -3.242 | S132: 1.19E-03 | T132: 1.19E-03 | U132: 8.16E-02
A133: DC cell | B133: ENSG00000184517 | C133: 16 | D133: 75182390 | E133: 1 | F133: -3.242 | G133: 1.19E-03 | N133: 1.000 | O133: 3.242 | P133: 1.19E-03 | Q133: 1.000 | R133: -3.242 | S133: 1.19E-03 | T133: 1.19E-03 | U133: 8.16E-02
A134: DC cell | B134: ENSG00000166704 | C134: 19 | D134: 58488421 | E134: 1 | F134: -3.264 | G134: 1.10E-03 | N134: 1.000 | O134: 3.264 | P134: 1.10E-03 | Q134: 1.000 | R134: 3.264 | S134: 1.10E-03 | T134: 1.10E-03 | U134: 8.16E-02
A135: DC cell | B135: ENSG00000176593 | C135: 19 | D135: 58513429 | E135: 1 | N135: 1.000 | O135: 3.264 | P135: 1.10E-03 | Q135: 1.000 | R135: -3.264 | S135: 1.10E-03 | T135: 1.10E-03 | U135: 8.16E-02
A136: DC cell | B136: ENSG00000176293 | C136: 19 | D136: 58570607 | E136: 1 | F136: 3.264 | G136: 1.10E-03 | N136: 1.000 | O136: -3.264 | P136: 1.10E-03 | Q136: 1.000 | R136: 3.264 | S136: 1.10E-03 | T136: 1.10E-03 | U136: 8.16E-02
A137: DC cell | B137: ENSG00000121413 | C137: 19 | D137: 58595205 | E137: 1 | F137: -3.264 | G137: 1.10E-03 | N137: 1.000 | O137: -3.264 | P137: 1.10E-03 | Q137: 1.000 | R137: -3.264 | S137: 1.10E-03 | T137: 1.10E-03 | U137: 8.16E-02
A138: DC cell | B138: ENSG00000181894 | C138: 19 | D138: 58637619 | E138: 1 | F138: -3.264 | G138: 1.10E-03 | N138: 1.000 | O138: 3.264 | P138: 1.10E-03 | Q138: 1.000 | R138: 3.264 | S138: 1.10E-03 | T138: 1.10E-03 | U138: 8.16E-02
A139: DC cell | B139: ENSG00000101132 | C139: 20 | D139: 52824386 | E139: 1 | F139: 3.354 | G139: 7.97E-04 | N139: 1.000 | O139: 3.354 | P139: 7.97E-04 | Q139: 1.000 | R139: 3.354 | S139: 7.97E-04 | T139: 7.97E-04 | U139: 8.16E-02
A140: Monocyte | B140: ENSG00000236790 | C140: 2 | D140: 8147901 | E140: 1 | F140: -3.225 | G140: 1.26E-03 | N140: 1.000 | O140: 3.225 | P140: 1.26E-03 | Q140: 1.000 | R140: 3.225 | S140: 1.26E-03 | T140: 1.26E-03 | U140: 8.16E-02
A141: Monocyte | B141: ENSG00000196428 | C141: 3 | D141: 150126122 | E141: 2 | N141: 2.000 | O141: 3.531 | P141: 4.15E-04 | Q141: 2.000 | R141: 3.434 | S141: 5.94E-04 | T141: 4.88E-04 | U141: 8.16E-02
A142: Monocyte | B142: ENSG00000224846 | C142: 6 | D142: 2989960 | E142: 1 | K142: 1.000 | L142: -3.297 | M142: 9.77E-04 | N142: 1.000 | O142: -3.297 | P142: 9.77E-04 | Q142: 1.000 | R142: -3.297 | S142: 9.77E-04 | T142: 9.77E-04 | U142: 8.16E-02
A143: Monocyte | B143: ENSG00000270346 | C143: 6 | D143: 3020388 | E143: 1 | F143: -3.297 | G143: 9.77E-04 | N143: 1.000 | O143: 3.297 | P143: 9.77E-04 | Q143: 1.000 | R143: 3.297 | S143: 9.77E-04 | T143: 9.77E-04 | U143: 8.16E-02
A144: Monocyte | B144: ENSG00000147955 | C144: 9 | D144: 34634719 | E144: 1 | F144: 3.285 | G144: 1.02E-03 | N144: 1.000 | O144: 3.285 | P144: 1.02E-03 | Q144: 1.000 | R144: 3.285 | S144: 1.02E-03 | T144: 1.02E-03 | U144: 8.16E-02
A145: Monocyte | B145: ENSG00000213930 | C145: 9 | D145: 34638130 | E145: 1 | N145: 1.000 | O145: 3.285 | P145: 1.02E-03 | Q145: 1.000 | R145: 3.285 | S145: 1.02E-03 | T145: 1.02E-03 | U145: 8.16E-02
A146: Monocyte | B146: ENSG00000137070 | C146: 9 | D146: 34650699 | E146: 1 | F146: -3.285 | G146: 1.02E-03 | N146: 1.000 | O146: 3.285 | P146: 1.02E-03 | Q146: 1.000 | R146: -3.285 | S146: 1.02E-03 | T146: 1.02E-03 | U146: 8.16E-02
A147: Monocyte | B147: ENSG00000213927 | C147: 9 | D147: 34661877 | E147: 1 | F147: -3.285 | G147: 1.02E-03 | N147: 1.000 | O147: 3.285 | P147: 1.02E-03 | Q147: 1.000 | R147: -3.285 | S147: 1.02E-03 | T147: 1.02E-03 | U147: 8.16E-02
A148: Monocyte | B148: ENSG00000187186 | C148: 9 | D148: 34664160 | E148: 1 | F148: -3.285 | G148: 1.02E-03 | N148: 1.000 | O148: -3.285 | P148: 1.02E-03 | Q148: 1.000 | R148: 3.285 | S148: 1.02E-03 | T148: 1.02E-03 | U148: 8.16E-02
A149: Monocyte | B149: ENSG00000230074 | C149: 9 | D149: 34665662 | E149: 1 | N149: 1.000 | O149: 3.285 | P149: 1.02E-03 | Q149: 1.000 | R149: 3.285 | S149: 1.02E-03 | T149: 1.02E-03 | U149: 8.16E-02
A150: Monocyte | B150: ENSG00000172724 | C150: 9 | D150: 34689564 | E150: 1 | F150: 3.285 | G150: 1.02E-03 | N150: 1.000 | O150: -3.285 | P150: 1.02E-03 | Q150: 1.000 | R150: 3.285 | S150: 1.02E-03 | T150: 1.02E-03 | U150: 8.16E-02
A151: Monocyte | B151: ENSG00000130707 | C151: 9 | D151: 133320316 | E151: 1 | F151: 3.824 | G151: 1.32E-04 | N151: 1.000 | O151: 3.824 | P151: 1.32E-04 | Q151: 1.000 | R151: 3.824 | S151: 1.32E-04 | T151: 1.32E-04 | U151: 8.16E-02
A152: Monocyte | B152: ENSG00000268403 | C152: 11 | D152: 9481747 | E152: 1 | F152: 3.258 | G152: 1.12E-03 | N152: 1.000 | O152: -3.258 | P152: 1.12E-03 | Q152: 1.000 | R152: -3.258 | S152: 1.12E-03 | T152: 1.12E-03 | U152: 8.16E-02
A153: Monocyte | B153: ENSG00000166478 | C153: 11 | D153: 9481866 | E153: 1 | F153: 3.258 | G153: 1.12E-03 | N153: 1.000 | O153: 3.258 | P153: 1.12E-03 | Q153: 1.000 | R153: 3.258 | S153: 1.12E-03 | T153: 1.12E-03 | U153: 8.16E-02
A154: Monocyte | B154: ENSG00000166483 | C154: 11 | D154: 9595228 | E154: 1 | N154: 1.000 | O154: 3.258 | P154: 1.12E-03 | Q154: 1.000 | R154: 3.258 | S154: 1.12E-03 | T154: 1.12E-03 | U154: 8.16E-02
A155: Monocyte | B155: ENSG00000111775 | C155: 12 | D155: 120875893 | E155: 1 | F155: -3.220 | G155: 1.28E-03 | N155: 1.000 | O155: -3.220 | P155: 1.28E-03 | Q155: 1.000 | R155: -3.220 | S155: 1.28E-03 | T155: 1.28E-03 | U155: 8.16E-02
A156: Monocyte | B156: ENSG00000170855 | C156: 12 | D156: 120881764 | E156: 1 | F156: -3.220 | G156: 1.28E-03 | N156: 1.000 | O156: 3.220 | P156: 1.28E-03 | Q156: 1.000 | R156: -3.220 | S156: 1.28E-03 | T156: 1.28E-03 | U156: 8.16E-02
A157: Monocyte | B157: ENSG00000257218 | C157: 12 | D157: 120884241 | E157: 1 | F157: 3.220 | G157: 1.28E-03 | N157: 1.000 | O157: -3.220 | P157: 1.28E-03 | Q157: 1.000 | R157: 3.220 | S157: 1.28E-03 | T157: 1.28E-03 | U157: 8.16E-02
A158: Monocyte | B158: ENSG00000111786 | C158: 12 | D158: 120899471 | E158: 1 | F158: 3.220 | G158: 1.28E-03 | N158: 1.000 | O158: -3.220 | P158: 1.28E-03 | Q158: 1.000 | R158: 3.220 | S158: 1.28E-03 | T158: 1.28E-03 | U158: 8.16E-02
A159: Monocyte | B159: ENSG00000088986 | C159: 12 | D159: 120907653 | E159: 1 | F159: -3.220 | G159: 1.28E-03 | K159: 1.000 | L159: -3.220 | M159: 1.28E-03 | N159: 1.000 | O159: -3.220 | P159: 1.28E-03 | Q159: 1.000 | R159: -3.220 | S159: 1.28E-03 | T159: 1.28E-03 | U159: 8.16E-02
A160: Monocyte | B160: ENSG00000248008 | C160: 12 | D160: 120928131 | E160: 1 | N160: 1.000 | O160: -3.220 | P160: 1.28E-03 | Q160: 1.000 | R160: 3.220 | S160: 1.28E-03 | T160: 1.28E-03 | U160: 8.16E-02
A161: Monocyte | B161: ENSG00000110871 | C161: 12 | D161: 120941077 | E161: 1 | F161: 3.220 | G161: 1.28E-03 | N161: 1.000 | O161: 3.220 | P161: 1.28E-03 | Q161: 1.000 | R161: 3.220 | S161: 1.28E-03 | T161: 1.28E-03 | U161: 8.16E-02
A162: Monocyte | B162: ENSG00000186187 | C162: 16 | D162: 75032928 | E162: 1 | F162: 3.242 | G162: 1.19E-03 | N162: 1.000 | O162: 3.242 | P162: 1.19E-03 | Q162: 1.000 | R162: -3.242 | S162: 1.19E-03 | T162: 1.19E-03 | U162: 8.16E-02
A163: Monocyte | B163: ENSG00000247033 | C163: 16 | D163: 75142499 | E163: 1 | F163: 3.242 | G163: 1.19E-03 | N163: 1.000 | O163: -3.242 | P163: 1.19E-03 | Q163: 1.000 | R163: 3.242 | S163: 1.19E-03 | T163: 1.19E-03 | U163: 8.16E-02
A164: Monocyte | B164: ENSG00000166816 | C164: 16 | D164: 75145758 | E164: 1 | F164: 3.242 | G164: 1.19E-03 | N164: 1.000 | O164: 3.242 | P164: 1.19E-03 | Q164: 1.000 | R164: -3.242 | S164: 1.19E-03 | T164: 1.19E-03 | U164: 8.16E-02
A165: Monocyte | B165: ENSG00000184517 | C165: 16 | D165: 75182390 | E165: 1 | F165: -3.242 | G165: 1.19E-03 | N165: 1.000 | O165: 3.242 | P165: 1.19E-03 | Q165: 1.000 | R165: 3.242 | S165: 1.19E-03 | T165: 1.19E-03 | U165: 8.16E-02
A166: Monocyte | B166: ENSG00000177025 | C166: 19 | D166: 58469805 | E166: 1 | F166: -3.264 | G166: 1.10E-03 | N166: 1.000 | O166: -3.264 | P166: 1.10E-03 | Q166: 1.000 | R166: -3.264 | S166: 1.10E-03 | T166: 1.10E-03 | U166: 8.16E-02
A167: Monocyte | B167: ENSG00000166704 | C167: 19 | D167: 58488421 | E167: 1 | F167: -3.264 | G167: 1.10E-03 | N167: 1.000 | O167: -3.264 | P167: 1.10E-03 | Q167: 1.000 | R167: -3.264 | S167: 1.10E-03 | T167: 1.10E-03 | U167: 8.16E-02
A168: Monocyte | B168: ENSG00000176593 | C168: 19 | D168: 58513429 | E168: 1 | N168: 1.000 | O168: -3.264 | P168: 1.10E-03 | Q168: 1.000 | R168: 3.264 | S168: 1.10E-03 | T168: 1.10E-03 | U168: 8.16E-02
A169: Monocyte | B169: ENSG00000176293 | C169: 19 | D169: 58570607 | E169: 1 | F169: -3.264 | G169: 1.10E-03 | N169: 1.000 | O169: -3.264 | P169: 1.10E-03 | Q169: 1.000 | R169: -3.264 | S169: 1.10E-03 | T169: 1.10E-03 | U169: 8.16E-02
A170: Monocyte | B170: ENSG00000121413 | C170: 19 | D170: 58595205 | E170: 1 | N170: 1.000 | O170: 3.264 | P170: 1.10E-03 | Q170: 1.000 | R170: 3.264 | S170: 1.10E-03 | T170: 1.10E-03 | U170: 8.16E-02
A171: Monocyte | B171: ENSG00000181894 | C171: 19 | D171: 58637619 | E171: 1 | F171: 3.264 | G171: 1.10E-03 | K171: 1.000 | L171: 3.264 | M171: 1.10E-03 | N171: 1.000 | O171: 3.264 | P171: 1.10E-03 | Q171: 1.000 | R171: 3.264 | S171: 1.10E-03 | T171: 1.10E-03 | U171: 8.16E-02
A172: Monocyte | B172: ENSG00000101132 | C172: 20 | D172: 52824386 | E172: 1 | F172: 3.354 | G172: 7.97E-04 | N172: 1.000 | O172: 3.354 | P172: 7.97E-04 | Q172: 1.000 | R172: 3.354 | S172: 7.97E-04 | T172: 7.97E-04 | U172: 8.16E-02
A173: NK cell | B173: ENSG00000235665 | C173: 2 | D173: 8062556 | E173: 1 | F173: -3.225 | G173: 1.26E-03 | N173: 1.000 | O173: 3.225 | P173: 1.26E-03 | Q173: 1.000 | R173: -3.225 | S173: 1.26E-03 | T173: 1.26E-03 | U173: 8.16E-02
A174: NK cell | B174: ENSG00000236790 | C174: 2 | D174: 8147901 | E174: 1 | F174: -3.225 | G174: 1.26E-03 | K174: 1.000 | L174: -3.225 | M174: 1.26E-03 | N174: 1.000 | O174: -3.225 | P174: 1.26E-03 | Q174: 1.000 | R174: -3.225 | S174: 1.26E-03 | T174: 1.26E-03 | U174: 8.16E-02
A175: NK cell | B175: ENSG00000169031 | C175: 2 | D175: 228029281 | E175: 2 | F175: 2.537 | G175: 1.12E-02 | N175: 2.000 | O175: -3.558 | P175: 3.73E-04 | Q175: 2.000 | R175: 1.125 | S175: 2.61E-01 | T175: 1.08E-03 | U175: 8.16E-02
A176: NK cell | B176: ENSG00000248925 | C176: 5 | D176: 269973 | E176: 2 | F176: 0.366 | G176: 7.15E-01 | N176: 2.000 | O176: 4.085 | P176: 4.41E-05 | Q176: 2.000 | R176: -0.890 | S176: 3.73E-01 | T176: 1.32E-04 | U176: 8.16E-02
A177: NK cell | B177: ENSG00000272277 | C177: 6 | D177: 3068279 | E177: 1 | F177: 3.297 | G177: 9.77E-04 | K177: 1.000 | L177: 3.297 | M177: 9.77E-04 | N177: 1.000 | O177: 3.297 | P177: 9.77E-04 | Q177: 1.000 | R177: 3.297 | S177: 9.77E-04 | T177: 9.77E-04 | U177: 8.16E-02
A178: NK cell | B178: ENSG00000147955 | C178: 9 | D178: 34634719 | E178: 1 | F178: -3.285 | G178: 1.02E-03 | N178: 1.000 | O178: -3.285 | P178: 1.02E-03 | Q178: 1.000 | R178: -3.285 | S178: 1.02E-03 | T178: 1.02E-03 | U178: 8.16E-02
A179: NK cell | B179: ENSG00000213930 | C179: 9 | D179: 34638130 | E179: 1 | F179: -3.285 | G179: 1.02E-03 | N179: 1.000 | O179: -3.285 | P179: 1.02E-03 | Q179: 1.000 | R179: 3.285 | S179: 1.02E-03 | T179: 1.02E-03 | U179: 8.16E-02
A180: NK cell | B180: ENSG00000137070 | C180: 9 | D180: 34650699 | E180: 1 | F180: 3.285 | G180: 1.02E-03 | N180: 1.000 | O180: -3.285 | P180: 1.02E-03 | Q180: 1.000 | R180: -3.285 | S180: 1.02E-03 | T180: 1.02E-03 | U180: 8.16E-02
A181: NK cell | B181: ENSG00000213927 | C181: 9 | D181: 34661877 | E181: 1 | N181: 1.000 | O181: -3.285 | P181: 1.02E-03 | Q181: 1.000 | R181: 3.285 | S181: 1.02E-03 | T181: 1.02E-03 | U181: 8.16E-02
A182: NK cell | B182: ENSG00000187186 | C182: 9 | D182: 34664160 | E182: 1 | F182: -3.285 | G182: 1.02E-03 | N182: 1.000 | O182: -3.285 | P182: 1.02E-03 | Q182: 1.000 | R182: 3.285 | S182: 1.02E-03 | T182: 1.02E-03 | U182: 8.16E-02
A183: NK cell | B183: ENSG00000172724 | C183: 9 | D183: 34689564 | E183: 1 | F183: -3.285 | G183: 1.02E-03 | N183: 1.000 | O183: -3.285 | P183: 1.02E-03 | Q183: 1.000 | R183: 3.285 | S183: 1.02E-03 | T183: 1.02E-03 | U183: 8.16E-02
A184: NK cell | B184: ENSG00000184363 | C184: 11 | D184: 392614 | E184: 278 | F184: 3.914 | G184: 9.08E-05 | H184: 1.000 | I184: 1.683 | J184: 9.25E-02 | K184: 11.000 | L184: 1.558 | M184: 1.19E-01 | N184: 278.000 | O184: 2.637 | P184: 8.36E-03 | Q184: 278.000 | R184: 2.954 | S184: 3.14E-03 | T184: 4.36E-04 | U184: 8.16E-02
A185: NK cell | B185: ENSG00000214063 | C185: 11 | D185: 842808 | E185: 145 | F185: 3.349 | G185: 8.11E-04 | K185: 5.000 | L185: 3.455 | M185: 5.51E-04 | N185: 145.000 | O185: 3.216 | P185: 1.30E-03 | Q185: 145.000 | R185: 3.397 | S185: 6.81E-04 | T185: 7.57E-04 | U185: 8.16E-02
A186: NK cell | B186: ENSG00000254397 | C186: 11 | D186: 9451903 | E186: 1 | F186: -3.258 | G186: 1.12E-03 | H186: 1.000 | I186: -3.258 | J186: 1.12E-03 | K186: 1.000 | L186: -3.258 | M186: 1.12E-03 | N186: 1.000 | O186: -3.258 | P186: 1.12E-03 | Q186: 1.000 | R186: -3.258 | S186: 1.12E-03 | T186: 1.12E-03 | U186: 8.16E-02
A187: NK cell | B187: ENSG00000166478 | C187: 11 | D187: 9481866 | E187: 1 | F187: -3.258 | G187: 1.12E-03 | N187: 1.000 | O187: 3.258 | P187: 1.12E-03 | Q187: 1.000 | R187: -3.258 | S187: 1.12E-03 | T187: 1.12E-03 | U187: 8.16E-02
A188: NK cell | B188: ENSG00000111775 | C188: 12 | D188: 120875893 | E188: 1 | F188: -3.220 | G188: 1.28E-03 | N188: 1.000 | O188: 3.220 | P188: 1.28E-03 | Q188: 1.000 | R188: 3.220 | S188: 1.28E-03 | T188: 1.28E-03 | U188: 8.16E-02
A189: NK cell | B189: ENSG00000170855 | C189: 12 | D189: 120881764 | E189: 1 | N189: 1.000 | O189: -3.220 | P189: 1.28E-03 | Q189: 1.000 | R189: -3.220 | S189: 1.28E-03 | T189: 1.28E-03 | U189: 8.16E-02
A190: NK cell | B190: ENSG00000257218 | C190: 12 | D190: 120884241 | E190: 1 | F190: -3.220 | G190: 1.28E-03 | N190: 1.000 | O190: -3.220 | P190: 1.28E-03 | Q190: 1.000 | R190: 3.220 | S190: 1.28E-03 | T190: 1.28E-03 | U190: 8.16E-02
A191: NK cell | B191: ENSG00000111786 | C191: 12 | D191: 120899471 | E191: 1 | F191: 3.220 | G191: 1.28E-03 | N191: 1.000 | O191: -3.220 | P191: 1.28E-03 | Q191: 1.000 | R191: 3.220 | S191: 1.28E-03 | T191: 1.28E-03 | U191: 8.16E-02
A192: NK cell | B192: ENSG00000088986 | C192: 12 | D192: 120907653 | E192: 1 | F192: 3.220 | G192: 1.28E-03 | N192: 1.000 | O192: -3.220 | P192: 1.28E-03 | Q192: 1.000 | R192: -3.220 | S192: 1.28E-03 | T192: 1.28E-03 | U192: 8.16E-02
A193: NK cell | B193: ENSG00000248008 | C193: 12 | D193: 120928131 | E193: 1 | F193: 3.220 | G193: 1.28E-03 | K193: 1.000 | L193: 3.220 | M193: 1.28E-03 | N193: 1.000 | O193: 3.220 | P193: 1.28E-03 | Q193: 1.000 | R193: 3.220 | S193: 1.28E-03 | T193: 1.28E-03 | U193: 8.16E-02
A194: NK cell | B194: ENSG00000110871 | C194: 12 | D194: 120941077 | E194: 1 | F194: -3.220 | G194: 1.28E-03 | N194: 1.000 | O194: -3.220 | P194: 1.28E-03 | Q194: 1.000 | R194: -3.220 | S194: 1.28E-03 | T194: 1.28E-03 | U194: 8.16E-02
A195: NK cell | B195: ENSG00000186187 | C195: 16 | D195: 75032928 | E195: 1 | F195: 3.242 | G195: 1.19E-03 | N195: 1.000 | O195: 3.242 | P195: 1.19E-03 | Q195: 1.000 | R195: -3.242 | S195: 1.19E-03 | T195: 1.19E-03 | U195: 8.16E-02
A196: NK cell | B196: ENSG00000166816 | C196: 16 | D196: 75145758 | E196: 1 | F196: -3.242 | G196: 1.19E-03 | N196: 1.000 | O196: -3.242 | P196: 1.19E-03 | Q196: 1.000 | R196: -3.242 | S196: 1.19E-03 | T196: 1.19E-03 | U196: 8.16E-02
A197: NK cell | B197: ENSG00000184517 | C197: 16 | D197: 75182390 | E197: 1 | F197: -3.242 | G197: 1.19E-03 | N197: 1.000 | O197: -3.242 | P197: 1.19E-03 | Q197: 1.000 | R197: 3.242 | S197: 1.19E-03 | T197: 1.19E-03 | U197: 8.16E-02
A198: NK cell | B198: ENSG00000187607 | C198: 17 | D198: 15602891 | E198: 1 | F198: -3.891 | G198: 1.00E-04 | K198: 1.000 | L198: -3.891 | M198: 1.00E-04 | N198: 1.000 | O198: -3.891 | P198: 1.00E-04 | Q198: 1.000 | R198: -3.891 | S198: 1.00E-04 | T198: 1.00E-04 | U198: 8.16E-02
A199: NK cell | B199: ENSG00000177025 | C199: 19 | D199: 58469805 | E199: 1 | F199: -3.264 | G199: 1.10E-03 | N199: 1.000 | O199: 3.264 | P199: 1.10E-03 | Q199: 1.000 | R199: 3.264 | S199: 1.10E-03 | T199: 1.10E-03 | U199: 8.16E-02
A200: NK cell | B200: ENSG00000166704 | C200: 19 | D200: 58488421 | E200: 1 | F200: -3.264 | G200: 1.10E-03 | N200: 1.000 | O200: 3.264 | P200: 1.10E-03 | Q200: 1.000 | R200: 3.264 | S200: 1.10E-03 | T200: 1.10E-03 | U200: 8.16E-02
... 4300 more rows

Sheet Table S13
A1: Table S13: Pathways enriched based on TWAS-identified genes
A2: Term | B2: P.value | C2: Adjusted.P.value | D2: Odds.Ratio | E2: Combined.Score | F2: Genes | G2: Database
A3: Protein Kinase C Signaling (GO:0070528) | B3: 2.61E-04 | C3: 9.36E-02 | D3: 106 | E3: 875 | F3: DGKQ;PDGFB | G3: GO Biological Process
A4: Regulation Of Vascular Associated Smooth Muscle Cell Migration (GO:1904752) | B4: 3.82E-04 | C4: 9.36E-02 | D4: 85 | E4: 668 | F4: TPM1;PDGFB | G4: GO Biological Process
A5: Platelet-Derived Growth Factor Receptor Signaling Pathway (GO:0048008) | B5: 6.05E-04 | C5: 9.88E-02 | D5: 65 | E5: 484 | F5: PDGFB;BCAR1 | G5: GO Biological Process
A6: Cellular Response To Acid Chemical (GO:0071229) | B6: 1.98E-03 | C6: 1.51E-01 | D6: 34 | E6: 211 | F6: XBP1;CPEB4 | G6: GO Biological Process
A7: Downstream Signal Transduction | B7: 2.29E-03 | C7: 2.98E-01 | D7: 31 | E7: 191 | F7: PDGFB;BCAR1 | G7: Reactome
A8: Response To Amino Acid (GO:0043200) | B8: 2.45E-03 | C8: 1.51E-01 | D8: 30 | E8: 182 | F8: XBP1;CPEB4 | G8: GO Biological Process
A9: Cellular Response To Glucose Stimulus (GO:0071333) | B9: 3.14E-03 | C9: 1.51E-01 | D9: 26 | E9: 153 | F9: XBP1;PDX1 | G9: GO Biological Process
A10: Cellular Response To Amino Acid Stimulus (GO:0071230) | B10: 3.32E-03 | C10: 1.51E-01 | D10: 26 | E10: 147 | F10: XBP1;CPEB4 | G10: GO Biological Process
A11: Positive Regulation Of Macromolecule Biosynthetic Process (GO:0010557) | B11: 3.33E-03 | C11: 1.51E-01 | D11: 11 | E11: 62 | F11: XBP1;PDGFB;EIF3C | G11: GO Biological Process
A12: Regulation Of Vascular Associated Smooth Muscle Cell Proliferation (GO:1904705) | B12: 3.71E-03 | C12: 1.51E-01 | D12: 24 | E12: 136 | F12: TPM1;PDGFB | G12: GO Biological Process
A13: Phosphorylation (GO:0016310) | B13: 3.89E-03 | C13: 1.51E-01 | D13: 5 | E13: 29 | F13: BRD2;DGKQ;NEK6;WNK2;PDGFB | G13: GO Biological Process
A14: Acylglycerol Metabolic Process (GO:0006639) | B14: 4.54E-03 | C14: 1.51E-01 | D14: 22 | E14: 117 | F14: PNLIPRP2;DGKQ | G14: GO Biological Process
A15: Cellular Response To Glucose Starvation (GO:0042149) | B15: 4.76E-03 | C15: 1.51E-01 | D15: 21 | E15: 113 | F15: XBP1;CPEB4 | G15: GO Biological Process
A16: Cell Chemotaxis (GO:0060326) | B16: 6.68E-03 | C16: 1.51E-01 | D16: 18 | E16: 88 | F16: PDGFB;BCAR1 | G16: GO Biological Process
A17: Peptidyl-Serine Phosphorylation (GO:0018105) | B17: 6.83E-03 | C17: 1.51E-01 | D17: 8 | E17: 42 | F17: DGKQ;NEK6;PDGFB | G17: GO Biological Process
A18: Protein Phosphorylation (GO:0006468) | B18: 7.39E-03 | C18: 1.51E-01 | D18: 4 | E18: 22 | F18: BRD2;DGKQ;NEK6;WNK2;PDGFB | G18: GO Biological Process
A19: Peptidyl-Serine Modification (GO:0018209) | B19: 7.82E-03 | C19: 1.51E-01 | D19: 8 | E19: 38 | F19: DGKQ;NEK6;PDGFB | G19: GO Biological Process
A20: Signaling by PDGF | B20: 8.91E-03 | C20: 2.98E-01 | D20: 15 | E20: 71 | F20: PDGFB;BCAR1 | G20: Reactome
A21: Negative Regulation Of Intrinsic Apoptotic Signaling Pathway (GO:2001243) | B21: 9.81E-03 | C21: 1.51E-01 | D21: 14 | E21: 66 | F21: XBP1;NOC2L | G21: GO Biological Process
A22: Glycerolipid metabolism | B22: 9.81E-03 | C22: 3.96E-01 | D22: 14 | E22: 66 | F22: PNLIPRP2;DGKQ | G22: KEGG
A23: Negative Regulation Of Histone Acetylation (GO:0035067) | B23: 1.22E-02 | C23: 1.51E-01 | D23: 104 | E23: 458 | F23: NOC2L | G23: GO Biological Process
A24: Regulation Of Glomerular Filtration (GO:0003093) | B24: 1.22E-02 | C24: 1.51E-01 | D24: 104 | E24: 458 | F24: PDGFB | G24: GO Biological Process
A25: Regulation Of Hepatocyte Proliferation (GO:2000345) | B25: 1.22E-02 | C25: 1.51E-01 | D25: 104 | E25: 458 | F25: XBP1 | G25: GO Biological Process
A26: Regulation Of Hormone Biosynthetic Process (GO:0046885) | B26: 1.22E-02 | C26: 1.51E-01 | D26: 104 | E26: 458 | F26: DGKQ | G26: GO Biological Process
A27: Regulation Of Hyaluronan Biosynthetic Process (GO:1900125) | B27: 1.22E-02 | C27: 1.51E-01 | D27: 104 | E27: 458 | F27: PDGFB | G27: GO Biological Process
A28: Heparan Sulfate Proteoglycan Catabolic Process (GO:0030200) | B28: 1.22E-02 | C28: 1.51E-01 | D28: 104 | E28: 458 | F28: IDUA | G28: GO Biological Process
A29: Dermatan Sulfate Metabolic Process (GO:0030205) | B29: 1.22E-02 | C29: 1.51E-01 | D29: 104 | E29: 458 | F29: IDUA | G29: GO Biological Process
A30: Focal adhesion | B30: 1.31E-02 | C30: 3.96E-01 | D30: 7 | E30: 28 | F30: PDGFB;TLN2;BCAR1 | G30: KEGG
A31: ATF6-mediated Unfolded Protein Response (GO:0036500) | B31: 1.46E-02 | C31: 1.51E-01 | D31: 83 | E31: 351 | F31: XBP1 | G31: GO Biological Process
A32: Regulation Of Cortisol Biosynthetic Process (GO:2000064) | B32: 1.46E-02 | C32: 1.51E-01 | D32: 83 | E32: 351 | F32: DGKQ | G32: GO Biological Process
A33: Ethanol Catabolic Process (GO:0006068) | B33: 1.46E-02 | C33: 1.51E-01 | D33: 83 | E33: 351 | F33: SULT1A2 | G33: GO Biological Process
A34: IRE1-mediated Unfolded Protein Response (GO:0036498) | B34: 1.46E-02 | C34: 1.51E-01 | D34: 83 | E34: 351 | F34: XBP1 | G34: GO Biological Process
A35: Regulation Of Ketone Biosynthetic Process (GO:0010566) | B35: 1.46E-02 | C35: 1.51E-01 | D35: 83 | E35: 351 | F35: DGKQ | G35: GO Biological Process
A36: Intracellular Triglyceride Homeostasis (GO:0035356) | B36: 1.46E-02 | C36: 1.51E-01 | D36: 83 | E36: 351 | F36: XBP1 | G36: GO Biological Process
A37: Neurotrophin TRK Receptor Signaling Pathway (GO:0048011) | B37: 1.46E-02 | C37: 1.51E-01 | D37: 83 | E37: 351 | F37: BCAR1 | G37: GO Biological Process
A38: Cellular Response To Hepatocyte Growth Factor Stimulus (GO:0035729) | B38: 1.46E-02 | C38: 1.51E-01 | D38: 83 | E38: 351 | F38: BCAR1 | G38: GO Biological Process
A39: Proteoglycan Catabolic Process (GO:0030167) | B39: 1.46E-02 | C39: 1.51E-01 | D39: 83 | E39: 351 | F39: IDUA | G39: GO Biological Process
A40: Mitotic Nuclear Membrane Disassembly (GO:0007077) | B40: 1.46E-02 | C40: 1.51E-01 | D40: 83 | E40: 351 | F40: NEK6 | G40: GO Biological Process
A41: Regulation Of Vascular Associated Smooth Muscle Cell Differentiation (GO:1905063) | B41: 1.46E-02 | C41: 1.51E-01 | D41: 83 | E41: 351 | F41: PDGFB | G41: GO Biological Process
A42: Response To Hepatocyte Growth Factor (GO:0035728) | B42: 1.46E-02 | C42: 1.51E-01 | D42: 83 | E42: 351 | F42: BCAR1 | G42: GO Biological Process
A43: Rap1 signaling pathway | B43: 1.48E-02 | C43: 3.96E-01 | D43: 6 | E43: 26 | F43: PDGFB;TLN2;BCAR1 | G43: KEGG
A44: Positive Regulation Of Cell Motility (GO:2000147) | B44: 1.69E-02 | C44: 1.51E-01 | D44: 6 | E44: 24 | F44: XBP1;PDGFB;BCAR1 | G44: GO Biological Process
A45: Negative Regulation Of Peptidyl-Lysine Acetylation (GO:2000757) | B45: 1.70E-02 | C45: 1.51E-01 | D45: 69 | E45: 282 | F45: NOC2L | G45: GO Biological Process
A46: Negative Regulation Of Vascular Associated Smooth Muscle Cell Differentiation (GO:1905064) | B46: 1.70E-02 | C46: 1.51E-01 | D46: 69 | E46: 282 | F46: PDGFB | G46: GO Biological Process
A47: Positive Regulation Of Vascular Associated Smooth Muscle Cell Migration (GO:1904754) | B47: 1.70E-02 | C47: 1.51E-01 | D47: 69 | E47: 282 | F47: PDGFB | G47: GO Biological Process
A48: Protein Deglycosylation (GO:0006517) | B48: 1.70E-02 | C48: 1.51E-01 | D48: 69 | E48: 282 | F48: MAN2A2 | G48: GO Biological Process
A49: Regulation Of Vascular Wound Healing (GO:0061043) | B49: 1.70E-02 | C49: 1.51E-01 | D49: 69 | E49: 282 | F49: XBP1 | G49: GO Biological Process
A50: Negative Regulation Of B Cell Apoptotic Process (GO:0002903) | B50: 1.70E-02 | C50: 1.51E-01 | D50: 69 | E50: 282 | F50: NOC2L | G50: GO Biological Process
A51: Positive Regulation Of Calcium Ion Import (GO:0090280) | B51: 1.70E-02 | C51: 1.51E-01 | D51: 69 | E51: 282 | F51: PDGFB | G51: GO Biological Process
A52: Activation of NIMA Kinases NEK9, NEK6, NEK7 | B52: 1.70E-02 | C52: 2.98E-01 | D52: 69 | E52: 282 | F52: NEK6 | G52: Reactome
A53: Digestion of Dietary Lipid | B53: 1.70E-02 | C53: 2.98E-01 | D53: 69 | E53: 282 | F53: PNLIPRP2 | G53: Reactome
A54: Cellular Response To Oxygen-Containing Compound (GO:1901701) | B54: 1.73E-02 | C54: 1.51E-01 | D54: 4 | E54: 18 | F54: XBP1;TPM1;PDGFB;CPEB4 | G54: GO Biological Process
A55: Positive Regulation Of Endothelial Cell Migration (GO:0010595) | B55: 1.84E-02 | C55: 1.51E-01 | D55: 10 | E55: 41 | F55: PDGFB;BCAR1 | G55: GO Biological Process
A56: DNA Cytosine Deamination (GO:0070383) | B56: 1.94E-02 | C56: 1.51E-01 | D56: 59 | E56: 234 | F56: APOBEC3B | G56: GO Biological Process
A57: Type B Pancreatic Cell Differentiation (GO:0003309) | B57: 1.94E-02 | C57: 1.51E-01 | D57: 59 | E57: 234 | F57: PDX1 | G57: GO Biological Process
A58: Negative Regulation Of Smooth Muscle Cell Differentiation (GO:0051151) | B58: 1.94E-02 | C58: 1.51E-01 | D58: 59 | E58: 234 | F58: PDGFB | G58: GO Biological Process
A59: Nuclear Membrane Disassembly (GO:0051081) | B59: 1.94E-02 | C59: 1.51E-01 | D59: 59 | E59: 234 | F59: NEK6 | G59: GO Biological Process
A60: Cellular Response To Platelet-Derived Growth Factor Stimulus (GO:0036120) | B60: 1.94E-02 | C60: 1.51E-01 | D60: 59 | E60: 234 | F60: PDGFB | G60: GO Biological Process
A61: Embryonic Placenta Development (GO:0001892) | B61: 1.94E-02 | C61: 1.51E-01 | D61: 59 | E61: 234 | F61: PDGFB | G61: GO Biological Process
A62: Negative Regulation Of Cytoplasmic Translation (GO:2000766) | B62: 1.94E-02 | C62: 1.51E-01 | D62: 59 | E62: 234 | F62: CPEB4 | G62: GO Biological Process
A63: mRNA Editing C to U Conversion | B63: 1.94E-02 | C63: 2.98E-01 | D63: 59 | E63: 234 | F63: APOBEC3B | G63: Reactome
A64: Formation of the Editosome | B64: 1.94E-02 | C64: 2.98E-01 | D64: 59 | E64: 234 | F64: APOBEC3B | G64: Reactome
A65: Regulation of Gene Expression in Early Pancreatic Precursor Cells | B65: 1.94E-02 | C65: 2.98E-01 | D65: 59 | E65: 234 | F65: PDX1 | G65: Reactome
A66: Positive Regulation Of Cell Adhesion (GO:0045785) | B66: 1.97E-02 | C66: 1.51E-01 | D66: 10 | E66: 39 | F66: TPM1;PDGFB | G66: GO Biological Process
A67: Regulation Of Peptidyl-Tyrosine Phosphorylation (GO:0050730) | B67: 2.05E-02 | C67: 1.51E-01 | D67: 10 | E67: 37 | F67: DGKQ;PDGFB | G67: GO Biological Process
A68: Regulation Of Cell Migration (GO:0030334) | B68: 2.15E-02 | C68: 1.51E-01 | D68: 4 | E68: 15 | F68: XBP1;TPM1;PDGFB;BCAR1 | G68: GO Biological Process
A69: Regulation Of Endoplasmic Reticulum Unfolded Protein Response (GO:1900101) | B69: 2.18E-02 | C69: 1.51E-01 | D69: 52 | E69: 199 | F69: XBP1 | G69: GO Biological Process
A70: Negative Regulation Of Lymphocyte Apoptotic Process (GO:0070229) | B70: 2.18E-02 | C70: 1.51E-01 | D70: 52 | E70: 199 | F70: NOC2L | G70: GO Biological Process
A71: Glycerolipid Metabolic Process (GO:0046486) | B71: 2.18E-02 | C71: 1.51E-01 | D71: 52 | E71: 199 | F71: DGKQ | G71: GO Biological Process
A72: [2Fe-2S] Cluster Assembly (GO:0044571) | B72: 2.18E-02 | C72: 1.51E-01 | D72: 52 | E72: 199 | F72: HSCB | G72: GO Biological Process
A73: Amine Metabolic Process (GO:0009308) | B73: 2.18E-02 | C73: 1.51E-01 | D73: 52 | E73: 199 | F73: SULT1A2 | G73: GO Biological Process
A74: Positive Regulation Of Sodium Ion Transmembrane Transport (GO:1902307) | B74: 2.18E-02 | C74: 1.51E-01 | D74: 52 | E74: 199 | F74: WNK2 | G74: GO Biological Process
A75: Lipid Phosphorylation (GO:0046834) | B75: 2.18E-02 | C75: 1.51E-01 | D75: 52 | E75: 199 | F75: DGKQ | G75: GO Biological Process
A76: Primary Alcohol Catabolic Process (GO:0034310) | B76: 2.18E-02 | C76: 1.51E-01 | D76: 52 | E76: 199 | F76: SULT1A2 | G76: GO Biological Process
A77: Phosphatidylcholine Catabolic Process (GO:0034638) | B77: 2.18E-02 | C77: 1.51E-01 | D77: 52 | E77: 199 | F77: PNLIPRP2 | G77: GO Biological Process
A78: Cellular Response To Oxygen Levels (GO:0071453) | B78: 2.18E-02 | C78: 1.51E-01 | D78: 52 | E78: 199 | F78: CPEB4 | G78: GO Biological Process
A79: Response To Interleukin-4 (GO:0070670) | B79: 2.18E-02 | C79: 1.51E-01 | D79: 52 | E79: 199 | F79: XBP1 | G79: GO Biological Process
A80: Response To Platelet-Derived Growth Factor (GO:0036119) | B80: 2.18E-02 | C80: 1.51E-01 | D80: 52 | E80: 199 | F80: PDGFB | G80: GO Biological Process
A81: Choline metabolism in cancer | B81: 2.41E-02 | C81: 3.96E-01 | D81: 9 | E81: 33 | F81: DGKQ;PDGFB | G81: KEGG
A82: Fatty Acid Homeostasis (GO:0055089) | B82: 2.42E-02 | C82: 1.51E-01 | D82: 46 | E82: 172 | F82: XBP1 | G82: GO Biological Process
A83: Negative Regulation Of Pathway-Restricted SMAD Protein Phosphorylation (GO:0060394) | B83: 2.42E-02 | C83: 1.51E-01 | D83: 46 | E83: 172 | F83: SNX25 | G83: GO Biological Process
A84: Positive Regulation Of B Cell Differentiation (GO:0045579) | B84: 2.42E-02 | C84: 1.51E-01 | D84: 46 | E84: 172 | F84: XBP1 | G84: GO Biological Process
A85: Positive Regulation Of MHC Class II Biosynthetic Process (GO:0045348) | B85: 2.42E-02 | C85: 1.51E-01 | D85: 46 | E85: 172 | F85: XBP1 | G85: GO Biological Process
A86: Regulation Of B Cell Apoptotic Process (GO:0002902) | B86: 2.42E-02 | C86: 1.51E-01 | D86: 46 | E86: 172 | F86: NOC2L | G86: GO Biological Process
A87: Muscle Filament Sliding (GO:0030049) | B87: 2.42E-02 | C87: 1.51E-01 | D87: 46 | E87: 172 | F87: TPM1 | G87: GO Biological Process
A88: mRNA Editing | B88: 2.42E-02 | C88: 2.98E-01 | D88: 46 | E88: 172 | F88: APOBEC3B | G88: Reactome
A89: ATF6 (ATF6-alpha) Activates Chaperone Genes | B89: 2.42E-02 | C89: 2.98E-01 | D89: 46 | E89: 172 | F89: XBP1 | G89: Reactome
A90: RUNX3 Regulates p14-ARF | B90: 2.42E-02 | C90: 2.98E-01 | D90: 46 | E90: 172 | F90: BRD2 | G90: Reactome
A91: Reactions Specific to the Complex N-glycan Synthesis Pathway | B91: 2.42E-02 | C91: 2.98E-01 | D91: 46 | E91: 172 | F91: MAN2A2 | G91: Reactome
A92: Cellular Response To Insulin Stimulus (GO:0032869) | B92: 2.45E-02 | C92: 1.51E-01 | D92: 9 | E92: 32 | F92: XBP1;BCAR1 | G92: GO Biological Process
A93: Platelet Activation, Signaling and Aggregation | B93: 2.63E-02 | C93: 2.98E-01 | D93: 5 | E93: 18 | F93: DGKQ;PDGFB;BCAR1 | G93: Reactome
A94: Negative Regulation Of Myotube Differentiation (GO:0010832) | B94: 2.66E-02 | C94: 1.51E-01 | D94: 42 | E94: 151 | F94: XBP1 | G94: GO Biological Process
A95: Regulation Of Muscle System Process (GO:0090257) | B95: 2.66E-02 | C95: 1.51E-01 | D95: 42 | E95: 151 | F95: TPM1 | G95: GO Biological Process
A96: Cytidine To Uridine Editing (GO:0016554) | B96: 2.66E-02 | C96: 1.51E-01 | D96: 42 | E96: 151 | F96: APOBEC3B | G96: GO Biological Process
A97: Regulation Of Alcohol Biosynthetic Process (GO:1902930) | B97: 2.66E-02 | C97: 1.51E-01 | D97: 42 | E97: 151 | F97: DGKQ | G97: GO Biological Process
A98: Positive Regulation Of Endoplasmic Reticulum Unfolded Protein Response (GO:1900103) | B98: 2.66E-02 | C98: 1.51E-01 | D98: 42 | E98: 151 | F98: XBP1 | G98: GO Biological Process
A99: Mucopolysaccharidoses | B99: 2.66E-02 | C99: 2.98E-01 | D99: 42 | E99: 151 | F99: IDUA | G99: Reactome
A100: Cellular Response To Organonitrogen Compound (GO:0071417) | B100: 2.74E-02 | C100: 1.51E-01 | D100: 8 | E100: 30 | F100: XBP1;CPEB4 | G100: GO Biological Process
A101: Positive Regulation Of Cell Migration (GO:0030335) | B101: 2.90E-02 | C101: 1.51E-01 | D101: 5 | E101: 17 | F101: XBP1;PDGFB;BCAR1 | G101: GO Biological Process
A102: DNA Deamination (GO:0045006) | B102: 2.90E-02 | C102: 1.51E-01 | D102: 38 | E102: 134 | F102: APOBEC3B | G102: GO Biological Process
A103: tRNA 5'-Leader Removal (GO:0001682) | B103: 2.90E-02 | C103: 1.51E-01 | D103: 38 | E103: 134 | F103: RPP25 | G103: GO Biological Process
A104: Triglyceride Catabolic Process (GO:0019433) | B104: 2.90E-02 | C104: 1.51E-01 | D104: 38 | E104: 134 | F104: PNLIPRP2 | G104: GO Biological Process
A105: Actin-Myosin Filament Sliding (GO:0033275) | B105: 2.90E-02 | C105: 1.51E-01 | D105: 38 | E105: 134 | F105: TPM1 | G105: GO Biological Process
A106: Adipose Tissue Development (GO:0060612) | B106: 2.90E-02 | C106: 1.51E-01 | D106: 38 | E106: 134 | F106: XBP1 | G106: GO Biological Process
A107: Positive Regulation Of Sodium Ion Transmembrane Transporter Activity (GO:2000651) | B107: 2.90E-02 | C107: 1.51E-01 | D107: 38 | E107: 134 | F107: WNK2 | G107: GO Biological Process
A108: Ionotropic Glutamate Receptor Signaling Pathway (GO:0035235) | B108: 2.90E-02 | C108: 1.51E-01 | D108: 38 | E108: 134 | F108: CPEB4 | G108: GO Biological Process
A109: Organophosphate Catabolic Process (GO:0046434) | B109: 2.90E-02 | C109: 1.51E-01 | D109: 38 | E109: 134 | F109: PNLIPRP2 | G109: GO Biological Process
A110: ATF6 (ATF6-alpha) Activates Chaperones | B110: 2.90E-02 | C110: 2.98E-01 | D110: 38 | E110: 134 | F110: XBP1 | G110: Reactome
A111: Protein Modification Process (GO:0036211) | B111: 2.95E-02 | C111: 1.51E-01 | D111: 3 | E111: 11 | F111: BRD2;MAN2A2;NEK6;WNK2;PDGFB | G111: GO Biological Process
A112: Positive Regulation Of Gene Expression (GO:0010628) | B112: 2.97E-02 | C112: 1.51E-01 | D112: 4 | E112: 13 | F112: DGKQ;PDGFB;NOC2L;EIF3C | G112: GO Biological Process
A113: Cellular Response To Interleukin-4 (GO:0071353) | B113: 3.14E-02 | C113: 1.51E-01 | D113: 35 | E113: 120 | F113: XBP1 | G113: GO Biological Process
A114: Purine Ribonucleoside Bisphosphate Metabolic Process (GO:0034035) | B114: 3.14E-02 | C114: 1.51E-01 | D114: 35 | E114: 120 | F114: SULT1A2 | G114: GO Biological Process
A115: Negative Regulation Of Cell Activation (GO:0050866) | B115: 3.14E-02 | C115: 1.51E-01 | D115: 35 | E115: 120 | F115: PDGFB | G115: GO Biological Process
A116: Embryonic Hemopoiesis (GO:0035162) | B116: 3.14E-02 | C116: 1.51E-01 | D116: 35 | E116: 120 | F116: HSCB | G116: GO Biological Process
A117: Mitochondrial Iron-Sulfur Cluster Biogenesis | B117: 3.14E-02 | C117: 2.98E-01 | D117: 35 | E117: 120 | F117: HSCB | G117: Reactome
A118: Ethanol Metabolic Process (GO:0006067) | B118: 3.38E-02 | C118: 1.51E-01 | D118: 32 | E118: 108 | F118: SULT1A2 | G118: GO Biological Process
A119: tRNA 5'-End Processing (GO:0099116) | B119: 3.38E-02 | C119: 1.51E-01 | D119: 32 | E119: 108 | F119: RPP25 | G119: GO Biological Process
A120: Formation Of Cytoplasmic Translation Initiation Complex (GO:0001732) | B120: 3.38E-02 | C120: 1.51E-01 | D120: 32 | E120: 108 | F120: EIF3C | G120: GO Biological Process
A121: Negative Regulation Of Peptidyl-Threonine Phosphorylation (GO:0010801) | B121: 3.38E-02 | C121: 1.51E-01 | D121: 32 | E121: 108 | F121: DGKQ | G121: GO Biological Process
A122: Negative Regulation Of Single Stranded Viral RNA Replication Via Double Stranded DNA Intermediate (GO:0045869) | B122: 3.38E-02 | C122: 1.51E-01 | D122: 32 | E122: 108 | F122: APOBEC3B | G122: GO Biological Process
A123: Negative Regulation Of Smooth Muscle Cell Migration (GO:0014912) | B123: 3.38E-02 | C123: 1.51E-01 | D123: 32 | E123: 108 | F123: TPM1 | G123: GO Biological Process
A124: Aminoglycan Catabolic Process (GO:0006026) | B124: 3.38E-02 | C124: 1.51E-01 | D124: 32 | E124: 108 | F124: IDUA | G124: GO Biological Process
A125: Positive Regulation Of Transcription From RNA Polymerase II Promoter Involved In Cellular Response To Chemical Stimulus (GO:1901522) | B125: 3.38E-02 | C125: 1.51E-01 | D125: 32 | E125: 108 | F125: XBP1 | G125: GO Biological Process
A126: Regulation Of Transposition (GO:0010528) | B126: 3.38E-02 | C126: 1.51E-01 | D126: 32 | E126: 108 | F126: APOBEC3B | G126: GO Biological Process
A127: Respiratory Electron Transport Chain (GO:0022904) | B127: 3.38E-02 | C127: 1.51E-01 | D127: 32 | E127: 108 | F127: SDHA | G127: GO Biological Process
A128: Regulation Of MHC Class II Biosynthetic Process (GO:0045346) | B128: 3.38E-02 | C128: 1.51E-01 | D128: 32 | E128: 108 | F128: XBP1 | G128: GO Biological Process
A129: Electron Transport Chain (GO:0022900) | B129: 3.38E-02 | C129: 1.51E-01 | D129: 32 | E129: 108 | F129: SDHA | G129: GO Biological Process
A130: PTK6 Regulates RHO GTPases, RAS GTPase and MAP Kinases | B130: 3.38E-02 | C130: 2.98E-01 | D130: 32 | E130: 108 | F130: BCAR1 | G130: Reactome
A131: CS DS Degradation | B131: 3.38E-02 | C131: 2.98E-01 | D131: 32 | E131: 108 | F131: IDUA | G131: Reactome
A132: 3'-UTR-mediated mRNA Destabilization (GO:0061158) | B132: 3.61E-02 | C132: 1.51E-01 | D132: 30 | E132: 99 | F132: PLEKHN1 | G132: GO Biological Process
A133: 3'-Phosphoadenosine 5'-Phosphosulfate Metabolic Process (GO:0050427) | B133: 3.61E-02 | C133: 1.51E-01 | D133: 30 | E133: 99 | F133: SULT1A2 | G133: GO Biological Process
A134: Negative Regulation Of Endoplasmic Reticulum Stress-Induced Intrinsic Apoptotic Signaling Pathway (GO:1902236) | B134: 3.61E-02 | C134: 1.51E-01 | D134: 30 | E134: 99 | F134: XBP1 | G134: GO Biological Process
A135: Glycosaminoglycan Catabolic Process (GO:0006027) | B135: 3.61E-02 | C135: 1.51E-01 | D135: 30 | E135: 99 | F135: IDUA | G135: GO Biological Process
A136: Negative Regulation Of Platelet Activation (GO:0010544) | B136: 3.61E-02 | C136: 1.51E-01 | D136: 30 | E136: 99 | F136: PDGFB | G136: GO Biological Process
A137: Positive Regulation Of Secretion (GO:0051047) | B137: 3.61E-02 | C137: 1.51E-01 | D137: 30 | E137: 99 | F137: XBP1 | G137: GO Biological Process
A138: Neurotrophin Signaling Pathway (GO:0038179) | B138: 3.61E-02 | C138: 1.51E-01 | D138: 30 | E138: 99 | F138: BCAR1 | G138: GO Biological Process
A139: Receptor Catabolic Process (GO:0032801) | B139: 3.61E-02 | C139: 1.51E-01 | D139: 30 | E139: 99 | F139: SNX25 | G139: GO Biological Process
A140: Positive Regulation Of Cyclin-Dependent Protein Serine/Threonine Kinase Activity (GO:0045737) | B140: 3.61E-02 | C140: 1.51E-01 | D140: 30 | E140: 99 | F140: PDGFB | G140: GO Biological Process
A141: p130Cas Linkage to MAPK Signaling for Integrins | B141: 3.61E-02 | C141: 2.98E-01 | D141: 30 | E141: 99 | F141: BCAR1 | G141: Reactome
A142: Positive Regulation Of Epithelial Cell Proliferation (GO:0050679) | B142: 3.66E-02 | C142: 1.52E-01 | D142: 7 | E142: 23 | F142: XBP1;PDGFB | G142: GO Biological Process
A143: Cellular Response To Starvation (GO:0009267) | B143: 3.82E-02 | C143: 1.52E-01 | D143: 7 | E143: 22 | F143: XBP1;CPEB4 | G143: GO Biological Process
A144: MHC Class II Antigen Presentation | B144: 3.82E-02 | C144: 2.98E-01 | D144: 7 | E144: 22 | F144: HLA-DPB1;CTSC | G144: Reactome
A145: Sulfation (GO:0051923) | B145: 3.85E-02 | C145: 1.52E-01 | D145: 28 | E145: 90 | F145: SULT1A2 | G145: GO Biological Process
A146: Positive Regulation Of Smooth Muscle Cell Migration (GO:0014911) | B146: 3.85E-02 | C146: 1.52E-01 | D146: 28 | E146: 90 | F146: PDGFB | G146: GO Biological Process
A147: Regulation Of Steroid Biosynthetic Process (GO:0050810) | B147: 3.85E-02 | C147: 1.52E-01 | D147: 28 | E147: 90 | F147: DGKQ | G147: GO Biological Process
A148: Negative Regulation Of RNA Biosynthetic Process (GO:1902679) | B148: 3.85E-02 | C148: 1.52E-01 | D148: 28 | E148: 90 | F148: APOBEC3B | G148: GO Biological Process
A149: Ruffle Organization (GO:0031529) | B149: 3.85E-02 | C149: 1.52E-01 | D149: 28 | E149: 90 | F149: TPM1 | G149: GO Biological Process
A150: Lysosome | B150: 3.93E-02 | C150: 3.96E-01 | D150: 7 | E150: 22 | F150: IDUA;CTSC | G150: KEGG
A151: Formation of the Cornified Envelope | B151: 3.99E-02 | C151: 2.98E-01 | D151: 7 | E151: 21 | F151: KRT79;KRT8 | G151: Reactome
A152: Positive Regulation Of Peptidyl-Tyrosine Phosphorylation (GO:0050731) | B152: 4.04E-02 | C152: 1.54E-01 | D152: 7 | E152: 21 | F152: DGKQ;PDGFB | G152: GO Biological Process
A153: Positive Regulation Of Heart Rate (GO:0010460) | B153: 4.09E-02 | C153: 1.54E-01 | D153: 26 | E153: 83 | F153: TPM1 | G153: GO Biological Process
A154: Negative Regulation Of Striated Muscle Cell Differentiation (GO:0051154) | B154: 4.09E-02 | C154: 1.54E-01 | D154: 26 | E154: 83 | F154: XBP1 | G154: GO Biological Process
A155: Negative Regulation Of Vascular Associated Smooth Muscle Cell Proliferation (GO:1904706) | B155: 4.09E-02 | C155: 1.54E-01 | D155: 26 | E155: 83 | F155: TPM1 | G155: GO Biological Process
A156: Base Conversion Or Substitution Editing (GO:0016553) | B156: 4.09E-02 | C156: 1.54E-01 | D156: 26 | E156: 83 | F156: APOBEC3B | G156: GO Biological Process
A157: Regulation Of Single Stranded Viral RNA Replication Via Double Stranded DNA Intermediate (GO:0045091) | B157: 4.09E-02 | C157: 1.54E-01 | D157: 26 | E157: 83 | F157: APOBEC3B | G157: GO Biological Process
A158: Supramolecular Fiber Organization (GO:0097435) | B158: 4.22E-02 | C158: 1.57E-01 | D158: 4 | E158: 13 | F158: TPM1;KRT79;BCAR1 | G158: GO Biological Process
A159: Positive Regulation Of Response To Endoplasmic Reticulum Stress (GO:1905898) | B159: 4.32E-02 | C159: 1.57E-01 | D159: 24 | E159: 77 | F159: XBP1 | G159: GO Biological Process
A160: Nitric Oxide Mediated Signal Transduction (GO:0007263) | B160: 4.32E-02 | C160: 1.57E-01 | D160: 24 | E160: 77 | F160: PDX1 | G160: GO Biological Process
A161: Response To Organophosphorus (GO:0046683) | B161: 4.32E-02 | C161: 1.57E-01 | D161: 24 | E161: 77 | F161: DGKQ | G161: GO Biological Process
A162: Positive Regulation Of Cyclin-Dependent Protein Kinase Activity (GO:1904031) | B162: 4.32E-02 | C162: 1.57E-01 | D162: 24 | E162: 77 | F162: PDGFB | G162: GO Biological Process
A163: N-glycan Processing (GO:0006491) | B163: 4.56E-02 | C163: 1.61E-01 | D163: 23 | E163: 71 | F163: MAN2A2 | G163: GO Biological Process
A164: Insulin Secretion (GO:0030073) | B164: 4.56E-02 | C164: 1.61E-01 | D164: 23 | E164: 71 | F164: PDX1 | G164: GO Biological Process
A165: Regulation Of Smooth Muscle Cell Migration (GO:0014910) | B165: 4.56E-02 | C165: 1.61E-01 | D165: 23 | E165: 71 | F165: PDGFB | G165: GO Biological Process
A166: Regulation Of B Cell Differentiation (GO:0045577) | B166: 4.56E-02 | C166: 1.61E-01 | D166: 23 | E166: 71 | F166: XBP1 | G166: GO Biological Process
A167: Glycosaminoglycan degradation | B167: 4.56E-02 | C167: 3.96E-01 | D167: 23 | E167: 71 | F167: IDUA | G167: KEGG
A168: Sulfur Compound Catabolic Process (GO:0044273) | B168: 4.79E-02 | C168: 1.61E-01 | D168: 22 | E168: 66 | F168: IDUA | G168: GO Biological Process
A169: Negative Regulation Of miRNA Transcription (GO:1902894) | B169: 4.79E-02 | C169: 1.61E-01 | D169: 22 | E169: 66 | F169: PDGFB | G169: GO Biological Process
A170: Positive Regulation Of Vascular Associated Smooth Muscle Cell Proliferation (GO:1904707) | B170: 4.79E-02 | C170: 1.61E-01 | D170: 22 | E170: 66 | F170: PDGFB | G170: GO Biological Process
A171: Receptor Metabolic Process (GO:0043112) | B171: 4.79E-02 | C171: 1.61E-01 | D171: 22 | E171: 66 | F171: SNX25 | G171: GO Biological Process
A172: Monocarboxylic Acid Catabolic Process (GO:0072329) | B172: 4.79E-02 | C172: 1.61E-01 | D172: 22 | E172: 66 | F172: IDUA | G172: GO Biological Process
A173: Response To ATP (GO:0033198) | B173: 4.79E-02 | C173: 1.61E-01 | D173: 22 | E173: 66 | F173: DGKQ | G173: GO Biological Process
A174: Regulation Of Calcium Ion Import (GO:0090279) | B174: 4.79E-02 | C174: 1.61E-01 | D174: 22 | E174: 66 | F174: PDGFB | G174: GO Biological Process
A175: Protein Hydroxylation | B175: 4.79E-02 | C175: 2.98E-01 | D175: 22 | E175: 66 | F175: RCCD1 | G175: Reactome
A176: Maturation of TCA Enzymes and Regulation of TCA Cycle | B176: 4.79E-02 | C176: 2.98E-01 | D176: 22 | E176: 66 | F176: SDHA | G176: Reactome
A177: Actin Filament Organization (GO:0007015) | B177: 4.86E-02 | C177: 1.62E-01 | D177: 6 | E177: 18 | F177: TPM1;BCAR1 | G177: GO Biological Process

Sheet Table S14
A1: Table S14: Results of Mendelian randomization of metabolic and lifestyle factors in relation to pancreatic cancer
E2: IVW-fixed | H2: IVW-random | K2: Weighted median | N2: MR-Egger | S2: MR-PRESSO
A3: Exposure | B3: nsnp | C3: Q | D3: Q_pval | E3: Beta | F3: SE | G3: Pval | H3: Beta | I3: SE | J3: Pval | K3: Beta | L3: SE | M3: Pval | N3: Beta | O3: SE | P3: Pval | Q3: MR_Egger_intercept | R3: MR_Egger_pval | S3: Beta | T3: SE | U3: Pval
A4: Fasting insulin | B4: 38 | C4: 50.273 | D4: 0.071 | E4: 0.547 | F4: 0.198 | G4: 5.77E-03 | H4: 0.547 | I4: 0.231 | J4: 1.79E-02 | K4: 0.672 | L4: 0.311 | M4: 3.09E-02 | N4: 0.748 | O4: 0.712 | P4: 3.01E-01 | Q4: -0.004 | R4: 7.67E-01
A5: Coffee consumption | B5: 11 | C5: 13.163 | D5: 0.215 | E5: 0.382 | F5: 0.129 | G5: 3.08E-03 | H5: 0.382 | I5: 0.148 | J5: 9.88E-03 | K5: 0.572 | L5: 0.192 | M5: 2.95E-03 | N5: 0.453 | O5: 0.294 | P5: 1.57E-01 | Q5: -0.004 | R5: 7.81E-01
A6: Waist-to-hip ratio | B6: 568 | C6: 680.960 | D6: 0.001 | E6: 0.374 | F6: 0.054 | G6: 3.91E-12 | H6: 0.374 | I6: 0.059 | J6: 2.40E-10 | K6: 0.390 | L6: 0.094 | M6: 3.61E-05 | N6: 0.167 | O6: 0.170 | P6: 3.27E-01 | Q6: 0.003 | R6: 1.97E-01 | S6: 0.387 | T6: 0.058 | U6: 7.40E-11
A7: Lifetime smoking index | B7: 126 | C7: 151.173 | D7: 0.056 | E7: 0.336 | F7: 0.114 | G7: 3.26E-03 | H7: 0.336 | I7: 0.126 | J7: 7.47E-03 | K7: 0.229 | L7: 0.178 | M7: 1.97E-01 | N7: -0.045 | O7: 0.514 | P7: 9.30E-01 | Q7: 0.006 | R7: 4.45E-01
A8: Cigarettes/day | B8: 65 | C8: 67.969 | D8: 0.344 | E8: 0.324 | F8: 0.101 | G8: 1.40E-03 | H8: 0.324 | I8: 0.105 | J8: 1.93E-03 | K8: 0.144 | L8: 0.155 | M8: 3.54E-01 | N8: 0.074 | O8: 0.191 | P8: 6.99E-01 | Q8: 0.008 | R8: 1.25E-01
A9: Body mass index | B9: 307 | C9: 329.688 | D9: 0.168 | E9: 0.261 | F9: 0.061 | G9: 1.96E-05 | H9: 0.261 | I9: 0.063 | J9: 3.90E-05 | K9: 0.286 | L9: 0.111 | M9: 1.04E-02 | N9: 0.135 | O9: 0.155 | P9: 3.85E-01 | Q9: 0.002 | R9: 3.71E-01
A10: Smoking initiation | B10: 343 | C10: 407.632 | D10: 0.008 | E10: 0.255 | F10: 0.087 | G10: 3.34E-03 | H10: 0.255 | I10: 0.095 | J10: 7.19E-03 | K10: 0.291 | L10: 0.129 | M10: 2.44E-02 | N10: 0.299 | O10: 0.391 | P10: 4.45E-01 | Q10: -0.001 | R10: 9.07E-01
A11: Visceral adiposity | B11: 292 | C11: 327.541 | D11: 0.069 | E11: 0.218 | F11: 0.057 | G11: 1.13E-04 | H11: 0.218 | I11: 0.060 | J11: 2.73E-04 | K11: 0.304 | L11: 0.097 | M11: 1.69E-03 | N11: 0.647 | O11: 0.189 | P11: 6.91E-04 | Q11: -0.009 | R11: 1.73E-02
A12: Type 2 diabetes | B12: 491 | C12: 745.032 | D12: 0.000 | E12: 0.048 | F12: 0.021 | G12: 2.46E-02 | H12: 0.048 | I12: 0.026 | J12: 6.83E-02 | K12: 0.028 | L12: 0.040 | M12: 4.86E-01 | N12: -0.047 | O12: 0.053 | P12: 3.76E-01 | Q12: 0.005 | R12: 3.87E-02 | S12: 0.068 | T12: 0.024 | U12: 4.70E-03
A13: Fasting glucose | B13: 68 | C13: 123.164 | D13: 0.000 | E13: -0.118 | F13: 0.109 | G13: 2.79E-01 | H13: -0.118 | I13: 0.147 | J13: 4.25E-01 | K13: 0.099 | L13: 0.197 | M13: 6.15E-01 | N13: 0.328 | O13: 0.278 | P13: 2.42E-01 | Q13: -0.012 | R13: 6.46E-02 | S13: -0.140 | T13: 0.133 | U13: 2.97E-01
A14: Alcohol consumption | B14: 112 | C14: 136.017 | D14: 0.054 | E14: -0.188 | F14: 0.127 | G14: 1.39E-01 | H14: -0.188 | I14: 0.141 | J14: 1.82E-01 | K14: 0.261 | L14: 0.208 | M14: 2.10E-01 | N14: 0.064 | O14: 0.312 | P14: 8.38E-01 | Q14: -0.004 | R14: 3.67E-01
A15: Moderate to vigorous physical activity | B15: 19 | C15: 16.274 | D15: 0.573 | E15: -0.943 | F15: 0.302 | G15: 1.79E-03 | H15: -0.943 | I15: 0.287 | J15: 1.02E-03 | K15: -0.746 | L15: 0.418 | M15: 7.45E-02 | N15: -3.383 | O15: 1.502 | P15: 3.78E-02 | Q15: 0.037 | R15: 1.16E-01

Sheet Table S15
A1: Table S15: Proteome-wide two-sample Mendelian randomization results of pancreatic cancer risk in deCODE.
A2: Soma_ID | B2: Protein | C2: method | D2: nsnp | E2: b | F2: se | G2: pval | H2: p.adj
A3: 5671_1 | B3: CTRB1 | C3: Wald ratio | D3: 1 | E3: -0.307 | F3: 0.047 | G3: 4.17E-11 | H3: 4.64E-08
A4: 11646_4 | B4: CHST9 | C4: Wald ratio | D4: 1 | E4: -0.303 | F4: 0.072 | G4: 2.84E-05 | H4: 1.58E-02
A5: 13388_57 | B5: PCSK1 | C5: Wald ratio | D5: 1 | E5: 0.083 | F5: 0.022 | G5: 1.19E-04 | H5: 4.31E-02
A6: 4548_4 | B6: FUT3 | C6: Wald ratio | D6: 1 | E6: -0.105 | F6: 0.028 | G6: 1.55E-04 | H6: 4.31E-02
A7: 12437_18 | B7: ULK3 | C7: Wald ratio | D7: 1 | E7: -0.700 | F7: 0.213 | G7: 9.95E-04 | H7: 2.21E-01
A8: 13132_14 | B8: SEMA5A | C8: Wald ratio | D8: 1 | E8: -0.073 | F8: 0.023 | G8: 1.74E-03 | H8: 2.73E-01
A9: 5132_71 | B9: IL27RA | C9: Wald ratio | D9: 1 | E9: 0.064 | F9: 0.021 | G9: 2.01E-03 | H9: 2.73E-01
A10: 19590_46 | B10: SFTPD | C10: Wald ratio | D10: 1 | E10: -0.102 | F10: 0.034 | G10: 2.28E-03 | H10: 2.73E-01
A11: 6366_38 | B11: TXNDC15 | C11: Wald ratio | D11: 1 | E11: 0.151 | F11: 0.050 | G11: 2.31E-03 | H11: 2.73E-01
A12: 12469_19 | B12: MAPRE1 | C12: Wald ratio | D12: 1 | E12: 0.830 | F12: 0.276 | G12: 2.65E-03 | H12: 2.73E-01
A13: 8859_51 | B13: CA11 | C13: Wald ratio | D13: 1 | E13: -0.397 | F13: 0.132 | G13: 2.70E-03 | H13: 2.73E-01
A14: 3488_64 | B14: CAT | C14: Wald ratio | D14: 1 | E14: 0.283 | F14: 0.098 | G14: 3.81E-03 | H14: 3.19E-01
A15: 12633_3 | B15: PTPN9 | C15: Wald ratio | D15: 1 | E15: -0.773 | F15: 0.270 | G15: 4.20E-03 | H15: 3.19E-01
A16: 9211_19 | B16: SERPINF1 | C16: Wald ratio | D16: 1 | E16: -0.178 | F16: 0.062 | G16: 4.25E-03 | H16: 3.19E-01
A17: 15559_5 | B17: ANTXR2 | C17: Wald ratio | D17: 1 | E17: 0.286 | F17: 0.100 | G17: 4.30E-03 | H17: 3.19E-01
A18: 12656_1 | B18: KLC1 | C18: Wald ratio | D18: 1 | E18: 0.540 | F18: 0.197 | G18: 5.99E-03 | H18: 4.16E-01
A19: 15521_4 | B19: CLSTN1 | C19: Wald ratio | D19: 1 | E19: 0.102 | F19: 0.039 | G19: 8.59E-03 | H19: 5.62E-01
A20: 8053_16 | B20: DNAJB14 | C20: Wald ratio | D20: 1 | E20: 0.751 | F20: 0.290 | G20: 9.71E-03 | H20: 5.94E-01
A21: 16773_29 | B21: SCUBE3 | C21: Wald ratio | D21: 1 | E21: -0.227 | F21: 0.089 | G21: 1.06E-02 | H21: 5.94E-01
A22: 4534_10 | B22: PRSS22 | C22: Wald ratio | D22: 1 | E22: 0.197 | F22: 0.078 | G22: 1.12E-02 | H22: 5.94E-01
A23: 3024_18 | B23: SERPINF2 | C23: Wald ratio | D23: 1 | E23: -0.314 | F23: 0.125 | G23: 1.19E-02 | H23: 5.94E-01
A24: 18396_10 | B24: AES | C24: Wald ratio | D24: 1 | E24: -0.858 | F24: 0.342 | G24: 1.19E-02 | H24: 5.94E-01
A25: 4549_78 | B25: FUT5 | C25: Wald ratio | D25: 1 | E25: -0.086 | F25: 0.035 | G25: 1.38E-02 | H25: 5.94E-01
A26: 5124_69 | B26: ICAM5 | C26: Wald ratio | D26: 1 | E26: 0.061 | F26: 0.025 | G26: 1.43E-02 | H26: 5.94E-01
A27: 8245_27 | B27: ICAM5 | C27: Wald ratio | D27: 1 | E27: 0.062 | F27: 0.025 | G27: 1.43E-02 | H27: 5.94E-01
A28: 5620_13 | B28: PAM | C28: Wald ratio | D28: 1 | E28: 0.095 | F28: 0.039 | G28: 1.43E-02 | H28: 5.94E-01
A29: 12859_33 | B29: ECI2 | C29: Wald ratio | D29: 1 | E29: 0.107 | F29: 0.044 | G29: 1.44E-02 | H29: 5.94E-01
A30: 3796_79 | B30: ANGPTL4 | C30: Wald ratio | D30: 1 | E30: 0.456 | F30: 0.188 | G30: 1.51E-02 | H30: 5.95E-01
A31: 17765_3 | B31: SNUPN | C31: Wald ratio | D31: 1 | E31: -0.330 | F31: 0.136 | G31: 1.55E-02 | H31: 5.95E-01
A32: 4152_58 | B32: KLKB1 | C32: Wald ratio | D32: 1 | E32: -0.141 | F32: 0.059 | G32: 1.62E-02 | H32: 5.98E-01
A33: 14208_3 | B33: RBP7 | C33: Wald ratio | D33: 1 | E33: 0.374 | F33: 0.156 | G33: 1.67E-02 | H33: 5.98E-01
A34: 10605_22 | B34: APMAP | C34: Wald ratio | D34: 1 | E34: -0.453 | F34: 0.191 | G34: 1.77E-02 | H34: 6.14E-01
A35: 9005_16 | B35: PLXNA1 | C35: Wald ratio | D35: 1 | E35: 0.171 | F35: 0.072 | G35: 1.83E-02 | H35: 6.18E-01
A36: 8958_51 | B36: CHL1 | C36: Wald ratio | D36: 1 | E36: 0.180 | F36: 0.077 | G36: 1.99E-02 | H36: 6.33E-01
A37: 19614_8 | B37: TCN1 | C37: Wald ratio | D37: 1 | E37: -0.128 | F37: 0.056 | G37: 2.14E-02 | H37: 6.33E-01
A38: 3212_30 | B38: ASAH2 | C38: Wald ratio | D38: 1 | E38: 0.093 | F38: 0.040 | G38: 2.20E-02 | H38: 6.33E-01
A39: 12594_5 | B39: GCA | C39: Wald ratio | D39: 1 | E39: 0.130 | F39: 0.057 | G39: 2.21E-02 | H39: 6.33E-01
A40: 3459_49 | B40: PDGFRB | C40: Wald ratio | D40: 1 | E40: -0.034 | F40: 0.015 | G40: 2.23E-02 | H40: 6.33E-01
A41: 8310_6 | B41: ZG16B | C41: Wald ratio | D41: 1 | E41: -0.223 | F41: 0.098 | G41: 2.33E-02 | H41: 6.33E-01
A42: 15363_32 | B42: APOA5 | C42: Wald ratio | D42: 1 | E42: -0.063 | F42: 0.028 | G42: 2.42E-02 | H42: 6.33E-01
A43: 15475_4 | B43: PLTP | C43: Wald ratio | D43: 1 | E43: 0.095 | F43: 0.042 | G43: 2.42E-02 | H43: 6.33E-01
A44: 4801_13 | B44: LPO | C44: Wald ratio | D44: 1 | E44: -0.148 | F44: 0.066 | G44: 2.44E-02 | H44: 6.33E-01
A45: 5601_2 | B45: PGLYRP2 | C45: Wald ratio | D45: 1 | E45: -0.142 | F45: 0.063 | G45: 2.53E-02 | H45: 6.33E-01
A46: 13671_40 | B46: ELANE | C46: Wald ratio | D46: 1 | E46: 0.142 | F46: 0.064 | G46: 2.64E-02 | H46: 6.33E-01
A47: 12445_50 | B47: ANKRD27 | C47: Wald ratio | D47: 1 | E47: 0.727 | F47: 0.329 | G47: 2.71E-02 | H47: 6.33E-01
A48: 9076_25 | B48: PENK | C48: Wald ratio | D48: 1 | E48: -0.079 | F48: 0.036 | G48: 2.74E-02 | H48: 6.33E-01
A49: 2620_4 | B49: IL6ST | C49: Wald ratio | D49: 1 | E49: -0.158 | F49: 0.072 | G49: 2.87E-02 | H49: 6.33E-01
A50: 9832_33 | B50: HGD | C50: Wald ratio | D50: 1 | E50: -0.341 | F50: 0.156 | G50: 2.91E-02 | H50: 6.33E-01
A51: 9312_8 | B51: AZGP1 | C51: Wald ratio | D51: 1 | E51: -0.170 | F51: 0.078 | G51: 2.99E-02 | H51: 6.33E-01
A52: 4407_10 | B52: MST1 | C52: Wald ratio | D52: 1 | E52: 0.032 | F52: 0.015 | G52: 3.11E-02 | H52: 6.33E-01
A53: 5728_60 | B53: FCRL1 | C53: Wald ratio | D53: 1 | E53: 0.096 | F53: 0.045 | G53: 3.23E-02 | H53: 6.33E-01
A54: 14133_93 | B54: IL1R2 | C54: Wald ratio | D54: 1 | E54: 0.089 | F54: 0.042 | G54: 3.24E-02 | H54: 6.33E-01
A55: 16583_8 | B55: NUDT2 | C55: Wald ratio | D55: 1 | E55: -0.143 | F55: 0.067 | G55: 3.24E-02 | H55: 6.33E-01
A56: 4984_83 | B56: ESD | C56: Wald ratio | D56: 1 | E56: -0.185 | F56: 0.087 | G56: 3.25E-02 | H56: 6.33E-01
A57: 3283_21 | B57: TGFBI | C57: Wald ratio | D57: 1 | E57: -0.078 | F57: 0.037 | G57: 3.33E-02 | H57: 6.33E-01
A58: 11211_7 | B58: TBCE | C58: Wald ratio | D58: 1 | E58: 0.366 | F58: 0.172 | G58: 3.35E-02 | H58: 6.33E-01
A59: 7947_19 | B59: ENTHD2 | C59: Wald ratio | D59: 1 | E59: -0.637 | F59: 0.300 | G59: 3.35E-02 | H59: 6.33E-01
A60: 12008_3 | B60: CD7 | C60: Wald ratio | D60: 1 | E60: 0.210 | F60: 0.100 | G60: 3.47E-02 | H60: 6.33E-01
A61: 15398_2 | B61: GFER | C61: Wald ratio | D61: 1 | E61: 0.674 | F61: 0.320 | G61: 3.49E-02 | H61: 6.33E-01
A62: 7916_10 | B62: S100A7 | C62: Wald ratio | D62: 1 | E62: 0.045 | F62: 0.022 | G62: 3.54E-02 | H62: 6.33E-01
A63: 10451_11 | B63: NUCB1 | C63: Wald ratio | D63: 1 | E63: -0.278 | F63: 0.132 | G63: 3.58E-02 | H63: 6.33E-01
A64: 9314_9 | B64: PSG5 | C64: Wald ratio | D64: 1 | E64: -0.169 | F64: 0.081 | G64: 3.61E-02 | H64: 6.33E-01
A65: 5006_71 | B65: MAPK13 | C65: Wald ratio | D65: 1 | E65: -0.339 | F65: 0.162 | G65: 3.66E-02 | H65: 6.33E-01
A66: 9838_4 | B66: SMAD1 | C66: Wald ratio | D66: 1 | E66: 0.722 | F66: 0.346 | G66: 3.69E-02 | H66: 6.33E-01
A67: 3651_50 | B67: KDR | C67: Wald ratio | D67: 1 | E67: 0.118 | F67: 0.057 | G67: 3.70E-02 | H67: 6.33E-01
A68: 2828_82 | B68: SPINT1 | C68: Wald ratio | D68: 1 | E68: 0.205 | F68: 0.098 | G68: 3.78E-02 | H68: 6.34E-01
A69: 17843_30 | B69: PPCS | C69: Wald ratio | D69: 1 | E69: 0.367 | F69: 0.177 | G69: 3.88E-02 | H69: 6.34E-01
A70: 5657_28 | B70: ST3GAL1 | C70: Wald ratio | D70: 1 | E70: -0.142 | F70: 0.069 | G70: 3.96E-02 | H70: 6.34E-01
A71: 18386_36 | B71: GLRX | C71: Wald ratio | D71: 1 | E71: -0.499 | F71: 0.243 | G71: 4.00E-02 | H71: 6.34E-01
A72: 17682_1 | B72: CD46 | C72: Wald ratio | D72: 1 | E72: -0.150 | F72: 0.073 | G72: 4.02E-02 | H72: 6.34E-01
A73: 14688_6 | B73: PTPN7 | C73: Wald ratio | D73: 1 | E73: -0.818 | F73: 0.401 | G73: 4.12E-02 | H73: 6.34E-01
A74: 4471_50 | B74: TGM3 | C74: Wald ratio | D74: 1 | E74: 0.102 | F74: 0.050 | G74: 4.15E-02 | H74: 6.34E-01
A75: 13944_3 | B75: SULT1A3 | C75: Wald ratio | D75: 1 | E75: 0.281 | F75: 0.138 | G75: 4.16E-02 | H75: 6.34E-01
A76: 15471_29 | B76: PNLIPRP2 | C76: Wald ratio | D76: 1 | E76: 0.034 | F76: 0.017 | G76: 4.43E-02 | H76: 6.65E-01
A77: 3331_8 | B77: RGMB | C77: Wald ratio | D77: 1 | E77: 0.241 | F77: 0.120 | G77: 4.55E-02 | H77: 6.71E-01
A78: 2979_8 | B78: CXCL5 | C78: Wald ratio | D78: 1 | E78: 0.275 | F78: 0.138 | G78: 4.63E-02 | H78: 6.71E-01
A79: 12386_11 | B79: RNPEP | C79: Wald ratio | D79: 1 | E79: 0.125 | F79: 0.063 | G79: 4.73E-02 | H79: 6.71E-01
A80: 14107_1 | B80: MTHFS | C80: Wald ratio | D80: 1 | E80: -0.100 | F80: 0.051 | G80: 4.73E-02 | H80: 6.71E-01
A81: 9578_263 | B81: MANSC4 | C81: Wald ratio | D81: 1 | E81: 0.071 | F81: 0.036 | G81: 4.76E-02 | H81: 6.71E-01
A82: 6382_17 | B82: MANBA | C82: Wald ratio | D82: 1 | E82: -0.079 | F82: 0.040 | G82: 4.92E-02 | H82: 6.76E-01
A83: 19563_3 | B83: SEZ6L | C83: Wald ratio | D83: 1 | E83: -0.600 | F83: 0.306 | G83: 4.96E-02 | H83: 6.76E-01
A84: 2731_29 | B84: POR | C84: Wald ratio | D84: 1 | E84: -0.209 | F84: 0.107 | G84: 4.99E-02 | H84: 6.76E-01
A85: 13597_20 | B85: RAB31 | C85: Wald ratio | D85: 1 | E85: -0.287 | F85: 0.148 | G85: 5.22E-02 | H85: 6.95E-01
A86: 12387_7 | B86: PDLIM4 | C86: Wald ratio | D86: 1 | E86: -0.222 | F86: 0.114 | G86: 5.25E-02 | H86: 6.95E-01
A87: 4479_14 | B87: SERPING1 | C87: Wald ratio | D87: 1 | E87: -0.053 | F87: 0.027 | G87: 5.35E-02 | H87: 7.01E-01
A88: 12449_16 | B88: PPIH | C88: Wald ratio | D88: 1 | E88: 0.147 | F88: 0.077 | G88: 5.55E-02 | H88: 7.17E-01
A89: 2590_69 | B89: ROR1 | C89: Wald ratio | D89: 1 | E89: -0.132 | F89: 0.069 | G89: 5.63E-02 | H89: 7.17E-01
A90: 15509_2 | B90: NAGLU | C90: Wald ratio | D90: 1 | E90: -0.052 | F90: 0.027 | G90: 5.68E-02 | H90: 7.17E-01
A91: 3825_18 | B91: MAPK8 | C91: Wald ratio | D91: 1 | E91: 0.614 | F91: 0.323 | G91: 5.74E-02 | H91: 7.17E-01
A92: 2742_68 | B92: SIGLEC7 | C92: Wald ratio | D92: 1 | E92: 0.130 | F92: 0.069 | G92: 5.87E-02 | H92: 7.24E-01
A93: 5637_81 | B93: NTNG1 | C93: Wald ratio | D93: 1 | E93: 0.055 | F93: 0.029 | G93: 5.96E-02 | H93: 7.24E-01
A94: 5918_5 | B94: PSME1 | C94: Wald ratio | D94: 1 | E94: -0.612 | F94: 0.325 | G94: 6.01E-02 | H94: 7.24E-01
A95: 14153_8 | B95: EFNA3 | C95: Wald ratio | D95: 1 | E95: -0.837 | F95: 0.446 | G95: 6.05E-02 | H95: 7.24E-01
A96: 10666_7 | B96: GNPTG | C96: Wald ratio | D96: 1 | E96: -0.119 | F96: 0.064 | G96: 6.16E-02 | H96: 7.28E-01
A97: 7648_9 | B97: MYBPC1 | C97: Wald ratio | D97: 1 | E97: -0.395 | F97: 0.212 | G97: 6.26E-02 | H97: 7.32E-01
A98: 4771_10 | B98: SMPDL3A | C98: Wald ratio | D98: 1 | E98: -0.144 | F98: 0.078 | G98: 6.36E-02 | H98: 7.32E-01
A99: 5586_66 | B99: MINPP1 | C99: Wald ratio | D99: 1 | E99: 0.343 | F99: 0.185 | G99: 6.40E-02 | H99: 7.32E-01
A100: 10809_14 | B100: KLRB1 | C100: Wald ratio | D100: 1 | E100: -0.133 | F100: 0.072 | G100: 6.45E-02 | H100: 7.32E-01
A101: 15635_4 | B101: SMOC2 | C101: Wald ratio | D101: 1 | E101: -0.112 | F101: 0.061 | G101: 6.56E-02 | H101: 7.34E-01
A102: 7861_9 | B102: ROR2 | C102: Wald ratio | D102: 1 | E102: 0.226 | F102: 0.124 | G102: 6.72E-02 | H102: 7.34E-01
A103: 5632_6 | B103: CRTAC1 | C103: Wald ratio | D103: 1 | E103: -0.090 | F103: 0.049 | G103: 6.72E-02 | H103: 7.34E-01
A104: 13473_55 | B104: ITPKA | C104: Wald ratio | D104: 1 | E104: 0.447 | F104: 0.244 | G104: 6.73E-02 | H104: 7.34E-01
A105: 8346_9 | B105: DPP7 | C105: Wald ratio | D105: 1 | E105: -0.072 | F105: 0.040 | G105: 6.94E-02 | H105: 7.42E-01
A106: 2944_66 | B106: NBL1 | C106: Wald ratio | D106: 1 | E106: -0.804 | F106: 0.443 | G106: 6.99E-02 | H106: 7.42E-01
A107: 19446_1 | B107: GMPR2 | C107: Wald ratio | D107: 1 | E107: -0.149 | F107: 0.082 | G107: 7.08E-02 | H107: 7.42E-01
A108: 9876_20 | B108: ALDOC | C108: Wald ratio | D108: 1 | E108: -0.297 | F108: 0.165 | G108: 7.20E-02 | H108: 7.42E-01
A109: 2692_74 | B109: PLA2G2A | C109: Wald ratio | D109: 1 | E109: 0.046 | F109: 0.026 | G109: 7.22E-02 | H109: 7.42E-01
A110: 3389_7 | B110: SERPINA5 | C110: Wald ratio | D110: 1 | E110: -0.140 | F110: 0.078 | G110: 7.40E-02 | H110: 7.42E-01
A111: 3484_60 | B111: AGT | C111: Wald ratio | D111: 1 | E111: 0.170 | F111: 0.095 | G111: 7.44E-02 | H111: 7.42E-01
A112: 16057_6 | B112: IGF2R | C112: Wald ratio | D112: 1 | E112: 0.079 | F112: 0.045 | G112: 7.54E-02 | H112: 7.42E-01
A113: 9216_100 | B113: PLXNB2 | C113: Wald ratio | D113: 1 | E113: 0.068 | F113: 0.038 | G113: 7.67E-02 | H113: 7.42E-01
A114: 10977_55 | B114: UCMA | C114: Wald ratio | D114: 1 | E114: -0.127 | F114: 0.072 | G114: 7.86E-02 | H114: 7.42E-01
A115: 4440_15 | B115: FCRL3 | C115: Wald ratio | D115: 1 | E115: 0.052 | F115: 0.030 | G115: 7.88E-02 | H115: 7.42E-01
A116: 10851_77 | B116: EBI3 | C116: Wald ratio | D116: 1 | E116: 0.029 | F116: 0.017 | G116: 7.97E-02 | H116: 7.42E-01
A117: 5129_12 | B117: SCARF1 | C117: Wald ratio | D117: 1 | E117: -0.076 | F117: 0.044 | G117: 8.01E-02 | H117: 7.42E-01
A118: 3059_50 | B118: TNFSF13B | C118: Wald ratio | D118: 1 | E118: 0.532 | F118: 0.305 | G118: 8.15E-02 | H118: 7.42E-01
A119: 5581_28 | B119: FGL1 | C119: Wald ratio | D119: 1 | E119: 0.060 | F119: 0.035 | G119: 8.16E-02 | H119: 7.42E-01
A120: 6627_25 | B120: PNLIPRP1 | C120: Wald ratio | D120: 1 | E120: -0.207 | F120: 0.119 | G120: 8.24E-02 | H120: 7.42E-01
A121: 10938_13 | B121: CD58 | C121: Wald ratio | D121: 1 | E121: -0.164 | F121: 0.095 | G121: 8.25E-02 | H121: 7.42E-01
A122: 7009_8 | B122: CD72 | C122: Wald ratio | D122: 1 | E122: 0.321 | F122: 0.185 | G122: 8.28E-02 | H122: 7.42E-01
A123: 19176_27 | B123: FAM49B | C123: Wald ratio | D123: 1 | E123: 0.598 | F123: 0.345 | G123: 8.30E-02 | H123: 7.42E-01
A124: 3166_92 | B124: CD33 | C124: Wald ratio | D124: 1 | E124: 0.028 | F124: 0.016 | G124: 8.50E-02 | H124: 7.42E-01
A125: 8476_11 | B125: CHGA | C125: Wald ratio | D125: 1 | E125: 0.125 | F125: 0.072 | G125: 8.50E-02 | H125: 7.42E-01
A126: 19206_20 | B126: NUDT1 | C126: Wald ratio | D126: 1 | E126: 0.265 | F126: 0.154 | G126: 8.55E-02 | H126: 7.42E-01
A127: 17140_57 | B127: PDGFD | C127: Wald ratio | D127: 1 | E127: 0.092 | F127: 0.054 | G127: 8.61E-02 | H127: 7.42E-01
A128: 9341_1 | B128: PDGFD | C128: Wald ratio | D128: 1 | E128: 0.107 | F128: 0.062 | G128: 8.61E-02 | H128: 7.42E-01
A129: 9867_23 | B129: FBP2 | C129: Wald ratio | D129: 1 | E129: 0.224 | F129: 0.131 | G129: 8.61E-02 | H129: 7.42E-01
A130: 6984_6 | B130: IGSF8 | C130: Wald ratio | D130: 1 | E130: -0.206 | F130: 0.120 | G130: 8.65E-02 | H130: 7.42E-01
A131: 8664_36 | B131: PKDCC | C131: Wald ratio | D131: 1 | E131: -0.570 | F131: 0.333 | G131: 8.66E-02 | H131: 7.42E-01
A132: 14067_6 | B132: PKP2 | C132: Wald ratio | D132: 1 | E132: 0.305 | F132: 0.179 | G132: 8.73E-02 | H132: 7.42E-01
A133: 11388_75 | B133: WFDC2 | C133: Wald ratio | D133: 1 | E133: 0.456 | F133: 0.267 | G133: 8.80E-02 | H133: 7.42E-01
A134: 14205_6 | B134: HEXIM2 | C134: Wald ratio | D134: 1 | E134: 0.337 | F134: 0.198 | G134: 8.81E-02 | H134: 7.42E-01
A135: 7784_1 | B135: KNG1 | C135: Wald ratio | D135: 1 | E135: 0.132 | F135: 0.078 | G135: 8.92E-02 | H135: 7.46E-01
A136: 12670_15 | B136: RAD1 | C136: Wald ratio | D136: 1 | E136: 0.603 | F136: 0.356 | G136: 9.00E-02 | H136: 7.46E-01
A137: 17781_191 | B137: MAP1LC3A | C137: Wald ratio | D137: 1 | E137: -0.830 | F137: 0.491 | G137: 9.06E-02 | H137: 7.46E-01
A138: 6969_14 | B138: WFDC5 | C138: Wald ratio | D138: 1 | E138: -0.541 | F138: 0.322 | G138: 9.31E-02 | H138: 7.54E-01
A139: 17327_3 | B139: CNPY3 | C139: Wald ratio | D139: 1 | E139: 0.243 | F139: 0.145 | G139: 9.36E-02 | H139: 7.54E-01
A140: 13943_38 | B140: DPY30 | C140: Wald ratio | D140: 1 | E140: -0.470 | F140: 0.281 | G140: 9.51E-02 | H140: 7.54E-01
A141: 9790_28 | B141: BRSK2 | C141: Wald ratio | D141: 1 | E141: 0.174 | F141: 0.104 | G141: 9.52E-02 | H141: 7.54E-01
A142: 5487_7 | B142: SLAMF7 | C142: Wald ratio | D142: 1 | E142: 0.035 | F142: 0.021 | G142: 9.56E-02 | H142: 7.54E-01
A143: 9231_23 | B143: IMPAD1 | C143: Wald ratio | D143: 1 | E143: -0.087 | F143: 0.053 | G143: 9.63E-02 | H143: 7.54E-01
A144: 6471_53 | B144: CFHR4 | C144: Wald ratio | D144: 1 | E144: 0.046 | F144: 0.028 | G144: 9.63E-02 | H144: 7.54E-01
A145: 3820_68 | B145: MAPKAPK2 | C145: Wald ratio | D145: 1 | E145: -0.164 | F145: 0.100 | G145: 1.00E-01 | H145: 7.79E-01
A146: 6955_68 | B146: SNX1 | C146: Wald ratio | D146: 1 | E146: -0.216 | F146: 0.132 | G146: 1.01E-01 | H146: 7.81E-01
A147: 3415_61 | B147: IBSP | C147: Wald ratio | D147: 1 | E147: -0.295 | F147: 0.181 | G147: 1.03E-01 | H147: 7.90E-01
A148: 16307_22 | B148: UNC5D | C148: Wald ratio | D148: 1 | E148: -0.280 | F148: 0.173 | G148: 1.05E-01 | H148: 7.90E-01
A149: 8794_13 | B149: DPEP1 | C149: Wald ratio | D149: 1 | E149: 0.058 | F149: 0.036 | G149: 1.06E-01 | H149: 7.90E-01
A150: 13552_7 | B150: SWAP70 | C150: Wald ratio | D150: 1 | E150: -0.068 | F150: 0.042 | G150: 1.06E-01 | H150: 7.90E-01
A151: 16818_200 | B151: CDCP1 | C151: Wald ratio | D151: 1 | E151: -0.121 | F151: 0.075 | G151: 1.07E-01 | H151: 7.90E-01
A152: 16060_99 | B152: NID2 | C152: Wald ratio | D152: 1 | E152: -0.056 | F152: 0.035 | G152: 1.07E-01 | H152: 7.90E-01
A153: 16781_2 | B153: ENGASE | C153: Wald ratio | D153: 1 | E153: 0.070 | F153: 0.044 | G153: 1.08E-01 | H153: 7.90E-01
A154: 3329_14 | B154: PGLYRP1 | C154: Wald ratio | D154: 1 | E154: 0.161 | F154: 0.101 | G154: 1.09E-01 | H154: 7.90E-01
A155: 18332_17 | B155: CPLX1 | C155: Wald ratio | D155: 1 | E155: 0.500 | F155: 0.312 | G155: 1.09E-01 | H155: 7.90E-01
A156: 3310_62 | B156: FCGR2B | C156: Wald ratio | D156: 1 | E156: -0.028 | F156: 0.018 | G156: 1.09E-01 | H156: 7.90E-01
A157: 5223_59 | B157: GCKR | C157: Wald ratio | D157: 1 | E157: 0.318 | F157: 0.200 | G157: 1.11E-01 | H157: 7.97E-01
A158: 19154_41 | B158: SERPINE2 | C158: Wald ratio | D158: 1 | E158: 0.042 | F158: 0.026 | G158: 1.13E-01 | H158: 7.97E-01
A159: 3206_4 | B159: LYVE1 | C159: Wald ratio | D159: 1 | E159: 0.144 | F159: 0.091 | G159: 1.13E-01 | H159: 7.97E-01
A160: 3296_92 | B160: CNTN2 | C160: Wald ratio | D160: 1 | E160: 0.055 | F160: 0.035 | G160: 1.13E-01 | H160: 7.97E-01
A161: 6930_95 | B161: ST8SIA6 | C161: Wald ratio | D161: 1 | E161: 0.601 | F161: 0.380 | G161: 1.14E-01 | H161: 7.99E-01
A162: 12438_127 | B162: MPG | C162: Wald ratio | D162: 1 | E162: 0.438 | F162: 0.278 | G162: 1.15E-01 | H162: 7.99E-01
A163: 6572_10 | B163: LRRTM4 | C163: Wald ratio | D163: 1 | E163: 0.549 | F163: 0.349 | G163: 1.16E-01 | H163: 7.99E-01
A164: 7822_11 | B164: HRASLS2 | C164: Wald ratio | D164: 1 | E164: -0.569 | F164: 0.363 | G164: 1.17E-01 | H164: 8.05E-01
A165: 4192_10 | B165: AKR1A1 | C165: Wald ratio | D165: 1 | E165: -0.053 | F165: 0.034 | G165: 1.19E-01 | H165: 8.14E-01
A166: 15384_15 | B166: KL | C166: Wald ratio | D166: 1 | E166: 0.176 | F166: 0.114 | G166: 1.20E-01 | H166: 8.14E-01
A167: 14100_63 | B167: C1QC | C167: Wald ratio | D167: 1 | E167: -0.063 | F167: 0.041 | G167: 1.21E-01 | H167: 8.14E-01
A168: 5012_67 | B168: AK1 | C168: Wald ratio | D168: 1 | E168: -0.703 | F168: 0.457 | G168: 1.24E-01 | H168: 8.27E-01
A169: 9185_15 | B169: TFF1 | C169: Wald ratio | D169: 1 | E169: -0.085 | F169: 0.056 | G169: 1.26E-01 | H169: 8.31E-01
A170: 17138_8 | B170: GSTA1 | C170: Wald ratio | D170: 1 | E170: 0.073 | F170: 0.048 | G170: 1.26E-01 | H170: 8.31E-01
A171: 7192_37 | B171: IFNLR1 | C171: Wald ratio | D171: 1 | E171: -0.190 | F171: 0.125 | G171: 1.26E-01 | H171: 8.31E-01
A172: 8068_43 | B172: KIAA1161 | C172: Wald ratio | D172: 1 | E172: -0.220 | F172: 0.144 | G172: 1.27E-01 | H172: 8.31E-01
A173: 11177_16 | B173: KRT5 | C173: Wald ratio | D173: 1 | E173: -0.194 | F173: 0.128 | G173: 1.28E-01 | H173: 8.31E-01
A174: 4459_68 | B174: PCSK7 | C174: Wald ratio | D174: 1 | E174: -0.030 | F174: 0.020 | G174: 1.29E-01 | H174: 8.33E-01
A175: 3033_57 | B175: LGALS2 | C175: Wald ratio | D175: 1 | E175: -0.131 | F175: 0.086 | G175: 1.30E-01 | H175: 8.36E-01
A176: 3054_3 | B176: HP | C176: Wald ratio | D176: 1 | E176: -0.043 | F176: 0.029 | G176: 1.33E-01 | H176: 8.44E-01
A177: 7905_30 | B177: HP | C177: Wald ratio | D177: 1 | E177: -0.047 | F177: 0.031 | G177: 1.33E-01 | H177: 8.44E-01
A178: 12549_33 | B178: HPGDS | C178: Wald ratio | D178: 1 | E178: -0.057 | F178: 0.038 | G178: 1.34E-01 | H178: 8.44E-01
A179: 13112_179 | B179: FSTL1 | C179: Wald ratio | D179: 1 | E179: -0.175 | F179: 0.117 | G179: 1.36E-01 | H179: 8.44E-01
A180: 3617_80 | B180: HGFAC | C180: Wald ratio | D180: 1 | E180: -0.030 | F180: 0.020 | G180: 1.36E-01 | H180: 8.44E-01
A181: 10565_19 | B181: SLITRK3 | C181: Wald ratio | D181: 1 | E181: -0.075 | F181: 0.051 | G181: 1.36E-01 | H181: 8.44E-01
A182: 15435_4 | B182: PNP | C182: Wald ratio | D182: 1 | E182: 0.207 | F182: 0.139 | G182: 1.37E-01 | H182: 8.44E-01
A183: 17419_17 | B183: TES | C183: Wald ratio | D183: 1 | E183: 0.431 | F183: 0.291 | G183: 1.38E-01 | H183: 8.44E-01
A184: 6227_1 | B184: KLK10 | C184: Wald ratio | D184: 1 | E184: 0.041 | F184: 0.028 | G184: 1.38E-01 | H184: 8.44E-01
A185: 3894_15 | B185: NAGK | C185: Wald ratio | D185: 1 | E185: 0.154 | F185: 0.105 | G185: 1.40E-01 | H185: 8.44E-01
A186: 18397_5 | B186: AKR1C4 | C186: Wald ratio | D186: 1 | E186: -0.050 | F186: 0.034 | G186: 1.41E-01 | H186: 8.44E-01
A187: 10714_7 | B187: ACE | C187: Wald ratio | D187: 1 | E187: 0.038 | F187: 0.026 | G187: 1.41E-01 | H187: 8.44E-01
A188: 13692_154 | B188: WISP1 | C188: Wald ratio | D188: 1 | E188: 0.059 | F188: 0.040 | G188: 1.41E-01 | H188: 8.44E-01
A189: 17435_43 | B189: ETFA | C189: Wald ratio | D189: 1 | E189: 0.471 | F189: 0.322 | G189: 1.43E-01 | H189: 8.45E-01
A190: 18408_26 | B190: ARF4 | C190: Wald ratio | D190: 1 | E190: 0.302 | F190: 0.207 | G190: 1.44E-01 | H190: 8.45E-01
A191: 15324_58 | B191: FTL | C191: Wald ratio | D191: 1 | E191: 0.788 | F191: 0.540 | G191: 1.44E-01 | H191: 8.45E-01
A192: 11302_237 | B192: TNR | C192: Wald ratio | D192: 1 | E192: 0.191 | F192: 0.131 | G192: 1.45E-01 | H192: 8.45E-01
A193: 2515_14 | B193: GFRA2 | C193: Wald ratio | D193: 1 | E193: -0.081 | F193: 0.056 | G193: 1.46E-01 | H193: 8.45E-01
A194: 15316_262 | B194: TXNL4B | C194: Wald ratio | D194: 1 | E194: 0.193 | F194: 0.133 | G194: 1.47E-01 | H194: 8.45E-01
A195: 10620_21 | B195: MSMB | C195: Wald ratio | D195: 1 | E195: -0.028 | F195: 0.019 | G195: 1.47E-01 | H195: 8.45E-01
A196: 15503_20 | B196: LEFTY2 | C196: Wald ratio | D196: 1 | E196: 0.034 | F196: 0.024 | G196: 1.49E-01 | H196: 8.45E-01
A197: 3175_51 | B197: ADAMTS13 | C197: Wald ratio | D197: 1 | E197: 0.053 | F197: 0.036 | G197: 1.49E-01 | H197: 8.45E-01
A198: 17755_5 | B198: UGDH | C198: Wald ratio | D198: 1 | E198: 0.087 | F198: 0.060 | G198: 1.49E-01 | H198: 8.45E-01
A199: 8973_23 | B199: FCRL4 | C199: Wald ratio | D199: 1 | E199: 0.031 | F199: 0.022 | G199: 1.50E-01 | H199: 8.45E-01
A200: 18315_38 | B200: RTP4 | C200: Wald ratio | D200: 1 | E200: -0.077 | F200: 0.053 | G200: 1.51E-01 | H200: 8.45E-01
... 914 more rows

Sheet Table S16
A1: Table S16: Proteome-wide two-sample Mendelian randomization results of pancreatic cancer risk in Fenland.
A2: Soma_ID | B2: Protein | C2: method | D2: nsnp | E2: b | F2: se | G2: pval | H2: p.adj
A3: 5671_1 | B3: CTRB1 | C3: Wald ratio | D3: 1 | E3: -0.255 | F3: 0.039 | G3: 4.17E-11 | H3: 5.41E-08
A4: 13388_57 | B4: PCSK1 | C4: Wald ratio | D4: 1 | E4: 0.068 | F4: 0.018 | G4: 1.36E-04 | H4: 6.71E-02
A5: 4548_4 | B5: FUT3 | C5: Wald ratio | D5: 1 | E5: -0.090 | F5: 0.024 | G5: 1.55E-04 | H5: 6.71E-02
A6: 3169_70 | B6: IDUA | C6: Wald ratio | D6: 1 | E6: 0.106 | F6: 0.031 | G6: 7.72E-04 | H6: 2.50E-01
A7: 16773_29 | B7: SCUBE3 | C7: Wald ratio | D7: 1 | E7: -0.259 | F7: 0.079 | G7: 1.04E-03 | H7: 2.51E-01
A8: 19273_3 | B8: GSR | C8: Wald ratio | D8: 1 | E8: -0.406 | F8: 0.128 | G8: 1.49E-03 | H8: 2.51E-01
A9: 12437_18 | B9: ULK3 | C9: Wald ratio | D9: 1 | E9: -0.335 | F9: 0.107 | G9: 1.66E-03 | H9: 2.51E-01
A10: 13132_14 | B10: SEMA5A | C10: Wald ratio | D10: 1 | E10: -0.067 | F10: 0.022 | G10: 1.86E-03 | H10: 2.51E-01
A11: 19590_46 | B11: SFTPD | C11: Wald ratio | D11: 1 | E11: -0.097 | F11: 0.031 | G11: 2.00E-03 | H11: 2.51E-01
A12: 5132_71 | B12: IL27RA | C12: Wald ratio | D12: 1 | E12: 0.084 | F12: 0.027 | G12: 2.01E-03 | H12: 2.51E-01
A13: 15633_6 | B13: RBP4 | C13: Wald ratio | D13: 1 | E13: -0.409 | F13: 0.133 | G13: 2.13E-03 | H13: 2.51E-01
A14: 6223_5 | B14: GUCA2B | C14: Wald ratio | D14: 1 | E14: -0.426 | F14: 0.141 | G14: 2.44E-03 | H14: 2.64E-01
A15: 6366_38 | B15: TXNDC15 | C15: Wald ratio | D15: 1 | E15: 0.220 | F15: 0.074 | G15: 2.97E-03 | H15: 2.97E-01
A16: 12633_3 | B16: PTPN9 | C16: Wald ratio | D16: 1 | E16: -0.353 | F16: 0.121 | G16: 3.44E-03 | H16: 2.99E-01
A17: 4413_3 | B17: SLPI | C17: Wald ratio | D17: 1 | E17: 0.329 | F17: 0.112 | G17: 3.46E-03 | H17: 2.99E-01
A18: 3488_64 | B18: CAT | C18: Wald ratio | D18: 1 | E18: 0.206 | F18: 0.071 | G18: 3.81E-03 | H18: 3.06E-01
A19: 15475_4 | B19: PLTP | C19: Wald ratio | D19: 1 | E19: 0.089 | F19: 0.031 | G19: 4.12E-03 | H19: 3.06E-01
A20: 9211_19 | B20: SERPINF1 | C20: Wald ratio | D20: 1 | E20: -0.138 | F20: 0.048 | G20: 4.25E-03 | H20: 3.06E-01
A21: 8989_40 | B21: SCUBE1 | C21: Wald ratio | D21: 1 | E21: -0.317 | F21: 0.112 | G21: 4.68E-03 | H21: 3.19E-01
A22: 14655_1 | B22: DNAJC17 | C22: Wald ratio | D22: 1 | E22: -0.307 | F22: 0.111 | G22: 5.60E-03 | H22: 3.63E-01
A23: 8859_51 | B23: CA11 | C23: Wald ratio | D23: 1 | E23: -0.371 | F23: 0.137 | G23: 6.67E-03 | H23: 4.12E-01
A24: 12697_30 | B24: PIP4K2A | C24: Wald ratio | D24: 1 | E24: -0.235 | F24: 0.087 | G24: 7.18E-03 | H24: 4.23E-01
A25: 3032_11 | B25: CGA|FSHB | C25: Wald ratio | D25: 1 | E25: 0.366 | F25: 0.140 | G25: 8.90E-03 | H25: 5.02E-01
A26: 8053_16 | B26: DNAJB14 | C26: Wald ratio | D26: 1 | E26: 0.494 | F26: 0.191 | G26: 9.71E-03 | H26: 5.25E-01
A27: 5087_5 | B27: IL22RA2 | C27: Wald ratio | D27: 1 | E27: 0.369 | F27: 0.144 | G27: 1.02E-02 | H27: 5.32E-01
A28: 4534_10 | B28: PRSS22 | C28: Wald ratio | D28: 1 | E28: 0.180 | F28: 0.071 | G28: 1.12E-02 | H28: 5.39E-01
A29: 18396_10 | B29: AES | C29: Wald ratio | D29: 1 | E29: -0.412 | F29: 0.164 | G29: 1.19E-02 | H29: 5.39E-01
A30: 12361_102 | B30: RRAS2 | C30: Wald ratio | D30: 1 | E30: -0.404 | F30: 0.161 | G30: 1.21E-02 | H30: 5.39E-01
A31: 9829_91 | B31: SULT2A1 | C31: Wald ratio | D31: 1 | E31: -0.229 | F31: 0.092 | G31: 1.23E-02 | H31: 5.39E-01
A32: 15521_4 | B32: CLSTN1 | C32: Wald ratio | D32: 1 | E32: 0.112 | F32: 0.045 | G32: 1.25E-02 | H32: 5.39E-01
A33: 5646_20 | B33: RNASE6 | C33: Wald ratio | D33: 1 | E33: -0.042 | F33: 0.017 | G33: 1.38E-02 | H33: 5.63E-01
A34: 5124_69 | B34: ICAM5 | C34: Wald ratio | D34: 1 | E34: 0.072 | F34: 0.029 | G34: 1.43E-02 | H34: 5.63E-01
A35: 4801_13 | B35: LPO | C35: Wald ratio | D35: 1 | E35: -0.180 | F35: 0.074 | G35: 1.43E-02 | H35: 5.63E-01
A36: 12859_33 | B36: ECI2 | C36: Wald ratio | D36: 1 | E36: 0.064 | F36: 0.026 | G36: 1.52E-02 | H36: 5.69E-01
A37: 15556_49 | B37: AMY2B | C37: Wald ratio | D37: 1 | E37: 0.121 | F37: 0.050 | G37: 1.54E-02 | H37: 5.69E-01
A38: 14208_3 | B38: RBP7 | C38: Wald ratio | D38: 1 | E38: 0.220 | F38: 0.092 | G38: 1.67E-02 | H38: 6.00E-01
A39: 6990_44 | B39: SDF2L1 | C39: Wald ratio | D39: 1 | E39: -0.208 | F39: 0.089 | G39: 1.90E-02 | H39: 6.35E-01
A40: 4775_34 | B40: GSN | C40: Wald ratio | D40: 1 | E40: 0.264 | F40: 0.113 | G40: 1.91E-02 | H40: 6.35E-01
A41: 6409_57 | B41: GPR116 | C41: Wald ratio | D41: 1 | E41: -0.056 | F41: 0.024 | G41: 1.98E-02 | H41: 6.35E-01
A42: 8958_51 | B42: CHL1 | C42: Wald ratio | D42: 1 | E42: 0.132 | F42: 0.057 | G42: 1.99E-02 | H42: 6.35E-01
A43: 3024_18 | B43: SERPINF2 | C43: Wald ratio | D43: 1 | E43: -0.147 | F43: 0.064 | G43: 2.06E-02 | H43: 6.35E-01
A44: 9177_6 | B44: FAM3B | C44: Wald ratio | D44: 1 | E44: -0.122 | F44: 0.053 | G44: 2.08E-02 | H44: 6.35E-01
A45: 19614_8 | B45: TCN1 | C45: Wald ratio | D45: 1 | E45: -0.124 | F45: 0.054 | G45: 2.14E-02 | H45: 6.35E-01
A46: 12594_5 | B46: GCA | C46: Wald ratio | D46: 1 | E46: 0.096 | F46: 0.042 | G46: 2.21E-02 | H46: 6.35E-01
A47: 9005_16 | B47: PLXNA1 | C47: Wald ratio | D47: 1 | E47: 0.205 | F47: 0.090 | G47: 2.34E-02 | H47: 6.35E-01
A48: 3212_30 | B48: ASAH2 | C48: Wald ratio | D48: 1 | E48: 0.076 | F48: 0.034 | G48: 2.49E-02 | H48: 6.35E-01
A49: 13671_40 | B49: ELANE | C49: Wald ratio | D49: 1 | E49: 0.161 | F49: 0.072 | G49: 2.64E-02 | H49: 6.35E-01
A50: 18922_27 | B50: CD68 | C50: Wald ratio | D50: 1 | E50: -0.451 | F50: 0.203 | G50: 2.64E-02 | H50: 6.35E-01
A51: 6629_3 | B51: DEFB1 | C51: Wald ratio | D51: 1 | E51: -0.093 | F51: 0.042 | G51: 2.65E-02 | H51: 6.35E-01
A52: 4157_2 | B52: F2 | C52: Wald ratio | D52: 1 | E52: -0.443 | F52: 0.202 | G52: 2.82E-02 | H52: 6.35E-01
A53: 9832_33 | B53: HGD | C53: Wald ratio | D53: 1 | E53: -0.206 | F53: 0.094 | G53: 2.91E-02 | H53: 6.35E-01
A54: 15363_32 | B54: APOA5 | C54: Wald ratio | D54: 1 | E54: -0.051 | F54: 0.023 | G54: 2.96E-02 | H54: 6.35E-01
A55: 4407_10 | B55: MST1 | C55: Wald ratio | D55: 1 | E55: 0.032 | F55: 0.015 | G55: 3.03E-02 | H55: 6.35E-01
